{"text_format":"1","workbook":"xlsx","n_sheets":2,"sheets":["Sheet1","How to"],"not_rendered":{"charts":0,"images":0,"macros":1,"external_links":0,"defined_names":0,"comments":0,"pivot_tables":0},"unopened":[],"bounds":{"document_bytes":16777216,"sheet_cells":100000,"rows_first":2000,"rows_last":500,"rows_between":2000,"halvings":0,"cell_chars":16384,"cell_head_chars":4096},"cells_cut":0,"cells_raw":0,"read":"whole","date_system":"1900"}

{"sheet":"Sheet1","index":0,"n_rows":5001,"n_cols":16,"rows_kept":5001,"cut":false,"hidden":false,"merged":[]}
[null,null,null,null,null,null,null,"         LIST TITLE"]
[{"$f":"IF(M2=\"Y\",1,0)","v":0},{"$f":"IF(M2=\"N\",1,0)","v":0},{"$f":"IF(M2=\"A\",1,0)","v":0},"NAME",null,null,{"$f":"IF(D2<>\"\",G1+1,\"\")","v":1},"TEXTTEXTTEXTTEXT",null,null,null,null,null,{"$f":"IF(M2<>0,1,0)","v":0},{"$f":"IF(D2<>0,1,0)","v":1},{"$f":"SUM(N2:N5001)","v":0}]
[{"$f":"IF(M3=\"Y\",1,0)","v":0},{"$f":"IF(M3=\"N\",1,0)","v":0},{"$f":"IF(M3=\"A\",1,0)","v":0},null,null,null,"",null,null,null,null,null,null,0,0,{"$f":"SUM(O2:O5001)-SUM(N2:N5001)","v":1}]
[0,0,0,null,null,null,"",null,null,null,null,null,null,0,0,"↓"]
[0,0,0,null,null,null,"",null,null,null,null,null,null,0,0,{"$f":"P2+P3","v":1}]
[0,0,0,null,null,null,"",null,null,null,null,null,null,0,0]
[0,0,0,null,null,null,"",null,null,null,null,null,null,0,0]
[0,0,0,null,null,null,"",null,null,null,null,null,null,0,0]
[0,0,0,null,null,null,"",null,null,null,null,null,null,0,0]
[0,0,0,null,null,null,"",null,null,null,null,null,null,0,0]
[0,0,0,null,null,null,"",null,null,null,null,null,null,0,0]
[0,0,0,null,null,null,"",null,null,null,null,null,null,0,0,"Y="]
[0,0,0,null,null,null,"",null,null,null,null,null,null,0,0,{"$f":"SUM(A2:A5001)","v":0}]
[0,0,0,null,null,null,"",null,null,null,null,null,null,0,0,"%="]
[0,0,0,null,null,null,{"$f":"IF(D15<>\"\",G14+1,G14)","v":""},null,null,null,null,null,null,0,0,{"$f":"(P13/P5)*100","v":0}]
[0,0,0,null,null,null,{"$f":"IF(D16<>\"\",G15+1,\"\")","v":""},null,null,null,null,null,null,0,0]
[0,0,0,null,null,null,"",null,null,null,null,null,null,0,0,"N="]
[0,0,0,null,null,null,"",null,null,null,null,null,null,0,0,{"$f":"SUM(B2:B5001)","v":0}]
[0,0,0,null,null,null,"",null,null,null,null,null,null,0,0,"%="]
[0,0,0,null,null,null,"",null,null,null,null,null,null,0,0,{"$f":"(P18/P5)*100","v":0}]
[0,0,0,null,null,null,"",null,null,null,null,null,null,0,0]
[0,0,0,null,null,null,"",null,null,null,null,null,null,0,0,"A="]
[0,0,0,null,null,null,"",null,null,null,null,null,null,0,0,{"$f":"SUM(C2:C5001)","v":0}]
[0,0,0,null,null,null,"",null,null,null,null,null,null,0,0,"%="]
[0,0,0,null,null,null,"",null,null,null,null,null,null,0,0,{"$f":"(P23/P5)*100","v":0}]
[0,0,0,null,null,null,"",null,null,null,null,null,null,0,0]
[0,0,0,null,null,null,"",null,null,null,null,null,null,0,0,"T="]
[0,0,0,null,null,null,"",null,null,null,null,null,null,0,0,{"$f":"P13+P18+P23","v":0}]
[0,0,0,null,null,null,"",null,null,null,null,null,null,0,0,"%="]
[0,0,0,null,null,null,"",null,null,null,null,null,null,0,0,{"$f":"(P28/P5)*100","v":0}]
[0,0,0,null,null,null,"",null,null,null,null,null,null,0,0]
[0,0,0,null,null,null,"",null,null,null,null,null,null,0,0]
[0,0,0,null,null,null,"",null,null,null,null,null,null,0,0]
[0,0,0,null,null,null,"",null,null,null,null,null,null,0,0]
[0,0,0,null,null,null,"",null,null,null,null,null,null,0,0]
[0,0,0,null,null,null,"",null,null,null,null,null,null,0,0]
[0,0,0,null,null,null,"",null,null,null,null,null,null,0,0]
[0,0,0,null,null,null,"",null,null,null,null,null,null,0,0]
[0,0,0,null,null,null,"",null,null,null,null,null,null,0,0]
[0,0,0,null,null,null,"",null,null,null,null,null,null,0,0]
[0,0,0,null,null,null,"",null,null,null,null,null,null,0,0]
[0,0,0,null,null,null,"",null,null,null,null,null,null,0,0]
[0,0,0,null,null,null,"",null,null,null,null,null,null,0,0]
[0,0,0,null,null,null,"",null,null,null,null,null,null,0,0]
[0,0,0,null,null,null,"",null,null,null,null,null,null,0,0]
[0,0,0,null,null,null,"",null,null,null,null,null,null,0,0]
[0,0,0,null,null,null,"",null,null,null,null,null,null,0,0]
[0,0,0,null,null,null,"",null,null,null,null,null,null,0,0]
[0,0,0,null,null,null,"",null,null,null,null,null,null,0,0]
[0,0,0,null,null,null,"",null,null,null,null,null,null,0,0]
[0,0,0,null,null,null,"",null,null,null,null,null,null,0,0]
[0,0,0,null,null,null,"",null,null,null,null,null,null,0,0]
[0,0,0,null,null,null,"",null,null,null,null,null,null,0,0]
[0,0,0,null,null,null,"",null,null,null,null,null,null,0,0]
[0,0,0,null,null,null,"",null,null,null,null,null,null,0,0]
[0,0,0,null,null,null,"",null,null,null,null,null,null,0,0]
[0,0,0,null,null,null,"",null,null,null,null,null,null,0,0]
[0,0,0,null,null,null,"",null,null,null,null,null,null,0,0]
[0,0,0,null,null,null,"",null,null,null,null,null,null,0,0]
[0,0,0,null,null,null,"",null,null,null,null,null,null,0,0]
[0,0,0,null,null,null,"",null,null,null,null,null,null,0,0]
[0,0,0,null,null,null,"",null,null,null,null,null,null,0,0]
[0,0,0,null,null,null,"",null,null,null,null,null,null,0,0]
[0,0,0,null,null,null,"",null,null,null,null,null,null,0,0]
[0,0,0,null,null,null,"",null,null,null,null,null,null,0,0]
[0,0,0,null,null,null,"",null,null,null,null,null,null,{"$f":"IF(M66<>0,1,0)","v":0},{"$f":"IF(D66<>0,1,0)","v":0}]
[{"$f":"IF(M67=\"Y\",1,0)","v":0},{"$f":"IF(M67=\"N\",1,0)","v":0},{"$f":"IF(M67=\"A\",1,0)","v":0},null,null,null,"",null,null,null,null,null,null,0,0]
[0,0,0,null,null,null,"",null,null,null,null,null,null,0,0]
[0,0,0,null,null,null,"",null,null,null,null,null,null,0,0]
[0,0,0,null,null,null,"",null,null,null,null,null,null,0,0]
[0,0,0,null,null,null,"",null,null,null,null,null,null,0,0]
[0,0,0,null,null,null,"",null,null,null,null,null,null,0,0]
[0,0,0,null,null,null,"",null,null,null,null,null,null,0,0]
[0,0,0,null,null,null,"",null,null,null,null,null,null,0,0]
[0,0,0,null,null,null,"",null,null,null,null,null,null,0,0]
[0,0,0,null,null,null,"",null,null,null,null,null,null,0,0]
[0,0,0,null,null,null,"",null,null,null,null,null,null,0,0]
[0,0,0,null,null,null,"",null,null,null,null,null,null,0,0]
[0,0,0,null,null,null,"",null,null,null,null,null,null,0,0]
[0,0,0,null,null,null,{"$f":"IF(D80<>\"\",G79+1,\"\")","v":""},null,null,null,null,null,null,0,0]
[0,0,0,null,null,null,"",null,null,null,null,null,null,0,0]
[0,0,0,null,null,null,"",null,null,null,null,null,null,0,0]
[0,0,0,null,null,null,"",null,null,null,null,null,null,0,0]
[0,0,0,null,null,null,"",null,null,null,null,null,null,0,0]
[0,0,0,null,null,null,"",null,null,null,null,null,null,0,0]
[0,0,0,null,null,null,"",null,null,null,null,null,null,0,0]
[0,0,0,null,null,null,"",null,null,null,null,null,null,0,0]
[0,0,0,null,null,null,"",null,null,null,null,null,null,0,0]
[0,0,0,null,null,null,"",null,null,null,null,null,null,0,0]
[0,0,0,null,null,null,"",null,null,null,null,null,null,0,0]
[0,0,0,null,null,null,"",null,null,null,null,null,null,0,0]
[0,0,0,null,null,null,"",null,null,null,null,null,null,0,0]
[0,0,0,null,null,null,"",null,null,null,null,null,null,0,0]
[0,0,0,null,null,null,"",null,null,null,null,null,null,0,0]
[0,0,0,null,null,null,"",null,null,null,null,null,null,0,0]
[0,0,0,null,null,null,"",null,null,null,null,null,null,0,0]
[0,0,0,null,null,null,"",null,null,null,null,null,null,0,0]
[0,0,0,null,null,null,"",null,null,null,null,null,null,0,0]
[0,0,0,null,null,null,"",null,null,null,null,null,null,0,0]
[0,0,0,null,null,null,"",null,null,null,null,null,null,0,0]
[0,0,0,null,null,null,"",null,null,null,null,null,null,0,0]
[0,0,0,null,null,null,"",null,null,null,null,null,null,0,0]
[0,0,0,null,null,null,"",null,null,null,null,null,null,0,0]
[0,0,0,null,null,null,"",null,null,null,null,null,null,0,0]
[0,0,0,null,null,null,"",null,null,null,null,null,null,0,0]
[0,0,0,null,null,null,"",null,null,null,null,null,null,0,0]
[0,0,0,null,null,null,"",null,null,null,null,null,null,0,0]
[0,0,0,null,null,null,"",null,null,null,null,null,null,0,0]
[0,0,0,null,null,null,"",null,null,null,null,null,null,0,0]
[0,0,0,null,null,null,"",null,null,null,null,null,null,0,0]
[0,0,0,null,null,null,"",null,null,null,null,null,null,0,0]
[0,0,0,null,null,null,"",null,null,null,null,null,null,0,0]
[0,0,0,null,null,null,"",null,null,null,null,null,null,0,0]
[0,0,0,null,null,null,"",null,null,null,null,null,null,0,0]
[0,0,0,null,null,null,"",null,null,null,null,null,null,0,0]
[0,0,0,null,null,null,"",null,null,null,null,null,null,0,0]
[0,0,0,null,null,null,"",null,null,null,null,null,null,0,0]
[0,0,0,null,null,null,"",null,null,null,null,null,null,0,0]
[0,0,0,null,null,null,"",null,null,null,null,null,null,0,0]
[0,0,0,null,null,null,"",null,null,null,null,null,null,0,0]
[0,0,0,null,null,null,"",null,null,null,null,null,null,0,0]
[0,0,0,null,null,null,"",null,null,null,null,null,null,0,0]
[0,0,0,null,null,null,"",null,null,null,null,null,null,0,0]
[0,0,0,null,null,null,"",null,null,null,null,null,null,0,0]
[0,0,0,null,null,null,"",null,null,null,null,null,null,0,0]
[0,0,0,null,null,null,"",null,null,null,null,null,null,0,0]
[0,0,0,null,null,null,"",null,null,null,null,null,null,0,0]
[0,0,0,null,null,null,"",null,null,null,null,null,null,0,0]
[0,0,0,null,null,null,"",null,null,null,null,null,null,0,0]
[0,0,0,null,null,null,"",null,null,null,null,null,null,{"$f":"IF(M130<>0,1,0)","v":0},{"$f":"IF(D130<>0,1,0)","v":0}]
[{"$f":"IF(M131=\"Y\",1,0)","v":0},{"$f":"IF(M131=\"N\",1,0)","v":0},{"$f":"IF(M131=\"A\",1,0)","v":0},null,null,null,"",null,null,null,null,null,null,0,0]
[0,0,0,null,null,null,"",null,null,null,null,null,null,0,0]
[0,0,0,null,null,null,"",null,null,null,null,null,null,0,0]
[0,0,0,null,null,null,"",null,null,null,null,null,null,0,0]
[0,0,0,null,null,null,"",null,null,null,null,null,null,0,0]
[0,0,0,null,null,null,"",null,null,null,null,null,null,0,0]
[0,0,0,null,null,null,"",null,null,null,null,null,null,0,0]
[0,0,0,null,null,null,"",null,null,null,null,null,null,0,0]
[0,0,0,null,null,null,"",null,null,null,null,null,null,0,0]
[0,0,0,null,null,null,"",null,null,null,null,null,null,0,0]
[0,0,0,null,null,null,"",null,null,null,null,null,null,0,0]
[0,0,0,null,null,null,"",null,null,null,null,null,null,0,0]
[0,0,0,null,null,null,"",null,null,null,null,null,null,0,0]
[0,0,0,null,null,null,{"$f":"IF(D144<>\"\",G143+1,\"\")","v":""},null,null,null,null,null,null,0,0]
[0,0,0,null,null,null,"",null,null,null,null,null,null,0,0]
[0,0,0,null,null,null,"",null,null,null,null,null,null,0,0]
[0,0,0,null,null,null,"",null,null,null,null,null,null,0,0]
[0,0,0,null,null,null,"",null,null,null,null,null,null,0,0]
[0,0,0,null,null,null,"",null,null,null,null,null,null,0,0]
[0,0,0,null,null,null,"",null,null,null,null,null,null,0,0]
[0,0,0,null,null,null,"",null,null,null,null,null,null,0,0]
[0,0,0,null,null,null,"",null,null,null,null,null,null,0,0]
[0,0,0,null,null,null,"",null,null,null,null,null,null,0,0]
[0,0,0,null,null,null,"",null,null,null,null,null,null,0,0]
[0,0,0,null,null,null,"",null,null,null,null,null,null,0,0]
[0,0,0,null,null,null,"",null,null,null,null,null,null,0,0]
[0,0,0,null,null,null,"",null,null,null,null,null,null,0,0]
[0,0,0,null,null,null,"",null,null,null,null,null,null,0,0]
[0,0,0,null,null,null,"",null,null,null,null,null,null,0,0]
[0,0,0,null,null,null,"",null,null,null,null,null,null,0,0]
[0,0,0,null,null,null,"",null,null,null,null,null,null,0,0]
[0,0,0,null,null,null,"",null,null,null,null,null,null,0,0]
[0,0,0,null,null,null,"",null,null,null,null,null,null,0,0]
[0,0,0,null,null,null,"",null,null,null,null,null,null,0,0]
[0,0,0,null,null,null,"",null,null,null,null,null,null,0,0]
[0,0,0,null,null,null,"",null,null,null,null,null,null,0,0]
[0,0,0,null,null,null,"",null,null,null,null,null,null,0,0]
[0,0,0,null,null,null,"",null,null,null,null,null,null,0,0]
[0,0,0,null,null,null,"",null,null,null,null,null,null,0,0]
[0,0,0,null,null,null,"",null,null,null,null,null,null,0,0]
[0,0,0,null,null,null,"",null,null,null,null,null,null,0,0]
[0,0,0,null,null,null,"",null,null,null,null,null,null,0,0]
[0,0,0,null,null,null,"",null,null,null,null,null,null,0,0]
[0,0,0,null,null,null,"",null,null,null,null,null,null,0,0]
[0,0,0,null,null,null,"",null,null,null,null,null,null,0,0]
[0,0,0,null,null,null,"",null,null,null,null,null,null,0,0]
[0,0,0,null,null,null,"",null,null,null,null,null,null,0,0]
[0,0,0,null,null,null,"",null,null,null,null,null,null,0,0]
[0,0,0,null,null,null,"",null,null,null,null,null,null,0,0]
[0,0,0,null,null,null,"",null,null,null,null,null,null,0,0]
[0,0,0,null,null,null,"",null,null,null,null,null,null,0,0]
[0,0,0,null,null,null,"",null,null,null,null,null,null,0,0]
[0,0,0,null,null,null,"",null,null,null,null,null,null,0,0]
[0,0,0,null,null,null,"",null,null,null,null,null,null,0,0]
[0,0,0,null,null,null,"",null,null,null,null,null,null,0,0]
[0,0,0,null,null,null,"",null,null,null,null,null,null,0,0]
[0,0,0,null,null,null,"",null,null,null,null,null,null,0,0]
[0,0,0,null,null,null,"",null,null,null,null,null,null,0,0]
[0,0,0,null,null,null,"",null,null,null,null,null,null,0,0]
[0,0,0,null,null,null,"",null,null,null,null,null,null,0,0]
[0,0,0,null,null,null,"",null,null,null,null,null,null,0,0]
[0,0,0,null,null,null,"",null,null,null,null,null,null,0,0]
[0,0,0,null,null,null,"",null,null,null,null,null,null,0,0]
[0,0,0,null,null,null,"",null,null,null,null,null,null,{"$f":"IF(M194<>0,1,0)","v":0},{"$f":"IF(D194<>0,1,0)","v":0}]
[{"$f":"IF(M195=\"Y\",1,0)","v":0},{"$f":"IF(M195=\"N\",1,0)","v":0},{"$f":"IF(M195=\"A\",1,0)","v":0},null,null,null,"",null,null,null,null,null,null,0,0]
[0,0,0,null,null,null,"",null,null,null,null,null,null,0,0]
[0,0,0,null,null,null,"",null,null,null,null,null,null,0,0]
[0,0,0,null,null,null,"",null,null,null,null,null,null,0,0]
[0,0,0,null,null,null,"",null,null,null,null,null,null,0,0]
[0,0,0,null,null,null,"",null,null,null,null,null,null,0,0]
[0,0,0,null,null,null,"",null,null,null,null,null,null,0,0]
[0,0,0,null,null,null,"",null,null,null,null,null,null,0,0]
[0,0,0,null,null,null,"",null,null,null,null,null,null,0,0]
[0,0,0,null,null,null,"",null,null,null,null,null,null,0,0]
[0,0,0,null,null,null,"",null,null,null,null,null,null,0,0]
[0,0,0,null,null,null,"",null,null,null,null,null,null,0,0]
[0,0,0,null,null,null,"",null,null,null,null,null,null,0,0]
[0,0,0,null,null,null,{"$f":"IF(D208<>\"\",G207+1,\"\")","v":""},null,null,null,null,null,null,0,0]
[0,0,0,null,null,null,"",null,null,null,null,null,null,0,0]
[0,0,0,null,null,null,"",null,null,null,null,null,null,0,0]
[0,0,0,null,null,null,"",null,null,null,null,null,null,0,0]
[0,0,0,null,null,null,"",null,null,null,null,null,null,0,0]
[0,0,0,null,null,null,"",null,null,null,null,null,null,0,0]
[0,0,0,null,null,null,"",null,null,null,null,null,null,0,0]
[0,0,0,null,null,null,"",null,null,null,null,null,null,0,0]
[0,0,0,null,null,null,"",null,null,null,null,null,null,0,0]
[0,0,0,null,null,null,"",null,null,null,null,null,null,0,0]
[0,0,0,null,null,null,"",null,null,null,null,null,null,0,0]
[0,0,0,null,null,null,"",null,null,null,null,null,null,0,0]
[0,0,0,null,null,null,"",null,null,null,null,null,null,0,0]
[0,0,0,null,null,null,"",null,null,null,null,null,null,0,0]
[0,0,0,null,null,null,"",null,null,null,null,null,null,0,0]
[0,0,0,null,null,null,"",null,null,null,null,null,null,0,0]
[0,0,0,null,null,null,"",null,null,null,null,null,null,0,0]
[0,0,0,null,null,null,"",null,null,null,null,null,null,0,0]
[0,0,0,null,null,null,"",null,null,null,null,null,null,0,0]
[0,0,0,null,null,null,"",null,null,null,null,null,null,0,0]
[0,0,0,null,null,null,"",null,null,null,null,null,null,0,0]
[0,0,0,null,null,null,"",null,null,null,null,null,null,0,0]
[0,0,0,null,null,null,"",null,null,null,null,null,null,0,0]
[0,0,0,null,null,null,"",null,null,null,null,null,null,0,0]
[0,0,0,null,null,null,"",null,null,null,null,null,null,0,0]
[0,0,0,null,null,null,"",null,null,null,null,null,null,0,0]
[0,0,0,null,null,null,"",null,null,null,null,null,null,0,0]
[0,0,0,null,null,null,"",null,null,null,null,null,null,0,0]
[0,0,0,null,null,null,"",null,null,null,null,null,null,0,0]
[0,0,0,null,null,null,"",null,null,null,null,null,null,0,0]
[0,0,0,null,null,null,"",null,null,null,null,null,null,0,0]
[0,0,0,null,null,null,"",null,null,null,null,null,null,0,0]
[0,0,0,null,null,null,"",null,null,null,null,null,null,0,0]
[0,0,0,null,null,null,"",null,null,null,null,null,null,0,0]
[0,0,0,null,null,null,"",null,null,null,null,null,null,0,0]
[0,0,0,null,null,null,"",null,null,null,null,null,null,0,0]
[0,0,0,null,null,null,"",null,null,null,null,null,null,0,0]
[0,0,0,null,null,null,"",null,null,null,null,null,null,0,0]
[0,0,0,null,null,null,"",null,null,null,null,null,null,0,0]
[0,0,0,null,null,null,"",null,null,null,null,null,null,0,0]
[0,0,0,null,null,null,"",null,null,null,null,null,null,0,0]
[0,0,0,null,null,null,"",null,null,null,null,null,null,0,0]
[0,0,0,null,null,null,"",null,null,null,null,null,null,0,0]
[0,0,0,null,null,null,"",null,null,null,null,null,null,0,0]
[0,0,0,null,null,null,"",null,null,null,null,null,null,0,0]
[0,0,0,null,null,null,"",null,null,null,null,null,null,0,0]
[0,0,0,null,null,null,"",null,null,null,null,null,null,0,0]
[0,0,0,null,null,null,"",null,null,null,null,null,null,0,0]
[0,0,0,null,null,null,"",null,null,null,null,null,null,0,0]
[0,0,0,null,null,null,"",null,null,null,null,null,null,0,0]
[0,0,0,null,null,null,"",null,null,null,null,null,null,{"$f":"IF(M258<>0,1,0)","v":0},{"$f":"IF(D258<>0,1,0)","v":0}]
[{"$f":"IF(M259=\"Y\",1,0)","v":0},{"$f":"IF(M259=\"N\",1,0)","v":0},{"$f":"IF(M259=\"A\",1,0)","v":0},null,null,null,"",null,null,null,null,null,null,0,0]
[0,0,0,null,null,null,"",null,null,null,null,null,null,0,0]
[0,0,0,null,null,null,"",null,null,null,null,null,null,0,0]
[0,0,0,null,null,null,"",null,null,null,null,null,null,0,0]
[0,0,0,null,null,null,"",null,null,null,null,null,null,0,0]
[0,0,0,null,null,null,"",null,null,null,null,null,null,0,0]
[0,0,0,null,null,null,"",null,null,null,null,null,null,0,0]
[0,0,0,null,null,null,"",null,null,null,null,null,null,0,0]
[0,0,0,null,null,null,"",null,null,null,null,null,null,0,0]
[0,0,0,null,null,null,"",null,null,null,null,null,null,0,0]
[0,0,0,null,null,null,"",null,null,null,null,null,null,0,0]
[0,0,0,null,null,null,"",null,null,null,null,null,null,0,0]
[0,0,0,null,null,null,"",null,null,null,null,null,null,0,0]
[0,0,0,null,null,null,{"$f":"IF(D272<>\"\",G271+1,\"\")","v":""},null,null,null,null,null,null,0,0]
[0,0,0,null,null,null,"",null,null,null,null,null,null,0,0]
[0,0,0,null,null,null,"",null,null,null,null,null,null,0,0]
[0,0,0,null,null,null,"",null,null,null,null,null,null,0,0]
[0,0,0,null,null,null,"",null,null,null,null,null,null,0,0]
[0,0,0,null,null,null,"",null,null,null,null,null,null,0,0]
[0,0,0,null,null,null,"",null,null,null,null,null,null,0,0]
[0,0,0,null,null,null,"",null,null,null,null,null,null,0,0]
[0,0,0,null,null,null,"",null,null,null,null,null,null,0,0]
[0,0,0,null,null,null,"",null,null,null,null,null,null,0,0]
[0,0,0,null,null,null,"",null,null,null,null,null,null,0,0]
[0,0,0,null,null,null,"",null,null,null,null,null,null,0,0]
[0,0,0,null,null,null,"",null,null,null,null,null,null,0,0]
[0,0,0,null,null,null,"",null,null,null,null,null,null,0,0]
[0,0,0,null,null,null,"",null,null,null,null,null,null,0,0]
[0,0,0,null,null,null,"",null,null,null,null,null,null,0,0]
[0,0,0,null,null,null,"",null,null,null,null,null,null,0,0]
[0,0,0,null,null,null,"",null,null,null,null,null,null,0,0]
[0,0,0,null,null,null,"",null,null,null,null,null,null,0,0]
[0,0,0,null,null,null,"",null,null,null,null,null,null,0,0]
[0,0,0,null,null,null,"",null,null,null,null,null,null,0,0]
[0,0,0,null,null,null,"",null,null,null,null,null,null,0,0]
[0,0,0,null,null,null,"",null,null,null,null,null,null,0,0]
[0,0,0,null,null,null,"",null,null,null,null,null,null,0,0]
[0,0,0,null,null,null,"",null,null,null,null,null,null,0,0]
[0,0,0,null,null,null,"",null,null,null,null,null,null,0,0]
[0,0,0,null,null,null,"",null,null,null,null,null,null,0,0]
[0,0,0,null,null,null,"",null,null,null,null,null,null,0,0]
[0,0,0,null,null,null,"",null,null,null,null,null,null,0,0]
[0,0,0,null,null,null,"",null,null,null,null,null,null,0,0]
[0,0,0,null,null,null,"",null,null,null,null,null,null,0,0]
[0,0,0,null,null,null,"",null,null,null,null,null,null,0,0]
[0,0,0,null,null,null,"",null,null,null,null,null,null,0,0]
[0,0,0,null,null,null,"",null,null,null,null,null,null,0,0]
[0,0,0,null,null,null,"",null,null,null,null,null,null,0,0]
[0,0,0,null,null,null,"",null,null,null,null,null,null,0,0]
[0,0,0,null,null,null,"",null,null,null,null,null,null,0,0]
[0,0,0,null,null,null,"",null,null,null,null,null,null,0,0]
[0,0,0,null,null,null,"",null,null,null,null,null,null,0,0]
[0,0,0,null,null,null,"",null,null,null,null,null,null,0,0]
[0,0,0,null,null,null,"",null,null,null,null,null,null,0,0]
[0,0,0,null,null,null,"",null,null,null,null,null,null,0,0]
[0,0,0,null,null,null,"",null,null,null,null,null,null,0,0]
[0,0,0,null,null,null,"",null,null,null,null,null,null,0,0]
[0,0,0,null,null,null,"",null,null,null,null,null,null,0,0]
[0,0,0,null,null,null,"",null,null,null,null,null,null,0,0]
[0,0,0,null,null,null,"",null,null,null,null,null,null,0,0]
[0,0,0,null,null,null,"",null,null,null,null,null,null,0,0]
[0,0,0,null,null,null,"",null,null,null,null,null,null,0,0]
[0,0,0,null,null,null,"",null,null,null,null,null,null,0,0]
[0,0,0,null,null,null,"",null,null,null,null,null,null,{"$f":"IF(M322<>0,1,0)","v":0},{"$f":"IF(D322<>0,1,0)","v":0}]
[{"$f":"IF(M323=\"Y\",1,0)","v":0},{"$f":"IF(M323=\"N\",1,0)","v":0},{"$f":"IF(M323=\"A\",1,0)","v":0},null,null,null,"",null,null,null,null,null,null,0,0]
[0,0,0,null,null,null,"",null,null,null,null,null,null,0,0]
[0,0,0,null,null,null,"",null,null,null,null,null,null,0,0]
[0,0,0,null,null,null,"",null,null,null,null,null,null,0,0]
[0,0,0,null,null,null,"",null,null,null,null,null,null,0,0]
[0,0,0,null,null,null,"",null,null,null,null,null,null,0,0]
[0,0,0,null,null,null,"",null,null,null,null,null,null,0,0]
[0,0,0,null,null,null,"",null,null,null,null,null,null,0,0]
[0,0,0,null,null,null,"",null,null,null,null,null,null,0,0]
[0,0,0,null,null,null,"",null,null,null,null,null,null,0,0]
[0,0,0,null,null,null,"",null,null,null,null,null,null,0,0]
[0,0,0,null,null,null,"",null,null,null,null,null,null,0,0]
[0,0,0,null,null,null,"",null,null,null,null,null,null,0,0]
[0,0,0,null,null,null,{"$f":"IF(D336<>\"\",G335+1,\"\")","v":""},null,null,null,null,null,null,0,0]
[0,0,0,null,null,null,"",null,null,null,null,null,null,0,0]
[0,0,0,null,null,null,"",null,null,null,null,null,null,0,0]
[0,0,0,null,null,null,"",null,null,null,null,null,null,0,0]
[0,0,0,null,null,null,"",null,null,null,null,null,null,0,0]
[0,0,0,null,null,null,"",null,null,null,null,null,null,0,0]
[0,0,0,null,null,null,"",null,null,null,null,null,null,0,0]
[0,0,0,null,null,null,"",null,null,null,null,null,null,0,0]
[0,0,0,null,null,null,"",null,null,null,null,null,null,0,0]
[0,0,0,null,null,null,"",null,null,null,null,null,null,0,0]
[0,0,0,null,null,null,"",null,null,null,null,null,null,0,0]
[0,0,0,null,null,null,"",null,null,null,null,null,null,0,0]
[0,0,0,null,null,null,"",null,null,null,null,null,null,0,0]
[0,0,0,null,null,null,"",null,null,null,null,null,null,0,0]
[0,0,0,null,null,null,"",null,null,null,null,null,null,0,0]
[0,0,0,null,null,null,"",null,null,null,null,null,null,0,0]
[0,0,0,null,null,null,"",null,null,null,null,null,null,0,0]
[0,0,0,null,null,null,"",null,null,null,null,null,null,0,0]
[0,0,0,null,null,null,"",null,null,null,null,null,null,0,0]
[0,0,0,null,null,null,"",null,null,null,null,null,null,0,0]
[0,0,0,null,null,null,"",null,null,null,null,null,null,0,0]
[0,0,0,null,null,null,"",null,null,null,null,null,null,0,0]
[0,0,0,null,null,null,"",null,null,null,null,null,null,0,0]
[0,0,0,null,null,null,"",null,null,null,null,null,null,0,0]
[0,0,0,null,null,null,"",null,null,null,null,null,null,0,0]
[0,0,0,null,null,null,"",null,null,null,null,null,null,0,0]
[0,0,0,null,null,null,"",null,null,null,null,null,null,0,0]
[0,0,0,null,null,null,"",null,null,null,null,null,null,0,0]
[0,0,0,null,null,null,"",null,null,null,null,null,null,0,0]
[0,0,0,null,null,null,"",null,null,null,null,null,null,0,0]
[0,0,0,null,null,null,"",null,null,null,null,null,null,0,0]
[0,0,0,null,null,null,"",null,null,null,null,null,null,0,0]
[0,0,0,null,null,null,"",null,null,null,null,null,null,0,0]
[0,0,0,null,null,null,"",null,null,null,null,null,null,0,0]
[0,0,0,null,null,null,"",null,null,null,null,null,null,0,0]
[0,0,0,null,null,null,"",null,null,null,null,null,null,0,0]
[0,0,0,null,null,null,"",null,null,null,null,null,null,0,0]
[0,0,0,null,null,null,"",null,null,null,null,null,null,0,0]
[0,0,0,null,null,null,"",null,null,null,null,null,null,0,0]
[0,0,0,null,null,null,"",null,null,null,null,null,null,0,0]
[0,0,0,null,null,null,"",null,null,null,null,null,null,0,0]
[0,0,0,null,null,null,"",null,null,null,null,null,null,0,0]
[0,0,0,null,null,null,"",null,null,null,null,null,null,0,0]
[0,0,0,null,null,null,"",null,null,null,null,null,null,0,0]
[0,0,0,null,null,null,"",null,null,null,null,null,null,0,0]
[0,0,0,null,null,null,"",null,null,null,null,null,null,0,0]
[0,0,0,null,null,null,"",null,null,null,null,null,null,0,0]
[0,0,0,null,null,null,"",null,null,null,null,null,null,0,0]
[0,0,0,null,null,null,"",null,null,null,null,null,null,0,0]
[0,0,0,null,null,null,"",null,null,null,null,null,null,0,0]
[0,0,0,null,null,null,"",null,null,null,null,null,null,{"$f":"IF(M386<>0,1,0)","v":0},{"$f":"IF(D386<>0,1,0)","v":0}]
[{"$f":"IF(M387=\"Y\",1,0)","v":0},{"$f":"IF(M387=\"N\",1,0)","v":0},{"$f":"IF(M387=\"A\",1,0)","v":0},null,null,null,"",null,null,null,null,null,null,0,0]
[0,0,0,null,null,null,"",null,null,null,null,null,null,0,0]
[0,0,0,null,null,null,"",null,null,null,null,null,null,0,0]
[0,0,0,null,null,null,"",null,null,null,null,null,null,0,0]
[0,0,0,null,null,null,"",null,null,null,null,null,null,0,0]
[0,0,0,null,null,null,"",null,null,null,null,null,null,0,0]
[0,0,0,null,null,null,"",null,null,null,null,null,null,0,0]
[0,0,0,null,null,null,"",null,null,null,null,null,null,0,0]
[0,0,0,null,null,null,"",null,null,null,null,null,null,0,0]
[0,0,0,null,null,null,"",null,null,null,null,null,null,0,0]
[0,0,0,null,null,null,"",null,null,null,null,null,null,0,0]
[0,0,0,null,null,null,"",null,null,null,null,null,null,0,0]
[0,0,0,null,null,null,"",null,null,null,null,null,null,0,0]
[0,0,0,null,null,null,{"$f":"IF(D400<>\"\",G399+1,\"\")","v":""},null,null,null,null,null,null,0,0]
[0,0,0,null,null,null,"",null,null,null,null,null,null,0,0]
[0,0,0,null,null,null,"",null,null,null,null,null,null,0,0]
[0,0,0,null,null,null,"",null,null,null,null,null,null,0,0]
[0,0,0,null,null,null,"",null,null,null,null,null,null,0,0]
[0,0,0,null,null,null,"",null,null,null,null,null,null,0,0]
[0,0,0,null,null,null,"",null,null,null,null,null,null,0,0]
[0,0,0,null,null,null,"",null,null,null,null,null,null,0,0]
[0,0,0,null,null,null,"",null,null,null,null,null,null,0,0]
[0,0,0,null,null,null,"",null,null,null,null,null,null,0,0]
[0,0,0,null,null,null,"",null,null,null,null,null,null,0,0]
[0,0,0,null,null,null,"",null,null,null,null,null,null,0,0]
[0,0,0,null,null,null,"",null,null,null,null,null,null,0,0]
[0,0,0,null,null,null,"",null,null,null,null,null,null,0,0]
[0,0,0,null,null,null,"",null,null,null,null,null,null,0,0]
[0,0,0,null,null,null,"",null,null,null,null,null,null,0,0]
[0,0,0,null,null,null,"",null,null,null,null,null,null,0,0]
[0,0,0,null,null,null,"",null,null,null,null,null,null,0,0]
[0,0,0,null,null,null,"",null,null,null,null,null,null,0,0]
[0,0,0,null,null,null,"",null,null,null,null,null,null,0,0]
[0,0,0,null,null,null,"",null,null,null,null,null,null,0,0]
[0,0,0,null,null,null,"",null,null,null,null,null,null,0,0]
[0,0,0,null,null,null,"",null,null,null,null,null,null,0,0]
[0,0,0,null,null,null,"",null,null,null,null,null,null,0,0]
[0,0,0,null,null,null,"",null,null,null,null,null,null,0,0]
[0,0,0,null,null,null,"",null,null,null,null,null,null,0,0]
[0,0,0,null,null,null,"",null,null,null,null,null,null,0,0]
[0,0,0,null,null,null,"",null,null,null,null,null,null,0,0]
[0,0,0,null,null,null,"",null,null,null,null,null,null,0,0]
[0,0,0,null,null,null,"",null,null,null,null,null,null,0,0]
[0,0,0,null,null,null,"",null,null,null,null,null,null,0,0]
[0,0,0,null,null,null,"",null,null,null,null,null,null,0,0]
[0,0,0,null,null,null,"",null,null,null,null,null,null,0,0]
[0,0,0,null,null,null,"",null,null,null,null,null,null,0,0]
[0,0,0,null,null,null,"",null,null,null,null,null,null,0,0]
[0,0,0,null,null,null,"",null,null,null,null,null,null,0,0]
[0,0,0,null,null,null,"",null,null,null,null,null,null,0,0]
[0,0,0,null,null,null,"",null,null,null,null,null,null,0,0]
[0,0,0,null,null,null,"",null,null,null,null,null,null,0,0]
[0,0,0,null,null,null,"",null,null,null,null,null,null,0,0]
[0,0,0,null,null,null,"",null,null,null,null,null,null,0,0]
[0,0,0,null,null,null,"",null,null,null,null,null,null,0,0]
[0,0,0,null,null,null,"",null,null,null,null,null,null,0,0]
[0,0,0,null,null,null,"",null,null,null,null,null,null,0,0]
[0,0,0,null,null,null,"",null,null,null,null,null,null,0,0]
[0,0,0,null,null,null,"",null,null,null,null,null,null,0,0]
[0,0,0,null,null,null,"",null,null,null,null,null,null,0,0]
[0,0,0,null,null,null,"",null,null,null,null,null,null,0,0]
[0,0,0,null,null,null,"",null,null,null,null,null,null,0,0]
[0,0,0,null,null,null,"",null,null,null,null,null,null,0,0]
[0,0,0,null,null,null,"",null,null,null,null,null,null,{"$f":"IF(M450<>0,1,0)","v":0},{"$f":"IF(D450<>0,1,0)","v":0}]
[{"$f":"IF(M451=\"Y\",1,0)","v":0},{"$f":"IF(M451=\"N\",1,0)","v":0},{"$f":"IF(M451=\"A\",1,0)","v":0},null,null,null,"",null,null,null,null,null,null,0,0]
[0,0,0,null,null,null,"",null,null,null,null,null,null,0,0]
[0,0,0,null,null,null,"",null,null,null,null,null,null,0,0]
[0,0,0,null,null,null,"",null,null,null,null,null,null,0,0]
[0,0,0,null,null,null,"",null,null,null,null,null,null,0,0]
[0,0,0,null,null,null,"",null,null,null,null,null,null,0,0]
[0,0,0,null,null,null,"",null,null,null,null,null,null,0,0]
[0,0,0,null,null,null,"",null,null,null,null,null,null,0,0]
[0,0,0,null,null,null,"",null,null,null,null,null,null,0,0]
[0,0,0,null,null,null,"",null,null,null,null,null,null,0,0]
[0,0,0,null,null,null,"",null,null,null,null,null,null,0,0]
[0,0,0,null,null,null,"",null,null,null,null,null,null,0,0]
[0,0,0,null,null,null,"",null,null,null,null,null,null,0,0]
[0,0,0,null,null,null,{"$f":"IF(D464<>\"\",G463+1,\"\")","v":""},null,null,null,null,null,null,0,0]
[0,0,0,null,null,null,"",null,null,null,null,null,null,0,0]
[0,0,0,null,null,null,"",null,null,null,null,null,null,0,0]
[0,0,0,null,null,null,"",null,null,null,null,null,null,0,0]
[0,0,0,null,null,null,"",null,null,null,null,null,null,0,0]
[0,0,0,null,null,null,"",null,null,null,null,null,null,0,0]
[0,0,0,null,null,null,"",null,null,null,null,null,null,0,0]
[0,0,0,null,null,null,"",null,null,null,null,null,null,0,0]
[0,0,0,null,null,null,"",null,null,null,null,null,null,0,0]
[0,0,0,null,null,null,"",null,null,null,null,null,null,0,0]
[0,0,0,null,null,null,"",null,null,null,null,null,null,0,0]
[0,0,0,null,null,null,"",null,null,null,null,null,null,0,0]
[0,0,0,null,null,null,"",null,null,null,null,null,null,0,0]
[0,0,0,null,null,null,"",null,null,null,null,null,null,0,0]
[0,0,0,null,null,null,"",null,null,null,null,null,null,0,0]
[0,0,0,null,null,null,"",null,null,null,null,null,null,0,0]
[0,0,0,null,null,null,"",null,null,null,null,null,null,0,0]
[0,0,0,null,null,null,"",null,null,null,null,null,null,0,0]
[0,0,0,null,null,null,"",null,null,null,null,null,null,0,0]
[0,0,0,null,null,null,"",null,null,null,null,null,null,0,0]
[0,0,0,null,null,null,"",null,null,null,null,null,null,0,0]
[0,0,0,null,null,null,"",null,null,null,null,null,null,0,0]
[0,0,0,null,null,null,"",null,null,null,null,null,null,0,0]
[0,0,0,null,null,null,"",null,null,null,null,null,null,0,0]
[0,0,0,null,null,null,"",null,null,null,null,null,null,0,0]
[0,0,0,null,null,null,"",null,null,null,null,null,null,0,0]
[0,0,0,null,null,null,"",null,null,null,null,null,null,0,0]
[0,0,0,null,null,null,"",null,null,null,null,null,null,0,0]
[0,0,0,null,null,null,"",null,null,null,null,null,null,0,0]
[0,0,0,null,null,null,"",null,null,null,null,null,null,0,0]
[0,0,0,null,null,null,"",null,null,null,null,null,null,0,0]
[0,0,0,null,null,null,"",null,null,null,null,null,null,0,0]
[0,0,0,null,null,null,"",null,null,null,null,null,null,0,0]
[0,0,0,null,null,null,"",null,null,null,null,null,null,0,0]
[0,0,0,null,null,null,"",null,null,null,null,null,null,0,0]
[0,0,0,null,null,null,"",null,null,null,null,null,null,0,0]
[0,0,0,null,null,null,"",null,null,null,null,null,null,0,0]
[0,0,0,null,null,null,"",null,null,null,null,null,null,0,0]
[0,0,0,null,null,null,"",null,null,null,null,null,null,0,0]
[0,0,0,null,null,null,"",null,null,null,null,null,null,0,0]
[0,0,0,null,null,null,"",null,null,null,null,null,null,0,0]
[0,0,0,null,null,null,"",null,null,null,null,null,null,0,0]
[0,0,0,null,null,null,"",null,null,null,null,null,null,0,0]
[0,0,0,null,null,null,"",null,null,null,null,null,null,0,0]
[0,0,0,null,null,null,"",null,null,null,null,null,null,0,0]
[0,0,0,null,null,null,"",null,null,null,null,null,null,0,0]
[0,0,0,null,null,null,"",null,null,null,null,null,null,0,0]
[0,0,0,null,null,null,"",null,null,null,null,null,null,0,0]
[0,0,0,null,null,null,"",null,null,null,null,null,null,0,0]
[0,0,0,null,null,null,"",null,null,null,null,null,null,0,0]
[0,0,0,null,null,null,"",null,null,null,null,null,null,{"$f":"IF(M514<>0,1,0)","v":0},{"$f":"IF(D514<>0,1,0)","v":0}]
[{"$f":"IF(M515=\"Y\",1,0)","v":0},{"$f":"IF(M515=\"N\",1,0)","v":0},{"$f":"IF(M515=\"A\",1,0)","v":0},null,null,null,"",null,null,null,null,null,null,0,0]
[0,0,0,null,null,null,"",null,null,null,null,null,null,0,0]
[0,0,0,null,null,null,"",null,null,null,null,null,null,0,0]
[0,0,0,null,null,null,"",null,null,null,null,null,null,0,0]
[0,0,0,null,null,null,"",null,null,null,null,null,null,0,0]
[0,0,0,null,null,null,"",null,null,null,null,null,null,0,0]
[0,0,0,null,null,null,"",null,null,null,null,null,null,0,0]
[0,0,0,null,null,null,"",null,null,null,null,null,null,0,0]
[0,0,0,null,null,null,"",null,null,null,null,null,null,0,0]
[0,0,0,null,null,null,"",null,null,null,null,null,null,0,0]
[0,0,0,null,null,null,"",null,null,null,null,null,null,0,0]
[0,0,0,null,null,null,"",null,null,null,null,null,null,0,0]
[0,0,0,null,null,null,"",null,null,null,null,null,null,0,0]
[0,0,0,null,null,null,{"$f":"IF(D528<>\"\",G527+1,\"\")","v":""},null,null,null,null,null,null,0,0]
[0,0,0,null,null,null,"",null,null,null,null,null,null,0,0]
[0,0,0,null,null,null,"",null,null,null,null,null,null,0,0]
[0,0,0,null,null,null,"",null,null,null,null,null,null,0,0]
[0,0,0,null,null,null,"",null,null,null,null,null,null,0,0]
[0,0,0,null,null,null,"",null,null,null,null,null,null,0,0]
[0,0,0,null,null,null,"",null,null,null,null,null,null,0,0]
[0,0,0,null,null,null,"",null,null,null,null,null,null,0,0]
[0,0,0,null,null,null,"",null,null,null,null,null,null,0,0]
[0,0,0,null,null,null,"",null,null,null,null,null,null,0,0]
[0,0,0,null,null,null,"",null,null,null,null,null,null,0,0]
[0,0,0,null,null,null,"",null,null,null,null,null,null,0,0]
[0,0,0,null,null,null,"",null,null,null,null,null,null,0,0]
[0,0,0,null,null,null,"",null,null,null,null,null,null,0,0]
[0,0,0,null,null,null,"",null,null,null,null,null,null,0,0]
[0,0,0,null,null,null,"",null,null,null,null,null,null,0,0]
[0,0,0,null,null,null,"",null,null,null,null,null,null,0,0]
[0,0,0,null,null,null,"",null,null,null,null,null,null,0,0]
[0,0,0,null,null,null,"",null,null,null,null,null,null,0,0]
[0,0,0,null,null,null,"",null,null,null,null,null,null,0,0]
[0,0,0,null,null,null,"",null,null,null,null,null,null,0,0]
[0,0,0,null,null,null,"",null,null,null,null,null,null,0,0]
[0,0,0,null,null,null,"",null,null,null,null,null,null,0,0]
[0,0,0,null,null,null,"",null,null,null,null,null,null,0,0]
[0,0,0,null,null,null,"",null,null,null,null,null,null,0,0]
[0,0,0,null,null,null,"",null,null,null,null,null,null,0,0]
[0,0,0,null,null,null,"",null,null,null,null,null,null,0,0]
[0,0,0,null,null,null,"",null,null,null,null,null,null,0,0]
[0,0,0,null,null,null,"",null,null,null,null,null,null,0,0]
[0,0,0,null,null,null,"",null,null,null,null,null,null,0,0]
[0,0,0,null,null,null,"",null,null,null,null,null,null,0,0]
[0,0,0,null,null,null,"",null,null,null,null,null,null,0,0]
[0,0,0,null,null,null,"",null,null,null,null,null,null,0,0]
[0,0,0,null,null,null,"",null,null,null,null,null,null,0,0]
[0,0,0,null,null,null,"",null,null,null,null,null,null,0,0]
[0,0,0,null,null,null,"",null,null,null,null,null,null,0,0]
[0,0,0,null,null,null,"",null,null,null,null,null,null,0,0]
[0,0,0,null,null,null,"",null,null,null,null,null,null,0,0]
[0,0,0,null,null,null,"",null,null,null,null,null,null,0,0]
[0,0,0,null,null,null,"",null,null,null,null,null,null,0,0]
[0,0,0,null,null,null,"",null,null,null,null,null,null,0,0]
[0,0,0,null,null,null,"",null,null,null,null,null,null,0,0]
[0,0,0,null,null,null,"",null,null,null,null,null,null,0,0]
[0,0,0,null,null,null,"",null,null,null,null,null,null,0,0]
[0,0,0,null,null,null,"",null,null,null,null,null,null,0,0]
[0,0,0,null,null,null,"",null,null,null,null,null,null,0,0]
[0,0,0,null,null,null,"",null,null,null,null,null,null,0,0]
[0,0,0,null,null,null,"",null,null,null,null,null,null,0,0]
[0,0,0,null,null,null,"",null,null,null,null,null,null,0,0]
[0,0,0,null,null,null,"",null,null,null,null,null,null,0,0]
[0,0,0,null,null,null,"",null,null,null,null,null,null,{"$f":"IF(M578<>0,1,0)","v":0},{"$f":"IF(D578<>0,1,0)","v":0}]
[{"$f":"IF(M579=\"Y\",1,0)","v":0},{"$f":"IF(M579=\"N\",1,0)","v":0},{"$f":"IF(M579=\"A\",1,0)","v":0},null,null,null,"",null,null,null,null,null,null,0,0]
[0,0,0,null,null,null,"",null,null,null,null,null,null,0,0]
[0,0,0,null,null,null,"",null,null,null,null,null,null,0,0]
[0,0,0,null,null,null,"",null,null,null,null,null,null,0,0]
[0,0,0,null,null,null,"",null,null,null,null,null,null,0,0]
[0,0,0,null,null,null,"",null,null,null,null,null,null,0,0]
[0,0,0,null,null,null,"",null,null,null,null,null,null,0,0]
[0,0,0,null,null,null,"",null,null,null,null,null,null,0,0]
[0,0,0,null,null,null,"",null,null,null,null,null,null,0,0]
[0,0,0,null,null,null,"",null,null,null,null,null,null,0,0]
[0,0,0,null,null,null,"",null,null,null,null,null,null,0,0]
[0,0,0,null,null,null,"",null,null,null,null,null,null,0,0]
[0,0,0,null,null,null,"",null,null,null,null,null,null,0,0]
[0,0,0,null,null,null,{"$f":"IF(D592<>\"\",G591+1,\"\")","v":""},null,null,null,null,null,null,0,0]
[0,0,0,null,null,null,"",null,null,null,null,null,null,0,0]
[0,0,0,null,null,null,"",null,null,null,null,null,null,0,0]
[0,0,0,null,null,null,"",null,null,null,null,null,null,0,0]
[0,0,0,null,null,null,"",null,null,null,null,null,null,0,0]
[0,0,0,null,null,null,"",null,null,null,null,null,null,0,0]
[0,0,0,null,null,null,"",null,null,null,null,null,null,0,0]
[0,0,0,null,null,null,"",null,null,null,null,null,null,0,0]
[0,0,0,null,null,null,"",null,null,null,null,null,null,0,0]
[0,0,0,null,null,null,"",null,null,null,null,null,null,0,0]
[0,0,0,null,null,null,"",null,null,null,null,null,null,0,0]
[0,0,0,null,null,null,"",null,null,null,null,null,null,0,0]
[0,0,0,null,null,null,"",null,null,null,null,null,null,0,0]
[0,0,0,null,null,null,"",null,null,null,null,null,null,0,0]
[0,0,0,null,null,null,"",null,null,null,null,null,null,0,0]
[0,0,0,null,null,null,"",null,null,null,null,null,null,0,0]
[0,0,0,null,null,null,"",null,null,null,null,null,null,0,0]
[0,0,0,null,null,null,"",null,null,null,null,null,null,0,0]
[0,0,0,null,null,null,"",null,null,null,null,null,null,0,0]
[0,0,0,null,null,null,"",null,null,null,null,null,null,0,0]
[0,0,0,null,null,null,"",null,null,null,null,null,null,0,0]
[0,0,0,null,null,null,"",null,null,null,null,null,null,0,0]
[0,0,0,null,null,null,"",null,null,null,null,null,null,0,0]
[0,0,0,null,null,null,"",null,null,null,null,null,null,0,0]
[0,0,0,null,null,null,"",null,null,null,null,null,null,0,0]
[0,0,0,null,null,null,"",null,null,null,null,null,null,0,0]
[0,0,0,null,null,null,"",null,null,null,null,null,null,0,0]
[0,0,0,null,null,null,"",null,null,null,null,null,null,0,0]
[0,0,0,null,null,null,"",null,null,null,null,null,null,0,0]
[0,0,0,null,null,null,"",null,null,null,null,null,null,0,0]
[0,0,0,null,null,null,"",null,null,null,null,null,null,0,0]
[0,0,0,null,null,null,"",null,null,null,null,null,null,0,0]
[0,0,0,null,null,null,"",null,null,null,null,null,null,0,0]
[0,0,0,null,null,null,"",null,null,null,null,null,null,0,0]
[0,0,0,null,null,null,"",null,null,null,null,null,null,0,0]
[0,0,0,null,null,null,"",null,null,null,null,null,null,0,0]
[0,0,0,null,null,null,"",null,null,null,null,null,null,0,0]
[0,0,0,null,null,null,"",null,null,null,null,null,null,0,0]
[0,0,0,null,null,null,"",null,null,null,null,null,null,0,0]
[0,0,0,null,null,null,"",null,null,null,null,null,null,0,0]
[0,0,0,null,null,null,"",null,null,null,null,null,null,0,0]
[0,0,0,null,null,null,"",null,null,null,null,null,null,0,0]
[0,0,0,null,null,null,"",null,null,null,null,null,null,0,0]
[0,0,0,null,null,null,"",null,null,null,null,null,null,0,0]
[0,0,0,null,null,null,"",null,null,null,null,null,null,0,0]
[0,0,0,null,null,null,"",null,null,null,null,null,null,0,0]
[0,0,0,null,null,null,"",null,null,null,null,null,null,0,0]
[0,0,0,null,null,null,"",null,null,null,null,null,null,0,0]
[0,0,0,null,null,null,"",null,null,null,null,null,null,0,0]
[0,0,0,null,null,null,"",null,null,null,null,null,null,0,0]
[0,0,0,null,null,null,"",null,null,null,null,null,null,{"$f":"IF(M642<>0,1,0)","v":0},{"$f":"IF(D642<>0,1,0)","v":0}]
[{"$f":"IF(M643=\"Y\",1,0)","v":0},{"$f":"IF(M643=\"N\",1,0)","v":0},{"$f":"IF(M643=\"A\",1,0)","v":0},null,null,null,"",null,null,null,null,null,null,0,0]
[0,0,0,null,null,null,"",null,null,null,null,null,null,0,0]
[0,0,0,null,null,null,"",null,null,null,null,null,null,0,0]
[0,0,0,null,null,null,"",null,null,null,null,null,null,0,0]
[0,0,0,null,null,null,"",null,null,null,null,null,null,0,0]
[0,0,0,null,null,null,"",null,null,null,null,null,null,0,0]
[0,0,0,null,null,null,"",null,null,null,null,null,null,0,0]
[0,0,0,null,null,null,"",null,null,null,null,null,null,0,0]
[0,0,0,null,null,null,"",null,null,null,null,null,null,0,0]
[0,0,0,null,null,null,"",null,null,null,null,null,null,0,0]
[0,0,0,null,null,null,"",null,null,null,null,null,null,0,0]
[0,0,0,null,null,null,"",null,null,null,null,null,null,0,0]
[0,0,0,null,null,null,"",null,null,null,null,null,null,0,0]
[0,0,0,null,null,null,{"$f":"IF(D656<>\"\",G655+1,\"\")","v":""},null,null,null,null,null,null,0,0]
[0,0,0,null,null,null,"",null,null,null,null,null,null,0,0]
[0,0,0,null,null,null,"",null,null,null,null,null,null,0,0]
[0,0,0,null,null,null,"",null,null,null,null,null,null,0,0]
[0,0,0,null,null,null,"",null,null,null,null,null,null,0,0]
[0,0,0,null,null,null,"",null,null,null,null,null,null,0,0]
[0,0,0,null,null,null,"",null,null,null,null,null,null,0,0]
[0,0,0,null,null,null,"",null,null,null,null,null,null,0,0]
[0,0,0,null,null,null,"",null,null,null,null,null,null,0,0]
[0,0,0,null,null,null,"",null,null,null,null,null,null,0,0]
[0,0,0,null,null,null,"",null,null,null,null,null,null,0,0]
[0,0,0,null,null,null,"",null,null,null,null,null,null,0,0]
[0,0,0,null,null,null,"",null,null,null,null,null,null,0,0]
[0,0,0,null,null,null,"",null,null,null,null,null,null,0,0]
[0,0,0,null,null,null,"",null,null,null,null,null,null,0,0]
[0,0,0,null,null,null,"",null,null,null,null,null,null,0,0]
[0,0,0,null,null,null,"",null,null,null,null,null,null,0,0]
[0,0,0,null,null,null,"",null,null,null,null,null,null,0,0]
[0,0,0,null,null,null,"",null,null,null,null,null,null,0,0]
[0,0,0,null,null,null,"",null,null,null,null,null,null,0,0]
[0,0,0,null,null,null,"",null,null,null,null,null,null,0,0]
[0,0,0,null,null,null,"",null,null,null,null,null,null,0,0]
[0,0,0,null,null,null,"",null,null,null,null,null,null,0,0]
[0,0,0,null,null,null,"",null,null,null,null,null,null,0,0]
[0,0,0,null,null,null,"",null,null,null,null,null,null,0,0]
[0,0,0,null,null,null,"",null,null,null,null,null,null,0,0]
[0,0,0,null,null,null,"",null,null,null,null,null,null,0,0]
[0,0,0,null,null,null,"",null,null,null,null,null,null,0,0]
[0,0,0,null,null,null,"",null,null,null,null,null,null,0,0]
[0,0,0,null,null,null,"",null,null,null,null,null,null,0,0]
[0,0,0,null,null,null,"",null,null,null,null,null,null,0,0]
[0,0,0,null,null,null,"",null,null,null,null,null,null,0,0]
[0,0,0,null,null,null,"",null,null,null,null,null,null,0,0]
[0,0,0,null,null,null,"",null,null,null,null,null,null,0,0]
[0,0,0,null,null,null,"",null,null,null,null,null,null,0,0]
[0,0,0,null,null,null,"",null,null,null,null,null,null,0,0]
[0,0,0,null,null,null,"",null,null,null,null,null,null,0,0]
[0,0,0,null,null,null,"",null,null,null,null,null,null,0,0]
[0,0,0,null,null,null,"",null,null,null,null,null,null,0,0]
[0,0,0,null,null,null,"",null,null,null,null,null,null,0,0]
[0,0,0,null,null,null,"",null,null,null,null,null,null,0,0]
[0,0,0,null,null,null,"",null,null,null,null,null,null,0,0]
[0,0,0,null,null,null,"",null,null,null,null,null,null,0,0]
[0,0,0,null,null,null,"",null,null,null,null,null,null,0,0]
[0,0,0,null,null,null,"",null,null,null,null,null,null,0,0]
[0,0,0,null,null,null,"",null,null,null,null,null,null,0,0]
[0,0,0,null,null,null,"",null,null,null,null,null,null,0,0]
[0,0,0,null,null,null,"",null,null,null,null,null,null,0,0]
[0,0,0,null,null,null,"",null,null,null,null,null,null,0,0]
[0,0,0,null,null,null,"",null,null,null,null,null,null,0,0]
[0,0,0,null,null,null,"",null,null,null,null,null,null,{"$f":"IF(M706<>0,1,0)","v":0},{"$f":"IF(D706<>0,1,0)","v":0}]
[{"$f":"IF(M707=\"Y\",1,0)","v":0},{"$f":"IF(M707=\"N\",1,0)","v":0},{"$f":"IF(M707=\"A\",1,0)","v":0},null,null,null,"",null,null,null,null,null,null,0,0]
[0,0,0,null,null,null,"",null,null,null,null,null,null,0,0]
[0,0,0,null,null,null,"",null,null,null,null,null,null,0,0]
[0,0,0,null,null,null,"",null,null,null,null,null,null,0,0]
[0,0,0,null,null,null,"",null,null,null,null,null,null,0,0]
[0,0,0,null,null,null,"",null,null,null,null,null,null,0,0]
[0,0,0,null,null,null,"",null,null,null,null,null,null,0,0]
[0,0,0,null,null,null,"",null,null,null,null,null,null,0,0]
[0,0,0,null,null,null,"",null,null,null,null,null,null,0,0]
[0,0,0,null,null,null,"",null,null,null,null,null,null,0,0]
[0,0,0,null,null,null,"",null,null,null,null,null,null,0,0]
[0,0,0,null,null,null,"",null,null,null,null,null,null,0,0]
[0,0,0,null,null,null,"",null,null,null,null,null,null,0,0]
[0,0,0,null,null,null,{"$f":"IF(D720<>\"\",G719+1,\"\")","v":""},null,null,null,null,null,null,0,0]
[0,0,0,null,null,null,"",null,null,null,null,null,null,0,0]
[0,0,0,null,null,null,"",null,null,null,null,null,null,0,0]
[0,0,0,null,null,null,"",null,null,null,null,null,null,0,0]
[0,0,0,null,null,null,"",null,null,null,null,null,null,0,0]
[0,0,0,null,null,null,"",null,null,null,null,null,null,0,0]
[0,0,0,null,null,null,"",null,null,null,null,null,null,0,0]
[0,0,0,null,null,null,"",null,null,null,null,null,null,0,0]
[0,0,0,null,null,null,"",null,null,null,null,null,null,0,0]
[0,0,0,null,null,null,"",null,null,null,null,null,null,0,0]
[0,0,0,null,null,null,"",null,null,null,null,null,null,0,0]
[0,0,0,null,null,null,"",null,null,null,null,null,null,0,0]
[0,0,0,null,null,null,"",null,null,null,null,null,null,0,0]
[0,0,0,null,null,null,"",null,null,null,null,null,null,0,0]
[0,0,0,null,null,null,"",null,null,null,null,null,null,0,0]
[0,0,0,null,null,null,"",null,null,null,null,null,null,0,0]
[0,0,0,null,null,null,"",null,null,null,null,null,null,0,0]
[0,0,0,null,null,null,"",null,null,null,null,null,null,0,0]
[0,0,0,null,null,null,"",null,null,null,null,null,null,0,0]
[0,0,0,null,null,null,"",null,null,null,null,null,null,0,0]
[0,0,0,null,null,null,"",null,null,null,null,null,null,0,0]
[0,0,0,null,null,null,"",null,null,null,null,null,null,0,0]
[0,0,0,null,null,null,"",null,null,null,null,null,null,0,0]
[0,0,0,null,null,null,"",null,null,null,null,null,null,0,0]
[0,0,0,null,null,null,"",null,null,null,null,null,null,0,0]
[0,0,0,null,null,null,"",null,null,null,null,null,null,0,0]
[0,0,0,null,null,null,"",null,null,null,null,null,null,0,0]
[0,0,0,null,null,null,"",null,null,null,null,null,null,0,0]
[0,0,0,null,null,null,"",null,null,null,null,null,null,0,0]
[0,0,0,null,null,null,"",null,null,null,null,null,null,0,0]
[0,0,0,null,null,null,"",null,null,null,null,null,null,0,0]
[0,0,0,null,null,null,"",null,null,null,null,null,null,0,0]
[0,0,0,null,null,null,"",null,null,null,null,null,null,0,0]
[0,0,0,null,null,null,"",null,null,null,null,null,null,0,0]
[0,0,0,null,null,null,"",null,null,null,null,null,null,0,0]
[0,0,0,null,null,null,"",null,null,null,null,null,null,0,0]
[0,0,0,null,null,null,"",null,null,null,null,null,null,0,0]
[0,0,0,null,null,null,"",null,null,null,null,null,null,0,0]
[0,0,0,null,null,null,"",null,null,null,null,null,null,0,0]
[0,0,0,null,null,null,"",null,null,null,null,null,null,0,0]
[0,0,0,null,null,null,"",null,null,null,null,null,null,0,0]
[0,0,0,null,null,null,"",null,null,null,null,null,null,0,0]
[0,0,0,null,null,null,"",null,null,null,null,null,null,0,0]
[0,0,0,null,null,null,"",null,null,null,null,null,null,0,0]
[0,0,0,null,null,null,"",null,null,null,null,null,null,0,0]
[0,0,0,null,null,null,"",null,null,null,null,null,null,0,0]
[0,0,0,null,null,null,"",null,null,null,null,null,null,0,0]
[0,0,0,null,null,null,"",null,null,null,null,null,null,0,0]
[0,0,0,null,null,null,"",null,null,null,null,null,null,0,0]
[0,0,0,null,null,null,"",null,null,null,null,null,null,0,0]
[0,0,0,null,null,null,"",null,null,null,null,null,null,{"$f":"IF(M770<>0,1,0)","v":0},{"$f":"IF(D770<>0,1,0)","v":0}]
[{"$f":"IF(M771=\"Y\",1,0)","v":0},{"$f":"IF(M771=\"N\",1,0)","v":0},{"$f":"IF(M771=\"A\",1,0)","v":0},null,null,null,"",null,null,null,null,null,null,0,0]
[0,0,0,null,null,null,"",null,null,null,null,null,null,0,0]
[0,0,0,null,null,null,"",null,null,null,null,null,null,0,0]
[0,0,0,null,null,null,"",null,null,null,null,null,null,0,0]
[0,0,0,null,null,null,"",null,null,null,null,null,null,0,0]
[0,0,0,null,null,null,"",null,null,null,null,null,null,0,0]
[0,0,0,null,null,null,"",null,null,null,null,null,null,0,0]
[0,0,0,null,null,null,"",null,null,null,null,null,null,0,0]
[0,0,0,null,null,null,"",null,null,null,null,null,null,0,0]
[0,0,0,null,null,null,"",null,null,null,null,null,null,0,0]
[0,0,0,null,null,null,"",null,null,null,null,null,null,0,0]
[0,0,0,null,null,null,"",null,null,null,null,null,null,0,0]
[0,0,0,null,null,null,"",null,null,null,null,null,null,0,0]
[0,0,0,null,null,null,{"$f":"IF(D784<>\"\",G783+1,\"\")","v":""},null,null,null,null,null,null,0,0]
[0,0,0,null,null,null,"",null,null,null,null,null,null,0,0]
[0,0,0,null,null,null,"",null,null,null,null,null,null,0,0]
[0,0,0,null,null,null,"",null,null,null,null,null,null,0,0]
[0,0,0,null,null,null,"",null,null,null,null,null,null,0,0]
[0,0,0,null,null,null,"",null,null,null,null,null,null,0,0]
[0,0,0,null,null,null,"",null,null,null,null,null,null,0,0]
[0,0,0,null,null,null,"",null,null,null,null,null,null,0,0]
[0,0,0,null,null,null,"",null,null,null,null,null,null,0,0]
[0,0,0,null,null,null,"",null,null,null,null,null,null,0,0]
[0,0,0,null,null,null,"",null,null,null,null,null,null,0,0]
[0,0,0,null,null,null,"",null,null,null,null,null,null,0,0]
[0,0,0,null,null,null,"",null,null,null,null,null,null,0,0]
[0,0,0,null,null,null,"",null,null,null,null,null,null,0,0]
[0,0,0,null,null,null,"",null,null,null,null,null,null,0,0]
[0,0,0,null,null,null,"",null,null,null,null,null,null,0,0]
[0,0,0,null,null,null,"",null,null,null,null,null,null,0,0]
[0,0,0,null,null,null,"",null,null,null,null,null,null,0,0]
[0,0,0,null,null,null,"",null,null,null,null,null,null,0,0]
[0,0,0,null,null,null,"",null,null,null,null,null,null,0,0]
[0,0,0,null,null,null,"",null,null,null,null,null,null,0,0]
[0,0,0,null,null,null,"",null,null,null,null,null,null,0,0]
[0,0,0,null,null,null,"",null,null,null,null,null,null,0,0]
[0,0,0,null,null,null,"",null,null,null,null,null,null,0,0]
[0,0,0,null,null,null,"",null,null,null,null,null,null,0,0]
[0,0,0,null,null,null,"",null,null,null,null,null,null,0,0]
[0,0,0,null,null,null,"",null,null,null,null,null,null,0,0]
[0,0,0,null,null,null,"",null,null,null,null,null,null,0,0]
[0,0,0,null,null,null,"",null,null,null,null,null,null,0,0]
[0,0,0,null,null,null,"",null,null,null,null,null,null,0,0]
[0,0,0,null,null,null,"",null,null,null,null,null,null,0,0]
[0,0,0,null,null,null,"",null,null,null,null,null,null,0,0]
[0,0,0,null,null,null,"",null,null,null,null,null,null,0,0]
[0,0,0,null,null,null,"",null,null,null,null,null,null,0,0]
[0,0,0,null,null,null,"",null,null,null,null,null,null,0,0]
[0,0,0,null,null,null,"",null,null,null,null,null,null,0,0]
[0,0,0,null,null,null,"",null,null,null,null,null,null,0,0]
[0,0,0,null,null,null,"",null,null,null,null,null,null,0,0]
[0,0,0,null,null,null,"",null,null,null,null,null,null,0,0]
[0,0,0,null,null,null,"",null,null,null,null,null,null,0,0]
[0,0,0,null,null,null,"",null,null,null,null,null,null,0,0]
[0,0,0,null,null,null,"",null,null,null,null,null,null,0,0]
[0,0,0,null,null,null,"",null,null,null,null,null,null,0,0]
[0,0,0,null,null,null,"",null,null,null,null,null,null,0,0]
[0,0,0,null,null,null,"",null,null,null,null,null,null,0,0]
[0,0,0,null,null,null,"",null,null,null,null,null,null,0,0]
[0,0,0,null,null,null,"",null,null,null,null,null,null,0,0]
[0,0,0,null,null,null,"",null,null,null,null,null,null,0,0]
[0,0,0,null,null,null,"",null,null,null,null,null,null,0,0]
[0,0,0,null,null,null,"",null,null,null,null,null,null,0,0]
[0,0,0,null,null,null,"",null,null,null,null,null,null,{"$f":"IF(M834<>0,1,0)","v":0},{"$f":"IF(D834<>0,1,0)","v":0}]
[{"$f":"IF(M835=\"Y\",1,0)","v":0},{"$f":"IF(M835=\"N\",1,0)","v":0},{"$f":"IF(M835=\"A\",1,0)","v":0},null,null,null,"",null,null,null,null,null,null,0,0]
[0,0,0,null,null,null,"",null,null,null,null,null,null,0,0]
[0,0,0,null,null,null,"",null,null,null,null,null,null,0,0]
[0,0,0,null,null,null,"",null,null,null,null,null,null,0,0]
[0,0,0,null,null,null,"",null,null,null,null,null,null,0,0]
[0,0,0,null,null,null,"",null,null,null,null,null,null,0,0]
[0,0,0,null,null,null,"",null,null,null,null,null,null,0,0]
[0,0,0,null,null,null,"",null,null,null,null,null,null,0,0]
[0,0,0,null,null,null,"",null,null,null,null,null,null,0,0]
[0,0,0,null,null,null,"",null,null,null,null,null,null,0,0]
[0,0,0,null,null,null,"",null,null,null,null,null,null,0,0]
[0,0,0,null,null,null,"",null,null,null,null,null,null,0,0]
[0,0,0,null,null,null,"",null,null,null,null,null,null,0,0]
[0,0,0,null,null,null,{"$f":"IF(D848<>\"\",G847+1,\"\")","v":""},null,null,null,null,null,null,0,0]
[0,0,0,null,null,null,"",null,null,null,null,null,null,0,0]
[0,0,0,null,null,null,"",null,null,null,null,null,null,0,0]
[0,0,0,null,null,null,"",null,null,null,null,null,null,0,0]
[0,0,0,null,null,null,"",null,null,null,null,null,null,0,0]
[0,0,0,null,null,null,"",null,null,null,null,null,null,0,0]
[0,0,0,null,null,null,"",null,null,null,null,null,null,0,0]
[0,0,0,null,null,null,"",null,null,null,null,null,null,0,0]
[0,0,0,null,null,null,"",null,null,null,null,null,null,0,0]
[0,0,0,null,null,null,"",null,null,null,null,null,null,0,0]
[0,0,0,null,null,null,"",null,null,null,null,null,null,0,0]
[0,0,0,null,null,null,"",null,null,null,null,null,null,0,0]
[0,0,0,null,null,null,"",null,null,null,null,null,null,0,0]
[0,0,0,null,null,null,"",null,null,null,null,null,null,0,0]
[0,0,0,null,null,null,"",null,null,null,null,null,null,0,0]
[0,0,0,null,null,null,"",null,null,null,null,null,null,0,0]
[0,0,0,null,null,null,"",null,null,null,null,null,null,0,0]
[0,0,0,null,null,null,"",null,null,null,null,null,null,0,0]
[0,0,0,null,null,null,"",null,null,null,null,null,null,0,0]
[0,0,0,null,null,null,"",null,null,null,null,null,null,0,0]
[0,0,0,null,null,null,"",null,null,null,null,null,null,0,0]
[0,0,0,null,null,null,"",null,null,null,null,null,null,0,0]
[0,0,0,null,null,null,"",null,null,null,null,null,null,0,0]
[0,0,0,null,null,null,"",null,null,null,null,null,null,0,0]
[0,0,0,null,null,null,"",null,null,null,null,null,null,0,0]
[0,0,0,null,null,null,"",null,null,null,null,null,null,0,0]
[0,0,0,null,null,null,"",null,null,null,null,null,null,0,0]
[0,0,0,null,null,null,"",null,null,null,null,null,null,0,0]
[0,0,0,null,null,null,"",null,null,null,null,null,null,0,0]
[0,0,0,null,null,null,"",null,null,null,null,null,null,0,0]
[0,0,0,null,null,null,"",null,null,null,null,null,null,0,0]
[0,0,0,null,null,null,"",null,null,null,null,null,null,0,0]
[0,0,0,null,null,null,"",null,null,null,null,null,null,0,0]
[0,0,0,null,null,null,"",null,null,null,null,null,null,0,0]
[0,0,0,null,null,null,"",null,null,null,null,null,null,0,0]
[0,0,0,null,null,null,"",null,null,null,null,null,null,0,0]
[0,0,0,null,null,null,"",null,null,null,null,null,null,0,0]
[0,0,0,null,null,null,"",null,null,null,null,null,null,0,0]
[0,0,0,null,null,null,"",null,null,null,null,null,null,0,0]
[0,0,0,null,null,null,"",null,null,null,null,null,null,0,0]
[0,0,0,null,null,null,"",null,null,null,null,null,null,0,0]
[0,0,0,null,null,null,"",null,null,null,null,null,null,0,0]
[0,0,0,null,null,null,"",null,null,null,null,null,null,0,0]
[0,0,0,null,null,null,"",null,null,null,null,null,null,0,0]
[0,0,0,null,null,null,"",null,null,null,null,null,null,0,0]
[0,0,0,null,null,null,"",null,null,null,null,null,null,0,0]
[0,0,0,null,null,null,"",null,null,null,null,null,null,0,0]
[0,0,0,null,null,null,"",null,null,null,null,null,null,0,0]
[0,0,0,null,null,null,"",null,null,null,null,null,null,0,0]
[0,0,0,null,null,null,"",null,null,null,null,null,null,0,0]
[0,0,0,null,null,null,"",null,null,null,null,null,null,{"$f":"IF(M898<>0,1,0)","v":0},{"$f":"IF(D898<>0,1,0)","v":0}]
[{"$f":"IF(M899=\"Y\",1,0)","v":0},{"$f":"IF(M899=\"N\",1,0)","v":0},{"$f":"IF(M899=\"A\",1,0)","v":0},null,null,null,"",null,null,null,null,null,null,0,0]
[0,0,0,null,null,null,"",null,null,null,null,null,null,0,0]
[0,0,0,null,null,null,"",null,null,null,null,null,null,0,0]
[0,0,0,null,null,null,"",null,null,null,null,null,null,0,0]
[0,0,0,null,null,null,"",null,null,null,null,null,null,0,0]
[0,0,0,null,null,null,"",null,null,null,null,null,null,0,0]
[0,0,0,null,null,null,"",null,null,null,null,null,null,0,0]
[0,0,0,null,null,null,"",null,null,null,null,null,null,0,0]
[0,0,0,null,null,null,"",null,null,null,null,null,null,0,0]
[0,0,0,null,null,null,"",null,null,null,null,null,null,0,0]
[0,0,0,null,null,null,"",null,null,null,null,null,null,0,0]
[0,0,0,null,null,null,"",null,null,null,null,null,null,0,0]
[0,0,0,null,null,null,"",null,null,null,null,null,null,0,0]
[0,0,0,null,null,null,{"$f":"IF(D912<>\"\",G911+1,\"\")","v":""},null,null,null,null,null,null,0,0]
[0,0,0,null,null,null,"",null,null,null,null,null,null,0,0]
[0,0,0,null,null,null,"",null,null,null,null,null,null,0,0]
[0,0,0,null,null,null,"",null,null,null,null,null,null,0,0]
[0,0,0,null,null,null,"",null,null,null,null,null,null,0,0]
[0,0,0,null,null,null,"",null,null,null,null,null,null,0,0]
[0,0,0,null,null,null,"",null,null,null,null,null,null,0,0]
[0,0,0,null,null,null,"",null,null,null,null,null,null,0,0]
[0,0,0,null,null,null,"",null,null,null,null,null,null,0,0]
[0,0,0,null,null,null,"",null,null,null,null,null,null,0,0]
[0,0,0,null,null,null,"",null,null,null,null,null,null,0,0]
[0,0,0,null,null,null,"",null,null,null,null,null,null,0,0]
[0,0,0,null,null,null,"",null,null,null,null,null,null,0,0]
[0,0,0,null,null,null,"",null,null,null,null,null,null,0,0]
[0,0,0,null,null,null,"",null,null,null,null,null,null,0,0]
[0,0,0,null,null,null,"",null,null,null,null,null,null,0,0]
[0,0,0,null,null,null,"",null,null,null,null,null,null,0,0]
[0,0,0,null,null,null,"",null,null,null,null,null,null,0,0]
[0,0,0,null,null,null,"",null,null,null,null,null,null,0,0]
[0,0,0,null,null,null,"",null,null,null,null,null,null,0,0]
[0,0,0,null,null,null,"",null,null,null,null,null,null,0,0]
[0,0,0,null,null,null,"",null,null,null,null,null,null,0,0]
[0,0,0,null,null,null,"",null,null,null,null,null,null,0,0]
[0,0,0,null,null,null,"",null,null,null,null,null,null,0,0]
[0,0,0,null,null,null,"",null,null,null,null,null,null,0,0]
[0,0,0,null,null,null,"",null,null,null,null,null,null,0,0]
[0,0,0,null,null,null,"",null,null,null,null,null,null,0,0]
[0,0,0,null,null,null,"",null,null,null,null,null,null,0,0]
[0,0,0,null,null,null,"",null,null,null,null,null,null,0,0]
[0,0,0,null,null,null,"",null,null,null,null,null,null,0,0]
[0,0,0,null,null,null,"",null,null,null,null,null,null,0,0]
[0,0,0,null,null,null,"",null,null,null,null,null,null,0,0]
[0,0,0,null,null,null,"",null,null,null,null,null,null,0,0]
[0,0,0,null,null,null,"",null,null,null,null,null,null,0,0]
[0,0,0,null,null,null,"",null,null,null,null,null,null,0,0]
[0,0,0,null,null,null,"",null,null,null,null,null,null,0,0]
[0,0,0,null,null,null,"",null,null,null,null,null,null,0,0]
[0,0,0,null,null,null,"",null,null,null,null,null,null,0,0]
[0,0,0,null,null,null,"",null,null,null,null,null,null,0,0]
[0,0,0,null,null,null,"",null,null,null,null,null,null,0,0]
[0,0,0,null,null,null,"",null,null,null,null,null,null,0,0]
[0,0,0,null,null,null,"",null,null,null,null,null,null,0,0]
[0,0,0,null,null,null,"",null,null,null,null,null,null,0,0]
[0,0,0,null,null,null,"",null,null,null,null,null,null,0,0]
[0,0,0,null,null,null,"",null,null,null,null,null,null,0,0]
[0,0,0,null,null,null,"",null,null,null,null,null,null,0,0]
[0,0,0,null,null,null,"",null,null,null,null,null,null,0,0]
[0,0,0,null,null,null,"",null,null,null,null,null,null,0,0]
[0,0,0,null,null,null,"",null,null,null,null,null,null,0,0]
[0,0,0,null,null,null,"",null,null,null,null,null,null,0,0]
[0,0,0,null,null,null,"",null,null,null,null,null,null,{"$f":"IF(M962<>0,1,0)","v":0},{"$f":"IF(D962<>0,1,0)","v":0}]
[{"$f":"IF(M963=\"Y\",1,0)","v":0},{"$f":"IF(M963=\"N\",1,0)","v":0},{"$f":"IF(M963=\"A\",1,0)","v":0},null,null,null,"",null,null,null,null,null,null,0,0]
[0,0,0,null,null,null,"",null,null,null,null,null,null,0,0]
[0,0,0,null,null,null,"",null,null,null,null,null,null,0,0]
[0,0,0,null,null,null,"",null,null,null,null,null,null,0,0]
[0,0,0,null,null,null,"",null,null,null,null,null,null,0,0]
[0,0,0,null,null,null,"",null,null,null,null,null,null,0,0]
[0,0,0,null,null,null,"",null,null,null,null,null,null,0,0]
[0,0,0,null,null,null,"",null,null,null,null,null,null,0,0]
[0,0,0,null,null,null,"",null,null,null,null,null,null,0,0]
[0,0,0,null,null,null,"",null,null,null,null,null,null,0,0]
[0,0,0,null,null,null,"",null,null,null,null,null,null,0,0]
[0,0,0,null,null,null,"",null,null,null,null,null,null,0,0]
[0,0,0,null,null,null,"",null,null,null,null,null,null,0,0]
[0,0,0,null,null,null,{"$f":"IF(D976<>\"\",G975+1,\"\")","v":""},null,null,null,null,null,null,0,0]
[0,0,0,null,null,null,"",null,null,null,null,null,null,0,0]
[0,0,0,null,null,null,"",null,null,null,null,null,null,0,0]
[0,0,0,null,null,null,"",null,null,null,null,null,null,0,0]
[0,0,0,null,null,null,"",null,null,null,null,null,null,0,0]
[0,0,0,null,null,null,"",null,null,null,null,null,null,0,0]
[0,0,0,null,null,null,"",null,null,null,null,null,null,0,0]
[0,0,0,null,null,null,"",null,null,null,null,null,null,0,0]
[0,0,0,null,null,null,"",null,null,null,null,null,null,0,0]
[0,0,0,null,null,null,"",null,null,null,null,null,null,0,0]
[0,0,0,null,null,null,"",null,null,null,null,null,null,0,0]
[0,0,0,null,null,null,"",null,null,null,null,null,null,0,0]
[0,0,0,null,null,null,"",null,null,null,null,null,null,0,0]
[0,0,0,null,null,null,"",null,null,null,null,null,null,0,0]
[0,0,0,null,null,null,"",null,null,null,null,null,null,0,0]
[0,0,0,null,null,null,"",null,null,null,null,null,null,0,0]
[0,0,0,null,null,null,"",null,null,null,null,null,null,0,0]
[0,0,0,null,null,null,"",null,null,null,null,null,null,0,0]
[0,0,0,null,null,null,"",null,null,null,null,null,null,0,0]
[0,0,0,null,null,null,"",null,null,null,null,null,null,0,0]
[0,0,0,null,null,null,"",null,null,null,null,null,null,0,0]
[0,0,0,null,null,null,"",null,null,null,null,null,null,0,0]
[0,0,0,null,null,null,"",null,null,null,null,null,null,0,0]
[0,0,0,null,null,null,"",null,null,null,null,null,null,0,0]
[0,0,0,null,null,null,"",null,null,null,null,null,null,0,0]
[0,0,0,null,null,null,"",null,null,null,null,null,null,0,0]
[0,0,0,null,null,null,"",null,null,null,null,null,null,0,0]
[0,0,0,null,null,null,"",null,null,null,null,null,null,0,0]
[0,0,0,null,null,null,"",null,null,null,null,null,null,0,0]
[0,0,0,null,null,null,"",null,null,null,null,null,null,0,0]
[0,0,0,null,null,null,"",null,null,null,null,null,null,0,0]
[0,0,0,null,null,null,"",null,null,null,null,null,null,0,0]
[0,0,0,null,null,null,"",null,null,null,null,null,null,0,0]
[0,0,0,null,null,null,"",null,null,null,null,null,null,0,0]
[0,0,0,null,null,null,"",null,null,null,null,null,null,0,0]
[0,0,0,null,null,null,"",null,null,null,null,null,null,0,0]
[0,0,0,null,null,null,"",null,null,null,null,null,null,0,0]
[0,0,0,null,null,null,"",null,null,null,null,null,null,0,0]
[0,0,0,null,null,null,"",null,null,null,null,null,null,0,0]
[0,0,0,null,null,null,"",null,null,null,null,null,null,0,0]
[0,0,0,null,null,null,"",null,null,null,null,null,null,0,0]
[0,0,0,null,null,null,"",null,null,null,null,null,null,0,0]
[0,0,0,null,null,null,"",null,null,null,null,null,null,0,0]
[0,0,0,null,null,null,"",null,null,null,null,null,null,0,0]
[0,0,0,null,null,null,"",null,null,null,null,null,null,0,0]
[0,0,0,null,null,null,"",null,null,null,null,null,null,0,0]
[0,0,0,null,null,null,"",null,null,null,null,null,null,0,0]
[0,0,0,null,null,null,"",null,null,null,null,null,null,0,0]
[0,0,0,null,null,null,"",null,null,null,null,null,null,0,0]
[0,0,0,null,null,null,"",null,null,null,null,null,null,0,0]
[0,0,0,null,null,null,"",null,null,null,null,null,null,{"$f":"IF(M1026<>0,1,0)","v":0},{"$f":"IF(D1026<>0,1,0)","v":0}]
[{"$f":"IF(M1027=\"Y\",1,0)","v":0},{"$f":"IF(M1027=\"N\",1,0)","v":0},{"$f":"IF(M1027=\"A\",1,0)","v":0},null,null,null,"",null,null,null,null,null,null,0,0]
[0,0,0,null,null,null,"",null,null,null,null,null,null,0,0]
[0,0,0,null,null,null,"",null,null,null,null,null,null,0,0]
[0,0,0,null,null,null,"",null,null,null,null,null,null,0,0]
[0,0,0,null,null,null,"",null,null,null,null,null,null,0,0]
[0,0,0,null,null,null,"",null,null,null,null,null,null,0,0]
[0,0,0,null,null,null,"",null,null,null,null,null,null,0,0]
[0,0,0,null,null,null,"",null,null,null,null,null,null,0,0]
[0,0,0,null,null,null,"",null,null,null,null,null,null,0,0]
[0,0,0,null,null,null,"",null,null,null,null,null,null,0,0]
[0,0,0,null,null,null,"",null,null,null,null,null,null,0,0]
[0,0,0,null,null,null,"",null,null,null,null,null,null,0,0]
[0,0,0,null,null,null,"",null,null,null,null,null,null,0,0]
[0,0,0,null,null,null,{"$f":"IF(D1040<>\"\",G1039+1,\"\")","v":""},null,null,null,null,null,null,0,0]
[0,0,0,null,null,null,"",null,null,null,null,null,null,0,0]
[0,0,0,null,null,null,"",null,null,null,null,null,null,0,0]
[0,0,0,null,null,null,"",null,null,null,null,null,null,0,0]
[0,0,0,null,null,null,"",null,null,null,null,null,null,0,0]
[0,0,0,null,null,null,"",null,null,null,null,null,null,0,0]
[0,0,0,null,null,null,"",null,null,null,null,null,null,0,0]
[0,0,0,null,null,null,"",null,null,null,null,null,null,0,0]
[0,0,0,null,null,null,"",null,null,null,null,null,null,0,0]
[0,0,0,null,null,null,"",null,null,null,null,null,null,0,0]
[0,0,0,null,null,null,"",null,null,null,null,null,null,0,0]
[0,0,0,null,null,null,"",null,null,null,null,null,null,0,0]
[0,0,0,null,null,null,"",null,null,null,null,null,null,0,0]
[0,0,0,null,null,null,"",null,null,null,null,null,null,0,0]
[0,0,0,null,null,null,"",null,null,null,null,null,null,0,0]
[0,0,0,null,null,null,"",null,null,null,null,null,null,0,0]
[0,0,0,null,null,null,"",null,null,null,null,null,null,0,0]
[0,0,0,null,null,null,"",null,null,null,null,null,null,0,0]
[0,0,0,null,null,null,"",null,null,null,null,null,null,0,0]
[0,0,0,null,null,null,"",null,null,null,null,null,null,0,0]
[0,0,0,null,null,null,"",null,null,null,null,null,null,0,0]
[0,0,0,null,null,null,"",null,null,null,null,null,null,0,0]
[0,0,0,null,null,null,"",null,null,null,null,null,null,0,0]
[0,0,0,null,null,null,"",null,null,null,null,null,null,0,0]
[0,0,0,null,null,null,"",null,null,null,null,null,null,0,0]
[0,0,0,null,null,null,"",null,null,null,null,null,null,0,0]
[0,0,0,null,null,null,"",null,null,null,null,null,null,0,0]
[0,0,0,null,null,null,"",null,null,null,null,null,null,0,0]
[0,0,0,null,null,null,"",null,null,null,null,null,null,0,0]
[0,0,0,null,null,null,"",null,null,null,null,null,null,0,0]
[0,0,0,null,null,null,"",null,null,null,null,null,null,0,0]
[0,0,0,null,null,null,"",null,null,null,null,null,null,0,0]
[0,0,0,null,null,null,"",null,null,null,null,null,null,0,0]
[0,0,0,null,null,null,"",null,null,null,null,null,null,0,0]
[0,0,0,null,null,null,"",null,null,null,null,null,null,0,0]
[0,0,0,null,null,null,"",null,null,null,null,null,null,0,0]
[0,0,0,null,null,null,"",null,null,null,null,null,null,0,0]
[0,0,0,null,null,null,"",null,null,null,null,null,null,0,0]
[0,0,0,null,null,null,"",null,null,null,null,null,null,0,0]
[0,0,0,null,null,null,"",null,null,null,null,null,null,0,0]
[0,0,0,null,null,null,"",null,null,null,null,null,null,0,0]
[0,0,0,null,null,null,"",null,null,null,null,null,null,0,0]
[0,0,0,null,null,null,"",null,null,null,null,null,null,0,0]
[0,0,0,null,null,null,"",null,null,null,null,null,null,0,0]
[0,0,0,null,null,null,"",null,null,null,null,null,null,0,0]
[0,0,0,null,null,null,"",null,null,null,null,null,null,0,0]
[0,0,0,null,null,null,"",null,null,null,null,null,null,0,0]
[0,0,0,null,null,null,"",null,null,null,null,null,null,0,0]
[0,0,0,null,null,null,"",null,null,null,null,null,null,0,0]
[0,0,0,null,null,null,"",null,null,null,null,null,null,0,0]
[0,0,0,null,null,null,"",null,null,null,null,null,null,{"$f":"IF(M1090<>0,1,0)","v":0},{"$f":"IF(D1090<>0,1,0)","v":0}]
[{"$f":"IF(M1091=\"Y\",1,0)","v":0},{"$f":"IF(M1091=\"N\",1,0)","v":0},{"$f":"IF(M1091=\"A\",1,0)","v":0},null,null,null,"",null,null,null,null,null,null,0,0]
[0,0,0,null,null,null,"",null,null,null,null,null,null,0,0]
[0,0,0,null,null,null,"",null,null,null,null,null,null,0,0]
[0,0,0,null,null,null,"",null,null,null,null,null,null,0,0]
[0,0,0,null,null,null,"",null,null,null,null,null,null,0,0]
[0,0,0,null,null,null,"",null,null,null,null,null,null,0,0]
[0,0,0,null,null,null,"",null,null,null,null,null,null,0,0]
[0,0,0,null,null,null,"",null,null,null,null,null,null,0,0]
[0,0,0,null,null,null,"",null,null,null,null,null,null,0,0]
[0,0,0,null,null,null,"",null,null,null,null,null,null,0,0]
[0,0,0,null,null,null,"",null,null,null,null,null,null,0,0]
[0,0,0,null,null,null,"",null,null,null,null,null,null,0,0]
[0,0,0,null,null,null,"",null,null,null,null,null,null,0,0]
[0,0,0,null,null,null,{"$f":"IF(D1104<>\"\",G1103+1,\"\")","v":""},null,null,null,null,null,null,0,0]
[0,0,0,null,null,null,"",null,null,null,null,null,null,0,0]
[0,0,0,null,null,null,"",null,null,null,null,null,null,0,0]
[0,0,0,null,null,null,"",null,null,null,null,null,null,0,0]
[0,0,0,null,null,null,"",null,null,null,null,null,null,0,0]
[0,0,0,null,null,null,"",null,null,null,null,null,null,0,0]
[0,0,0,null,null,null,"",null,null,null,null,null,null,0,0]
[0,0,0,null,null,null,"",null,null,null,null,null,null,0,0]
[0,0,0,null,null,null,"",null,null,null,null,null,null,0,0]
[0,0,0,null,null,null,"",null,null,null,null,null,null,0,0]
[0,0,0,null,null,null,"",null,null,null,null,null,null,0,0]
[0,0,0,null,null,null,"",null,null,null,null,null,null,0,0]
[0,0,0,null,null,null,"",null,null,null,null,null,null,0,0]
[0,0,0,null,null,null,"",null,null,null,null,null,null,0,0]
[0,0,0,null,null,null,"",null,null,null,null,null,null,0,0]
[0,0,0,null,null,null,"",null,null,null,null,null,null,0,0]
[0,0,0,null,null,null,"",null,null,null,null,null,null,0,0]
[0,0,0,null,null,null,"",null,null,null,null,null,null,0,0]
[0,0,0,null,null,null,"",null,null,null,null,null,null,0,0]
[0,0,0,null,null,null,"",null,null,null,null,null,null,0,0]
[0,0,0,null,null,null,"",null,null,null,null,null,null,0,0]
[0,0,0,null,null,null,"",null,null,null,null,null,null,0,0]
[0,0,0,null,null,null,"",null,null,null,null,null,null,0,0]
[0,0,0,null,null,null,"",null,null,null,null,null,null,0,0]
[0,0,0,null,null,null,"",null,null,null,null,null,null,0,0]
[0,0,0,null,null,null,"",null,null,null,null,null,null,0,0]
[0,0,0,null,null,null,"",null,null,null,null,null,null,0,0]
[0,0,0,null,null,null,"",null,null,null,null,null,null,0,0]
[0,0,0,null,null,null,"",null,null,null,null,null,null,0,0]
[0,0,0,null,null,null,"",null,null,null,null,null,null,0,0]
[0,0,0,null,null,null,"",null,null,null,null,null,null,0,0]
[0,0,0,null,null,null,"",null,null,null,null,null,null,0,0]
[0,0,0,null,null,null,"",null,null,null,null,null,null,0,0]
[0,0,0,null,null,null,"",null,null,null,null,null,null,0,0]
[0,0,0,null,null,null,"",null,null,null,null,null,null,0,0]
[0,0,0,null,null,null,"",null,null,null,null,null,null,0,0]
[0,0,0,null,null,null,"",null,null,null,null,null,null,0,0]
[0,0,0,null,null,null,"",null,null,null,null,null,null,0,0]
[0,0,0,null,null,null,"",null,null,null,null,null,null,0,0]
[0,0,0,null,null,null,"",null,null,null,null,null,null,0,0]
[0,0,0,null,null,null,"",null,null,null,null,null,null,0,0]
[0,0,0,null,null,null,"",null,null,null,null,null,null,0,0]
[0,0,0,null,null,null,"",null,null,null,null,null,null,0,0]
[0,0,0,null,null,null,"",null,null,null,null,null,null,0,0]
[0,0,0,null,null,null,"",null,null,null,null,null,null,0,0]
[0,0,0,null,null,null,"",null,null,null,null,null,null,0,0]
[0,0,0,null,null,null,"",null,null,null,null,null,null,0,0]
[0,0,0,null,null,null,"",null,null,null,null,null,null,0,0]
[0,0,0,null,null,null,"",null,null,null,null,null,null,0,0]
[0,0,0,null,null,null,"",null,null,null,null,null,null,0,0]
[0,0,0,null,null,null,"",null,null,null,null,null,null,{"$f":"IF(M1154<>0,1,0)","v":0},{"$f":"IF(D1154<>0,1,0)","v":0}]
[{"$f":"IF(M1155=\"Y\",1,0)","v":0},{"$f":"IF(M1155=\"N\",1,0)","v":0},{"$f":"IF(M1155=\"A\",1,0)","v":0},null,null,null,"",null,null,null,null,null,null,0,0]
[0,0,0,null,null,null,"",null,null,null,null,null,null,0,0]
[0,0,0,null,null,null,"",null,null,null,null,null,null,0,0]
[0,0,0,null,null,null,"",null,null,null,null,null,null,0,0]
[0,0,0,null,null,null,"",null,null,null,null,null,null,0,0]
[0,0,0,null,null,null,"",null,null,null,null,null,null,0,0]
[0,0,0,null,null,null,"",null,null,null,null,null,null,0,0]
[0,0,0,null,null,null,"",null,null,null,null,null,null,0,0]
[0,0,0,null,null,null,"",null,null,null,null,null,null,0,0]
[0,0,0,null,null,null,"",null,null,null,null,null,null,0,0]
[0,0,0,null,null,null,"",null,null,null,null,null,null,0,0]
[0,0,0,null,null,null,"",null,null,null,null,null,null,0,0]
[0,0,0,null,null,null,"",null,null,null,null,null,null,0,0]
[0,0,0,null,null,null,{"$f":"IF(D1168<>\"\",G1167+1,\"\")","v":""},null,null,null,null,null,null,0,0]
[0,0,0,null,null,null,"",null,null,null,null,null,null,0,0]
[0,0,0,null,null,null,"",null,null,null,null,null,null,0,0]
[0,0,0,null,null,null,"",null,null,null,null,null,null,0,0]
[0,0,0,null,null,null,"",null,null,null,null,null,null,0,0]
[0,0,0,null,null,null,"",null,null,null,null,null,null,0,0]
[0,0,0,null,null,null,"",null,null,null,null,null,null,0,0]
[0,0,0,null,null,null,"",null,null,null,null,null,null,0,0]
[0,0,0,null,null,null,"",null,null,null,null,null,null,0,0]
[0,0,0,null,null,null,"",null,null,null,null,null,null,0,0]
[0,0,0,null,null,null,"",null,null,null,null,null,null,0,0]
[0,0,0,null,null,null,"",null,null,null,null,null,null,0,0]
[0,0,0,null,null,null,"",null,null,null,null,null,null,0,0]
[0,0,0,null,null,null,"",null,null,null,null,null,null,0,0]
[0,0,0,null,null,null,"",null,null,null,null,null,null,0,0]
[0,0,0,null,null,null,"",null,null,null,null,null,null,0,0]
[0,0,0,null,null,null,"",null,null,null,null,null,null,0,0]
[0,0,0,null,null,null,"",null,null,null,null,null,null,0,0]
[0,0,0,null,null,null,"",null,null,null,null,null,null,0,0]
[0,0,0,null,null,null,"",null,null,null,null,null,null,0,0]
[0,0,0,null,null,null,"",null,null,null,null,null,null,0,0]
[0,0,0,null,null,null,"",null,null,null,null,null,null,0,0]
[0,0,0,null,null,null,"",null,null,null,null,null,null,0,0]
[0,0,0,null,null,null,"",null,null,null,null,null,null,0,0]
[0,0,0,null,null,null,"",null,null,null,null,null,null,0,0]
[0,0,0,null,null,null,"",null,null,null,null,null,null,0,0]
[0,0,0,null,null,null,"",null,null,null,null,null,null,0,0]
[0,0,0,null,null,null,"",null,null,null,null,null,null,0,0]
[0,0,0,null,null,null,"",null,null,null,null,null,null,0,0]
[0,0,0,null,null,null,"",null,null,null,null,null,null,0,0]
[0,0,0,null,null,null,"",null,null,null,null,null,null,0,0]
[0,0,0,null,null,null,"",null,null,null,null,null,null,0,0]
[0,0,0,null,null,null,"",null,null,null,null,null,null,0,0]
[0,0,0,null,null,null,"",null,null,null,null,null,null,0,0]
[0,0,0,null,null,null,"",null,null,null,null,null,null,0,0]
[0,0,0,null,null,null,"",null,null,null,null,null,null,0,0]
[0,0,0,null,null,null,"",null,null,null,null,null,null,0,0]
[0,0,0,null,null,null,"",null,null,null,null,null,null,0,0]
[0,0,0,null,null,null,"",null,null,null,null,null,null,0,0]
[0,0,0,null,null,null,"",null,null,null,null,null,null,0,0]
[0,0,0,null,null,null,"",null,null,null,null,null,null,0,0]
[0,0,0,null,null,null,"",null,null,null,null,null,null,0,0]
[0,0,0,null,null,null,"",null,null,null,null,null,null,0,0]
[0,0,0,null,null,null,"",null,null,null,null,null,null,0,0]
[0,0,0,null,null,null,"",null,null,null,null,null,null,0,0]
[0,0,0,null,null,null,"",null,null,null,null,null,null,0,0]
[0,0,0,null,null,null,"",null,null,null,null,null,null,0,0]
[0,0,0,null,null,null,"",null,null,null,null,null,null,0,0]
[0,0,0,null,null,null,"",null,null,null,null,null,null,0,0]
[0,0,0,null,null,null,"",null,null,null,null,null,null,0,0]
[0,0,0,null,null,null,"",null,null,null,null,null,null,{"$f":"IF(M1218<>0,1,0)","v":0},{"$f":"IF(D1218<>0,1,0)","v":0}]
[{"$f":"IF(M1219=\"Y\",1,0)","v":0},{"$f":"IF(M1219=\"N\",1,0)","v":0},{"$f":"IF(M1219=\"A\",1,0)","v":0},null,null,null,"",null,null,null,null,null,null,0,0]
[0,0,0,null,null,null,"",null,null,null,null,null,null,0,0]
[0,0,0,null,null,null,"",null,null,null,null,null,null,0,0]
[0,0,0,null,null,null,"",null,null,null,null,null,null,0,0]
[0,0,0,null,null,null,"",null,null,null,null,null,null,0,0]
[0,0,0,null,null,null,"",null,null,null,null,null,null,0,0]
[0,0,0,null,null,null,"",null,null,null,null,null,null,0,0]
[0,0,0,null,null,null,"",null,null,null,null,null,null,0,0]
[0,0,0,null,null,null,"",null,null,null,null,null,null,0,0]
[0,0,0,null,null,null,"",null,null,null,null,null,null,0,0]
[0,0,0,null,null,null,"",null,null,null,null,null,null,0,0]
[0,0,0,null,null,null,"",null,null,null,null,null,null,0,0]
[0,0,0,null,null,null,"",null,null,null,null,null,null,0,0]
[0,0,0,null,null,null,{"$f":"IF(D1232<>\"\",G1231+1,\"\")","v":""},null,null,null,null,null,null,0,0]
[0,0,0,null,null,null,"",null,null,null,null,null,null,0,0]
[0,0,0,null,null,null,"",null,null,null,null,null,null,0,0]
[0,0,0,null,null,null,"",null,null,null,null,null,null,0,0]
[0,0,0,null,null,null,"",null,null,null,null,null,null,0,0]
[0,0,0,null,null,null,"",null,null,null,null,null,null,0,0]
[0,0,0,null,null,null,"",null,null,null,null,null,null,0,0]
[0,0,0,null,null,null,"",null,null,null,null,null,null,0,0]
[0,0,0,null,null,null,"",null,null,null,null,null,null,0,0]
[0,0,0,null,null,null,"",null,null,null,null,null,null,0,0]
[0,0,0,null,null,null,"",null,null,null,null,null,null,0,0]
[0,0,0,null,null,null,"",null,null,null,null,null,null,0,0]
[0,0,0,null,null,null,"",null,null,null,null,null,null,0,0]
[0,0,0,null,null,null,"",null,null,null,null,null,null,0,0]
[0,0,0,null,null,null,"",null,null,null,null,null,null,0,0]
[0,0,0,null,null,null,"",null,null,null,null,null,null,0,0]
[0,0,0,null,null,null,"",null,null,null,null,null,null,0,0]
[0,0,0,null,null,null,"",null,null,null,null,null,null,0,0]
[0,0,0,null,null,null,"",null,null,null,null,null,null,0,0]
[0,0,0,null,null,null,"",null,null,null,null,null,null,0,0]
[0,0,0,null,null,null,"",null,null,null,null,null,null,0,0]
[0,0,0,null,null,null,"",null,null,null,null,null,null,0,0]
[0,0,0,null,null,null,"",null,null,null,null,null,null,0,0]
[0,0,0,null,null,null,"",null,null,null,null,null,null,0,0]
[0,0,0,null,null,null,"",null,null,null,null,null,null,0,0]
[0,0,0,null,null,null,"",null,null,null,null,null,null,0,0]
[0,0,0,null,null,null,"",null,null,null,null,null,null,0,0]
[0,0,0,null,null,null,"",null,null,null,null,null,null,0,0]
[0,0,0,null,null,null,"",null,null,null,null,null,null,0,0]
[0,0,0,null,null,null,"",null,null,null,null,null,null,0,0]
[0,0,0,null,null,null,"",null,null,null,null,null,null,0,0]
[0,0,0,null,null,null,"",null,null,null,null,null,null,0,0]
[0,0,0,null,null,null,"",null,null,null,null,null,null,0,0]
[0,0,0,null,null,null,"",null,null,null,null,null,null,0,0]
[0,0,0,null,null,null,"",null,null,null,null,null,null,0,0]
[0,0,0,null,null,null,"",null,null,null,null,null,null,0,0]
[0,0,0,null,null,null,"",null,null,null,null,null,null,0,0]
[0,0,0,null,null,null,"",null,null,null,null,null,null,0,0]
[0,0,0,null,null,null,"",null,null,null,null,null,null,0,0]
[0,0,0,null,null,null,"",null,null,null,null,null,null,0,0]
[0,0,0,null,null,null,"",null,null,null,null,null,null,0,0]
[0,0,0,null,null,null,"",null,null,null,null,null,null,0,0]
[0,0,0,null,null,null,"",null,null,null,null,null,null,0,0]
[0,0,0,null,null,null,"",null,null,null,null,null,null,0,0]
[0,0,0,null,null,null,"",null,null,null,null,null,null,0,0]
[0,0,0,null,null,null,"",null,null,null,null,null,null,0,0]
[0,0,0,null,null,null,"",null,null,null,null,null,null,0,0]
[0,0,0,null,null,null,"",null,null,null,null,null,null,0,0]
[0,0,0,null,null,null,"",null,null,null,null,null,null,0,0]
[0,0,0,null,null,null,"",null,null,null,null,null,null,0,0]
[0,0,0,null,null,null,"",null,null,null,null,null,null,{"$f":"IF(M1282<>0,1,0)","v":0},{"$f":"IF(D1282<>0,1,0)","v":0}]
[{"$f":"IF(M1283=\"Y\",1,0)","v":0},{"$f":"IF(M1283=\"N\",1,0)","v":0},{"$f":"IF(M1283=\"A\",1,0)","v":0},null,null,null,"",null,null,null,null,null,null,0,0]
[0,0,0,null,null,null,"",null,null,null,null,null,null,0,0]
[0,0,0,null,null,null,"",null,null,null,null,null,null,0,0]
[0,0,0,null,null,null,"",null,null,null,null,null,null,0,0]
[0,0,0,null,null,null,"",null,null,null,null,null,null,0,0]
[0,0,0,null,null,null,"",null,null,null,null,null,null,0,0]
[0,0,0,null,null,null,"",null,null,null,null,null,null,0,0]
[0,0,0,null,null,null,"",null,null,null,null,null,null,0,0]
[0,0,0,null,null,null,"",null,null,null,null,null,null,0,0]
[0,0,0,null,null,null,"",null,null,null,null,null,null,0,0]
[0,0,0,null,null,null,"",null,null,null,null,null,null,0,0]
[0,0,0,null,null,null,"",null,null,null,null,null,null,0,0]
[0,0,0,null,null,null,"",null,null,null,null,null,null,0,0]
[0,0,0,null,null,null,{"$f":"IF(D1296<>\"\",G1295+1,\"\")","v":""},null,null,null,null,null,null,0,0]
[0,0,0,null,null,null,"",null,null,null,null,null,null,0,0]
[0,0,0,null,null,null,"",null,null,null,null,null,null,0,0]
[0,0,0,null,null,null,"",null,null,null,null,null,null,0,0]
[0,0,0,null,null,null,"",null,null,null,null,null,null,0,0]
[0,0,0,null,null,null,"",null,null,null,null,null,null,0,0]
[0,0,0,null,null,null,"",null,null,null,null,null,null,0,0]
[0,0,0,null,null,null,"",null,null,null,null,null,null,0,0]
[0,0,0,null,null,null,"",null,null,null,null,null,null,0,0]
[0,0,0,null,null,null,"",null,null,null,null,null,null,0,0]
[0,0,0,null,null,null,"",null,null,null,null,null,null,0,0]
[0,0,0,null,null,null,"",null,null,null,null,null,null,0,0]
[0,0,0,null,null,null,"",null,null,null,null,null,null,0,0]
[0,0,0,null,null,null,"",null,null,null,null,null,null,0,0]
[0,0,0,null,null,null,"",null,null,null,null,null,null,0,0]
[0,0,0,null,null,null,"",null,null,null,null,null,null,0,0]
[0,0,0,null,null,null,"",null,null,null,null,null,null,0,0]
[0,0,0,null,null,null,"",null,null,null,null,null,null,0,0]
[0,0,0,null,null,null,"",null,null,null,null,null,null,0,0]
[0,0,0,null,null,null,"",null,null,null,null,null,null,0,0]
[0,0,0,null,null,null,"",null,null,null,null,null,null,0,0]
[0,0,0,null,null,null,"",null,null,null,null,null,null,0,0]
[0,0,0,null,null,null,"",null,null,null,null,null,null,0,0]
[0,0,0,null,null,null,"",null,null,null,null,null,null,0,0]
[0,0,0,null,null,null,"",null,null,null,null,null,null,0,0]
[0,0,0,null,null,null,"",null,null,null,null,null,null,0,0]
[0,0,0,null,null,null,"",null,null,null,null,null,null,0,0]
[0,0,0,null,null,null,"",null,null,null,null,null,null,0,0]
[0,0,0,null,null,null,"",null,null,null,null,null,null,0,0]
[0,0,0,null,null,null,"",null,null,null,null,null,null,0,0]
[0,0,0,null,null,null,"",null,null,null,null,null,null,0,0]
[0,0,0,null,null,null,"",null,null,null,null,null,null,0,0]
[0,0,0,null,null,null,"",null,null,null,null,null,null,0,0]
[0,0,0,null,null,null,"",null,null,null,null,null,null,0,0]
[0,0,0,null,null,null,"",null,null,null,null,null,null,0,0]
[0,0,0,null,null,null,"",null,null,null,null,null,null,0,0]
[0,0,0,null,null,null,"",null,null,null,null,null,null,0,0]
[0,0,0,null,null,null,"",null,null,null,null,null,null,0,0]
[0,0,0,null,null,null,"",null,null,null,null,null,null,0,0]
[0,0,0,null,null,null,"",null,null,null,null,null,null,0,0]
[0,0,0,null,null,null,"",null,null,null,null,null,null,0,0]
[0,0,0,null,null,null,"",null,null,null,null,null,null,0,0]
[0,0,0,null,null,null,"",null,null,null,null,null,null,0,0]
[0,0,0,null,null,null,"",null,null,null,null,null,null,0,0]
[0,0,0,null,null,null,"",null,null,null,null,null,null,0,0]
[0,0,0,null,null,null,"",null,null,null,null,null,null,0,0]
[0,0,0,null,null,null,"",null,null,null,null,null,null,0,0]
[0,0,0,null,null,null,"",null,null,null,null,null,null,0,0]
[0,0,0,null,null,null,"",null,null,null,null,null,null,0,0]
[0,0,0,null,null,null,"",null,null,null,null,null,null,0,0]
[0,0,0,null,null,null,"",null,null,null,null,null,null,{"$f":"IF(M1346<>0,1,0)","v":0},{"$f":"IF(D1346<>0,1,0)","v":0}]
[{"$f":"IF(M1347=\"Y\",1,0)","v":0},{"$f":"IF(M1347=\"N\",1,0)","v":0},{"$f":"IF(M1347=\"A\",1,0)","v":0},null,null,null,"",null,null,null,null,null,null,0,0]
[0,0,0,null,null,null,"",null,null,null,null,null,null,0,0]
[0,0,0,null,null,null,"",null,null,null,null,null,null,0,0]
[0,0,0,null,null,null,"",null,null,null,null,null,null,0,0]
[0,0,0,null,null,null,"",null,null,null,null,null,null,0,0]
[0,0,0,null,null,null,"",null,null,null,null,null,null,0,0]
[0,0,0,null,null,null,"",null,null,null,null,null,null,0,0]
[0,0,0,null,null,null,"",null,null,null,null,null,null,0,0]
[0,0,0,null,null,null,"",null,null,null,null,null,null,0,0]
[0,0,0,null,null,null,"",null,null,null,null,null,null,0,0]
[0,0,0,null,null,null,"",null,null,null,null,null,null,0,0]
[0,0,0,null,null,null,"",null,null,null,null,null,null,0,0]
[0,0,0,null,null,null,"",null,null,null,null,null,null,0,0]
[0,0,0,null,null,null,{"$f":"IF(D1360<>\"\",G1359+1,\"\")","v":""},null,null,null,null,null,null,0,0]
[0,0,0,null,null,null,"",null,null,null,null,null,null,0,0]
[0,0,0,null,null,null,"",null,null,null,null,null,null,0,0]
[0,0,0,null,null,null,"",null,null,null,null,null,null,0,0]
[0,0,0,null,null,null,"",null,null,null,null,null,null,0,0]
[0,0,0,null,null,null,"",null,null,null,null,null,null,0,0]
[0,0,0,null,null,null,"",null,null,null,null,null,null,0,0]
[0,0,0,null,null,null,"",null,null,null,null,null,null,0,0]
[0,0,0,null,null,null,"",null,null,null,null,null,null,0,0]
[0,0,0,null,null,null,"",null,null,null,null,null,null,0,0]
[0,0,0,null,null,null,"",null,null,null,null,null,null,0,0]
[0,0,0,null,null,null,"",null,null,null,null,null,null,0,0]
[0,0,0,null,null,null,"",null,null,null,null,null,null,0,0]
[0,0,0,null,null,null,"",null,null,null,null,null,null,0,0]
[0,0,0,null,null,null,"",null,null,null,null,null,null,0,0]
[0,0,0,null,null,null,"",null,null,null,null,null,null,0,0]
[0,0,0,null,null,null,"",null,null,null,null,null,null,0,0]
[0,0,0,null,null,null,"",null,null,null,null,null,null,0,0]
[0,0,0,null,null,null,"",null,null,null,null,null,null,0,0]
[0,0,0,null,null,null,"",null,null,null,null,null,null,0,0]
[0,0,0,null,null,null,"",null,null,null,null,null,null,0,0]
[0,0,0,null,null,null,"",null,null,null,null,null,null,0,0]
[0,0,0,null,null,null,"",null,null,null,null,null,null,0,0]
[0,0,0,null,null,null,"",null,null,null,null,null,null,0,0]
[0,0,0,null,null,null,"",null,null,null,null,null,null,0,0]
[0,0,0,null,null,null,"",null,null,null,null,null,null,0,0]
[0,0,0,null,null,null,"",null,null,null,null,null,null,0,0]
[0,0,0,null,null,null,"",null,null,null,null,null,null,0,0]
[0,0,0,null,null,null,"",null,null,null,null,null,null,0,0]
[0,0,0,null,null,null,"",null,null,null,null,null,null,0,0]
[0,0,0,null,null,null,"",null,null,null,null,null,null,0,0]
[0,0,0,null,null,null,"",null,null,null,null,null,null,0,0]
[0,0,0,null,null,null,"",null,null,null,null,null,null,0,0]
[0,0,0,null,null,null,"",null,null,null,null,null,null,0,0]
[0,0,0,null,null,null,"",null,null,null,null,null,null,0,0]
[0,0,0,null,null,null,"",null,null,null,null,null,null,0,0]
[0,0,0,null,null,null,"",null,null,null,null,null,null,0,0]
[0,0,0,null,null,null,"",null,null,null,null,null,null,0,0]
[0,0,0,null,null,null,"",null,null,null,null,null,null,0,0]
[0,0,0,null,null,null,"",null,null,null,null,null,null,0,0]
[0,0,0,null,null,null,"",null,null,null,null,null,null,0,0]
[0,0,0,null,null,null,"",null,null,null,null,null,null,0,0]
[0,0,0,null,null,null,"",null,null,null,null,null,null,0,0]
[0,0,0,null,null,null,"",null,null,null,null,null,null,0,0]
[0,0,0,null,null,null,"",null,null,null,null,null,null,0,0]
[0,0,0,null,null,null,"",null,null,null,null,null,null,0,0]
[0,0,0,null,null,null,"",null,null,null,null,null,null,0,0]
[0,0,0,null,null,null,"",null,null,null,null,null,null,0,0]
[0,0,0,null,null,null,"",null,null,null,null,null,null,0,0]
[0,0,0,null,null,null,"",null,null,null,null,null,null,0,0]
[0,0,0,null,null,null,"",null,null,null,null,null,null,{"$f":"IF(M1410<>0,1,0)","v":0},{"$f":"IF(D1410<>0,1,0)","v":0}]
[{"$f":"IF(M1411=\"Y\",1,0)","v":0},{"$f":"IF(M1411=\"N\",1,0)","v":0},{"$f":"IF(M1411=\"A\",1,0)","v":0},null,null,null,"",null,null,null,null,null,null,0,0]
[0,0,0,null,null,null,"",null,null,null,null,null,null,0,0]
[0,0,0,null,null,null,"",null,null,null,null,null,null,0,0]
[0,0,0,null,null,null,"",null,null,null,null,null,null,0,0]
[0,0,0,null,null,null,"",null,null,null,null,null,null,0,0]
[0,0,0,null,null,null,"",null,null,null,null,null,null,0,0]
[0,0,0,null,null,null,"",null,null,null,null,null,null,0,0]
[0,0,0,null,null,null,"",null,null,null,null,null,null,0,0]
[0,0,0,null,null,null,"",null,null,null,null,null,null,0,0]
[0,0,0,null,null,null,"",null,null,null,null,null,null,0,0]
[0,0,0,null,null,null,"",null,null,null,null,null,null,0,0]
[0,0,0,null,null,null,"",null,null,null,null,null,null,0,0]
[0,0,0,null,null,null,"",null,null,null,null,null,null,0,0]
[0,0,0,null,null,null,{"$f":"IF(D1424<>\"\",G1423+1,\"\")","v":""},null,null,null,null,null,null,0,0]
[0,0,0,null,null,null,"",null,null,null,null,null,null,0,0]
[0,0,0,null,null,null,"",null,null,null,null,null,null,0,0]
[0,0,0,null,null,null,"",null,null,null,null,null,null,0,0]
[0,0,0,null,null,null,"",null,null,null,null,null,null,0,0]
[0,0,0,null,null,null,"",null,null,null,null,null,null,0,0]
[0,0,0,null,null,null,"",null,null,null,null,null,null,0,0]
[0,0,0,null,null,null,"",null,null,null,null,null,null,0,0]
[0,0,0,null,null,null,"",null,null,null,null,null,null,0,0]
[0,0,0,null,null,null,"",null,null,null,null,null,null,0,0]
[0,0,0,null,null,null,"",null,null,null,null,null,null,0,0]
[0,0,0,null,null,null,"",null,null,null,null,null,null,0,0]
[0,0,0,null,null,null,"",null,null,null,null,null,null,0,0]
[0,0,0,null,null,null,"",null,null,null,null,null,null,0,0]
[0,0,0,null,null,null,"",null,null,null,null,null,null,0,0]
[0,0,0,null,null,null,"",null,null,null,null,null,null,0,0]
[0,0,0,null,null,null,"",null,null,null,null,null,null,0,0]
[0,0,0,null,null,null,"",null,null,null,null,null,null,0,0]
[0,0,0,null,null,null,"",null,null,null,null,null,null,0,0]
[0,0,0,null,null,null,"",null,null,null,null,null,null,0,0]
[0,0,0,null,null,null,"",null,null,null,null,null,null,0,0]
[0,0,0,null,null,null,"",null,null,null,null,null,null,0,0]
[0,0,0,null,null,null,"",null,null,null,null,null,null,0,0]
[0,0,0,null,null,null,"",null,null,null,null,null,null,0,0]
[0,0,0,null,null,null,"",null,null,null,null,null,null,0,0]
[0,0,0,null,null,null,"",null,null,null,null,null,null,0,0]
[0,0,0,null,null,null,"",null,null,null,null,null,null,0,0]
[0,0,0,null,null,null,"",null,null,null,null,null,null,0,0]
[0,0,0,null,null,null,"",null,null,null,null,null,null,0,0]
[0,0,0,null,null,null,"",null,null,null,null,null,null,0,0]
[0,0,0,null,null,null,"",null,null,null,null,null,null,0,0]
[0,0,0,null,null,null,"",null,null,null,null,null,null,0,0]
[0,0,0,null,null,null,"",null,null,null,null,null,null,0,0]
[0,0,0,null,null,null,"",null,null,null,null,null,null,0,0]
[0,0,0,null,null,null,"",null,null,null,null,null,null,0,0]
[0,0,0,null,null,null,"",null,null,null,null,null,null,0,0]
[0,0,0,null,null,null,"",null,null,null,null,null,null,0,0]
[0,0,0,null,null,null,"",null,null,null,null,null,null,0,0]
[0,0,0,null,null,null,"",null,null,null,null,null,null,0,0]
[0,0,0,null,null,null,"",null,null,null,null,null,null,0,0]
[0,0,0,null,null,null,"",null,null,null,null,null,null,0,0]
[0,0,0,null,null,null,"",null,null,null,null,null,null,0,0]
[0,0,0,null,null,null,"",null,null,null,null,null,null,0,0]
[0,0,0,null,null,null,"",null,null,null,null,null,null,0,0]
[0,0,0,null,null,null,"",null,null,null,null,null,null,0,0]
[0,0,0,null,null,null,"",null,null,null,null,null,null,0,0]
[0,0,0,null,null,null,"",null,null,null,null,null,null,0,0]
[0,0,0,null,null,null,"",null,null,null,null,null,null,0,0]
[0,0,0,null,null,null,"",null,null,null,null,null,null,0,0]
[0,0,0,null,null,null,"",null,null,null,null,null,null,0,0]
[0,0,0,null,null,null,"",null,null,null,null,null,null,{"$f":"IF(M1474<>0,1,0)","v":0},{"$f":"IF(D1474<>0,1,0)","v":0}]
[{"$f":"IF(M1475=\"Y\",1,0)","v":0},{"$f":"IF(M1475=\"N\",1,0)","v":0},{"$f":"IF(M1475=\"A\",1,0)","v":0},null,null,null,"",null,null,null,null,null,null,0,0]
[0,0,0,null,null,null,"",null,null,null,null,null,null,0,0]
[0,0,0,null,null,null,"",null,null,null,null,null,null,0,0]
[0,0,0,null,null,null,"",null,null,null,null,null,null,0,0]
[0,0,0,null,null,null,"",null,null,null,null,null,null,0,0]
[0,0,0,null,null,null,"",null,null,null,null,null,null,0,0]
[0,0,0,null,null,null,"",null,null,null,null,null,null,0,0]
[0,0,0,null,null,null,"",null,null,null,null,null,null,0,0]
[0,0,0,null,null,null,"",null,null,null,null,null,null,0,0]
[0,0,0,null,null,null,"",null,null,null,null,null,null,0,0]
[0,0,0,null,null,null,"",null,null,null,null,null,null,0,0]
[0,0,0,null,null,null,"",null,null,null,null,null,null,0,0]
[0,0,0,null,null,null,"",null,null,null,null,null,null,0,0]
[0,0,0,null,null,null,{"$f":"IF(D1488<>\"\",G1487+1,\"\")","v":""},null,null,null,null,null,null,0,0]
[0,0,0,null,null,null,"",null,null,null,null,null,null,0,0]
[0,0,0,null,null,null,"",null,null,null,null,null,null,0,0]
[0,0,0,null,null,null,"",null,null,null,null,null,null,0,0]
[0,0,0,null,null,null,"",null,null,null,null,null,null,0,0]
[0,0,0,null,null,null,"",null,null,null,null,null,null,0,0]
[0,0,0,null,null,null,"",null,null,null,null,null,null,0,0]
[0,0,0,null,null,null,"",null,null,null,null,null,null,0,0]
[0,0,0,null,null,null,"",null,null,null,null,null,null,0,0]
[0,0,0,null,null,null,"",null,null,null,null,null,null,0,0]
[0,0,0,null,null,null,"",null,null,null,null,null,null,0,0]
[0,0,0,null,null,null,"",null,null,null,null,null,null,0,0]
[0,0,0,null,null,null,"",null,null,null,null,null,null,0,0]
[0,0,0,null,null,null,"",null,null,null,null,null,null,0,0]
[0,0,0,null,null,null,"",null,null,null,null,null,null,0,0]
[0,0,0,null,null,null,"",null,null,null,null,null,null,0,0]
[0,0,0,null,null,null,"",null,null,null,null,null,null,0,0]
[0,0,0,null,null,null,"",null,null,null,null,null,null,0,0]
[0,0,0,null,null,null,"",null,null,null,null,null,null,0,0]
[0,0,0,null,null,null,"",null,null,null,null,null,null,0,0]
[0,0,0,null,null,null,"",null,null,null,null,null,null,0,0]
[0,0,0,null,null,null,"",null,null,null,null,null,null,0,0]
[0,0,0,null,null,null,"",null,null,null,null,null,null,0,0]
[0,0,0,null,null,null,"",null,null,null,null,null,null,0,0]
[0,0,0,null,null,null,"",null,null,null,null,null,null,0,0]
[0,0,0,null,null,null,"",null,null,null,null,null,null,0,0]
[0,0,0,null,null,null,"",null,null,null,null,null,null,0,0]
[0,0,0,null,null,null,"",null,null,null,null,null,null,0,0]
[0,0,0,null,null,null,"",null,null,null,null,null,null,0,0]
[0,0,0,null,null,null,"",null,null,null,null,null,null,0,0]
[0,0,0,null,null,null,"",null,null,null,null,null,null,0,0]
[0,0,0,null,null,null,"",null,null,null,null,null,null,0,0]
[0,0,0,null,null,null,"",null,null,null,null,null,null,0,0]
[0,0,0,null,null,null,"",null,null,null,null,null,null,0,0]
[0,0,0,null,null,null,"",null,null,null,null,null,null,0,0]
[0,0,0,null,null,null,"",null,null,null,null,null,null,0,0]
[0,0,0,null,null,null,"",null,null,null,null,null,null,0,0]
[0,0,0,null,null,null,"",null,null,null,null,null,null,0,0]
[0,0,0,null,null,null,"",null,null,null,null,null,null,0,0]
[0,0,0,null,null,null,"",null,null,null,null,null,null,0,0]
[0,0,0,null,null,null,"",null,null,null,null,null,null,0,0]
[0,0,0,null,null,null,"",null,null,null,null,null,null,0,0]
[0,0,0,null,null,null,"",null,null,null,null,null,null,0,0]
[0,0,0,null,null,null,"",null,null,null,null,null,null,0,0]
[0,0,0,null,null,null,"",null,null,null,null,null,null,0,0]
[0,0,0,null,null,null,"",null,null,null,null,null,null,0,0]
[0,0,0,null,null,null,"",null,null,null,null,null,null,0,0]
[0,0,0,null,null,null,"",null,null,null,null,null,null,0,0]
[0,0,0,null,null,null,"",null,null,null,null,null,null,0,0]
[0,0,0,null,null,null,"",null,null,null,null,null,null,0,0]
[0,0,0,null,null,null,"",null,null,null,null,null,null,{"$f":"IF(M1538<>0,1,0)","v":0},{"$f":"IF(D1538<>0,1,0)","v":0}]
[{"$f":"IF(M1539=\"Y\",1,0)","v":0},{"$f":"IF(M1539=\"N\",1,0)","v":0},{"$f":"IF(M1539=\"A\",1,0)","v":0},null,null,null,"",null,null,null,null,null,null,0,0]
[0,0,0,null,null,null,"",null,null,null,null,null,null,0,0]
[0,0,0,null,null,null,"",null,null,null,null,null,null,0,0]
[0,0,0,null,null,null,"",null,null,null,null,null,null,0,0]
[0,0,0,null,null,null,"",null,null,null,null,null,null,0,0]
[0,0,0,null,null,null,"",null,null,null,null,null,null,0,0]
[0,0,0,null,null,null,"",null,null,null,null,null,null,0,0]
[0,0,0,null,null,null,"",null,null,null,null,null,null,0,0]
[0,0,0,null,null,null,"",null,null,null,null,null,null,0,0]
[0,0,0,null,null,null,"",null,null,null,null,null,null,0,0]
[0,0,0,null,null,null,"",null,null,null,null,null,null,0,0]
[0,0,0,null,null,null,"",null,null,null,null,null,null,0,0]
[0,0,0,null,null,null,"",null,null,null,null,null,null,0,0]
[0,0,0,null,null,null,{"$f":"IF(D1552<>\"\",G1551+1,\"\")","v":""},null,null,null,null,null,null,0,0]
[0,0,0,null,null,null,"",null,null,null,null,null,null,0,0]
[0,0,0,null,null,null,"",null,null,null,null,null,null,0,0]
[0,0,0,null,null,null,"",null,null,null,null,null,null,0,0]
[0,0,0,null,null,null,"",null,null,null,null,null,null,0,0]
[0,0,0,null,null,null,"",null,null,null,null,null,null,0,0]
[0,0,0,null,null,null,"",null,null,null,null,null,null,0,0]
[0,0,0,null,null,null,"",null,null,null,null,null,null,0,0]
[0,0,0,null,null,null,"",null,null,null,null,null,null,0,0]
[0,0,0,null,null,null,"",null,null,null,null,null,null,0,0]
[0,0,0,null,null,null,"",null,null,null,null,null,null,0,0]
[0,0,0,null,null,null,"",null,null,null,null,null,null,0,0]
[0,0,0,null,null,null,"",null,null,null,null,null,null,0,0]
[0,0,0,null,null,null,"",null,null,null,null,null,null,0,0]
[0,0,0,null,null,null,"",null,null,null,null,null,null,0,0]
[0,0,0,null,null,null,"",null,null,null,null,null,null,0,0]
[0,0,0,null,null,null,"",null,null,null,null,null,null,0,0]
[0,0,0,null,null,null,"",null,null,null,null,null,null,0,0]
[0,0,0,null,null,null,"",null,null,null,null,null,null,0,0]
[0,0,0,null,null,null,"",null,null,null,null,null,null,0,0]
[0,0,0,null,null,null,"",null,null,null,null,null,null,0,0]
[0,0,0,null,null,null,"",null,null,null,null,null,null,0,0]
[0,0,0,null,null,null,"",null,null,null,null,null,null,0,0]
[0,0,0,null,null,null,"",null,null,null,null,null,null,0,0]
[0,0,0,null,null,null,"",null,null,null,null,null,null,0,0]
[0,0,0,null,null,null,"",null,null,null,null,null,null,0,0]
[0,0,0,null,null,null,"",null,null,null,null,null,null,0,0]
[0,0,0,null,null,null,"",null,null,null,null,null,null,0,0]
[0,0,0,null,null,null,"",null,null,null,null,null,null,0,0]
[0,0,0,null,null,null,"",null,null,null,null,null,null,0,0]
[0,0,0,null,null,null,"",null,null,null,null,null,null,0,0]
[0,0,0,null,null,null,"",null,null,null,null,null,null,0,0]
[0,0,0,null,null,null,"",null,null,null,null,null,null,0,0]
[0,0,0,null,null,null,"",null,null,null,null,null,null,0,0]
[0,0,0,null,null,null,"",null,null,null,null,null,null,0,0]
[0,0,0,null,null,null,"",null,null,null,null,null,null,0,0]
[0,0,0,null,null,null,"",null,null,null,null,null,null,0,0]
[0,0,0,null,null,null,"",null,null,null,null,null,null,0,0]
[0,0,0,null,null,null,"",null,null,null,null,null,null,0,0]
[0,0,0,null,null,null,"",null,null,null,null,null,null,0,0]
[0,0,0,null,null,null,"",null,null,null,null,null,null,0,0]
[0,0,0,null,null,null,"",null,null,null,null,null,null,0,0]
[0,0,0,null,null,null,"",null,null,null,null,null,null,0,0]
[0,0,0,null,null,null,"",null,null,null,null,null,null,0,0]
[0,0,0,null,null,null,"",null,null,null,null,null,null,0,0]
[0,0,0,null,null,null,"",null,null,null,null,null,null,0,0]
[0,0,0,null,null,null,"",null,null,null,null,null,null,0,0]
[0,0,0,null,null,null,"",null,null,null,null,null,null,0,0]
[0,0,0,null,null,null,"",null,null,null,null,null,null,0,0]
[0,0,0,null,null,null,"",null,null,null,null,null,null,0,0]
[0,0,0,null,null,null,"",null,null,null,null,null,null,{"$f":"IF(M1602<>0,1,0)","v":0},{"$f":"IF(D1602<>0,1,0)","v":0}]
[{"$f":"IF(M1603=\"Y\",1,0)","v":0},{"$f":"IF(M1603=\"N\",1,0)","v":0},{"$f":"IF(M1603=\"A\",1,0)","v":0},null,null,null,"",null,null,null,null,null,null,0,0]
[0,0,0,null,null,null,"",null,null,null,null,null,null,0,0]
[0,0,0,null,null,null,"",null,null,null,null,null,null,0,0]
[0,0,0,null,null,null,"",null,null,null,null,null,null,0,0]
[0,0,0,null,null,null,"",null,null,null,null,null,null,0,0]
[0,0,0,null,null,null,"",null,null,null,null,null,null,0,0]
[0,0,0,null,null,null,"",null,null,null,null,null,null,0,0]
[0,0,0,null,null,null,"",null,null,null,null,null,null,0,0]
[0,0,0,null,null,null,"",null,null,null,null,null,null,0,0]
[0,0,0,null,null,null,"",null,null,null,null,null,null,0,0]
[0,0,0,null,null,null,"",null,null,null,null,null,null,0,0]
[0,0,0,null,null,null,"",null,null,null,null,null,null,0,0]
[0,0,0,null,null,null,"",null,null,null,null,null,null,0,0]
[0,0,0,null,null,null,{"$f":"IF(D1616<>\"\",G1615+1,\"\")","v":""},null,null,null,null,null,null,0,0]
[0,0,0,null,null,null,"",null,null,null,null,null,null,0,0]
[0,0,0,null,null,null,"",null,null,null,null,null,null,0,0]
[0,0,0,null,null,null,"",null,null,null,null,null,null,0,0]
[0,0,0,null,null,null,"",null,null,null,null,null,null,0,0]
[0,0,0,null,null,null,"",null,null,null,null,null,null,0,0]
[0,0,0,null,null,null,"",null,null,null,null,null,null,0,0]
[0,0,0,null,null,null,"",null,null,null,null,null,null,0,0]
[0,0,0,null,null,null,"",null,null,null,null,null,null,0,0]
[0,0,0,null,null,null,"",null,null,null,null,null,null,0,0]
[0,0,0,null,null,null,"",null,null,null,null,null,null,0,0]
[0,0,0,null,null,null,"",null,null,null,null,null,null,0,0]
[0,0,0,null,null,null,"",null,null,null,null,null,null,0,0]
[0,0,0,null,null,null,"",null,null,null,null,null,null,0,0]
[0,0,0,null,null,null,"",null,null,null,null,null,null,0,0]
[0,0,0,null,null,null,"",null,null,null,null,null,null,0,0]
[0,0,0,null,null,null,"",null,null,null,null,null,null,0,0]
[0,0,0,null,null,null,"",null,null,null,null,null,null,0,0]
[0,0,0,null,null,null,"",null,null,null,null,null,null,0,0]
[0,0,0,null,null,null,"",null,null,null,null,null,null,0,0]
[0,0,0,null,null,null,"",null,null,null,null,null,null,0,0]
[0,0,0,null,null,null,"",null,null,null,null,null,null,0,0]
[0,0,0,null,null,null,"",null,null,null,null,null,null,0,0]
[0,0,0,null,null,null,"",null,null,null,null,null,null,0,0]
[0,0,0,null,null,null,"",null,null,null,null,null,null,0,0]
[0,0,0,null,null,null,"",null,null,null,null,null,null,0,0]
[0,0,0,null,null,null,"",null,null,null,null,null,null,0,0]
[0,0,0,null,null,null,"",null,null,null,null,null,null,0,0]
[0,0,0,null,null,null,"",null,null,null,null,null,null,0,0]
[0,0,0,null,null,null,"",null,null,null,null,null,null,0,0]
[0,0,0,null,null,null,"",null,null,null,null,null,null,0,0]
[0,0,0,null,null,null,"",null,null,null,null,null,null,0,0]
[0,0,0,null,null,null,"",null,null,null,null,null,null,0,0]
[0,0,0,null,null,null,"",null,null,null,null,null,null,0,0]
[0,0,0,null,null,null,"",null,null,null,null,null,null,0,0]
[0,0,0,null,null,null,"",null,null,null,null,null,null,0,0]
[0,0,0,null,null,null,"",null,null,null,null,null,null,0,0]
[0,0,0,null,null,null,"",null,null,null,null,null,null,0,0]
[0,0,0,null,null,null,"",null,null,null,null,null,null,0,0]
[0,0,0,null,null,null,"",null,null,null,null,null,null,0,0]
[0,0,0,null,null,null,"",null,null,null,null,null,null,0,0]
[0,0,0,null,null,null,"",null,null,null,null,null,null,0,0]
[0,0,0,null,null,null,"",null,null,null,null,null,null,0,0]
[0,0,0,null,null,null,"",null,null,null,null,null,null,0,0]
[0,0,0,null,null,null,"",null,null,null,null,null,null,0,0]
[0,0,0,null,null,null,"",null,null,null,null,null,null,0,0]
[0,0,0,null,null,null,"",null,null,null,null,null,null,0,0]
[0,0,0,null,null,null,"",null,null,null,null,null,null,0,0]
[0,0,0,null,null,null,"",null,null,null,null,null,null,0,0]
[0,0,0,null,null,null,"",null,null,null,null,null,null,0,0]
[0,0,0,null,null,null,"",null,null,null,null,null,null,{"$f":"IF(M1666<>0,1,0)","v":0},{"$f":"IF(D1666<>0,1,0)","v":0}]
[{"$f":"IF(M1667=\"Y\",1,0)","v":0},{"$f":"IF(M1667=\"N\",1,0)","v":0},{"$f":"IF(M1667=\"A\",1,0)","v":0},null,null,null,"",null,null,null,null,null,null,0,0]
[0,0,0,null,null,null,"",null,null,null,null,null,null,0,0]
[0,0,0,null,null,null,"",null,null,null,null,null,null,0,0]
[0,0,0,null,null,null,"",null,null,null,null,null,null,0,0]
[0,0,0,null,null,null,"",null,null,null,null,null,null,0,0]
[0,0,0,null,null,null,"",null,null,null,null,null,null,0,0]
[0,0,0,null,null,null,"",null,null,null,null,null,null,0,0]
[0,0,0,null,null,null,"",null,null,null,null,null,null,0,0]
[0,0,0,null,null,null,"",null,null,null,null,null,null,0,0]
[0,0,0,null,null,null,"",null,null,null,null,null,null,0,0]
[0,0,0,null,null,null,"",null,null,null,null,null,null,0,0]
[0,0,0,null,null,null,"",null,null,null,null,null,null,0,0]
[0,0,0,null,null,null,"",null,null,null,null,null,null,0,0]
[0,0,0,null,null,null,{"$f":"IF(D1680<>\"\",G1679+1,\"\")","v":""},null,null,null,null,null,null,0,0]
[0,0,0,null,null,null,"",null,null,null,null,null,null,0,0]
[0,0,0,null,null,null,"",null,null,null,null,null,null,0,0]
[0,0,0,null,null,null,"",null,null,null,null,null,null,0,0]
[0,0,0,null,null,null,"",null,null,null,null,null,null,0,0]
[0,0,0,null,null,null,"",null,null,null,null,null,null,0,0]
[0,0,0,null,null,null,"",null,null,null,null,null,null,0,0]
[0,0,0,null,null,null,"",null,null,null,null,null,null,0,0]
[0,0,0,null,null,null,"",null,null,null,null,null,null,0,0]
[0,0,0,null,null,null,"",null,null,null,null,null,null,0,0]
[0,0,0,null,null,null,"",null,null,null,null,null,null,0,0]
[0,0,0,null,null,null,"",null,null,null,null,null,null,0,0]
[0,0,0,null,null,null,"",null,null,null,null,null,null,0,0]
[0,0,0,null,null,null,"",null,null,null,null,null,null,0,0]
[0,0,0,null,null,null,"",null,null,null,null,null,null,0,0]
[0,0,0,null,null,null,"",null,null,null,null,null,null,0,0]
[0,0,0,null,null,null,"",null,null,null,null,null,null,0,0]
[0,0,0,null,null,null,"",null,null,null,null,null,null,0,0]
[0,0,0,null,null,null,"",null,null,null,null,null,null,0,0]
[0,0,0,null,null,null,"",null,null,null,null,null,null,0,0]
[0,0,0,null,null,null,"",null,null,null,null,null,null,0,0]
[0,0,0,null,null,null,"",null,null,null,null,null,null,0,0]
[0,0,0,null,null,null,"",null,null,null,null,null,null,0,0]
[0,0,0,null,null,null,"",null,null,null,null,null,null,0,0]
[0,0,0,null,null,null,"",null,null,null,null,null,null,0,0]
[0,0,0,null,null,null,"",null,null,null,null,null,null,0,0]
[0,0,0,null,null,null,"",null,null,null,null,null,null,0,0]
[0,0,0,null,null,null,"",null,null,null,null,null,null,0,0]
[0,0,0,null,null,null,"",null,null,null,null,null,null,0,0]
[0,0,0,null,null,null,"",null,null,null,null,null,null,0,0]
[0,0,0,null,null,null,"",null,null,null,null,null,null,0,0]
[0,0,0,null,null,null,"",null,null,null,null,null,null,0,0]
[0,0,0,null,null,null,"",null,null,null,null,null,null,0,0]
[0,0,0,null,null,null,"",null,null,null,null,null,null,0,0]
[0,0,0,null,null,null,"",null,null,null,null,null,null,0,0]
[0,0,0,null,null,null,"",null,null,null,null,null,null,0,0]
[0,0,0,null,null,null,"",null,null,null,null,null,null,0,0]
[0,0,0,null,null,null,"",null,null,null,null,null,null,0,0]
[0,0,0,null,null,null,"",null,null,null,null,null,null,0,0]
[0,0,0,null,null,null,"",null,null,null,null,null,null,0,0]
[0,0,0,null,null,null,"",null,null,null,null,null,null,0,0]
[0,0,0,null,null,null,"",null,null,null,null,null,null,0,0]
[0,0,0,null,null,null,"",null,null,null,null,null,null,0,0]
[0,0,0,null,null,null,"",null,null,null,null,null,null,0,0]
[0,0,0,null,null,null,"",null,null,null,null,null,null,0,0]
[0,0,0,null,null,null,"",null,null,null,null,null,null,0,0]
[0,0,0,null,null,null,"",null,null,null,null,null,null,0,0]
[0,0,0,null,null,null,"",null,null,null,null,null,null,0,0]
[0,0,0,null,null,null,"",null,null,null,null,null,null,0,0]
[0,0,0,null,null,null,"",null,null,null,null,null,null,0,0]
[0,0,0,null,null,null,"",null,null,null,null,null,null,{"$f":"IF(M1730<>0,1,0)","v":0},{"$f":"IF(D1730<>0,1,0)","v":0}]
[{"$f":"IF(M1731=\"Y\",1,0)","v":0},{"$f":"IF(M1731=\"N\",1,0)","v":0},{"$f":"IF(M1731=\"A\",1,0)","v":0},null,null,null,"",null,null,null,null,null,null,0,0]
[0,0,0,null,null,null,"",null,null,null,null,null,null,0,0]
[0,0,0,null,null,null,"",null,null,null,null,null,null,0,0]
[0,0,0,null,null,null,"",null,null,null,null,null,null,0,0]
[0,0,0,null,null,null,"",null,null,null,null,null,null,0,0]
[0,0,0,null,null,null,"",null,null,null,null,null,null,0,0]
[0,0,0,null,null,null,"",null,null,null,null,null,null,0,0]
[0,0,0,null,null,null,"",null,null,null,null,null,null,0,0]
[0,0,0,null,null,null,"",null,null,null,null,null,null,0,0]
[0,0,0,null,null,null,"",null,null,null,null,null,null,0,0]
[0,0,0,null,null,null,"",null,null,null,null,null,null,0,0]
[0,0,0,null,null,null,"",null,null,null,null,null,null,0,0]
[0,0,0,null,null,null,"",null,null,null,null,null,null,0,0]
[0,0,0,null,null,null,{"$f":"IF(D1744<>\"\",G1743+1,\"\")","v":""},null,null,null,null,null,null,0,0]
[0,0,0,null,null,null,"",null,null,null,null,null,null,0,0]
[0,0,0,null,null,null,"",null,null,null,null,null,null,0,0]
[0,0,0,null,null,null,"",null,null,null,null,null,null,0,0]
[0,0,0,null,null,null,"",null,null,null,null,null,null,0,0]
[0,0,0,null,null,null,"",null,null,null,null,null,null,0,0]
[0,0,0,null,null,null,"",null,null,null,null,null,null,0,0]
[0,0,0,null,null,null,"",null,null,null,null,null,null,0,0]
[0,0,0,null,null,null,"",null,null,null,null,null,null,0,0]
[0,0,0,null,null,null,"",null,null,null,null,null,null,0,0]
[0,0,0,null,null,null,"",null,null,null,null,null,null,0,0]
[0,0,0,null,null,null,"",null,null,null,null,null,null,0,0]
[0,0,0,null,null,null,"",null,null,null,null,null,null,0,0]
[0,0,0,null,null,null,"",null,null,null,null,null,null,0,0]
[0,0,0,null,null,null,"",null,null,null,null,null,null,0,0]
[0,0,0,null,null,null,"",null,null,null,null,null,null,0,0]
[0,0,0,null,null,null,"",null,null,null,null,null,null,0,0]
[0,0,0,null,null,null,"",null,null,null,null,null,null,0,0]
[0,0,0,null,null,null,"",null,null,null,null,null,null,0,0]
[0,0,0,null,null,null,"",null,null,null,null,null,null,0,0]
[0,0,0,null,null,null,"",null,null,null,null,null,null,0,0]
[0,0,0,null,null,null,"",null,null,null,null,null,null,0,0]
[0,0,0,null,null,null,"",null,null,null,null,null,null,0,0]
[0,0,0,null,null,null,"",null,null,null,null,null,null,0,0]
[0,0,0,null,null,null,"",null,null,null,null,null,null,0,0]
[0,0,0,null,null,null,"",null,null,null,null,null,null,0,0]
[0,0,0,null,null,null,"",null,null,null,null,null,null,0,0]
[0,0,0,null,null,null,"",null,null,null,null,null,null,0,0]
[0,0,0,null,null,null,"",null,null,null,null,null,null,0,0]
[0,0,0,null,null,null,"",null,null,null,null,null,null,0,0]
[0,0,0,null,null,null,"",null,null,null,null,null,null,0,0]
[0,0,0,null,null,null,"",null,null,null,null,null,null,0,0]
[0,0,0,null,null,null,"",null,null,null,null,null,null,0,0]
[0,0,0,null,null,null,"",null,null,null,null,null,null,0,0]
[0,0,0,null,null,null,"",null,null,null,null,null,null,0,0]
[0,0,0,null,null,null,"",null,null,null,null,null,null,0,0]
[0,0,0,null,null,null,"",null,null,null,null,null,null,0,0]
[0,0,0,null,null,null,"",null,null,null,null,null,null,0,0]
[0,0,0,null,null,null,"",null,null,null,null,null,null,0,0]
[0,0,0,null,null,null,"",null,null,null,null,null,null,0,0]
[0,0,0,null,null,null,"",null,null,null,null,null,null,0,0]
[0,0,0,null,null,null,"",null,null,null,null,null,null,0,0]
[0,0,0,null,null,null,"",null,null,null,null,null,null,0,0]
[0,0,0,null,null,null,"",null,null,null,null,null,null,0,0]
[0,0,0,null,null,null,"",null,null,null,null,null,null,0,0]
[0,0,0,null,null,null,"",null,null,null,null,null,null,0,0]
[0,0,0,null,null,null,"",null,null,null,null,null,null,0,0]
[0,0,0,null,null,null,"",null,null,null,null,null,null,0,0]
[0,0,0,null,null,null,"",null,null,null,null,null,null,0,0]
[0,0,0,null,null,null,"",null,null,null,null,null,null,0,0]
[0,0,0,null,null,null,"",null,null,null,null,null,null,{"$f":"IF(M1794<>0,1,0)","v":0},{"$f":"IF(D1794<>0,1,0)","v":0}]
[{"$f":"IF(M1795=\"Y\",1,0)","v":0},{"$f":"IF(M1795=\"N\",1,0)","v":0},{"$f":"IF(M1795=\"A\",1,0)","v":0},null,null,null,"",null,null,null,null,null,null,0,0]
[0,0,0,null,null,null,"",null,null,null,null,null,null,0,0]
[0,0,0,null,null,null,"",null,null,null,null,null,null,0,0]
[0,0,0,null,null,null,"",null,null,null,null,null,null,0,0]
[0,0,0,null,null,null,"",null,null,null,null,null,null,0,0]
[0,0,0,null,null,null,"",null,null,null,null,null,null,0,0]
[0,0,0,null,null,null,"",null,null,null,null,null,null,0,0]
[0,0,0,null,null,null,"",null,null,null,null,null,null,0,0]
[0,0,0,null,null,null,"",null,null,null,null,null,null,0,0]
[0,0,0,null,null,null,"",null,null,null,null,null,null,0,0]
[0,0,0,null,null,null,"",null,null,null,null,null,null,0,0]
[0,0,0,null,null,null,"",null,null,null,null,null,null,0,0]
[0,0,0,null,null,null,"",null,null,null,null,null,null,0,0]
[0,0,0,null,null,null,{"$f":"IF(D1808<>\"\",G1807+1,\"\")","v":""},null,null,null,null,null,null,0,0]
[0,0,0,null,null,null,"",null,null,null,null,null,null,0,0]
[0,0,0,null,null,null,"",null,null,null,null,null,null,0,0]
[0,0,0,null,null,null,"",null,null,null,null,null,null,0,0]
[0,0,0,null,null,null,"",null,null,null,null,null,null,0,0]
[0,0,0,null,null,null,"",null,null,null,null,null,null,0,0]
[0,0,0,null,null,null,"",null,null,null,null,null,null,0,0]
[0,0,0,null,null,null,"",null,null,null,null,null,null,0,0]
[0,0,0,null,null,null,"",null,null,null,null,null,null,0,0]
[0,0,0,null,null,null,"",null,null,null,null,null,null,0,0]
[0,0,0,null,null,null,"",null,null,null,null,null,null,0,0]
[0,0,0,null,null,null,"",null,null,null,null,null,null,0,0]
[0,0,0,null,null,null,"",null,null,null,null,null,null,0,0]
[0,0,0,null,null,null,"",null,null,null,null,null,null,0,0]
[0,0,0,null,null,null,"",null,null,null,null,null,null,0,0]
[0,0,0,null,null,null,"",null,null,null,null,null,null,0,0]
[0,0,0,null,null,null,"",null,null,null,null,null,null,0,0]
[0,0,0,null,null,null,"",null,null,null,null,null,null,0,0]
[0,0,0,null,null,null,"",null,null,null,null,null,null,0,0]
[0,0,0,null,null,null,"",null,null,null,null,null,null,0,0]
[0,0,0,null,null,null,"",null,null,null,null,null,null,0,0]
[0,0,0,null,null,null,"",null,null,null,null,null,null,0,0]
[0,0,0,null,null,null,"",null,null,null,null,null,null,0,0]
[0,0,0,null,null,null,"",null,null,null,null,null,null,0,0]
[0,0,0,null,null,null,"",null,null,null,null,null,null,0,0]
[0,0,0,null,null,null,"",null,null,null,null,null,null,0,0]
[0,0,0,null,null,null,"",null,null,null,null,null,null,0,0]
[0,0,0,null,null,null,"",null,null,null,null,null,null,0,0]
[0,0,0,null,null,null,"",null,null,null,null,null,null,0,0]
[0,0,0,null,null,null,"",null,null,null,null,null,null,0,0]
[0,0,0,null,null,null,"",null,null,null,null,null,null,0,0]
[0,0,0,null,null,null,"",null,null,null,null,null,null,0,0]
[0,0,0,null,null,null,"",null,null,null,null,null,null,0,0]
[0,0,0,null,null,null,"",null,null,null,null,null,null,0,0]
[0,0,0,null,null,null,"",null,null,null,null,null,null,0,0]
[0,0,0,null,null,null,"",null,null,null,null,null,null,0,0]
[0,0,0,null,null,null,"",null,null,null,null,null,null,0,0]
[0,0,0,null,null,null,"",null,null,null,null,null,null,0,0]
[0,0,0,null,null,null,"",null,null,null,null,null,null,0,0]
[0,0,0,null,null,null,"",null,null,null,null,null,null,0,0]
[0,0,0,null,null,null,"",null,null,null,null,null,null,0,0]
[0,0,0,null,null,null,"",null,null,null,null,null,null,0,0]
[0,0,0,null,null,null,"",null,null,null,null,null,null,0,0]
[0,0,0,null,null,null,"",null,null,null,null,null,null,0,0]
[0,0,0,null,null,null,"",null,null,null,null,null,null,0,0]
[0,0,0,null,null,null,"",null,null,null,null,null,null,0,0]
[0,0,0,null,null,null,"",null,null,null,null,null,null,0,0]
[0,0,0,null,null,null,"",null,null,null,null,null,null,0,0]
[0,0,0,null,null,null,"",null,null,null,null,null,null,0,0]
[0,0,0,null,null,null,"",null,null,null,null,null,null,0,0]
[0,0,0,null,null,null,"",null,null,null,null,null,null,{"$f":"IF(M1858<>0,1,0)","v":0},{"$f":"IF(D1858<>0,1,0)","v":0}]
[{"$f":"IF(M1859=\"Y\",1,0)","v":0},{"$f":"IF(M1859=\"N\",1,0)","v":0},{"$f":"IF(M1859=\"A\",1,0)","v":0},null,null,null,"",null,null,null,null,null,null,0,0]
[0,0,0,null,null,null,"",null,null,null,null,null,null,0,0]
[0,0,0,null,null,null,"",null,null,null,null,null,null,0,0]
[0,0,0,null,null,null,"",null,null,null,null,null,null,0,0]
[0,0,0,null,null,null,"",null,null,null,null,null,null,0,0]
[0,0,0,null,null,null,"",null,null,null,null,null,null,0,0]
[0,0,0,null,null,null,"",null,null,null,null,null,null,0,0]
[0,0,0,null,null,null,"",null,null,null,null,null,null,0,0]
[0,0,0,null,null,null,"",null,null,null,null,null,null,0,0]
[0,0,0,null,null,null,"",null,null,null,null,null,null,0,0]
[0,0,0,null,null,null,"",null,null,null,null,null,null,0,0]
[0,0,0,null,null,null,"",null,null,null,null,null,null,0,0]
[0,0,0,null,null,null,"",null,null,null,null,null,null,0,0]
[0,0,0,null,null,null,{"$f":"IF(D1872<>\"\",G1871+1,\"\")","v":""},null,null,null,null,null,null,0,0]
[0,0,0,null,null,null,"",null,null,null,null,null,null,0,0]
[0,0,0,null,null,null,"",null,null,null,null,null,null,0,0]
[0,0,0,null,null,null,"",null,null,null,null,null,null,0,0]
[0,0,0,null,null,null,"",null,null,null,null,null,null,0,0]
[0,0,0,null,null,null,"",null,null,null,null,null,null,0,0]
[0,0,0,null,null,null,"",null,null,null,null,null,null,0,0]
[0,0,0,null,null,null,"",null,null,null,null,null,null,0,0]
[0,0,0,null,null,null,"",null,null,null,null,null,null,0,0]
[0,0,0,null,null,null,"",null,null,null,null,null,null,0,0]
[0,0,0,null,null,null,"",null,null,null,null,null,null,0,0]
[0,0,0,null,null,null,"",null,null,null,null,null,null,0,0]
[0,0,0,null,null,null,"",null,null,null,null,null,null,0,0]
[0,0,0,null,null,null,"",null,null,null,null,null,null,0,0]
[0,0,0,null,null,null,"",null,null,null,null,null,null,0,0]
[0,0,0,null,null,null,"",null,null,null,null,null,null,0,0]
[0,0,0,null,null,null,"",null,null,null,null,null,null,0,0]
[0,0,0,null,null,null,"",null,null,null,null,null,null,0,0]
[0,0,0,null,null,null,"",null,null,null,null,null,null,0,0]
[0,0,0,null,null,null,"",null,null,null,null,null,null,0,0]
[0,0,0,null,null,null,"",null,null,null,null,null,null,0,0]
[0,0,0,null,null,null,"",null,null,null,null,null,null,0,0]
[0,0,0,null,null,null,"",null,null,null,null,null,null,0,0]
[0,0,0,null,null,null,"",null,null,null,null,null,null,0,0]
[0,0,0,null,null,null,"",null,null,null,null,null,null,0,0]
[0,0,0,null,null,null,"",null,null,null,null,null,null,0,0]
[0,0,0,null,null,null,"",null,null,null,null,null,null,0,0]
[0,0,0,null,null,null,"",null,null,null,null,null,null,0,0]
[0,0,0,null,null,null,"",null,null,null,null,null,null,0,0]
[0,0,0,null,null,null,"",null,null,null,null,null,null,0,0]
[0,0,0,null,null,null,"",null,null,null,null,null,null,0,0]
[0,0,0,null,null,null,"",null,null,null,null,null,null,0,0]
[0,0,0,null,null,null,"",null,null,null,null,null,null,0,0]
[0,0,0,null,null,null,"",null,null,null,null,null,null,0,0]
[0,0,0,null,null,null,"",null,null,null,null,null,null,0,0]
[0,0,0,null,null,null,"",null,null,null,null,null,null,0,0]
[0,0,0,null,null,null,"",null,null,null,null,null,null,0,0]
[0,0,0,null,null,null,"",null,null,null,null,null,null,0,0]
[0,0,0,null,null,null,"",null,null,null,null,null,null,0,0]
[0,0,0,null,null,null,"",null,null,null,null,null,null,0,0]
[0,0,0,null,null,null,"",null,null,null,null,null,null,0,0]
[0,0,0,null,null,null,"",null,null,null,null,null,null,0,0]
[0,0,0,null,null,null,"",null,null,null,null,null,null,0,0]
[0,0,0,null,null,null,"",null,null,null,null,null,null,0,0]
[0,0,0,null,null,null,"",null,null,null,null,null,null,0,0]
[0,0,0,null,null,null,"",null,null,null,null,null,null,0,0]
[0,0,0,null,null,null,"",null,null,null,null,null,null,0,0]
[0,0,0,null,null,null,"",null,null,null,null,null,null,0,0]
[0,0,0,null,null,null,"",null,null,null,null,null,null,0,0]
[0,0,0,null,null,null,"",null,null,null,null,null,null,0,0]
[0,0,0,null,null,null,"",null,null,null,null,null,null,{"$f":"IF(M1922<>0,1,0)","v":0},{"$f":"IF(D1922<>0,1,0)","v":0}]
[{"$f":"IF(M1923=\"Y\",1,0)","v":0},{"$f":"IF(M1923=\"N\",1,0)","v":0},{"$f":"IF(M1923=\"A\",1,0)","v":0},null,null,null,"",null,null,null,null,null,null,0,0]
[0,0,0,null,null,null,"",null,null,null,null,null,null,0,0]
[0,0,0,null,null,null,"",null,null,null,null,null,null,0,0]
[0,0,0,null,null,null,"",null,null,null,null,null,null,0,0]
[0,0,0,null,null,null,"",null,null,null,null,null,null,0,0]
[0,0,0,null,null,null,"",null,null,null,null,null,null,0,0]
[0,0,0,null,null,null,"",null,null,null,null,null,null,0,0]
[0,0,0,null,null,null,"",null,null,null,null,null,null,0,0]
[0,0,0,null,null,null,"",null,null,null,null,null,null,0,0]
[0,0,0,null,null,null,"",null,null,null,null,null,null,0,0]
[0,0,0,null,null,null,"",null,null,null,null,null,null,0,0]
[0,0,0,null,null,null,"",null,null,null,null,null,null,0,0]
[0,0,0,null,null,null,"",null,null,null,null,null,null,0,0]
[0,0,0,null,null,null,{"$f":"IF(D1936<>\"\",G1935+1,\"\")","v":""},null,null,null,null,null,null,0,0]
[0,0,0,null,null,null,"",null,null,null,null,null,null,0,0]
[0,0,0,null,null,null,"",null,null,null,null,null,null,0,0]
[0,0,0,null,null,null,"",null,null,null,null,null,null,0,0]
[0,0,0,null,null,null,"",null,null,null,null,null,null,0,0]
[0,0,0,null,null,null,"",null,null,null,null,null,null,0,0]
[0,0,0,null,null,null,"",null,null,null,null,null,null,0,0]
[0,0,0,null,null,null,"",null,null,null,null,null,null,0,0]
[0,0,0,null,null,null,"",null,null,null,null,null,null,0,0]
[0,0,0,null,null,null,"",null,null,null,null,null,null,0,0]
[0,0,0,null,null,null,"",null,null,null,null,null,null,0,0]
[0,0,0,null,null,null,"",null,null,null,null,null,null,0,0]
[0,0,0,null,null,null,"",null,null,null,null,null,null,0,0]
[0,0,0,null,null,null,"",null,null,null,null,null,null,0,0]
[0,0,0,null,null,null,"",null,null,null,null,null,null,0,0]
[0,0,0,null,null,null,"",null,null,null,null,null,null,0,0]
[0,0,0,null,null,null,"",null,null,null,null,null,null,0,0]
[0,0,0,null,null,null,"",null,null,null,null,null,null,0,0]
[0,0,0,null,null,null,"",null,null,null,null,null,null,0,0]
[0,0,0,null,null,null,"",null,null,null,null,null,null,0,0]
[0,0,0,null,null,null,"",null,null,null,null,null,null,0,0]
[0,0,0,null,null,null,"",null,null,null,null,null,null,0,0]
[0,0,0,null,null,null,"",null,null,null,null,null,null,0,0]
[0,0,0,null,null,null,"",null,null,null,null,null,null,0,0]
[0,0,0,null,null,null,"",null,null,null,null,null,null,0,0]
[0,0,0,null,null,null,"",null,null,null,null,null,null,0,0]
[0,0,0,null,null,null,"",null,null,null,null,null,null,0,0]
[0,0,0,null,null,null,"",null,null,null,null,null,null,0,0]
[0,0,0,null,null,null,"",null,null,null,null,null,null,0,0]
[0,0,0,null,null,null,"",null,null,null,null,null,null,0,0]
[0,0,0,null,null,null,"",null,null,null,null,null,null,0,0]
[0,0,0,null,null,null,"",null,null,null,null,null,null,0,0]
[0,0,0,null,null,null,"",null,null,null,null,null,null,0,0]
[0,0,0,null,null,null,"",null,null,null,null,null,null,0,0]
[0,0,0,null,null,null,"",null,null,null,null,null,null,0,0]
[0,0,0,null,null,null,"",null,null,null,null,null,null,0,0]
[0,0,0,null,null,null,"",null,null,null,null,null,null,0,0]
[0,0,0,null,null,null,"",null,null,null,null,null,null,0,0]
[0,0,0,null,null,null,"",null,null,null,null,null,null,0,0]
[0,0,0,null,null,null,"",null,null,null,null,null,null,0,0]
[0,0,0,null,null,null,"",null,null,null,null,null,null,0,0]
[0,0,0,null,null,null,"",null,null,null,null,null,null,0,0]
[0,0,0,null,null,null,"",null,null,null,null,null,null,0,0]
[0,0,0,null,null,null,"",null,null,null,null,null,null,0,0]
[0,0,0,null,null,null,"",null,null,null,null,null,null,0,0]
[0,0,0,null,null,null,"",null,null,null,null,null,null,0,0]
[0,0,0,null,null,null,"",null,null,null,null,null,null,0,0]
[0,0,0,null,null,null,"",null,null,null,null,null,null,0,0]
[0,0,0,null,null,null,"",null,null,null,null,null,null,0,0]
[0,0,0,null,null,null,"",null,null,null,null,null,null,0,0]
[0,0,0,null,null,null,"",null,null,null,null,null,null,{"$f":"IF(M1986<>0,1,0)","v":0},{"$f":"IF(D1986<>0,1,0)","v":0}]
[{"$f":"IF(M1987=\"Y\",1,0)","v":0},{"$f":"IF(M1987=\"N\",1,0)","v":0},{"$f":"IF(M1987=\"A\",1,0)","v":0},null,null,null,"",null,null,null,null,null,null,0,0]
[0,0,0,null,null,null,"",null,null,null,null,null,null,0,0]
[0,0,0,null,null,null,"",null,null,null,null,null,null,0,0]
[0,0,0,null,null,null,"",null,null,null,null,null,null,0,0]
[0,0,0,null,null,null,"",null,null,null,null,null,null,0,0]
[0,0,0,null,null,null,"",null,null,null,null,null,null,0,0]
[0,0,0,null,null,null,"",null,null,null,null,null,null,0,0]
[0,0,0,null,null,null,"",null,null,null,null,null,null,0,0]
[0,0,0,null,null,null,"",null,null,null,null,null,null,0,0]
[0,0,0,null,null,null,"",null,null,null,null,null,null,0,0]
[0,0,0,null,null,null,"",null,null,null,null,null,null,0,0]
[0,0,0,null,null,null,"",null,null,null,null,null,null,0,0]
[0,0,0,null,null,null,"",null,null,null,null,null,null,0,0]
[0,0,0,null,null,null,{"$f":"IF(D2000<>\"\",G1999+1,\"\")","v":""},null,null,null,null,null,null,0,0]
[0,0,0,null,null,null,"",null,null,null,null,null,null,0,0]
[0,0,0,null,null,null,"",null,null,null,null,null,null,0,0]
[0,0,0,null,null,null,"",null,null,null,null,null,null,0,0]
[0,0,0,null,null,null,"",null,null,null,null,null,null,0,0]
[0,0,0,null,null,null,"",null,null,null,null,null,null,0,0]
[0,0,0,null,null,null,"",null,null,null,null,null,null,0,0]
[0,0,0,null,null,null,"",null,null,null,null,null,null,0,0]
[0,0,0,null,null,null,"",null,null,null,null,null,null,0,0]
[0,0,0,null,null,null,"",null,null,null,null,null,null,0,0]
[0,0,0,null,null,null,"",null,null,null,null,null,null,0,0]
[0,0,0,null,null,null,"",null,null,null,null,null,null,0,0]
[0,0,0,null,null,null,"",null,null,null,null,null,null,0,0]
[0,0,0,null,null,null,"",null,null,null,null,null,null,0,0]
[0,0,0,null,null,null,"",null,null,null,null,null,null,0,0]
[0,0,0,null,null,null,"",null,null,null,null,null,null,0,0]
[0,0,0,null,null,null,"",null,null,null,null,null,null,0,0]
[0,0,0,null,null,null,"",null,null,null,null,null,null,0,0]
[0,0,0,null,null,null,"",null,null,null,null,null,null,0,0]
[0,0,0,null,null,null,"",null,null,null,null,null,null,0,0]
[0,0,0,null,null,null,"",null,null,null,null,null,null,0,0]
[0,0,0,null,null,null,"",null,null,null,null,null,null,0,0]
[0,0,0,null,null,null,"",null,null,null,null,null,null,0,0]
[0,0,0,null,null,null,"",null,null,null,null,null,null,0,0]
[0,0,0,null,null,null,"",null,null,null,null,null,null,0,0]
[0,0,0,null,null,null,"",null,null,null,null,null,null,0,0]
[0,0,0,null,null,null,"",null,null,null,null,null,null,0,0]
[0,0,0,null,null,null,"",null,null,null,null,null,null,0,0]
[0,0,0,null,null,null,"",null,null,null,null,null,null,0,0]
[0,0,0,null,null,null,"",null,null,null,null,null,null,0,0]
[0,0,0,null,null,null,"",null,null,null,null,null,null,0,0]
[0,0,0,null,null,null,"",null,null,null,null,null,null,0,0]
[0,0,0,null,null,null,"",null,null,null,null,null,null,0,0]
[0,0,0,null,null,null,"",null,null,null,null,null,null,0,0]
[0,0,0,null,null,null,"",null,null,null,null,null,null,0,0]
[0,0,0,null,null,null,"",null,null,null,null,null,null,0,0]
[0,0,0,null,null,null,"",null,null,null,null,null,null,0,0]
[0,0,0,null,null,null,"",null,null,null,null,null,null,0,0]
[0,0,0,null,null,null,"",null,null,null,null,null,null,0,0]
[0,0,0,null,null,null,"",null,null,null,null,null,null,0,0]
[0,0,0,null,null,null,"",null,null,null,null,null,null,0,0]
[0,0,0,null,null,null,"",null,null,null,null,null,null,0,0]
[0,0,0,null,null,null,"",null,null,null,null,null,null,0,0]
[0,0,0,null,null,null,"",null,null,null,null,null,null,0,0]
[0,0,0,null,null,null,"",null,null,null,null,null,null,0,0]
[0,0,0,null,null,null,"",null,null,null,null,null,null,0,0]
[0,0,0,null,null,null,"",null,null,null,null,null,null,0,0]
[0,0,0,null,null,null,"",null,null,null,null,null,null,0,0]
[0,0,0,null,null,null,"",null,null,null,null,null,null,0,0]
[0,0,0,null,null,null,"",null,null,null,null,null,null,0,0]
[0,0,0,null,null,null,"",null,null,null,null,null,null,{"$f":"IF(M2050<>0,1,0)","v":0},{"$f":"IF(D2050<>0,1,0)","v":0}]
[{"$f":"IF(M2051=\"Y\",1,0)","v":0},{"$f":"IF(M2051=\"N\",1,0)","v":0},{"$f":"IF(M2051=\"A\",1,0)","v":0},null,null,null,"",null,null,null,null,null,null,0,0]
[0,0,0,null,null,null,"",null,null,null,null,null,null,0,0]
[0,0,0,null,null,null,"",null,null,null,null,null,null,0,0]
[0,0,0,null,null,null,"",null,null,null,null,null,null,0,0]
[0,0,0,null,null,null,"",null,null,null,null,null,null,0,0]
[0,0,0,null,null,null,"",null,null,null,null,null,null,0,0]
[0,0,0,null,null,null,"",null,null,null,null,null,null,0,0]
[0,0,0,null,null,null,"",null,null,null,null,null,null,0,0]
[0,0,0,null,null,null,"",null,null,null,null,null,null,0,0]
[0,0,0,null,null,null,"",null,null,null,null,null,null,0,0]
[0,0,0,null,null,null,"",null,null,null,null,null,null,0,0]
[0,0,0,null,null,null,"",null,null,null,null,null,null,0,0]
[0,0,0,null,null,null,"",null,null,null,null,null,null,0,0]
[0,0,0,null,null,null,{"$f":"IF(D2064<>\"\",G2063+1,\"\")","v":""},null,null,null,null,null,null,0,0]
[0,0,0,null,null,null,"",null,null,null,null,null,null,0,0]
[0,0,0,null,null,null,"",null,null,null,null,null,null,0,0]
[0,0,0,null,null,null,"",null,null,null,null,null,null,0,0]
[0,0,0,null,null,null,"",null,null,null,null,null,null,0,0]
[0,0,0,null,null,null,"",null,null,null,null,null,null,0,0]
[0,0,0,null,null,null,"",null,null,null,null,null,null,0,0]
[0,0,0,null,null,null,"",null,null,null,null,null,null,0,0]
[0,0,0,null,null,null,"",null,null,null,null,null,null,0,0]
[0,0,0,null,null,null,"",null,null,null,null,null,null,0,0]
[0,0,0,null,null,null,"",null,null,null,null,null,null,0,0]
[0,0,0,null,null,null,"",null,null,null,null,null,null,0,0]
[0,0,0,null,null,null,"",null,null,null,null,null,null,0,0]
[0,0,0,null,null,null,"",null,null,null,null,null,null,0,0]
[0,0,0,null,null,null,"",null,null,null,null,null,null,0,0]
[0,0,0,null,null,null,"",null,null,null,null,null,null,0,0]
[0,0,0,null,null,null,"",null,null,null,null,null,null,0,0]
[0,0,0,null,null,null,"",null,null,null,null,null,null,0,0]
[0,0,0,null,null,null,"",null,null,null,null,null,null,0,0]
[0,0,0,null,null,null,"",null,null,null,null,null,null,0,0]
[0,0,0,null,null,null,"",null,null,null,null,null,null,0,0]
[0,0,0,null,null,null,"",null,null,null,null,null,null,0,0]
[0,0,0,null,null,null,"",null,null,null,null,null,null,0,0]
[0,0,0,null,null,null,"",null,null,null,null,null,null,0,0]
[0,0,0,null,null,null,"",null,null,null,null,null,null,0,0]
[0,0,0,null,null,null,"",null,null,null,null,null,null,0,0]
[0,0,0,null,null,null,"",null,null,null,null,null,null,0,0]
[0,0,0,null,null,null,"",null,null,null,null,null,null,0,0]
[0,0,0,null,null,null,"",null,null,null,null,null,null,0,0]
[0,0,0,null,null,null,"",null,null,null,null,null,null,0,0]
[0,0,0,null,null,null,"",null,null,null,null,null,null,0,0]
[0,0,0,null,null,null,"",null,null,null,null,null,null,0,0]
[0,0,0,null,null,null,"",null,null,null,null,null,null,0,0]
[0,0,0,null,null,null,"",null,null,null,null,null,null,0,0]
[0,0,0,null,null,null,"",null,null,null,null,null,null,0,0]
[0,0,0,null,null,null,"",null,null,null,null,null,null,0,0]
[0,0,0,null,null,null,"",null,null,null,null,null,null,0,0]
[0,0,0,null,null,null,"",null,null,null,null,null,null,0,0]
[0,0,0,null,null,null,"",null,null,null,null,null,null,0,0]
[0,0,0,null,null,null,"",null,null,null,null,null,null,0,0]
[0,0,0,null,null,null,"",null,null,null,null,null,null,0,0]
[0,0,0,null,null,null,"",null,null,null,null,null,null,0,0]
[0,0,0,null,null,null,"",null,null,null,null,null,null,0,0]
[0,0,0,null,null,null,"",null,null,null,null,null,null,0,0]
[0,0,0,null,null,null,"",null,null,null,null,null,null,0,0]
[0,0,0,null,null,null,"",null,null,null,null,null,null,0,0]
[0,0,0,null,null,null,"",null,null,null,null,null,null,0,0]
[0,0,0,null,null,null,"",null,null,null,null,null,null,0,0]
[0,0,0,null,null,null,"",null,null,null,null,null,null,0,0]
[0,0,0,null,null,null,"",null,null,null,null,null,null,0,0]
[0,0,0,null,null,null,"",null,null,null,null,null,null,{"$f":"IF(M2114<>0,1,0)","v":0},{"$f":"IF(D2114<>0,1,0)","v":0}]
[{"$f":"IF(M2115=\"Y\",1,0)","v":0},{"$f":"IF(M2115=\"N\",1,0)","v":0},{"$f":"IF(M2115=\"A\",1,0)","v":0},null,null,null,"",null,null,null,null,null,null,0,0]
[0,0,0,null,null,null,"",null,null,null,null,null,null,0,0]
[0,0,0,null,null,null,"",null,null,null,null,null,null,0,0]
[0,0,0,null,null,null,"",null,null,null,null,null,null,0,0]
[0,0,0,null,null,null,"",null,null,null,null,null,null,0,0]
[0,0,0,null,null,null,"",null,null,null,null,null,null,0,0]
[0,0,0,null,null,null,"",null,null,null,null,null,null,0,0]
[0,0,0,null,null,null,"",null,null,null,null,null,null,0,0]
[0,0,0,null,null,null,"",null,null,null,null,null,null,0,0]
[0,0,0,null,null,null,"",null,null,null,null,null,null,0,0]
[0,0,0,null,null,null,"",null,null,null,null,null,null,0,0]
[0,0,0,null,null,null,"",null,null,null,null,null,null,0,0]
[0,0,0,null,null,null,"",null,null,null,null,null,null,0,0]
[0,0,0,null,null,null,{"$f":"IF(D2128<>\"\",G2127+1,\"\")","v":""},null,null,null,null,null,null,0,0]
[0,0,0,null,null,null,"",null,null,null,null,null,null,0,0]
[0,0,0,null,null,null,"",null,null,null,null,null,null,0,0]
[0,0,0,null,null,null,"",null,null,null,null,null,null,0,0]
[0,0,0,null,null,null,"",null,null,null,null,null,null,0,0]
[0,0,0,null,null,null,"",null,null,null,null,null,null,0,0]
[0,0,0,null,null,null,"",null,null,null,null,null,null,0,0]
[0,0,0,null,null,null,"",null,null,null,null,null,null,0,0]
[0,0,0,null,null,null,"",null,null,null,null,null,null,0,0]
[0,0,0,null,null,null,"",null,null,null,null,null,null,0,0]
[0,0,0,null,null,null,"",null,null,null,null,null,null,0,0]
[0,0,0,null,null,null,"",null,null,null,null,null,null,0,0]
[0,0,0,null,null,null,"",null,null,null,null,null,null,0,0]
[0,0,0,null,null,null,"",null,null,null,null,null,null,0,0]
[0,0,0,null,null,null,"",null,null,null,null,null,null,0,0]
[0,0,0,null,null,null,"",null,null,null,null,null,null,0,0]
[0,0,0,null,null,null,"",null,null,null,null,null,null,0,0]
[0,0,0,null,null,null,"",null,null,null,null,null,null,0,0]
[0,0,0,null,null,null,"",null,null,null,null,null,null,0,0]
[0,0,0,null,null,null,"",null,null,null,null,null,null,0,0]
[0,0,0,null,null,null,"",null,null,null,null,null,null,0,0]
[0,0,0,null,null,null,"",null,null,null,null,null,null,0,0]
[0,0,0,null,null,null,"",null,null,null,null,null,null,0,0]
[0,0,0,null,null,null,"",null,null,null,null,null,null,0,0]
[0,0,0,null,null,null,"",null,null,null,null,null,null,0,0]
[0,0,0,null,null,null,"",null,null,null,null,null,null,0,0]
[0,0,0,null,null,null,"",null,null,null,null,null,null,0,0]
[0,0,0,null,null,null,"",null,null,null,null,null,null,0,0]
[0,0,0,null,null,null,"",null,null,null,null,null,null,0,0]
[0,0,0,null,null,null,"",null,null,null,null,null,null,0,0]
[0,0,0,null,null,null,"",null,null,null,null,null,null,0,0]
[0,0,0,null,null,null,"",null,null,null,null,null,null,0,0]
[0,0,0,null,null,null,"",null,null,null,null,null,null,0,0]
[0,0,0,null,null,null,"",null,null,null,null,null,null,0,0]
[0,0,0,null,null,null,"",null,null,null,null,null,null,0,0]
[0,0,0,null,null,null,"",null,null,null,null,null,null,0,0]
[0,0,0,null,null,null,"",null,null,null,null,null,null,0,0]
[0,0,0,null,null,null,"",null,null,null,null,null,null,0,0]
[0,0,0,null,null,null,"",null,null,null,null,null,null,0,0]
[0,0,0,null,null,null,"",null,null,null,null,null,null,0,0]
[0,0,0,null,null,null,"",null,null,null,null,null,null,0,0]
[0,0,0,null,null,null,"",null,null,null,null,null,null,0,0]
[0,0,0,null,null,null,"",null,null,null,null,null,null,0,0]
[0,0,0,null,null,null,"",null,null,null,null,null,null,0,0]
[0,0,0,null,null,null,"",null,null,null,null,null,null,0,0]
[0,0,0,null,null,null,"",null,null,null,null,null,null,0,0]
[0,0,0,null,null,null,"",null,null,null,null,null,null,0,0]
[0,0,0,null,null,null,"",null,null,null,null,null,null,0,0]
[0,0,0,null,null,null,"",null,null,null,null,null,null,0,0]
[0,0,0,null,null,null,"",null,null,null,null,null,null,0,0]
[0,0,0,null,null,null,"",null,null,null,null,null,null,{"$f":"IF(M2178<>0,1,0)","v":0},{"$f":"IF(D2178<>0,1,0)","v":0}]
[{"$f":"IF(M2179=\"Y\",1,0)","v":0},{"$f":"IF(M2179=\"N\",1,0)","v":0},{"$f":"IF(M2179=\"A\",1,0)","v":0},null,null,null,"",null,null,null,null,null,null,0,0]
[0,0,0,null,null,null,"",null,null,null,null,null,null,0,0]
[0,0,0,null,null,null,"",null,null,null,null,null,null,0,0]
[0,0,0,null,null,null,"",null,null,null,null,null,null,0,0]
[0,0,0,null,null,null,"",null,null,null,null,null,null,0,0]
[0,0,0,null,null,null,"",null,null,null,null,null,null,0,0]
[0,0,0,null,null,null,"",null,null,null,null,null,null,0,0]
[0,0,0,null,null,null,"",null,null,null,null,null,null,0,0]
[0,0,0,null,null,null,"",null,null,null,null,null,null,0,0]
[0,0,0,null,null,null,"",null,null,null,null,null,null,0,0]
[0,0,0,null,null,null,"",null,null,null,null,null,null,0,0]
[0,0,0,null,null,null,"",null,null,null,null,null,null,0,0]
[0,0,0,null,null,null,"",null,null,null,null,null,null,0,0]
[0,0,0,null,null,null,{"$f":"IF(D2192<>\"\",G2191+1,\"\")","v":""},null,null,null,null,null,null,0,0]
[0,0,0,null,null,null,"",null,null,null,null,null,null,0,0]
[0,0,0,null,null,null,"",null,null,null,null,null,null,0,0]
[0,0,0,null,null,null,"",null,null,null,null,null,null,0,0]
[0,0,0,null,null,null,"",null,null,null,null,null,null,0,0]
[0,0,0,null,null,null,"",null,null,null,null,null,null,0,0]
[0,0,0,null,null,null,"",null,null,null,null,null,null,0,0]
[0,0,0,null,null,null,"",null,null,null,null,null,null,0,0]
[0,0,0,null,null,null,"",null,null,null,null,null,null,0,0]
[0,0,0,null,null,null,"",null,null,null,null,null,null,0,0]
[0,0,0,null,null,null,"",null,null,null,null,null,null,0,0]
[0,0,0,null,null,null,"",null,null,null,null,null,null,0,0]
[0,0,0,null,null,null,"",null,null,null,null,null,null,0,0]
[0,0,0,null,null,null,"",null,null,null,null,null,null,0,0]
[0,0,0,null,null,null,"",null,null,null,null,null,null,0,0]
[0,0,0,null,null,null,"",null,null,null,null,null,null,0,0]
[0,0,0,null,null,null,"",null,null,null,null,null,null,0,0]
[0,0,0,null,null,null,"",null,null,null,null,null,null,0,0]
[0,0,0,null,null,null,"",null,null,null,null,null,null,0,0]
[0,0,0,null,null,null,"",null,null,null,null,null,null,0,0]
[0,0,0,null,null,null,"",null,null,null,null,null,null,0,0]
[0,0,0,null,null,null,"",null,null,null,null,null,null,0,0]
[0,0,0,null,null,null,"",null,null,null,null,null,null,0,0]
[0,0,0,null,null,null,"",null,null,null,null,null,null,0,0]
[0,0,0,null,null,null,"",null,null,null,null,null,null,0,0]
[0,0,0,null,null,null,"",null,null,null,null,null,null,0,0]
[0,0,0,null,null,null,"",null,null,null,null,null,null,0,0]
[0,0,0,null,null,null,"",null,null,null,null,null,null,0,0]
[0,0,0,null,null,null,"",null,null,null,null,null,null,0,0]
[0,0,0,null,null,null,"",null,null,null,null,null,null,0,0]
[0,0,0,null,null,null,"",null,null,null,null,null,null,0,0]
[0,0,0,null,null,null,"",null,null,null,null,null,null,0,0]
[0,0,0,null,null,null,"",null,null,null,null,null,null,0,0]
[0,0,0,null,null,null,"",null,null,null,null,null,null,0,0]
[0,0,0,null,null,null,"",null,null,null,null,null,null,0,0]
[0,0,0,null,null,null,"",null,null,null,null,null,null,0,0]
[0,0,0,null,null,null,"",null,null,null,null,null,null,0,0]
[0,0,0,null,null,null,"",null,null,null,null,null,null,0,0]
[0,0,0,null,null,null,"",null,null,null,null,null,null,0,0]
[0,0,0,null,null,null,"",null,null,null,null,null,null,0,0]
[0,0,0,null,null,null,"",null,null,null,null,null,null,0,0]
[0,0,0,null,null,null,"",null,null,null,null,null,null,0,0]
[0,0,0,null,null,null,"",null,null,null,null,null,null,0,0]
[0,0,0,null,null,null,"",null,null,null,null,null,null,0,0]
[0,0,0,null,null,null,"",null,null,null,null,null,null,0,0]
[0,0,0,null,null,null,"",null,null,null,null,null,null,0,0]
[0,0,0,null,null,null,"",null,null,null,null,null,null,0,0]
[0,0,0,null,null,null,"",null,null,null,null,null,null,0,0]
[0,0,0,null,null,null,"",null,null,null,null,null,null,0,0]
[0,0,0,null,null,null,"",null,null,null,null,null,null,0,0]
[0,0,0,null,null,null,"",null,null,null,null,null,null,{"$f":"IF(M2242<>0,1,0)","v":0},{"$f":"IF(D2242<>0,1,0)","v":0}]
[{"$f":"IF(M2243=\"Y\",1,0)","v":0},{"$f":"IF(M2243=\"N\",1,0)","v":0},{"$f":"IF(M2243=\"A\",1,0)","v":0},null,null,null,"",null,null,null,null,null,null,0,0]
[0,0,0,null,null,null,"",null,null,null,null,null,null,0,0]
[0,0,0,null,null,null,"",null,null,null,null,null,null,0,0]
[0,0,0,null,null,null,"",null,null,null,null,null,null,0,0]
[0,0,0,null,null,null,"",null,null,null,null,null,null,0,0]
[0,0,0,null,null,null,"",null,null,null,null,null,null,0,0]
[0,0,0,null,null,null,"",null,null,null,null,null,null,0,0]
[0,0,0,null,null,null,"",null,null,null,null,null,null,0,0]
[0,0,0,null,null,null,"",null,null,null,null,null,null,0,0]
[0,0,0,null,null,null,"",null,null,null,null,null,null,0,0]
[0,0,0,null,null,null,"",null,null,null,null,null,null,0,0]
[0,0,0,null,null,null,"",null,null,null,null,null,null,0,0]
[0,0,0,null,null,null,"",null,null,null,null,null,null,0,0]
[0,0,0,null,null,null,{"$f":"IF(D2256<>\"\",G2255+1,\"\")","v":""},null,null,null,null,null,null,0,0]
[0,0,0,null,null,null,"",null,null,null,null,null,null,0,0]
[0,0,0,null,null,null,"",null,null,null,null,null,null,0,0]
[0,0,0,null,null,null,"",null,null,null,null,null,null,0,0]
[0,0,0,null,null,null,"",null,null,null,null,null,null,0,0]
[0,0,0,null,null,null,"",null,null,null,null,null,null,0,0]
[0,0,0,null,null,null,"",null,null,null,null,null,null,0,0]
[0,0,0,null,null,null,"",null,null,null,null,null,null,0,0]
[0,0,0,null,null,null,"",null,null,null,null,null,null,0,0]
[0,0,0,null,null,null,"",null,null,null,null,null,null,0,0]
[0,0,0,null,null,null,"",null,null,null,null,null,null,0,0]
[0,0,0,null,null,null,"",null,null,null,null,null,null,0,0]
[0,0,0,null,null,null,"",null,null,null,null,null,null,0,0]
[0,0,0,null,null,null,"",null,null,null,null,null,null,0,0]
[0,0,0,null,null,null,"",null,null,null,null,null,null,0,0]
[0,0,0,null,null,null,"",null,null,null,null,null,null,0,0]
[0,0,0,null,null,null,"",null,null,null,null,null,null,0,0]
[0,0,0,null,null,null,"",null,null,null,null,null,null,0,0]
[0,0,0,null,null,null,"",null,null,null,null,null,null,0,0]
[0,0,0,null,null,null,"",null,null,null,null,null,null,0,0]
[0,0,0,null,null,null,"",null,null,null,null,null,null,0,0]
[0,0,0,null,null,null,"",null,null,null,null,null,null,0,0]
[0,0,0,null,null,null,"",null,null,null,null,null,null,0,0]
[0,0,0,null,null,null,"",null,null,null,null,null,null,0,0]
[0,0,0,null,null,null,"",null,null,null,null,null,null,0,0]
[0,0,0,null,null,null,"",null,null,null,null,null,null,0,0]
[0,0,0,null,null,null,"",null,null,null,null,null,null,0,0]
[0,0,0,null,null,null,"",null,null,null,null,null,null,0,0]
[0,0,0,null,null,null,"",null,null,null,null,null,null,0,0]
[0,0,0,null,null,null,"",null,null,null,null,null,null,0,0]
[0,0,0,null,null,null,"",null,null,null,null,null,null,0,0]
[0,0,0,null,null,null,"",null,null,null,null,null,null,0,0]
[0,0,0,null,null,null,"",null,null,null,null,null,null,0,0]
[0,0,0,null,null,null,"",null,null,null,null,null,null,0,0]
[0,0,0,null,null,null,"",null,null,null,null,null,null,0,0]
[0,0,0,null,null,null,"",null,null,null,null,null,null,0,0]
[0,0,0,null,null,null,"",null,null,null,null,null,null,0,0]
[0,0,0,null,null,null,"",null,null,null,null,null,null,0,0]
[0,0,0,null,null,null,"",null,null,null,null,null,null,0,0]
[0,0,0,null,null,null,"",null,null,null,null,null,null,0,0]
[0,0,0,null,null,null,"",null,null,null,null,null,null,0,0]
[0,0,0,null,null,null,"",null,null,null,null,null,null,0,0]
[0,0,0,null,null,null,"",null,null,null,null,null,null,0,0]
[0,0,0,null,null,null,"",null,null,null,null,null,null,0,0]
[0,0,0,null,null,null,"",null,null,null,null,null,null,0,0]
[0,0,0,null,null,null,"",null,null,null,null,null,null,0,0]
[0,0,0,null,null,null,"",null,null,null,null,null,null,0,0]
[0,0,0,null,null,null,"",null,null,null,null,null,null,0,0]
[0,0,0,null,null,null,"",null,null,null,null,null,null,0,0]
[0,0,0,null,null,null,"",null,null,null,null,null,null,0,0]
[0,0,0,null,null,null,"",null,null,null,null,null,null,{"$f":"IF(M2306<>0,1,0)","v":0},{"$f":"IF(D2306<>0,1,0)","v":0}]
[{"$f":"IF(M2307=\"Y\",1,0)","v":0},{"$f":"IF(M2307=\"N\",1,0)","v":0},{"$f":"IF(M2307=\"A\",1,0)","v":0},null,null,null,"",null,null,null,null,null,null,0,0]
[0,0,0,null,null,null,"",null,null,null,null,null,null,0,0]
[0,0,0,null,null,null,"",null,null,null,null,null,null,0,0]
[0,0,0,null,null,null,"",null,null,null,null,null,null,0,0]
[0,0,0,null,null,null,"",null,null,null,null,null,null,0,0]
[0,0,0,null,null,null,"",null,null,null,null,null,null,0,0]
[0,0,0,null,null,null,"",null,null,null,null,null,null,0,0]
[0,0,0,null,null,null,"",null,null,null,null,null,null,0,0]
[0,0,0,null,null,null,"",null,null,null,null,null,null,0,0]
[0,0,0,null,null,null,"",null,null,null,null,null,null,0,0]
[0,0,0,null,null,null,"",null,null,null,null,null,null,0,0]
[0,0,0,null,null,null,"",null,null,null,null,null,null,0,0]
[0,0,0,null,null,null,"",null,null,null,null,null,null,0,0]
[0,0,0,null,null,null,{"$f":"IF(D2320<>\"\",G2319+1,\"\")","v":""},null,null,null,null,null,null,0,0]
[0,0,0,null,null,null,"",null,null,null,null,null,null,0,0]
[0,0,0,null,null,null,"",null,null,null,null,null,null,0,0]
[0,0,0,null,null,null,"",null,null,null,null,null,null,0,0]
[0,0,0,null,null,null,"",null,null,null,null,null,null,0,0]
[0,0,0,null,null,null,"",null,null,null,null,null,null,0,0]
[0,0,0,null,null,null,"",null,null,null,null,null,null,0,0]
[0,0,0,null,null,null,"",null,null,null,null,null,null,0,0]
[0,0,0,null,null,null,"",null,null,null,null,null,null,0,0]
[0,0,0,null,null,null,"",null,null,null,null,null,null,0,0]
[0,0,0,null,null,null,"",null,null,null,null,null,null,0,0]
[0,0,0,null,null,null,"",null,null,null,null,null,null,0,0]
[0,0,0,null,null,null,"",null,null,null,null,null,null,0,0]
[0,0,0,null,null,null,"",null,null,null,null,null,null,0,0]
[0,0,0,null,null,null,"",null,null,null,null,null,null,0,0]
[0,0,0,null,null,null,"",null,null,null,null,null,null,0,0]
[0,0,0,null,null,null,"",null,null,null,null,null,null,0,0]
[0,0,0,null,null,null,"",null,null,null,null,null,null,0,0]
[0,0,0,null,null,null,"",null,null,null,null,null,null,0,0]
[0,0,0,null,null,null,"",null,null,null,null,null,null,0,0]
[0,0,0,null,null,null,"",null,null,null,null,null,null,0,0]
[0,0,0,null,null,null,"",null,null,null,null,null,null,0,0]
[0,0,0,null,null,null,"",null,null,null,null,null,null,0,0]
[0,0,0,null,null,null,"",null,null,null,null,null,null,0,0]
[0,0,0,null,null,null,"",null,null,null,null,null,null,0,0]
[0,0,0,null,null,null,"",null,null,null,null,null,null,0,0]
[0,0,0,null,null,null,"",null,null,null,null,null,null,0,0]
[0,0,0,null,null,null,"",null,null,null,null,null,null,0,0]
[0,0,0,null,null,null,"",null,null,null,null,null,null,0,0]
[0,0,0,null,null,null,"",null,null,null,null,null,null,0,0]
[0,0,0,null,null,null,"",null,null,null,null,null,null,0,0]
[0,0,0,null,null,null,"",null,null,null,null,null,null,0,0]
[0,0,0,null,null,null,"",null,null,null,null,null,null,0,0]
[0,0,0,null,null,null,"",null,null,null,null,null,null,0,0]
[0,0,0,null,null,null,"",null,null,null,null,null,null,0,0]
[0,0,0,null,null,null,"",null,null,null,null,null,null,0,0]
[0,0,0,null,null,null,"",null,null,null,null,null,null,0,0]
[0,0,0,null,null,null,"",null,null,null,null,null,null,0,0]
[0,0,0,null,null,null,"",null,null,null,null,null,null,0,0]
[0,0,0,null,null,null,"",null,null,null,null,null,null,0,0]
[0,0,0,null,null,null,"",null,null,null,null,null,null,0,0]
[0,0,0,null,null,null,"",null,null,null,null,null,null,0,0]
[0,0,0,null,null,null,"",null,null,null,null,null,null,0,0]
[0,0,0,null,null,null,"",null,null,null,null,null,null,0,0]
[0,0,0,null,null,null,"",null,null,null,null,null,null,0,0]
[0,0,0,null,null,null,"",null,null,null,null,null,null,0,0]
[0,0,0,null,null,null,"",null,null,null,null,null,null,0,0]
[0,0,0,null,null,null,"",null,null,null,null,null,null,0,0]
[0,0,0,null,null,null,"",null,null,null,null,null,null,0,0]
[0,0,0,null,null,null,"",null,null,null,null,null,null,0,0]
[0,0,0,null,null,null,"",null,null,null,null,null,null,{"$f":"IF(M2370<>0,1,0)","v":0},{"$f":"IF(D2370<>0,1,0)","v":0}]
[{"$f":"IF(M2371=\"Y\",1,0)","v":0},{"$f":"IF(M2371=\"N\",1,0)","v":0},{"$f":"IF(M2371=\"A\",1,0)","v":0},null,null,null,"",null,null,null,null,null,null,0,0]
[0,0,0,null,null,null,"",null,null,null,null,null,null,0,0]
[0,0,0,null,null,null,"",null,null,null,null,null,null,0,0]
[0,0,0,null,null,null,"",null,null,null,null,null,null,0,0]
[0,0,0,null,null,null,"",null,null,null,null,null,null,0,0]
[0,0,0,null,null,null,"",null,null,null,null,null,null,0,0]
[0,0,0,null,null,null,"",null,null,null,null,null,null,0,0]
[0,0,0,null,null,null,"",null,null,null,null,null,null,0,0]
[0,0,0,null,null,null,"",null,null,null,null,null,null,0,0]
[0,0,0,null,null,null,"",null,null,null,null,null,null,0,0]
[0,0,0,null,null,null,"",null,null,null,null,null,null,0,0]
[0,0,0,null,null,null,"",null,null,null,null,null,null,0,0]
[0,0,0,null,null,null,"",null,null,null,null,null,null,0,0]
[0,0,0,null,null,null,{"$f":"IF(D2384<>\"\",G2383+1,\"\")","v":""},null,null,null,null,null,null,0,0]
[0,0,0,null,null,null,"",null,null,null,null,null,null,0,0]
[0,0,0,null,null,null,"",null,null,null,null,null,null,0,0]
[0,0,0,null,null,null,"",null,null,null,null,null,null,0,0]
[0,0,0,null,null,null,"",null,null,null,null,null,null,0,0]
[0,0,0,null,null,null,"",null,null,null,null,null,null,0,0]
[0,0,0,null,null,null,"",null,null,null,null,null,null,0,0]
[0,0,0,null,null,null,"",null,null,null,null,null,null,0,0]
[0,0,0,null,null,null,"",null,null,null,null,null,null,0,0]
[0,0,0,null,null,null,"",null,null,null,null,null,null,0,0]
[0,0,0,null,null,null,"",null,null,null,null,null,null,0,0]
[0,0,0,null,null,null,"",null,null,null,null,null,null,0,0]
[0,0,0,null,null,null,"",null,null,null,null,null,null,0,0]
[0,0,0,null,null,null,"",null,null,null,null,null,null,0,0]
[0,0,0,null,null,null,"",null,null,null,null,null,null,0,0]
[0,0,0,null,null,null,"",null,null,null,null,null,null,0,0]
[0,0,0,null,null,null,"",null,null,null,null,null,null,0,0]
[0,0,0,null,null,null,"",null,null,null,null,null,null,0,0]
[0,0,0,null,null,null,"",null,null,null,null,null,null,0,0]
[0,0,0,null,null,null,"",null,null,null,null,null,null,0,0]
[0,0,0,null,null,null,"",null,null,null,null,null,null,0,0]
[0,0,0,null,null,null,"",null,null,null,null,null,null,0,0]
[0,0,0,null,null,null,"",null,null,null,null,null,null,0,0]
[0,0,0,null,null,null,"",null,null,null,null,null,null,0,0]
[0,0,0,null,null,null,"",null,null,null,null,null,null,0,0]
[0,0,0,null,null,null,"",null,null,null,null,null,null,0,0]
[0,0,0,null,null,null,"",null,null,null,null,null,null,0,0]
[0,0,0,null,null,null,"",null,null,null,null,null,null,0,0]
[0,0,0,null,null,null,"",null,null,null,null,null,null,0,0]
[0,0,0,null,null,null,"",null,null,null,null,null,null,0,0]
[0,0,0,null,null,null,"",null,null,null,null,null,null,0,0]
[0,0,0,null,null,null,"",null,null,null,null,null,null,0,0]
[0,0,0,null,null,null,"",null,null,null,null,null,null,0,0]
[0,0,0,null,null,null,"",null,null,null,null,null,null,0,0]
[0,0,0,null,null,null,"",null,null,null,null,null,null,0,0]
[0,0,0,null,null,null,"",null,null,null,null,null,null,0,0]
[0,0,0,null,null,null,"",null,null,null,null,null,null,0,0]
[0,0,0,null,null,null,"",null,null,null,null,null,null,0,0]
[0,0,0,null,null,null,"",null,null,null,null,null,null,0,0]
[0,0,0,null,null,null,"",null,null,null,null,null,null,0,0]
[0,0,0,null,null,null,"",null,null,null,null,null,null,0,0]
[0,0,0,null,null,null,"",null,null,null,null,null,null,0,0]
[0,0,0,null,null,null,"",null,null,null,null,null,null,0,0]
[0,0,0,null,null,null,"",null,null,null,null,null,null,0,0]
[0,0,0,null,null,null,"",null,null,null,null,null,null,0,0]
[0,0,0,null,null,null,"",null,null,null,null,null,null,0,0]
[0,0,0,null,null,null,"",null,null,null,null,null,null,0,0]
[0,0,0,null,null,null,"",null,null,null,null,null,null,0,0]
[0,0,0,null,null,null,"",null,null,null,null,null,null,0,0]
[0,0,0,null,null,null,"",null,null,null,null,null,null,0,0]
[0,0,0,null,null,null,"",null,null,null,null,null,null,{"$f":"IF(M2434<>0,1,0)","v":0},{"$f":"IF(D2434<>0,1,0)","v":0}]
[{"$f":"IF(M2435=\"Y\",1,0)","v":0},{"$f":"IF(M2435=\"N\",1,0)","v":0},{"$f":"IF(M2435=\"A\",1,0)","v":0},null,null,null,"",null,null,null,null,null,null,0,0]
[0,0,0,null,null,null,"",null,null,null,null,null,null,0,0]
[0,0,0,null,null,null,"",null,null,null,null,null,null,0,0]
[0,0,0,null,null,null,"",null,null,null,null,null,null,0,0]
[0,0,0,null,null,null,"",null,null,null,null,null,null,0,0]
[0,0,0,null,null,null,"",null,null,null,null,null,null,0,0]
[0,0,0,null,null,null,"",null,null,null,null,null,null,0,0]
[0,0,0,null,null,null,"",null,null,null,null,null,null,0,0]
[0,0,0,null,null,null,"",null,null,null,null,null,null,0,0]
[0,0,0,null,null,null,"",null,null,null,null,null,null,0,0]
[0,0,0,null,null,null,"",null,null,null,null,null,null,0,0]
[0,0,0,null,null,null,"",null,null,null,null,null,null,0,0]
[0,0,0,null,null,null,"",null,null,null,null,null,null,0,0]
[0,0,0,null,null,null,{"$f":"IF(D2448<>\"\",G2447+1,\"\")","v":""},null,null,null,null,null,null,0,0]
[0,0,0,null,null,null,"",null,null,null,null,null,null,0,0]
[0,0,0,null,null,null,"",null,null,null,null,null,null,0,0]
[0,0,0,null,null,null,"",null,null,null,null,null,null,0,0]
[0,0,0,null,null,null,"",null,null,null,null,null,null,0,0]
[0,0,0,null,null,null,"",null,null,null,null,null,null,0,0]
[0,0,0,null,null,null,"",null,null,null,null,null,null,0,0]
[0,0,0,null,null,null,"",null,null,null,null,null,null,0,0]
[0,0,0,null,null,null,"",null,null,null,null,null,null,0,0]
[0,0,0,null,null,null,"",null,null,null,null,null,null,0,0]
[0,0,0,null,null,null,"",null,null,null,null,null,null,0,0]
[0,0,0,null,null,null,"",null,null,null,null,null,null,0,0]
[0,0,0,null,null,null,"",null,null,null,null,null,null,0,0]
[0,0,0,null,null,null,"",null,null,null,null,null,null,0,0]
[0,0,0,null,null,null,"",null,null,null,null,null,null,0,0]
[0,0,0,null,null,null,"",null,null,null,null,null,null,0,0]
[0,0,0,null,null,null,"",null,null,null,null,null,null,0,0]
[0,0,0,null,null,null,"",null,null,null,null,null,null,0,0]
[0,0,0,null,null,null,"",null,null,null,null,null,null,0,0]
[0,0,0,null,null,null,"",null,null,null,null,null,null,0,0]
[0,0,0,null,null,null,"",null,null,null,null,null,null,0,0]
[0,0,0,null,null,null,"",null,null,null,null,null,null,0,0]
[0,0,0,null,null,null,"",null,null,null,null,null,null,0,0]
[0,0,0,null,null,null,"",null,null,null,null,null,null,0,0]
[0,0,0,null,null,null,"",null,null,null,null,null,null,0,0]
[0,0,0,null,null,null,"",null,null,null,null,null,null,0,0]
[0,0,0,null,null,null,"",null,null,null,null,null,null,0,0]
[0,0,0,null,null,null,"",null,null,null,null,null,null,0,0]
[0,0,0,null,null,null,"",null,null,null,null,null,null,0,0]
[0,0,0,null,null,null,"",null,null,null,null,null,null,0,0]
[0,0,0,null,null,null,"",null,null,null,null,null,null,0,0]
[0,0,0,null,null,null,"",null,null,null,null,null,null,0,0]
[0,0,0,null,null,null,"",null,null,null,null,null,null,0,0]
[0,0,0,null,null,null,"",null,null,null,null,null,null,0,0]
[0,0,0,null,null,null,"",null,null,null,null,null,null,0,0]
[0,0,0,null,null,null,"",null,null,null,null,null,null,0,0]
[0,0,0,null,null,null,"",null,null,null,null,null,null,0,0]
[0,0,0,null,null,null,"",null,null,null,null,null,null,0,0]
[0,0,0,null,null,null,"",null,null,null,null,null,null,0,0]
[0,0,0,null,null,null,"",null,null,null,null,null,null,0,0]
[0,0,0,null,null,null,"",null,null,null,null,null,null,0,0]
[0,0,0,null,null,null,"",null,null,null,null,null,null,0,0]
[0,0,0,null,null,null,"",null,null,null,null,null,null,0,0]
[0,0,0,null,null,null,"",null,null,null,null,null,null,0,0]
[0,0,0,null,null,null,"",null,null,null,null,null,null,0,0]
[0,0,0,null,null,null,"",null,null,null,null,null,null,0,0]
[0,0,0,null,null,null,"",null,null,null,null,null,null,0,0]
[0,0,0,null,null,null,"",null,null,null,null,null,null,0,0]
[0,0,0,null,null,null,"",null,null,null,null,null,null,0,0]
[0,0,0,null,null,null,"",null,null,null,null,null,null,0,0]
[0,0,0,null,null,null,"",null,null,null,null,null,null,{"$f":"IF(M2498<>0,1,0)","v":0},{"$f":"IF(D2498<>0,1,0)","v":0}]
[{"$f":"IF(M2499=\"Y\",1,0)","v":0},{"$f":"IF(M2499=\"N\",1,0)","v":0},{"$f":"IF(M2499=\"A\",1,0)","v":0},null,null,null,"",null,null,null,null,null,null,0,0]
[0,0,0,null,null,null,"",null,null,null,null,null,null,0,0]
[0,0,0,null,null,null,"",null,null,null,null,null,null,0,0]
[0,0,0,null,null,null,"",null,null,null,null,null,null,0,0]
[0,0,0,null,null,null,"",null,null,null,null,null,null,0,0]
[0,0,0,null,null,null,"",null,null,null,null,null,null,0,0]
[0,0,0,null,null,null,"",null,null,null,null,null,null,0,0]
[0,0,0,null,null,null,"",null,null,null,null,null,null,0,0]
[0,0,0,null,null,null,"",null,null,null,null,null,null,0,0]
[0,0,0,null,null,null,"",null,null,null,null,null,null,0,0]
[0,0,0,null,null,null,"",null,null,null,null,null,null,0,0]
[0,0,0,null,null,null,"",null,null,null,null,null,null,0,0]
[0,0,0,null,null,null,"",null,null,null,null,null,null,0,0]
[0,0,0,null,null,null,{"$f":"IF(D2512<>\"\",G2511+1,\"\")","v":""},null,null,null,null,null,null,0,0]
[0,0,0,null,null,null,"",null,null,null,null,null,null,0,0]
[0,0,0,null,null,null,"",null,null,null,null,null,null,0,0]
[0,0,0,null,null,null,"",null,null,null,null,null,null,0,0]
[0,0,0,null,null,null,"",null,null,null,null,null,null,0,0]
[0,0,0,null,null,null,"",null,null,null,null,null,null,0,0]
[0,0,0,null,null,null,"",null,null,null,null,null,null,0,0]
[0,0,0,null,null,null,"",null,null,null,null,null,null,0,0]
[0,0,0,null,null,null,"",null,null,null,null,null,null,0,0]
[0,0,0,null,null,null,"",null,null,null,null,null,null,0,0]
[0,0,0,null,null,null,"",null,null,null,null,null,null,0,0]
[0,0,0,null,null,null,"",null,null,null,null,null,null,0,0]
[0,0,0,null,null,null,"",null,null,null,null,null,null,0,0]
[0,0,0,null,null,null,"",null,null,null,null,null,null,0,0]
[0,0,0,null,null,null,"",null,null,null,null,null,null,0,0]
[0,0,0,null,null,null,"",null,null,null,null,null,null,0,0]
[0,0,0,null,null,null,"",null,null,null,null,null,null,0,0]
[0,0,0,null,null,null,"",null,null,null,null,null,null,0,0]
[0,0,0,null,null,null,"",null,null,null,null,null,null,0,0]
[0,0,0,null,null,null,"",null,null,null,null,null,null,0,0]
[0,0,0,null,null,null,"",null,null,null,null,null,null,0,0]
[0,0,0,null,null,null,"",null,null,null,null,null,null,0,0]
[0,0,0,null,null,null,"",null,null,null,null,null,null,0,0]
[0,0,0,null,null,null,"",null,null,null,null,null,null,0,0]
[0,0,0,null,null,null,"",null,null,null,null,null,null,0,0]
[0,0,0,null,null,null,"",null,null,null,null,null,null,0,0]
[0,0,0,null,null,null,"",null,null,null,null,null,null,0,0]
[0,0,0,null,null,null,"",null,null,null,null,null,null,0,0]
[0,0,0,null,null,null,"",null,null,null,null,null,null,0,0]
[0,0,0,null,null,null,"",null,null,null,null,null,null,0,0]
[0,0,0,null,null,null,"",null,null,null,null,null,null,0,0]
[0,0,0,null,null,null,"",null,null,null,null,null,null,0,0]
[0,0,0,null,null,null,"",null,null,null,null,null,null,0,0]
[0,0,0,null,null,null,"",null,null,null,null,null,null,0,0]
[0,0,0,null,null,null,"",null,null,null,null,null,null,0,0]
[0,0,0,null,null,null,"",null,null,null,null,null,null,0,0]
[0,0,0,null,null,null,"",null,null,null,null,null,null,0,0]
[0,0,0,null,null,null,"",null,null,null,null,null,null,0,0]
[0,0,0,null,null,null,"",null,null,null,null,null,null,0,0]
[0,0,0,null,null,null,"",null,null,null,null,null,null,0,0]
[0,0,0,null,null,null,"",null,null,null,null,null,null,0,0]
[0,0,0,null,null,null,"",null,null,null,null,null,null,0,0]
[0,0,0,null,null,null,"",null,null,null,null,null,null,0,0]
[0,0,0,null,null,null,"",null,null,null,null,null,null,0,0]
[0,0,0,null,null,null,"",null,null,null,null,null,null,0,0]
[0,0,0,null,null,null,"",null,null,null,null,null,null,0,0]
[0,0,0,null,null,null,"",null,null,null,null,null,null,0,0]
[0,0,0,null,null,null,"",null,null,null,null,null,null,0,0]
[0,0,0,null,null,null,"",null,null,null,null,null,null,0,0]
[0,0,0,null,null,null,"",null,null,null,null,null,null,0,0]
[0,0,0,null,null,null,"",null,null,null,null,null,null,{"$f":"IF(M2562<>0,1,0)","v":0},{"$f":"IF(D2562<>0,1,0)","v":0}]
[{"$f":"IF(M2563=\"Y\",1,0)","v":0},{"$f":"IF(M2563=\"N\",1,0)","v":0},{"$f":"IF(M2563=\"A\",1,0)","v":0},null,null,null,"",null,null,null,null,null,null,0,0]
[0,0,0,null,null,null,"",null,null,null,null,null,null,0,0]
[0,0,0,null,null,null,"",null,null,null,null,null,null,0,0]
[0,0,0,null,null,null,"",null,null,null,null,null,null,0,0]
[0,0,0,null,null,null,"",null,null,null,null,null,null,0,0]
[0,0,0,null,null,null,"",null,null,null,null,null,null,0,0]
[0,0,0,null,null,null,"",null,null,null,null,null,null,0,0]
[0,0,0,null,null,null,"",null,null,null,null,null,null,0,0]
[0,0,0,null,null,null,"",null,null,null,null,null,null,0,0]
[0,0,0,null,null,null,"",null,null,null,null,null,null,0,0]
[0,0,0,null,null,null,"",null,null,null,null,null,null,0,0]
[0,0,0,null,null,null,"",null,null,null,null,null,null,0,0]
[0,0,0,null,null,null,"",null,null,null,null,null,null,0,0]
[0,0,0,null,null,null,{"$f":"IF(D2576<>\"\",G2575+1,\"\")","v":""},null,null,null,null,null,null,0,0]
[0,0,0,null,null,null,"",null,null,null,null,null,null,0,0]
[0,0,0,null,null,null,"",null,null,null,null,null,null,0,0]
[0,0,0,null,null,null,"",null,null,null,null,null,null,0,0]
[0,0,0,null,null,null,"",null,null,null,null,null,null,0,0]
[0,0,0,null,null,null,"",null,null,null,null,null,null,0,0]
[0,0,0,null,null,null,"",null,null,null,null,null,null,0,0]
[0,0,0,null,null,null,"",null,null,null,null,null,null,0,0]
[0,0,0,null,null,null,"",null,null,null,null,null,null,0,0]
[0,0,0,null,null,null,"",null,null,null,null,null,null,0,0]
[0,0,0,null,null,null,"",null,null,null,null,null,null,0,0]
[0,0,0,null,null,null,"",null,null,null,null,null,null,0,0]
[0,0,0,null,null,null,"",null,null,null,null,null,null,0,0]
[0,0,0,null,null,null,"",null,null,null,null,null,null,0,0]
[0,0,0,null,null,null,"",null,null,null,null,null,null,0,0]
[0,0,0,null,null,null,"",null,null,null,null,null,null,0,0]
[0,0,0,null,null,null,"",null,null,null,null,null,null,0,0]
[0,0,0,null,null,null,"",null,null,null,null,null,null,0,0]
[0,0,0,null,null,null,"",null,null,null,null,null,null,0,0]
[0,0,0,null,null,null,"",null,null,null,null,null,null,0,0]
[0,0,0,null,null,null,"",null,null,null,null,null,null,0,0]
[0,0,0,null,null,null,"",null,null,null,null,null,null,0,0]
[0,0,0,null,null,null,"",null,null,null,null,null,null,0,0]
[0,0,0,null,null,null,"",null,null,null,null,null,null,0,0]
[0,0,0,null,null,null,"",null,null,null,null,null,null,0,0]
[0,0,0,null,null,null,"",null,null,null,null,null,null,0,0]
[0,0,0,null,null,null,"",null,null,null,null,null,null,0,0]
[0,0,0,null,null,null,"",null,null,null,null,null,null,0,0]
[0,0,0,null,null,null,"",null,null,null,null,null,null,0,0]
[0,0,0,null,null,null,"",null,null,null,null,null,null,0,0]
[0,0,0,null,null,null,"",null,null,null,null,null,null,0,0]
[0,0,0,null,null,null,"",null,null,null,null,null,null,0,0]
[0,0,0,null,null,null,"",null,null,null,null,null,null,0,0]
[0,0,0,null,null,null,"",null,null,null,null,null,null,0,0]
[0,0,0,null,null,null,"",null,null,null,null,null,null,0,0]
[0,0,0,null,null,null,"",null,null,null,null,null,null,0,0]
[0,0,0,null,null,null,"",null,null,null,null,null,null,0,0]
[0,0,0,null,null,null,"",null,null,null,null,null,null,0,0]
[0,0,0,null,null,null,"",null,null,null,null,null,null,0,0]
[0,0,0,null,null,null,"",null,null,null,null,null,null,0,0]
[0,0,0,null,null,null,"",null,null,null,null,null,null,0,0]
[0,0,0,null,null,null,"",null,null,null,null,null,null,0,0]
[0,0,0,null,null,null,"",null,null,null,null,null,null,0,0]
[0,0,0,null,null,null,"",null,null,null,null,null,null,0,0]
[0,0,0,null,null,null,"",null,null,null,null,null,null,0,0]
[0,0,0,null,null,null,"",null,null,null,null,null,null,0,0]
[0,0,0,null,null,null,"",null,null,null,null,null,null,0,0]
[0,0,0,null,null,null,"",null,null,null,null,null,null,0,0]
[0,0,0,null,null,null,"",null,null,null,null,null,null,0,0]
[0,0,0,null,null,null,"",null,null,null,null,null,null,0,0]
[0,0,0,null,null,null,"",null,null,null,null,null,null,{"$f":"IF(M2626<>0,1,0)","v":0},{"$f":"IF(D2626<>0,1,0)","v":0}]
[{"$f":"IF(M2627=\"Y\",1,0)","v":0},{"$f":"IF(M2627=\"N\",1,0)","v":0},{"$f":"IF(M2627=\"A\",1,0)","v":0},null,null,null,"",null,null,null,null,null,null,0,0]
[0,0,0,null,null,null,"",null,null,null,null,null,null,0,0]
[0,0,0,null,null,null,"",null,null,null,null,null,null,0,0]
[0,0,0,null,null,null,"",null,null,null,null,null,null,0,0]
[0,0,0,null,null,null,"",null,null,null,null,null,null,0,0]
[0,0,0,null,null,null,"",null,null,null,null,null,null,0,0]
[0,0,0,null,null,null,"",null,null,null,null,null,null,0,0]
[0,0,0,null,null,null,"",null,null,null,null,null,null,0,0]
[0,0,0,null,null,null,"",null,null,null,null,null,null,0,0]
[0,0,0,null,null,null,"",null,null,null,null,null,null,0,0]
[0,0,0,null,null,null,"",null,null,null,null,null,null,0,0]
[0,0,0,null,null,null,"",null,null,null,null,null,null,0,0]
[0,0,0,null,null,null,"",null,null,null,null,null,null,0,0]
[0,0,0,null,null,null,{"$f":"IF(D2640<>\"\",G2639+1,\"\")","v":""},null,null,null,null,null,null,0,0]
[0,0,0,null,null,null,"",null,null,null,null,null,null,0,0]
[0,0,0,null,null,null,"",null,null,null,null,null,null,0,0]
[0,0,0,null,null,null,"",null,null,null,null,null,null,0,0]
[0,0,0,null,null,null,"",null,null,null,null,null,null,0,0]
[0,0,0,null,null,null,"",null,null,null,null,null,null,0,0]
[0,0,0,null,null,null,"",null,null,null,null,null,null,0,0]
[0,0,0,null,null,null,"",null,null,null,null,null,null,0,0]
[0,0,0,null,null,null,"",null,null,null,null,null,null,0,0]
[0,0,0,null,null,null,"",null,null,null,null,null,null,0,0]
[0,0,0,null,null,null,"",null,null,null,null,null,null,0,0]
[0,0,0,null,null,null,"",null,null,null,null,null,null,0,0]
[0,0,0,null,null,null,"",null,null,null,null,null,null,0,0]
[0,0,0,null,null,null,"",null,null,null,null,null,null,0,0]
[0,0,0,null,null,null,"",null,null,null,null,null,null,0,0]
[0,0,0,null,null,null,"",null,null,null,null,null,null,0,0]
[0,0,0,null,null,null,"",null,null,null,null,null,null,0,0]
[0,0,0,null,null,null,"",null,null,null,null,null,null,0,0]
[0,0,0,null,null,null,"",null,null,null,null,null,null,0,0]
[0,0,0,null,null,null,"",null,null,null,null,null,null,0,0]
[0,0,0,null,null,null,"",null,null,null,null,null,null,0,0]
[0,0,0,null,null,null,"",null,null,null,null,null,null,0,0]
[0,0,0,null,null,null,"",null,null,null,null,null,null,0,0]
[0,0,0,null,null,null,"",null,null,null,null,null,null,0,0]
[0,0,0,null,null,null,"",null,null,null,null,null,null,0,0]
[0,0,0,null,null,null,"",null,null,null,null,null,null,0,0]
[0,0,0,null,null,null,"",null,null,null,null,null,null,0,0]
[0,0,0,null,null,null,"",null,null,null,null,null,null,0,0]
[0,0,0,null,null,null,"",null,null,null,null,null,null,0,0]
[0,0,0,null,null,null,"",null,null,null,null,null,null,0,0]
[0,0,0,null,null,null,"",null,null,null,null,null,null,0,0]
[0,0,0,null,null,null,"",null,null,null,null,null,null,0,0]
[0,0,0,null,null,null,"",null,null,null,null,null,null,0,0]
[0,0,0,null,null,null,"",null,null,null,null,null,null,0,0]
[0,0,0,null,null,null,"",null,null,null,null,null,null,0,0]
[0,0,0,null,null,null,"",null,null,null,null,null,null,0,0]
[0,0,0,null,null,null,"",null,null,null,null,null,null,0,0]
[0,0,0,null,null,null,"",null,null,null,null,null,null,0,0]
[0,0,0,null,null,null,"",null,null,null,null,null,null,0,0]
[0,0,0,null,null,null,"",null,null,null,null,null,null,0,0]
[0,0,0,null,null,null,"",null,null,null,null,null,null,0,0]
[0,0,0,null,null,null,"",null,null,null,null,null,null,0,0]
[0,0,0,null,null,null,"",null,null,null,null,null,null,0,0]
[0,0,0,null,null,null,"",null,null,null,null,null,null,0,0]
[0,0,0,null,null,null,"",null,null,null,null,null,null,0,0]
[0,0,0,null,null,null,"",null,null,null,null,null,null,0,0]
[0,0,0,null,null,null,"",null,null,null,null,null,null,0,0]
[0,0,0,null,null,null,"",null,null,null,null,null,null,0,0]
[0,0,0,null,null,null,"",null,null,null,null,null,null,0,0]
[0,0,0,null,null,null,"",null,null,null,null,null,null,0,0]
[0,0,0,null,null,null,"",null,null,null,null,null,null,{"$f":"IF(M2690<>0,1,0)","v":0},{"$f":"IF(D2690<>0,1,0)","v":0}]
[{"$f":"IF(M2691=\"Y\",1,0)","v":0},{"$f":"IF(M2691=\"N\",1,0)","v":0},{"$f":"IF(M2691=\"A\",1,0)","v":0},null,null,null,"",null,null,null,null,null,null,0,0]
[0,0,0,null,null,null,"",null,null,null,null,null,null,0,0]
[0,0,0,null,null,null,"",null,null,null,null,null,null,0,0]
[0,0,0,null,null,null,"",null,null,null,null,null,null,0,0]
[0,0,0,null,null,null,"",null,null,null,null,null,null,0,0]
[0,0,0,null,null,null,"",null,null,null,null,null,null,0,0]
[0,0,0,null,null,null,"",null,null,null,null,null,null,0,0]
[0,0,0,null,null,null,"",null,null,null,null,null,null,0,0]
[0,0,0,null,null,null,"",null,null,null,null,null,null,0,0]
[0,0,0,null,null,null,"",null,null,null,null,null,null,0,0]
[0,0,0,null,null,null,"",null,null,null,null,null,null,0,0]
[0,0,0,null,null,null,"",null,null,null,null,null,null,0,0]
[0,0,0,null,null,null,"",null,null,null,null,null,null,0,0]
[0,0,0,null,null,null,{"$f":"IF(D2704<>\"\",G2703+1,\"\")","v":""},null,null,null,null,null,null,0,0]
[0,0,0,null,null,null,"",null,null,null,null,null,null,0,0]
[0,0,0,null,null,null,"",null,null,null,null,null,null,0,0]
[0,0,0,null,null,null,"",null,null,null,null,null,null,0,0]
[0,0,0,null,null,null,"",null,null,null,null,null,null,0,0]
[0,0,0,null,null,null,"",null,null,null,null,null,null,0,0]
[0,0,0,null,null,null,"",null,null,null,null,null,null,0,0]
[0,0,0,null,null,null,"",null,null,null,null,null,null,0,0]
[0,0,0,null,null,null,"",null,null,null,null,null,null,0,0]
[0,0,0,null,null,null,"",null,null,null,null,null,null,0,0]
[0,0,0,null,null,null,"",null,null,null,null,null,null,0,0]
[0,0,0,null,null,null,"",null,null,null,null,null,null,0,0]
[0,0,0,null,null,null,"",null,null,null,null,null,null,0,0]
[0,0,0,null,null,null,"",null,null,null,null,null,null,0,0]
[0,0,0,null,null,null,"",null,null,null,null,null,null,0,0]
[0,0,0,null,null,null,"",null,null,null,null,null,null,0,0]
[0,0,0,null,null,null,"",null,null,null,null,null,null,0,0]
[0,0,0,null,null,null,"",null,null,null,null,null,null,0,0]
[0,0,0,null,null,null,"",null,null,null,null,null,null,0,0]
[0,0,0,null,null,null,"",null,null,null,null,null,null,0,0]
[0,0,0,null,null,null,"",null,null,null,null,null,null,0,0]
[0,0,0,null,null,null,"",null,null,null,null,null,null,0,0]
[0,0,0,null,null,null,"",null,null,null,null,null,null,0,0]
[0,0,0,null,null,null,"",null,null,null,null,null,null,0,0]
[0,0,0,null,null,null,"",null,null,null,null,null,null,0,0]
[0,0,0,null,null,null,"",null,null,null,null,null,null,0,0]
[0,0,0,null,null,null,"",null,null,null,null,null,null,0,0]
[0,0,0,null,null,null,"",null,null,null,null,null,null,0,0]
[0,0,0,null,null,null,"",null,null,null,null,null,null,0,0]
[0,0,0,null,null,null,"",null,null,null,null,null,null,0,0]
[0,0,0,null,null,null,"",null,null,null,null,null,null,0,0]
[0,0,0,null,null,null,"",null,null,null,null,null,null,0,0]
[0,0,0,null,null,null,"",null,null,null,null,null,null,0,0]
[0,0,0,null,null,null,"",null,null,null,null,null,null,0,0]
[0,0,0,null,null,null,"",null,null,null,null,null,null,0,0]
[0,0,0,null,null,null,"",null,null,null,null,null,null,0,0]
[0,0,0,null,null,null,"",null,null,null,null,null,null,0,0]
[0,0,0,null,null,null,"",null,null,null,null,null,null,0,0]
[0,0,0,null,null,null,"",null,null,null,null,null,null,0,0]
[0,0,0,null,null,null,"",null,null,null,null,null,null,0,0]
[0,0,0,null,null,null,"",null,null,null,null,null,null,0,0]
[0,0,0,null,null,null,"",null,null,null,null,null,null,0,0]
[0,0,0,null,null,null,"",null,null,null,null,null,null,0,0]
[0,0,0,null,null,null,"",null,null,null,null,null,null,0,0]
[0,0,0,null,null,null,"",null,null,null,null,null,null,0,0]
[0,0,0,null,null,null,"",null,null,null,null,null,null,0,0]
[0,0,0,null,null,null,"",null,null,null,null,null,null,0,0]
[0,0,0,null,null,null,"",null,null,null,null,null,null,0,0]
[0,0,0,null,null,null,"",null,null,null,null,null,null,0,0]
[0,0,0,null,null,null,"",null,null,null,null,null,null,0,0]
[0,0,0,null,null,null,"",null,null,null,null,null,null,{"$f":"IF(M2754<>0,1,0)","v":0},{"$f":"IF(D2754<>0,1,0)","v":0}]
[{"$f":"IF(M2755=\"Y\",1,0)","v":0},{"$f":"IF(M2755=\"N\",1,0)","v":0},{"$f":"IF(M2755=\"A\",1,0)","v":0},null,null,null,"",null,null,null,null,null,null,0,0]
[0,0,0,null,null,null,"",null,null,null,null,null,null,0,0]
[0,0,0,null,null,null,"",null,null,null,null,null,null,0,0]
[0,0,0,null,null,null,"",null,null,null,null,null,null,0,0]
[0,0,0,null,null,null,"",null,null,null,null,null,null,0,0]
[0,0,0,null,null,null,"",null,null,null,null,null,null,0,0]
[0,0,0,null,null,null,"",null,null,null,null,null,null,0,0]
[0,0,0,null,null,null,"",null,null,null,null,null,null,0,0]
[0,0,0,null,null,null,"",null,null,null,null,null,null,0,0]
[0,0,0,null,null,null,"",null,null,null,null,null,null,0,0]
[0,0,0,null,null,null,"",null,null,null,null,null,null,0,0]
[0,0,0,null,null,null,"",null,null,null,null,null,null,0,0]
[0,0,0,null,null,null,"",null,null,null,null,null,null,0,0]
[0,0,0,null,null,null,{"$f":"IF(D2768<>\"\",G2767+1,\"\")","v":""},null,null,null,null,null,null,0,0]
[0,0,0,null,null,null,"",null,null,null,null,null,null,0,0]
[0,0,0,null,null,null,"",null,null,null,null,null,null,0,0]
[0,0,0,null,null,null,"",null,null,null,null,null,null,0,0]
[0,0,0,null,null,null,"",null,null,null,null,null,null,0,0]
[0,0,0,null,null,null,"",null,null,null,null,null,null,0,0]
[0,0,0,null,null,null,"",null,null,null,null,null,null,0,0]
[0,0,0,null,null,null,"",null,null,null,null,null,null,0,0]
[0,0,0,null,null,null,"",null,null,null,null,null,null,0,0]
[0,0,0,null,null,null,"",null,null,null,null,null,null,0,0]
[0,0,0,null,null,null,"",null,null,null,null,null,null,0,0]
[0,0,0,null,null,null,"",null,null,null,null,null,null,0,0]
[0,0,0,null,null,null,"",null,null,null,null,null,null,0,0]
[0,0,0,null,null,null,"",null,null,null,null,null,null,0,0]
[0,0,0,null,null,null,"",null,null,null,null,null,null,0,0]
[0,0,0,null,null,null,"",null,null,null,null,null,null,0,0]
[0,0,0,null,null,null,"",null,null,null,null,null,null,0,0]
[0,0,0,null,null,null,"",null,null,null,null,null,null,0,0]
[0,0,0,null,null,null,"",null,null,null,null,null,null,0,0]
[0,0,0,null,null,null,"",null,null,null,null,null,null,0,0]
[0,0,0,null,null,null,"",null,null,null,null,null,null,0,0]
[0,0,0,null,null,null,"",null,null,null,null,null,null,0,0]
[0,0,0,null,null,null,"",null,null,null,null,null,null,0,0]
[0,0,0,null,null,null,"",null,null,null,null,null,null,0,0]
[0,0,0,null,null,null,"",null,null,null,null,null,null,0,0]
[0,0,0,null,null,null,"",null,null,null,null,null,null,0,0]
[0,0,0,null,null,null,"",null,null,null,null,null,null,0,0]
[0,0,0,null,null,null,"",null,null,null,null,null,null,0,0]
[0,0,0,null,null,null,"",null,null,null,null,null,null,0,0]
[0,0,0,null,null,null,"",null,null,null,null,null,null,0,0]
[0,0,0,null,null,null,"",null,null,null,null,null,null,0,0]
[0,0,0,null,null,null,"",null,null,null,null,null,null,0,0]
[0,0,0,null,null,null,"",null,null,null,null,null,null,0,0]
[0,0,0,null,null,null,"",null,null,null,null,null,null,0,0]
[0,0,0,null,null,null,"",null,null,null,null,null,null,0,0]
[0,0,0,null,null,null,"",null,null,null,null,null,null,0,0]
[0,0,0,null,null,null,"",null,null,null,null,null,null,0,0]
[0,0,0,null,null,null,"",null,null,null,null,null,null,0,0]
[0,0,0,null,null,null,"",null,null,null,null,null,null,0,0]
[0,0,0,null,null,null,"",null,null,null,null,null,null,0,0]
[0,0,0,null,null,null,"",null,null,null,null,null,null,0,0]
[0,0,0,null,null,null,"",null,null,null,null,null,null,0,0]
[0,0,0,null,null,null,"",null,null,null,null,null,null,0,0]
[0,0,0,null,null,null,"",null,null,null,null,null,null,0,0]
[0,0,0,null,null,null,"",null,null,null,null,null,null,0,0]
[0,0,0,null,null,null,"",null,null,null,null,null,null,0,0]
[0,0,0,null,null,null,"",null,null,null,null,null,null,0,0]
[0,0,0,null,null,null,"",null,null,null,null,null,null,0,0]
[0,0,0,null,null,null,"",null,null,null,null,null,null,0,0]
[0,0,0,null,null,null,"",null,null,null,null,null,null,0,0]
[0,0,0,null,null,null,"",null,null,null,null,null,null,{"$f":"IF(M2818<>0,1,0)","v":0},{"$f":"IF(D2818<>0,1,0)","v":0}]
[{"$f":"IF(M2819=\"Y\",1,0)","v":0},{"$f":"IF(M2819=\"N\",1,0)","v":0},{"$f":"IF(M2819=\"A\",1,0)","v":0},null,null,null,"",null,null,null,null,null,null,0,0]
[0,0,0,null,null,null,"",null,null,null,null,null,null,0,0]
[0,0,0,null,null,null,"",null,null,null,null,null,null,0,0]
[0,0,0,null,null,null,"",null,null,null,null,null,null,0,0]
[0,0,0,null,null,null,"",null,null,null,null,null,null,0,0]
[0,0,0,null,null,null,"",null,null,null,null,null,null,0,0]
[0,0,0,null,null,null,"",null,null,null,null,null,null,0,0]
[0,0,0,null,null,null,"",null,null,null,null,null,null,0,0]
[0,0,0,null,null,null,"",null,null,null,null,null,null,0,0]
[0,0,0,null,null,null,"",null,null,null,null,null,null,0,0]
[0,0,0,null,null,null,"",null,null,null,null,null,null,0,0]
[0,0,0,null,null,null,"",null,null,null,null,null,null,0,0]
[0,0,0,null,null,null,"",null,null,null,null,null,null,0,0]
[0,0,0,null,null,null,{"$f":"IF(D2832<>\"\",G2831+1,\"\")","v":""},null,null,null,null,null,null,0,0]
[0,0,0,null,null,null,"",null,null,null,null,null,null,0,0]
[0,0,0,null,null,null,"",null,null,null,null,null,null,0,0]
[0,0,0,null,null,null,"",null,null,null,null,null,null,0,0]
[0,0,0,null,null,null,"",null,null,null,null,null,null,0,0]
[0,0,0,null,null,null,"",null,null,null,null,null,null,0,0]
[0,0,0,null,null,null,"",null,null,null,null,null,null,0,0]
[0,0,0,null,null,null,"",null,null,null,null,null,null,0,0]
[0,0,0,null,null,null,"",null,null,null,null,null,null,0,0]
[0,0,0,null,null,null,"",null,null,null,null,null,null,0,0]
[0,0,0,null,null,null,"",null,null,null,null,null,null,0,0]
[0,0,0,null,null,null,"",null,null,null,null,null,null,0,0]
[0,0,0,null,null,null,"",null,null,null,null,null,null,0,0]
[0,0,0,null,null,null,"",null,null,null,null,null,null,0,0]
[0,0,0,null,null,null,"",null,null,null,null,null,null,0,0]
[0,0,0,null,null,null,"",null,null,null,null,null,null,0,0]
[0,0,0,null,null,null,"",null,null,null,null,null,null,0,0]
[0,0,0,null,null,null,"",null,null,null,null,null,null,0,0]
[0,0,0,null,null,null,"",null,null,null,null,null,null,0,0]
[0,0,0,null,null,null,"",null,null,null,null,null,null,0,0]
[0,0,0,null,null,null,"",null,null,null,null,null,null,0,0]
[0,0,0,null,null,null,"",null,null,null,null,null,null,0,0]
[0,0,0,null,null,null,"",null,null,null,null,null,null,0,0]
[0,0,0,null,null,null,"",null,null,null,null,null,null,0,0]
[0,0,0,null,null,null,"",null,null,null,null,null,null,0,0]
[0,0,0,null,null,null,"",null,null,null,null,null,null,0,0]
[0,0,0,null,null,null,"",null,null,null,null,null,null,0,0]
[0,0,0,null,null,null,"",null,null,null,null,null,null,0,0]
[0,0,0,null,null,null,"",null,null,null,null,null,null,0,0]
[0,0,0,null,null,null,"",null,null,null,null,null,null,0,0]
[0,0,0,null,null,null,"",null,null,null,null,null,null,0,0]
[0,0,0,null,null,null,"",null,null,null,null,null,null,0,0]
[0,0,0,null,null,null,"",null,null,null,null,null,null,0,0]
[0,0,0,null,null,null,"",null,null,null,null,null,null,0,0]
[0,0,0,null,null,null,"",null,null,null,null,null,null,0,0]
[0,0,0,null,null,null,"",null,null,null,null,null,null,0,0]
[0,0,0,null,null,null,"",null,null,null,null,null,null,0,0]
[0,0,0,null,null,null,"",null,null,null,null,null,null,0,0]
[0,0,0,null,null,null,"",null,null,null,null,null,null,0,0]
[0,0,0,null,null,null,"",null,null,null,null,null,null,0,0]
[0,0,0,null,null,null,"",null,null,null,null,null,null,0,0]
[0,0,0,null,null,null,"",null,null,null,null,null,null,0,0]
[0,0,0,null,null,null,"",null,null,null,null,null,null,0,0]
[0,0,0,null,null,null,"",null,null,null,null,null,null,0,0]
[0,0,0,null,null,null,"",null,null,null,null,null,null,0,0]
[0,0,0,null,null,null,"",null,null,null,null,null,null,0,0]
[0,0,0,null,null,null,"",null,null,null,null,null,null,0,0]
[0,0,0,null,null,null,"",null,null,null,null,null,null,0,0]
[0,0,0,null,null,null,"",null,null,null,null,null,null,0,0]
[0,0,0,null,null,null,"",null,null,null,null,null,null,0,0]
[0,0,0,null,null,null,"",null,null,null,null,null,null,{"$f":"IF(M2882<>0,1,0)","v":0},{"$f":"IF(D2882<>0,1,0)","v":0}]
[{"$f":"IF(M2883=\"Y\",1,0)","v":0},{"$f":"IF(M2883=\"N\",1,0)","v":0},{"$f":"IF(M2883=\"A\",1,0)","v":0},null,null,null,"",null,null,null,null,null,null,0,0]
[0,0,0,null,null,null,"",null,null,null,null,null,null,0,0]
[0,0,0,null,null,null,"",null,null,null,null,null,null,0,0]
[0,0,0,null,null,null,"",null,null,null,null,null,null,0,0]
[0,0,0,null,null,null,"",null,null,null,null,null,null,0,0]
[0,0,0,null,null,null,"",null,null,null,null,null,null,0,0]
[0,0,0,null,null,null,"",null,null,null,null,null,null,0,0]
[0,0,0,null,null,null,"",null,null,null,null,null,null,0,0]
[0,0,0,null,null,null,"",null,null,null,null,null,null,0,0]
[0,0,0,null,null,null,"",null,null,null,null,null,null,0,0]
[0,0,0,null,null,null,"",null,null,null,null,null,null,0,0]
[0,0,0,null,null,null,"",null,null,null,null,null,null,0,0]
[0,0,0,null,null,null,"",null,null,null,null,null,null,0,0]
[0,0,0,null,null,null,{"$f":"IF(D2896<>\"\",G2895+1,\"\")","v":""},null,null,null,null,null,null,0,0]
[0,0,0,null,null,null,"",null,null,null,null,null,null,0,0]
[0,0,0,null,null,null,"",null,null,null,null,null,null,0,0]
[0,0,0,null,null,null,"",null,null,null,null,null,null,0,0]
[0,0,0,null,null,null,"",null,null,null,null,null,null,0,0]
[0,0,0,null,null,null,"",null,null,null,null,null,null,0,0]
[0,0,0,null,null,null,"",null,null,null,null,null,null,0,0]
[0,0,0,null,null,null,"",null,null,null,null,null,null,0,0]
[0,0,0,null,null,null,"",null,null,null,null,null,null,0,0]
[0,0,0,null,null,null,"",null,null,null,null,null,null,0,0]
[0,0,0,null,null,null,"",null,null,null,null,null,null,0,0]
[0,0,0,null,null,null,"",null,null,null,null,null,null,0,0]
[0,0,0,null,null,null,"",null,null,null,null,null,null,0,0]
[0,0,0,null,null,null,"",null,null,null,null,null,null,0,0]
[0,0,0,null,null,null,"",null,null,null,null,null,null,0,0]
[0,0,0,null,null,null,"",null,null,null,null,null,null,0,0]
[0,0,0,null,null,null,"",null,null,null,null,null,null,0,0]
[0,0,0,null,null,null,"",null,null,null,null,null,null,0,0]
[0,0,0,null,null,null,"",null,null,null,null,null,null,0,0]
[0,0,0,null,null,null,"",null,null,null,null,null,null,0,0]
[0,0,0,null,null,null,"",null,null,null,null,null,null,0,0]
[0,0,0,null,null,null,"",null,null,null,null,null,null,0,0]
[0,0,0,null,null,null,"",null,null,null,null,null,null,0,0]
[0,0,0,null,null,null,"",null,null,null,null,null,null,0,0]
[0,0,0,null,null,null,"",null,null,null,null,null,null,0,0]
[0,0,0,null,null,null,"",null,null,null,null,null,null,0,0]
[0,0,0,null,null,null,"",null,null,null,null,null,null,0,0]
[0,0,0,null,null,null,"",null,null,null,null,null,null,0,0]
[0,0,0,null,null,null,"",null,null,null,null,null,null,0,0]
[0,0,0,null,null,null,"",null,null,null,null,null,null,0,0]
[0,0,0,null,null,null,"",null,null,null,null,null,null,0,0]
[0,0,0,null,null,null,"",null,null,null,null,null,null,0,0]
[0,0,0,null,null,null,"",null,null,null,null,null,null,0,0]
[0,0,0,null,null,null,"",null,null,null,null,null,null,0,0]
[0,0,0,null,null,null,"",null,null,null,null,null,null,0,0]
[0,0,0,null,null,null,"",null,null,null,null,null,null,0,0]
[0,0,0,null,null,null,"",null,null,null,null,null,null,0,0]
[0,0,0,null,null,null,"",null,null,null,null,null,null,0,0]
[0,0,0,null,null,null,"",null,null,null,null,null,null,0,0]
[0,0,0,null,null,null,"",null,null,null,null,null,null,0,0]
[0,0,0,null,null,null,"",null,null,null,null,null,null,0,0]
[0,0,0,null,null,null,"",null,null,null,null,null,null,0,0]
[0,0,0,null,null,null,"",null,null,null,null,null,null,0,0]
[0,0,0,null,null,null,"",null,null,null,null,null,null,0,0]
[0,0,0,null,null,null,"",null,null,null,null,null,null,0,0]
[0,0,0,null,null,null,"",null,null,null,null,null,null,0,0]
[0,0,0,null,null,null,"",null,null,null,null,null,null,0,0]
[0,0,0,null,null,null,"",null,null,null,null,null,null,0,0]
[0,0,0,null,null,null,"",null,null,null,null,null,null,0,0]
[0,0,0,null,null,null,"",null,null,null,null,null,null,0,0]
[0,0,0,null,null,null,"",null,null,null,null,null,null,{"$f":"IF(M2946<>0,1,0)","v":0},{"$f":"IF(D2946<>0,1,0)","v":0}]
[{"$f":"IF(M2947=\"Y\",1,0)","v":0},{"$f":"IF(M2947=\"N\",1,0)","v":0},{"$f":"IF(M2947=\"A\",1,0)","v":0},null,null,null,"",null,null,null,null,null,null,0,0]
[0,0,0,null,null,null,"",null,null,null,null,null,null,0,0]
[0,0,0,null,null,null,"",null,null,null,null,null,null,0,0]
[0,0,0,null,null,null,"",null,null,null,null,null,null,0,0]
[0,0,0,null,null,null,"",null,null,null,null,null,null,0,0]
[0,0,0,null,null,null,"",null,null,null,null,null,null,0,0]
[0,0,0,null,null,null,"",null,null,null,null,null,null,0,0]
[0,0,0,null,null,null,"",null,null,null,null,null,null,0,0]
[0,0,0,null,null,null,"",null,null,null,null,null,null,0,0]
[0,0,0,null,null,null,"",null,null,null,null,null,null,0,0]
[0,0,0,null,null,null,"",null,null,null,null,null,null,0,0]
[0,0,0,null,null,null,"",null,null,null,null,null,null,0,0]
[0,0,0,null,null,null,"",null,null,null,null,null,null,0,0]
[0,0,0,null,null,null,{"$f":"IF(D2960<>\"\",G2959+1,\"\")","v":""},null,null,null,null,null,null,0,0]
[0,0,0,null,null,null,"",null,null,null,null,null,null,0,0]
[0,0,0,null,null,null,"",null,null,null,null,null,null,0,0]
[0,0,0,null,null,null,"",null,null,null,null,null,null,0,0]
[0,0,0,null,null,null,"",null,null,null,null,null,null,0,0]
[0,0,0,null,null,null,"",null,null,null,null,null,null,0,0]
[0,0,0,null,null,null,"",null,null,null,null,null,null,0,0]
[0,0,0,null,null,null,"",null,null,null,null,null,null,0,0]
[0,0,0,null,null,null,"",null,null,null,null,null,null,0,0]
[0,0,0,null,null,null,"",null,null,null,null,null,null,0,0]
[0,0,0,null,null,null,"",null,null,null,null,null,null,0,0]
[0,0,0,null,null,null,"",null,null,null,null,null,null,0,0]
[0,0,0,null,null,null,"",null,null,null,null,null,null,0,0]
[0,0,0,null,null,null,"",null,null,null,null,null,null,0,0]
[0,0,0,null,null,null,"",null,null,null,null,null,null,0,0]
[0,0,0,null,null,null,"",null,null,null,null,null,null,0,0]
[0,0,0,null,null,null,"",null,null,null,null,null,null,0,0]
[0,0,0,null,null,null,"",null,null,null,null,null,null,0,0]
[0,0,0,null,null,null,"",null,null,null,null,null,null,0,0]
[0,0,0,null,null,null,"",null,null,null,null,null,null,0,0]
[0,0,0,null,null,null,"",null,null,null,null,null,null,0,0]
[0,0,0,null,null,null,"",null,null,null,null,null,null,0,0]
[0,0,0,null,null,null,"",null,null,null,null,null,null,0,0]
[0,0,0,null,null,null,"",null,null,null,null,null,null,0,0]
[0,0,0,null,null,null,"",null,null,null,null,null,null,0,0]
[0,0,0,null,null,null,"",null,null,null,null,null,null,0,0]
[0,0,0,null,null,null,"",null,null,null,null,null,null,0,0]
[0,0,0,null,null,null,"",null,null,null,null,null,null,0,0]
[0,0,0,null,null,null,"",null,null,null,null,null,null,0,0]
[0,0,0,null,null,null,"",null,null,null,null,null,null,0,0]
[0,0,0,null,null,null,"",null,null,null,null,null,null,0,0]
[0,0,0,null,null,null,"",null,null,null,null,null,null,0,0]
[0,0,0,null,null,null,"",null,null,null,null,null,null,0,0]
[0,0,0,null,null,null,"",null,null,null,null,null,null,0,0]
[0,0,0,null,null,null,"",null,null,null,null,null,null,0,0]
[0,0,0,null,null,null,"",null,null,null,null,null,null,0,0]
[0,0,0,null,null,null,"",null,null,null,null,null,null,0,0]
[0,0,0,null,null,null,"",null,null,null,null,null,null,0,0]
[0,0,0,null,null,null,"",null,null,null,null,null,null,0,0]
[0,0,0,null,null,null,"",null,null,null,null,null,null,0,0]
[0,0,0,null,null,null,"",null,null,null,null,null,null,0,0]
[0,0,0,null,null,null,"",null,null,null,null,null,null,0,0]
[0,0,0,null,null,null,"",null,null,null,null,null,null,0,0]
[0,0,0,null,null,null,"",null,null,null,null,null,null,0,0]
[0,0,0,null,null,null,"",null,null,null,null,null,null,0,0]
[0,0,0,null,null,null,"",null,null,null,null,null,null,0,0]
[0,0,0,null,null,null,"",null,null,null,null,null,null,0,0]
[0,0,0,null,null,null,"",null,null,null,null,null,null,0,0]
[0,0,0,null,null,null,"",null,null,null,null,null,null,0,0]
[0,0,0,null,null,null,"",null,null,null,null,null,null,0,0]
[0,0,0,null,null,null,"",null,null,null,null,null,null,{"$f":"IF(M3010<>0,1,0)","v":0},{"$f":"IF(D3010<>0,1,0)","v":0}]
[{"$f":"IF(M3011=\"Y\",1,0)","v":0},{"$f":"IF(M3011=\"N\",1,0)","v":0},{"$f":"IF(M3011=\"A\",1,0)","v":0},null,null,null,"",null,null,null,null,null,null,0,0]
[0,0,0,null,null,null,"",null,null,null,null,null,null,0,0]
[0,0,0,null,null,null,"",null,null,null,null,null,null,0,0]
[0,0,0,null,null,null,"",null,null,null,null,null,null,0,0]
[0,0,0,null,null,null,"",null,null,null,null,null,null,0,0]
[0,0,0,null,null,null,"",null,null,null,null,null,null,0,0]
[0,0,0,null,null,null,"",null,null,null,null,null,null,0,0]
[0,0,0,null,null,null,"",null,null,null,null,null,null,0,0]
[0,0,0,null,null,null,"",null,null,null,null,null,null,0,0]
[0,0,0,null,null,null,"",null,null,null,null,null,null,0,0]
[0,0,0,null,null,null,"",null,null,null,null,null,null,0,0]
[0,0,0,null,null,null,"",null,null,null,null,null,null,0,0]
[0,0,0,null,null,null,"",null,null,null,null,null,null,0,0]
[0,0,0,null,null,null,{"$f":"IF(D3024<>\"\",G3023+1,\"\")","v":""},null,null,null,null,null,null,0,0]
[0,0,0,null,null,null,"",null,null,null,null,null,null,0,0]
[0,0,0,null,null,null,"",null,null,null,null,null,null,0,0]
[0,0,0,null,null,null,"",null,null,null,null,null,null,0,0]
[0,0,0,null,null,null,"",null,null,null,null,null,null,0,0]
[0,0,0,null,null,null,"",null,null,null,null,null,null,0,0]
[0,0,0,null,null,null,"",null,null,null,null,null,null,0,0]
[0,0,0,null,null,null,"",null,null,null,null,null,null,0,0]
[0,0,0,null,null,null,"",null,null,null,null,null,null,0,0]
[0,0,0,null,null,null,"",null,null,null,null,null,null,0,0]
[0,0,0,null,null,null,"",null,null,null,null,null,null,0,0]
[0,0,0,null,null,null,"",null,null,null,null,null,null,0,0]
[0,0,0,null,null,null,"",null,null,null,null,null,null,0,0]
[0,0,0,null,null,null,"",null,null,null,null,null,null,0,0]
[0,0,0,null,null,null,"",null,null,null,null,null,null,0,0]
[0,0,0,null,null,null,"",null,null,null,null,null,null,0,0]
[0,0,0,null,null,null,"",null,null,null,null,null,null,0,0]
[0,0,0,null,null,null,"",null,null,null,null,null,null,0,0]
[0,0,0,null,null,null,"",null,null,null,null,null,null,0,0]
[0,0,0,null,null,null,"",null,null,null,null,null,null,0,0]
[0,0,0,null,null,null,"",null,null,null,null,null,null,0,0]
[0,0,0,null,null,null,"",null,null,null,null,null,null,0,0]
[0,0,0,null,null,null,"",null,null,null,null,null,null,0,0]
[0,0,0,null,null,null,"",null,null,null,null,null,null,0,0]
[0,0,0,null,null,null,"",null,null,null,null,null,null,0,0]
[0,0,0,null,null,null,"",null,null,null,null,null,null,0,0]
[0,0,0,null,null,null,"",null,null,null,null,null,null,0,0]
[0,0,0,null,null,null,"",null,null,null,null,null,null,0,0]
[0,0,0,null,null,null,"",null,null,null,null,null,null,0,0]
[0,0,0,null,null,null,"",null,null,null,null,null,null,0,0]
[0,0,0,null,null,null,"",null,null,null,null,null,null,0,0]
[0,0,0,null,null,null,"",null,null,null,null,null,null,0,0]
[0,0,0,null,null,null,"",null,null,null,null,null,null,0,0]
[0,0,0,null,null,null,"",null,null,null,null,null,null,0,0]
[0,0,0,null,null,null,"",null,null,null,null,null,null,0,0]
[0,0,0,null,null,null,"",null,null,null,null,null,null,0,0]
[0,0,0,null,null,null,"",null,null,null,null,null,null,0,0]
[0,0,0,null,null,null,"",null,null,null,null,null,null,0,0]
[0,0,0,null,null,null,"",null,null,null,null,null,null,0,0]
[0,0,0,null,null,null,"",null,null,null,null,null,null,0,0]
[0,0,0,null,null,null,"",null,null,null,null,null,null,0,0]
[0,0,0,null,null,null,"",null,null,null,null,null,null,0,0]
[0,0,0,null,null,null,"",null,null,null,null,null,null,0,0]
[0,0,0,null,null,null,"",null,null,null,null,null,null,0,0]
[0,0,0,null,null,null,"",null,null,null,null,null,null,0,0]
[0,0,0,null,null,null,"",null,null,null,null,null,null,0,0]
[0,0,0,null,null,null,"",null,null,null,null,null,null,0,0]
[0,0,0,null,null,null,"",null,null,null,null,null,null,0,0]
[0,0,0,null,null,null,"",null,null,null,null,null,null,0,0]
[0,0,0,null,null,null,"",null,null,null,null,null,null,0,0]
[0,0,0,null,null,null,"",null,null,null,null,null,null,{"$f":"IF(M3074<>0,1,0)","v":0},{"$f":"IF(D3074<>0,1,0)","v":0}]
[{"$f":"IF(M3075=\"Y\",1,0)","v":0},{"$f":"IF(M3075=\"N\",1,0)","v":0},{"$f":"IF(M3075=\"A\",1,0)","v":0},null,null,null,"",null,null,null,null,null,null,0,0]
[0,0,0,null,null,null,"",null,null,null,null,null,null,0,0]
[0,0,0,null,null,null,"",null,null,null,null,null,null,0,0]
[0,0,0,null,null,null,"",null,null,null,null,null,null,0,0]
[0,0,0,null,null,null,"",null,null,null,null,null,null,0,0]
[0,0,0,null,null,null,"",null,null,null,null,null,null,0,0]
[0,0,0,null,null,null,"",null,null,null,null,null,null,0,0]
[0,0,0,null,null,null,"",null,null,null,null,null,null,0,0]
[0,0,0,null,null,null,"",null,null,null,null,null,null,0,0]
[0,0,0,null,null,null,"",null,null,null,null,null,null,0,0]
[0,0,0,null,null,null,"",null,null,null,null,null,null,0,0]
[0,0,0,null,null,null,"",null,null,null,null,null,null,0,0]
[0,0,0,null,null,null,"",null,null,null,null,null,null,0,0]
[0,0,0,null,null,null,{"$f":"IF(D3088<>\"\",G3087+1,\"\")","v":""},null,null,null,null,null,null,0,0]
[0,0,0,null,null,null,"",null,null,null,null,null,null,0,0]
[0,0,0,null,null,null,"",null,null,null,null,null,null,0,0]
[0,0,0,null,null,null,"",null,null,null,null,null,null,0,0]
[0,0,0,null,null,null,"",null,null,null,null,null,null,0,0]
[0,0,0,null,null,null,"",null,null,null,null,null,null,0,0]
[0,0,0,null,null,null,"",null,null,null,null,null,null,0,0]
[0,0,0,null,null,null,"",null,null,null,null,null,null,0,0]
[0,0,0,null,null,null,"",null,null,null,null,null,null,0,0]
[0,0,0,null,null,null,"",null,null,null,null,null,null,0,0]
[0,0,0,null,null,null,"",null,null,null,null,null,null,0,0]
[0,0,0,null,null,null,"",null,null,null,null,null,null,0,0]
[0,0,0,null,null,null,"",null,null,null,null,null,null,0,0]
[0,0,0,null,null,null,"",null,null,null,null,null,null,0,0]
[0,0,0,null,null,null,"",null,null,null,null,null,null,0,0]
[0,0,0,null,null,null,"",null,null,null,null,null,null,0,0]
[0,0,0,null,null,null,"",null,null,null,null,null,null,0,0]
[0,0,0,null,null,null,"",null,null,null,null,null,null,0,0]
[0,0,0,null,null,null,"",null,null,null,null,null,null,0,0]
[0,0,0,null,null,null,"",null,null,null,null,null,null,0,0]
[0,0,0,null,null,null,"",null,null,null,null,null,null,0,0]
[0,0,0,null,null,null,"",null,null,null,null,null,null,0,0]
[0,0,0,null,null,null,"",null,null,null,null,null,null,0,0]
[0,0,0,null,null,null,"",null,null,null,null,null,null,0,0]
[0,0,0,null,null,null,"",null,null,null,null,null,null,0,0]
[0,0,0,null,null,null,"",null,null,null,null,null,null,0,0]
[0,0,0,null,null,null,"",null,null,null,null,null,null,0,0]
[0,0,0,null,null,null,"",null,null,null,null,null,null,0,0]
[0,0,0,null,null,null,"",null,null,null,null,null,null,0,0]
[0,0,0,null,null,null,"",null,null,null,null,null,null,0,0]
[0,0,0,null,null,null,"",null,null,null,null,null,null,0,0]
[0,0,0,null,null,null,"",null,null,null,null,null,null,0,0]
[0,0,0,null,null,null,"",null,null,null,null,null,null,0,0]
[0,0,0,null,null,null,"",null,null,null,null,null,null,0,0]
[0,0,0,null,null,null,"",null,null,null,null,null,null,0,0]
[0,0,0,null,null,null,"",null,null,null,null,null,null,0,0]
[0,0,0,null,null,null,"",null,null,null,null,null,null,0,0]
[0,0,0,null,null,null,"",null,null,null,null,null,null,0,0]
[0,0,0,null,null,null,"",null,null,null,null,null,null,0,0]
[0,0,0,null,null,null,"",null,null,null,null,null,null,0,0]
[0,0,0,null,null,null,"",null,null,null,null,null,null,0,0]
[0,0,0,null,null,null,"",null,null,null,null,null,null,0,0]
[0,0,0,null,null,null,"",null,null,null,null,null,null,0,0]
[0,0,0,null,null,null,"",null,null,null,null,null,null,0,0]
[0,0,0,null,null,null,"",null,null,null,null,null,null,0,0]
[0,0,0,null,null,null,"",null,null,null,null,null,null,0,0]
[0,0,0,null,null,null,"",null,null,null,null,null,null,0,0]
[0,0,0,null,null,null,"",null,null,null,null,null,null,0,0]
[0,0,0,null,null,null,"",null,null,null,null,null,null,0,0]
[0,0,0,null,null,null,"",null,null,null,null,null,null,0,0]
[0,0,0,null,null,null,"",null,null,null,null,null,null,{"$f":"IF(M3138<>0,1,0)","v":0},{"$f":"IF(D3138<>0,1,0)","v":0}]
[{"$f":"IF(M3139=\"Y\",1,0)","v":0},{"$f":"IF(M3139=\"N\",1,0)","v":0},{"$f":"IF(M3139=\"A\",1,0)","v":0},null,null,null,"",null,null,null,null,null,null,0,0]
[0,0,0,null,null,null,"",null,null,null,null,null,null,0,0]
[0,0,0,null,null,null,"",null,null,null,null,null,null,0,0]
[0,0,0,null,null,null,"",null,null,null,null,null,null,0,0]
[0,0,0,null,null,null,"",null,null,null,null,null,null,0,0]
[0,0,0,null,null,null,"",null,null,null,null,null,null,0,0]
[0,0,0,null,null,null,"",null,null,null,null,null,null,0,0]
[0,0,0,null,null,null,"",null,null,null,null,null,null,0,0]
[0,0,0,null,null,null,"",null,null,null,null,null,null,0,0]
[0,0,0,null,null,null,"",null,null,null,null,null,null,0,0]
[0,0,0,null,null,null,"",null,null,null,null,null,null,0,0]
[0,0,0,null,null,null,"",null,null,null,null,null,null,0,0]
[0,0,0,null,null,null,"",null,null,null,null,null,null,0,0]
[0,0,0,null,null,null,{"$f":"IF(D3152<>\"\",G3151+1,\"\")","v":""},null,null,null,null,null,null,0,0]
[0,0,0,null,null,null,"",null,null,null,null,null,null,0,0]
[0,0,0,null,null,null,"",null,null,null,null,null,null,0,0]
[0,0,0,null,null,null,"",null,null,null,null,null,null,0,0]
[0,0,0,null,null,null,"",null,null,null,null,null,null,0,0]
[0,0,0,null,null,null,"",null,null,null,null,null,null,0,0]
[0,0,0,null,null,null,"",null,null,null,null,null,null,0,0]
[0,0,0,null,null,null,"",null,null,null,null,null,null,0,0]
[0,0,0,null,null,null,"",null,null,null,null,null,null,0,0]
[0,0,0,null,null,null,"",null,null,null,null,null,null,0,0]
[0,0,0,null,null,null,"",null,null,null,null,null,null,0,0]
[0,0,0,null,null,null,"",null,null,null,null,null,null,0,0]
[0,0,0,null,null,null,"",null,null,null,null,null,null,0,0]
[0,0,0,null,null,null,"",null,null,null,null,null,null,0,0]
[0,0,0,null,null,null,"",null,null,null,null,null,null,0,0]
[0,0,0,null,null,null,"",null,null,null,null,null,null,0,0]
[0,0,0,null,null,null,"",null,null,null,null,null,null,0,0]
[0,0,0,null,null,null,"",null,null,null,null,null,null,0,0]
[0,0,0,null,null,null,"",null,null,null,null,null,null,0,0]
[0,0,0,null,null,null,"",null,null,null,null,null,null,0,0]
[0,0,0,null,null,null,"",null,null,null,null,null,null,0,0]
[0,0,0,null,null,null,"",null,null,null,null,null,null,0,0]
[0,0,0,null,null,null,"",null,null,null,null,null,null,0,0]
[0,0,0,null,null,null,"",null,null,null,null,null,null,0,0]
[0,0,0,null,null,null,"",null,null,null,null,null,null,0,0]
[0,0,0,null,null,null,"",null,null,null,null,null,null,0,0]
[0,0,0,null,null,null,"",null,null,null,null,null,null,0,0]
[0,0,0,null,null,null,"",null,null,null,null,null,null,0,0]
[0,0,0,null,null,null,"",null,null,null,null,null,null,0,0]
[0,0,0,null,null,null,"",null,null,null,null,null,null,0,0]
[0,0,0,null,null,null,"",null,null,null,null,null,null,0,0]
[0,0,0,null,null,null,"",null,null,null,null,null,null,0,0]
[0,0,0,null,null,null,"",null,null,null,null,null,null,0,0]
[0,0,0,null,null,null,"",null,null,null,null,null,null,0,0]
[0,0,0,null,null,null,"",null,null,null,null,null,null,0,0]
[0,0,0,null,null,null,"",null,null,null,null,null,null,0,0]
[0,0,0,null,null,null,"",null,null,null,null,null,null,0,0]
[0,0,0,null,null,null,"",null,null,null,null,null,null,0,0]
[0,0,0,null,null,null,"",null,null,null,null,null,null,0,0]
[0,0,0,null,null,null,"",null,null,null,null,null,null,0,0]
[0,0,0,null,null,null,"",null,null,null,null,null,null,0,0]
[0,0,0,null,null,null,"",null,null,null,null,null,null,0,0]
[0,0,0,null,null,null,"",null,null,null,null,null,null,0,0]
[0,0,0,null,null,null,"",null,null,null,null,null,null,0,0]
[0,0,0,null,null,null,"",null,null,null,null,null,null,0,0]
[0,0,0,null,null,null,"",null,null,null,null,null,null,0,0]
[0,0,0,null,null,null,"",null,null,null,null,null,null,0,0]
[0,0,0,null,null,null,"",null,null,null,null,null,null,0,0]
[0,0,0,null,null,null,"",null,null,null,null,null,null,0,0]
[0,0,0,null,null,null,"",null,null,null,null,null,null,0,0]
[0,0,0,null,null,null,"",null,null,null,null,null,null,{"$f":"IF(M3202<>0,1,0)","v":0},{"$f":"IF(D3202<>0,1,0)","v":0}]
[{"$f":"IF(M3203=\"Y\",1,0)","v":0},{"$f":"IF(M3203=\"N\",1,0)","v":0},{"$f":"IF(M3203=\"A\",1,0)","v":0},null,null,null,"",null,null,null,null,null,null,0,0]
[0,0,0,null,null,null,"",null,null,null,null,null,null,0,0]
[0,0,0,null,null,null,"",null,null,null,null,null,null,0,0]
[0,0,0,null,null,null,"",null,null,null,null,null,null,0,0]
[0,0,0,null,null,null,"",null,null,null,null,null,null,0,0]
[0,0,0,null,null,null,"",null,null,null,null,null,null,0,0]
[0,0,0,null,null,null,"",null,null,null,null,null,null,0,0]
[0,0,0,null,null,null,"",null,null,null,null,null,null,0,0]
[0,0,0,null,null,null,"",null,null,null,null,null,null,0,0]
[0,0,0,null,null,null,"",null,null,null,null,null,null,0,0]
[0,0,0,null,null,null,"",null,null,null,null,null,null,0,0]
[0,0,0,null,null,null,"",null,null,null,null,null,null,0,0]
[0,0,0,null,null,null,"",null,null,null,null,null,null,0,0]
[0,0,0,null,null,null,{"$f":"IF(D3216<>\"\",G3215+1,\"\")","v":""},null,null,null,null,null,null,0,0]
[0,0,0,null,null,null,"",null,null,null,null,null,null,0,0]
[0,0,0,null,null,null,"",null,null,null,null,null,null,0,0]
[0,0,0,null,null,null,"",null,null,null,null,null,null,0,0]
[0,0,0,null,null,null,"",null,null,null,null,null,null,0,0]
[0,0,0,null,null,null,"",null,null,null,null,null,null,0,0]
[0,0,0,null,null,null,"",null,null,null,null,null,null,0,0]
[0,0,0,null,null,null,"",null,null,null,null,null,null,0,0]
[0,0,0,null,null,null,"",null,null,null,null,null,null,0,0]
[0,0,0,null,null,null,"",null,null,null,null,null,null,0,0]
[0,0,0,null,null,null,"",null,null,null,null,null,null,0,0]
[0,0,0,null,null,null,"",null,null,null,null,null,null,0,0]
[0,0,0,null,null,null,"",null,null,null,null,null,null,0,0]
[0,0,0,null,null,null,"",null,null,null,null,null,null,0,0]
[0,0,0,null,null,null,"",null,null,null,null,null,null,0,0]
[0,0,0,null,null,null,"",null,null,null,null,null,null,0,0]
[0,0,0,null,null,null,"",null,null,null,null,null,null,0,0]
[0,0,0,null,null,null,"",null,null,null,null,null,null,0,0]
[0,0,0,null,null,null,"",null,null,null,null,null,null,0,0]
[0,0,0,null,null,null,"",null,null,null,null,null,null,0,0]
[0,0,0,null,null,null,"",null,null,null,null,null,null,0,0]
[0,0,0,null,null,null,"",null,null,null,null,null,null,0,0]
[0,0,0,null,null,null,"",null,null,null,null,null,null,0,0]
[0,0,0,null,null,null,"",null,null,null,null,null,null,0,0]
[0,0,0,null,null,null,"",null,null,null,null,null,null,0,0]
[0,0,0,null,null,null,"",null,null,null,null,null,null,0,0]
[0,0,0,null,null,null,"",null,null,null,null,null,null,0,0]
[0,0,0,null,null,null,"",null,null,null,null,null,null,0,0]
[0,0,0,null,null,null,"",null,null,null,null,null,null,0,0]
[0,0,0,null,null,null,"",null,null,null,null,null,null,0,0]
[0,0,0,null,null,null,"",null,null,null,null,null,null,0,0]
[0,0,0,null,null,null,"",null,null,null,null,null,null,0,0]
[0,0,0,null,null,null,"",null,null,null,null,null,null,0,0]
[0,0,0,null,null,null,"",null,null,null,null,null,null,0,0]
[0,0,0,null,null,null,"",null,null,null,null,null,null,0,0]
[0,0,0,null,null,null,"",null,null,null,null,null,null,0,0]
[0,0,0,null,null,null,"",null,null,null,null,null,null,0,0]
[0,0,0,null,null,null,"",null,null,null,null,null,null,0,0]
[0,0,0,null,null,null,"",null,null,null,null,null,null,0,0]
[0,0,0,null,null,null,"",null,null,null,null,null,null,0,0]
[0,0,0,null,null,null,"",null,null,null,null,null,null,0,0]
[0,0,0,null,null,null,"",null,null,null,null,null,null,0,0]
[0,0,0,null,null,null,"",null,null,null,null,null,null,0,0]
[0,0,0,null,null,null,"",null,null,null,null,null,null,0,0]
[0,0,0,null,null,null,"",null,null,null,null,null,null,0,0]
[0,0,0,null,null,null,"",null,null,null,null,null,null,0,0]
[0,0,0,null,null,null,"",null,null,null,null,null,null,0,0]
[0,0,0,null,null,null,"",null,null,null,null,null,null,0,0]
[0,0,0,null,null,null,"",null,null,null,null,null,null,0,0]
[0,0,0,null,null,null,"",null,null,null,null,null,null,0,0]
[0,0,0,null,null,null,"",null,null,null,null,null,null,{"$f":"IF(M3266<>0,1,0)","v":0},{"$f":"IF(D3266<>0,1,0)","v":0}]
[{"$f":"IF(M3267=\"Y\",1,0)","v":0},{"$f":"IF(M3267=\"N\",1,0)","v":0},{"$f":"IF(M3267=\"A\",1,0)","v":0},null,null,null,"",null,null,null,null,null,null,0,0]
[0,0,0,null,null,null,"",null,null,null,null,null,null,0,0]
[0,0,0,null,null,null,"",null,null,null,null,null,null,0,0]
[0,0,0,null,null,null,"",null,null,null,null,null,null,0,0]
[0,0,0,null,null,null,"",null,null,null,null,null,null,0,0]
[0,0,0,null,null,null,"",null,null,null,null,null,null,0,0]
[0,0,0,null,null,null,"",null,null,null,null,null,null,0,0]
[0,0,0,null,null,null,"",null,null,null,null,null,null,0,0]
[0,0,0,null,null,null,"",null,null,null,null,null,null,0,0]
[0,0,0,null,null,null,"",null,null,null,null,null,null,0,0]
[0,0,0,null,null,null,"",null,null,null,null,null,null,0,0]
[0,0,0,null,null,null,"",null,null,null,null,null,null,0,0]
[0,0,0,null,null,null,"",null,null,null,null,null,null,0,0]
[0,0,0,null,null,null,{"$f":"IF(D3280<>\"\",G3279+1,\"\")","v":""},null,null,null,null,null,null,0,0]
[0,0,0,null,null,null,"",null,null,null,null,null,null,0,0]
[0,0,0,null,null,null,"",null,null,null,null,null,null,0,0]
[0,0,0,null,null,null,"",null,null,null,null,null,null,0,0]
[0,0,0,null,null,null,"",null,null,null,null,null,null,0,0]
[0,0,0,null,null,null,"",null,null,null,null,null,null,0,0]
[0,0,0,null,null,null,"",null,null,null,null,null,null,0,0]
[0,0,0,null,null,null,"",null,null,null,null,null,null,0,0]
[0,0,0,null,null,null,"",null,null,null,null,null,null,0,0]
[0,0,0,null,null,null,"",null,null,null,null,null,null,0,0]
[0,0,0,null,null,null,"",null,null,null,null,null,null,0,0]
[0,0,0,null,null,null,"",null,null,null,null,null,null,0,0]
[0,0,0,null,null,null,"",null,null,null,null,null,null,0,0]
[0,0,0,null,null,null,"",null,null,null,null,null,null,0,0]
[0,0,0,null,null,null,"",null,null,null,null,null,null,0,0]
[0,0,0,null,null,null,"",null,null,null,null,null,null,0,0]
[0,0,0,null,null,null,"",null,null,null,null,null,null,0,0]
[0,0,0,null,null,null,"",null,null,null,null,null,null,0,0]
[0,0,0,null,null,null,"",null,null,null,null,null,null,0,0]
[0,0,0,null,null,null,"",null,null,null,null,null,null,0,0]
[0,0,0,null,null,null,"",null,null,null,null,null,null,0,0]
[0,0,0,null,null,null,"",null,null,null,null,null,null,0,0]
[0,0,0,null,null,null,"",null,null,null,null,null,null,0,0]
[0,0,0,null,null,null,"",null,null,null,null,null,null,0,0]
[0,0,0,null,null,null,"",null,null,null,null,null,null,0,0]
[0,0,0,null,null,null,"",null,null,null,null,null,null,0,0]
[0,0,0,null,null,null,"",null,null,null,null,null,null,0,0]
[0,0,0,null,null,null,"",null,null,null,null,null,null,0,0]
[0,0,0,null,null,null,"",null,null,null,null,null,null,0,0]
[0,0,0,null,null,null,"",null,null,null,null,null,null,0,0]
[0,0,0,null,null,null,"",null,null,null,null,null,null,0,0]
[0,0,0,null,null,null,"",null,null,null,null,null,null,0,0]
[0,0,0,null,null,null,"",null,null,null,null,null,null,0,0]
[0,0,0,null,null,null,"",null,null,null,null,null,null,0,0]
[0,0,0,null,null,null,"",null,null,null,null,null,null,0,0]
[0,0,0,null,null,null,"",null,null,null,null,null,null,0,0]
[0,0,0,null,null,null,"",null,null,null,null,null,null,0,0]
[0,0,0,null,null,null,"",null,null,null,null,null,null,0,0]
[0,0,0,null,null,null,"",null,null,null,null,null,null,0,0]
[0,0,0,null,null,null,"",null,null,null,null,null,null,0,0]
[0,0,0,null,null,null,"",null,null,null,null,null,null,0,0]
[0,0,0,null,null,null,"",null,null,null,null,null,null,0,0]
[0,0,0,null,null,null,"",null,null,null,null,null,null,0,0]
[0,0,0,null,null,null,"",null,null,null,null,null,null,0,0]
[0,0,0,null,null,null,"",null,null,null,null,null,null,0,0]
[0,0,0,null,null,null,"",null,null,null,null,null,null,0,0]
[0,0,0,null,null,null,"",null,null,null,null,null,null,0,0]
[0,0,0,null,null,null,"",null,null,null,null,null,null,0,0]
[0,0,0,null,null,null,"",null,null,null,null,null,null,0,0]
[0,0,0,null,null,null,"",null,null,null,null,null,null,0,0]
[0,0,0,null,null,null,"",null,null,null,null,null,null,{"$f":"IF(M3330<>0,1,0)","v":0},{"$f":"IF(D3330<>0,1,0)","v":0}]
[{"$f":"IF(M3331=\"Y\",1,0)","v":0},{"$f":"IF(M3331=\"N\",1,0)","v":0},{"$f":"IF(M3331=\"A\",1,0)","v":0},null,null,null,"",null,null,null,null,null,null,0,0]
[0,0,0,null,null,null,"",null,null,null,null,null,null,0,0]
[0,0,0,null,null,null,"",null,null,null,null,null,null,0,0]
[0,0,0,null,null,null,"",null,null,null,null,null,null,0,0]
[0,0,0,null,null,null,"",null,null,null,null,null,null,0,0]
[0,0,0,null,null,null,"",null,null,null,null,null,null,0,0]
[0,0,0,null,null,null,"",null,null,null,null,null,null,0,0]
[0,0,0,null,null,null,"",null,null,null,null,null,null,0,0]
[0,0,0,null,null,null,"",null,null,null,null,null,null,0,0]
[0,0,0,null,null,null,"",null,null,null,null,null,null,0,0]
[0,0,0,null,null,null,"",null,null,null,null,null,null,0,0]
[0,0,0,null,null,null,"",null,null,null,null,null,null,0,0]
[0,0,0,null,null,null,"",null,null,null,null,null,null,0,0]
[0,0,0,null,null,null,{"$f":"IF(D3344<>\"\",G3343+1,\"\")","v":""},null,null,null,null,null,null,0,0]
[0,0,0,null,null,null,"",null,null,null,null,null,null,0,0]
[0,0,0,null,null,null,"",null,null,null,null,null,null,0,0]
[0,0,0,null,null,null,"",null,null,null,null,null,null,0,0]
[0,0,0,null,null,null,"",null,null,null,null,null,null,0,0]
[0,0,0,null,null,null,"",null,null,null,null,null,null,0,0]
[0,0,0,null,null,null,"",null,null,null,null,null,null,0,0]
[0,0,0,null,null,null,"",null,null,null,null,null,null,0,0]
[0,0,0,null,null,null,"",null,null,null,null,null,null,0,0]
[0,0,0,null,null,null,"",null,null,null,null,null,null,0,0]
[0,0,0,null,null,null,"",null,null,null,null,null,null,0,0]
[0,0,0,null,null,null,"",null,null,null,null,null,null,0,0]
[0,0,0,null,null,null,"",null,null,null,null,null,null,0,0]
[0,0,0,null,null,null,"",null,null,null,null,null,null,0,0]
[0,0,0,null,null,null,"",null,null,null,null,null,null,0,0]
[0,0,0,null,null,null,"",null,null,null,null,null,null,0,0]
[0,0,0,null,null,null,"",null,null,null,null,null,null,0,0]
[0,0,0,null,null,null,"",null,null,null,null,null,null,0,0]
[0,0,0,null,null,null,"",null,null,null,null,null,null,0,0]
[0,0,0,null,null,null,"",null,null,null,null,null,null,0,0]
[0,0,0,null,null,null,"",null,null,null,null,null,null,0,0]
[0,0,0,null,null,null,"",null,null,null,null,null,null,0,0]
[0,0,0,null,null,null,"",null,null,null,null,null,null,0,0]
[0,0,0,null,null,null,"",null,null,null,null,null,null,0,0]
[0,0,0,null,null,null,"",null,null,null,null,null,null,0,0]
[0,0,0,null,null,null,"",null,null,null,null,null,null,0,0]
[0,0,0,null,null,null,"",null,null,null,null,null,null,0,0]
[0,0,0,null,null,null,"",null,null,null,null,null,null,0,0]
[0,0,0,null,null,null,"",null,null,null,null,null,null,0,0]
[0,0,0,null,null,null,"",null,null,null,null,null,null,0,0]
[0,0,0,null,null,null,"",null,null,null,null,null,null,0,0]
[0,0,0,null,null,null,"",null,null,null,null,null,null,0,0]
[0,0,0,null,null,null,"",null,null,null,null,null,null,0,0]
[0,0,0,null,null,null,"",null,null,null,null,null,null,0,0]
[0,0,0,null,null,null,"",null,null,null,null,null,null,0,0]
[0,0,0,null,null,null,"",null,null,null,null,null,null,0,0]
[0,0,0,null,null,null,"",null,null,null,null,null,null,0,0]
[0,0,0,null,null,null,"",null,null,null,null,null,null,0,0]
[0,0,0,null,null,null,"",null,null,null,null,null,null,0,0]
[0,0,0,null,null,null,"",null,null,null,null,null,null,0,0]
[0,0,0,null,null,null,"",null,null,null,null,null,null,0,0]
[0,0,0,null,null,null,"",null,null,null,null,null,null,0,0]
[0,0,0,null,null,null,"",null,null,null,null,null,null,0,0]
[0,0,0,null,null,null,"",null,null,null,null,null,null,0,0]
[0,0,0,null,null,null,"",null,null,null,null,null,null,0,0]
[0,0,0,null,null,null,"",null,null,null,null,null,null,0,0]
[0,0,0,null,null,null,"",null,null,null,null,null,null,0,0]
[0,0,0,null,null,null,"",null,null,null,null,null,null,0,0]
[0,0,0,null,null,null,"",null,null,null,null,null,null,0,0]
[0,0,0,null,null,null,"",null,null,null,null,null,null,0,0]
[0,0,0,null,null,null,"",null,null,null,null,null,null,{"$f":"IF(M3394<>0,1,0)","v":0},{"$f":"IF(D3394<>0,1,0)","v":0}]
[{"$f":"IF(M3395=\"Y\",1,0)","v":0},{"$f":"IF(M3395=\"N\",1,0)","v":0},{"$f":"IF(M3395=\"A\",1,0)","v":0},null,null,null,"",null,null,null,null,null,null,0,0]
[0,0,0,null,null,null,"",null,null,null,null,null,null,0,0]
[0,0,0,null,null,null,"",null,null,null,null,null,null,0,0]
[0,0,0,null,null,null,"",null,null,null,null,null,null,0,0]
[0,0,0,null,null,null,"",null,null,null,null,null,null,0,0]
[0,0,0,null,null,null,"",null,null,null,null,null,null,0,0]
[0,0,0,null,null,null,"",null,null,null,null,null,null,0,0]
[0,0,0,null,null,null,"",null,null,null,null,null,null,0,0]
[0,0,0,null,null,null,"",null,null,null,null,null,null,0,0]
[0,0,0,null,null,null,"",null,null,null,null,null,null,0,0]
[0,0,0,null,null,null,"",null,null,null,null,null,null,0,0]
[0,0,0,null,null,null,"",null,null,null,null,null,null,0,0]
[0,0,0,null,null,null,"",null,null,null,null,null,null,0,0]
[0,0,0,null,null,null,{"$f":"IF(D3408<>\"\",G3407+1,\"\")","v":""},null,null,null,null,null,null,0,0]
[0,0,0,null,null,null,"",null,null,null,null,null,null,0,0]
[0,0,0,null,null,null,"",null,null,null,null,null,null,0,0]
[0,0,0,null,null,null,"",null,null,null,null,null,null,0,0]
[0,0,0,null,null,null,"",null,null,null,null,null,null,0,0]
[0,0,0,null,null,null,"",null,null,null,null,null,null,0,0]
[0,0,0,null,null,null,"",null,null,null,null,null,null,0,0]
[0,0,0,null,null,null,"",null,null,null,null,null,null,0,0]
[0,0,0,null,null,null,"",null,null,null,null,null,null,0,0]
[0,0,0,null,null,null,"",null,null,null,null,null,null,0,0]
[0,0,0,null,null,null,"",null,null,null,null,null,null,0,0]
[0,0,0,null,null,null,"",null,null,null,null,null,null,0,0]
[0,0,0,null,null,null,"",null,null,null,null,null,null,0,0]
[0,0,0,null,null,null,"",null,null,null,null,null,null,0,0]
[0,0,0,null,null,null,"",null,null,null,null,null,null,0,0]
[0,0,0,null,null,null,"",null,null,null,null,null,null,0,0]
[0,0,0,null,null,null,"",null,null,null,null,null,null,0,0]
[0,0,0,null,null,null,"",null,null,null,null,null,null,0,0]
[0,0,0,null,null,null,"",null,null,null,null,null,null,0,0]
[0,0,0,null,null,null,"",null,null,null,null,null,null,0,0]
[0,0,0,null,null,null,"",null,null,null,null,null,null,0,0]
[0,0,0,null,null,null,"",null,null,null,null,null,null,0,0]
[0,0,0,null,null,null,"",null,null,null,null,null,null,0,0]
[0,0,0,null,null,null,"",null,null,null,null,null,null,0,0]
[0,0,0,null,null,null,"",null,null,null,null,null,null,0,0]
[0,0,0,null,null,null,"",null,null,null,null,null,null,0,0]
[0,0,0,null,null,null,"",null,null,null,null,null,null,0,0]
[0,0,0,null,null,null,"",null,null,null,null,null,null,0,0]
[0,0,0,null,null,null,"",null,null,null,null,null,null,0,0]
[0,0,0,null,null,null,"",null,null,null,null,null,null,0,0]
[0,0,0,null,null,null,"",null,null,null,null,null,null,0,0]
[0,0,0,null,null,null,"",null,null,null,null,null,null,0,0]
[0,0,0,null,null,null,"",null,null,null,null,null,null,0,0]
[0,0,0,null,null,null,"",null,null,null,null,null,null,0,0]
[0,0,0,null,null,null,"",null,null,null,null,null,null,0,0]
[0,0,0,null,null,null,"",null,null,null,null,null,null,0,0]
[0,0,0,null,null,null,"",null,null,null,null,null,null,0,0]
[0,0,0,null,null,null,"",null,null,null,null,null,null,0,0]
[0,0,0,null,null,null,"",null,null,null,null,null,null,0,0]
[0,0,0,null,null,null,"",null,null,null,null,null,null,0,0]
[0,0,0,null,null,null,"",null,null,null,null,null,null,0,0]
[0,0,0,null,null,null,"",null,null,null,null,null,null,0,0]
[0,0,0,null,null,null,"",null,null,null,null,null,null,0,0]
[0,0,0,null,null,null,"",null,null,null,null,null,null,0,0]
[0,0,0,null,null,null,"",null,null,null,null,null,null,0,0]
[0,0,0,null,null,null,"",null,null,null,null,null,null,0,0]
[0,0,0,null,null,null,"",null,null,null,null,null,null,0,0]
[0,0,0,null,null,null,"",null,null,null,null,null,null,0,0]
[0,0,0,null,null,null,"",null,null,null,null,null,null,0,0]
[0,0,0,null,null,null,"",null,null,null,null,null,null,0,0]
[0,0,0,null,null,null,"",null,null,null,null,null,null,{"$f":"IF(M3458<>0,1,0)","v":0},{"$f":"IF(D3458<>0,1,0)","v":0}]
[{"$f":"IF(M3459=\"Y\",1,0)","v":0},{"$f":"IF(M3459=\"N\",1,0)","v":0},{"$f":"IF(M3459=\"A\",1,0)","v":0},null,null,null,"",null,null,null,null,null,null,0,0]
[0,0,0,null,null,null,"",null,null,null,null,null,null,0,0]
[0,0,0,null,null,null,"",null,null,null,null,null,null,0,0]
[0,0,0,null,null,null,"",null,null,null,null,null,null,0,0]
[0,0,0,null,null,null,"",null,null,null,null,null,null,0,0]
[0,0,0,null,null,null,"",null,null,null,null,null,null,0,0]
[0,0,0,null,null,null,"",null,null,null,null,null,null,0,0]
[0,0,0,null,null,null,"",null,null,null,null,null,null,0,0]
[0,0,0,null,null,null,"",null,null,null,null,null,null,0,0]
[0,0,0,null,null,null,"",null,null,null,null,null,null,0,0]
[0,0,0,null,null,null,"",null,null,null,null,null,null,0,0]
[0,0,0,null,null,null,"",null,null,null,null,null,null,0,0]
[0,0,0,null,null,null,"",null,null,null,null,null,null,0,0]
[0,0,0,null,null,null,{"$f":"IF(D3472<>\"\",G3471+1,\"\")","v":""},null,null,null,null,null,null,0,0]
[0,0,0,null,null,null,"",null,null,null,null,null,null,0,0]
[0,0,0,null,null,null,"",null,null,null,null,null,null,0,0]
[0,0,0,null,null,null,"",null,null,null,null,null,null,0,0]
[0,0,0,null,null,null,"",null,null,null,null,null,null,0,0]
[0,0,0,null,null,null,"",null,null,null,null,null,null,0,0]
[0,0,0,null,null,null,"",null,null,null,null,null,null,0,0]
[0,0,0,null,null,null,"",null,null,null,null,null,null,0,0]
[0,0,0,null,null,null,"",null,null,null,null,null,null,0,0]
[0,0,0,null,null,null,"",null,null,null,null,null,null,0,0]
[0,0,0,null,null,null,"",null,null,null,null,null,null,0,0]
[0,0,0,null,null,null,"",null,null,null,null,null,null,0,0]
[0,0,0,null,null,null,"",null,null,null,null,null,null,0,0]
[0,0,0,null,null,null,"",null,null,null,null,null,null,0,0]
[0,0,0,null,null,null,"",null,null,null,null,null,null,0,0]
[0,0,0,null,null,null,"",null,null,null,null,null,null,0,0]
[0,0,0,null,null,null,"",null,null,null,null,null,null,0,0]
[0,0,0,null,null,null,"",null,null,null,null,null,null,0,0]
[0,0,0,null,null,null,"",null,null,null,null,null,null,0,0]
[0,0,0,null,null,null,"",null,null,null,null,null,null,0,0]
[0,0,0,null,null,null,"",null,null,null,null,null,null,0,0]
[0,0,0,null,null,null,"",null,null,null,null,null,null,0,0]
[0,0,0,null,null,null,"",null,null,null,null,null,null,0,0]
[0,0,0,null,null,null,"",null,null,null,null,null,null,0,0]
[0,0,0,null,null,null,"",null,null,null,null,null,null,0,0]
[0,0,0,null,null,null,"",null,null,null,null,null,null,0,0]
[0,0,0,null,null,null,"",null,null,null,null,null,null,0,0]
[0,0,0,null,null,null,"",null,null,null,null,null,null,0,0]
[0,0,0,null,null,null,"",null,null,null,null,null,null,0,0]
[0,0,0,null,null,null,"",null,null,null,null,null,null,0,0]
[0,0,0,null,null,null,"",null,null,null,null,null,null,0,0]
[0,0,0,null,null,null,"",null,null,null,null,null,null,0,0]
[0,0,0,null,null,null,"",null,null,null,null,null,null,0,0]
[0,0,0,null,null,null,"",null,null,null,null,null,null,0,0]
[0,0,0,null,null,null,"",null,null,null,null,null,null,0,0]
[0,0,0,null,null,null,"",null,null,null,null,null,null,0,0]
[0,0,0,null,null,null,"",null,null,null,null,null,null,0,0]
[0,0,0,null,null,null,"",null,null,null,null,null,null,0,0]
[0,0,0,null,null,null,"",null,null,null,null,null,null,0,0]
[0,0,0,null,null,null,"",null,null,null,null,null,null,0,0]
[0,0,0,null,null,null,"",null,null,null,null,null,null,0,0]
[0,0,0,null,null,null,"",null,null,null,null,null,null,0,0]
[0,0,0,null,null,null,"",null,null,null,null,null,null,0,0]
[0,0,0,null,null,null,"",null,null,null,null,null,null,0,0]
[0,0,0,null,null,null,"",null,null,null,null,null,null,0,0]
[0,0,0,null,null,null,"",null,null,null,null,null,null,0,0]
[0,0,0,null,null,null,"",null,null,null,null,null,null,0,0]
[0,0,0,null,null,null,"",null,null,null,null,null,null,0,0]
[0,0,0,null,null,null,"",null,null,null,null,null,null,0,0]
[0,0,0,null,null,null,"",null,null,null,null,null,null,0,0]
[0,0,0,null,null,null,"",null,null,null,null,null,null,{"$f":"IF(M3522<>0,1,0)","v":0},{"$f":"IF(D3522<>0,1,0)","v":0}]
[{"$f":"IF(M3523=\"Y\",1,0)","v":0},{"$f":"IF(M3523=\"N\",1,0)","v":0},{"$f":"IF(M3523=\"A\",1,0)","v":0},null,null,null,"",null,null,null,null,null,null,0,0]
[0,0,0,null,null,null,"",null,null,null,null,null,null,0,0]
[0,0,0,null,null,null,"",null,null,null,null,null,null,0,0]
[0,0,0,null,null,null,"",null,null,null,null,null,null,0,0]
[0,0,0,null,null,null,"",null,null,null,null,null,null,0,0]
[0,0,0,null,null,null,"",null,null,null,null,null,null,0,0]
[0,0,0,null,null,null,"",null,null,null,null,null,null,0,0]
[0,0,0,null,null,null,"",null,null,null,null,null,null,0,0]
[0,0,0,null,null,null,"",null,null,null,null,null,null,0,0]
[0,0,0,null,null,null,"",null,null,null,null,null,null,0,0]
[0,0,0,null,null,null,"",null,null,null,null,null,null,0,0]
[0,0,0,null,null,null,"",null,null,null,null,null,null,0,0]
[0,0,0,null,null,null,"",null,null,null,null,null,null,0,0]
[0,0,0,null,null,null,{"$f":"IF(D3536<>\"\",G3535+1,\"\")","v":""},null,null,null,null,null,null,0,0]
[0,0,0,null,null,null,"",null,null,null,null,null,null,0,0]
[0,0,0,null,null,null,"",null,null,null,null,null,null,0,0]
[0,0,0,null,null,null,"",null,null,null,null,null,null,0,0]
[0,0,0,null,null,null,"",null,null,null,null,null,null,0,0]
[0,0,0,null,null,null,"",null,null,null,null,null,null,0,0]
[0,0,0,null,null,null,"",null,null,null,null,null,null,0,0]
[0,0,0,null,null,null,"",null,null,null,null,null,null,0,0]
[0,0,0,null,null,null,"",null,null,null,null,null,null,0,0]
[0,0,0,null,null,null,"",null,null,null,null,null,null,0,0]
[0,0,0,null,null,null,"",null,null,null,null,null,null,0,0]
[0,0,0,null,null,null,"",null,null,null,null,null,null,0,0]
[0,0,0,null,null,null,"",null,null,null,null,null,null,0,0]
[0,0,0,null,null,null,"",null,null,null,null,null,null,0,0]
[0,0,0,null,null,null,"",null,null,null,null,null,null,0,0]
[0,0,0,null,null,null,"",null,null,null,null,null,null,0,0]
[0,0,0,null,null,null,"",null,null,null,null,null,null,0,0]
[0,0,0,null,null,null,"",null,null,null,null,null,null,0,0]
[0,0,0,null,null,null,"",null,null,null,null,null,null,0,0]
[0,0,0,null,null,null,"",null,null,null,null,null,null,0,0]
[0,0,0,null,null,null,"",null,null,null,null,null,null,0,0]
[0,0,0,null,null,null,"",null,null,null,null,null,null,0,0]
[0,0,0,null,null,null,"",null,null,null,null,null,null,0,0]
[0,0,0,null,null,null,"",null,null,null,null,null,null,0,0]
[0,0,0,null,null,null,"",null,null,null,null,null,null,0,0]
[0,0,0,null,null,null,"",null,null,null,null,null,null,0,0]
[0,0,0,null,null,null,"",null,null,null,null,null,null,0,0]
[0,0,0,null,null,null,"",null,null,null,null,null,null,0,0]
[0,0,0,null,null,null,"",null,null,null,null,null,null,0,0]
[0,0,0,null,null,null,"",null,null,null,null,null,null,0,0]
[0,0,0,null,null,null,"",null,null,null,null,null,null,0,0]
[0,0,0,null,null,null,"",null,null,null,null,null,null,0,0]
[0,0,0,null,null,null,"",null,null,null,null,null,null,0,0]
[0,0,0,null,null,null,"",null,null,null,null,null,null,0,0]
[0,0,0,null,null,null,"",null,null,null,null,null,null,0,0]
[0,0,0,null,null,null,"",null,null,null,null,null,null,0,0]
[0,0,0,null,null,null,"",null,null,null,null,null,null,0,0]
[0,0,0,null,null,null,"",null,null,null,null,null,null,0,0]
[0,0,0,null,null,null,"",null,null,null,null,null,null,0,0]
[0,0,0,null,null,null,"",null,null,null,null,null,null,0,0]
[0,0,0,null,null,null,"",null,null,null,null,null,null,0,0]
[0,0,0,null,null,null,"",null,null,null,null,null,null,0,0]
[0,0,0,null,null,null,"",null,null,null,null,null,null,0,0]
[0,0,0,null,null,null,"",null,null,null,null,null,null,0,0]
[0,0,0,null,null,null,"",null,null,null,null,null,null,0,0]
[0,0,0,null,null,null,"",null,null,null,null,null,null,0,0]
[0,0,0,null,null,null,"",null,null,null,null,null,null,0,0]
[0,0,0,null,null,null,"",null,null,null,null,null,null,0,0]
[0,0,0,null,null,null,"",null,null,null,null,null,null,0,0]
[0,0,0,null,null,null,"",null,null,null,null,null,null,0,0]
[0,0,0,null,null,null,"",null,null,null,null,null,null,{"$f":"IF(M3586<>0,1,0)","v":0},{"$f":"IF(D3586<>0,1,0)","v":0}]
[{"$f":"IF(M3587=\"Y\",1,0)","v":0},{"$f":"IF(M3587=\"N\",1,0)","v":0},{"$f":"IF(M3587=\"A\",1,0)","v":0},null,null,null,"",null,null,null,null,null,null,0,0]
[0,0,0,null,null,null,"",null,null,null,null,null,null,0,0]
[0,0,0,null,null,null,"",null,null,null,null,null,null,0,0]
[0,0,0,null,null,null,"",null,null,null,null,null,null,0,0]
[0,0,0,null,null,null,"",null,null,null,null,null,null,0,0]
[0,0,0,null,null,null,"",null,null,null,null,null,null,0,0]
[0,0,0,null,null,null,"",null,null,null,null,null,null,0,0]
[0,0,0,null,null,null,"",null,null,null,null,null,null,0,0]
[0,0,0,null,null,null,"",null,null,null,null,null,null,0,0]
[0,0,0,null,null,null,"",null,null,null,null,null,null,0,0]
[0,0,0,null,null,null,"",null,null,null,null,null,null,0,0]
[0,0,0,null,null,null,"",null,null,null,null,null,null,0,0]
[0,0,0,null,null,null,"",null,null,null,null,null,null,0,0]
[0,0,0,null,null,null,{"$f":"IF(D3600<>\"\",G3599+1,\"\")","v":""},null,null,null,null,null,null,0,0]
[0,0,0,null,null,null,"",null,null,null,null,null,null,0,0]
[0,0,0,null,null,null,"",null,null,null,null,null,null,0,0]
[0,0,0,null,null,null,"",null,null,null,null,null,null,0,0]
[0,0,0,null,null,null,"",null,null,null,null,null,null,0,0]
[0,0,0,null,null,null,"",null,null,null,null,null,null,0,0]
[0,0,0,null,null,null,"",null,null,null,null,null,null,0,0]
[0,0,0,null,null,null,"",null,null,null,null,null,null,0,0]
[0,0,0,null,null,null,"",null,null,null,null,null,null,0,0]
[0,0,0,null,null,null,"",null,null,null,null,null,null,0,0]
[0,0,0,null,null,null,"",null,null,null,null,null,null,0,0]
[0,0,0,null,null,null,"",null,null,null,null,null,null,0,0]
[0,0,0,null,null,null,"",null,null,null,null,null,null,0,0]
[0,0,0,null,null,null,"",null,null,null,null,null,null,0,0]
[0,0,0,null,null,null,"",null,null,null,null,null,null,0,0]
[0,0,0,null,null,null,"",null,null,null,null,null,null,0,0]
[0,0,0,null,null,null,"",null,null,null,null,null,null,0,0]
[0,0,0,null,null,null,"",null,null,null,null,null,null,0,0]
[0,0,0,null,null,null,"",null,null,null,null,null,null,0,0]
[0,0,0,null,null,null,"",null,null,null,null,null,null,0,0]
[0,0,0,null,null,null,"",null,null,null,null,null,null,0,0]
[0,0,0,null,null,null,"",null,null,null,null,null,null,0,0]
[0,0,0,null,null,null,"",null,null,null,null,null,null,0,0]
[0,0,0,null,null,null,"",null,null,null,null,null,null,0,0]
[0,0,0,null,null,null,"",null,null,null,null,null,null,0,0]
[0,0,0,null,null,null,"",null,null,null,null,null,null,0,0]
[0,0,0,null,null,null,"",null,null,null,null,null,null,0,0]
[0,0,0,null,null,null,"",null,null,null,null,null,null,0,0]
[0,0,0,null,null,null,"",null,null,null,null,null,null,0,0]
[0,0,0,null,null,null,"",null,null,null,null,null,null,0,0]
[0,0,0,null,null,null,"",null,null,null,null,null,null,0,0]
[0,0,0,null,null,null,"",null,null,null,null,null,null,0,0]
[0,0,0,null,null,null,"",null,null,null,null,null,null,0,0]
[0,0,0,null,null,null,"",null,null,null,null,null,null,0,0]
[0,0,0,null,null,null,"",null,null,null,null,null,null,0,0]
[0,0,0,null,null,null,"",null,null,null,null,null,null,0,0]
[0,0,0,null,null,null,"",null,null,null,null,null,null,0,0]
[0,0,0,null,null,null,"",null,null,null,null,null,null,0,0]
[0,0,0,null,null,null,"",null,null,null,null,null,null,0,0]
[0,0,0,null,null,null,"",null,null,null,null,null,null,0,0]
[0,0,0,null,null,null,"",null,null,null,null,null,null,0,0]
[0,0,0,null,null,null,"",null,null,null,null,null,null,0,0]
[0,0,0,null,null,null,"",null,null,null,null,null,null,0,0]
[0,0,0,null,null,null,"",null,null,null,null,null,null,0,0]
[0,0,0,null,null,null,"",null,null,null,null,null,null,0,0]
[0,0,0,null,null,null,"",null,null,null,null,null,null,0,0]
[0,0,0,null,null,null,"",null,null,null,null,null,null,0,0]
[0,0,0,null,null,null,"",null,null,null,null,null,null,0,0]
[0,0,0,null,null,null,"",null,null,null,null,null,null,0,0]
[0,0,0,null,null,null,"",null,null,null,null,null,null,0,0]
[0,0,0,null,null,null,"",null,null,null,null,null,null,{"$f":"IF(M3650<>0,1,0)","v":0},{"$f":"IF(D3650<>0,1,0)","v":0}]
[{"$f":"IF(M3651=\"Y\",1,0)","v":0},{"$f":"IF(M3651=\"N\",1,0)","v":0},{"$f":"IF(M3651=\"A\",1,0)","v":0},null,null,null,"",null,null,null,null,null,null,0,0]
[0,0,0,null,null,null,"",null,null,null,null,null,null,0,0]
[0,0,0,null,null,null,"",null,null,null,null,null,null,0,0]
[0,0,0,null,null,null,"",null,null,null,null,null,null,0,0]
[0,0,0,null,null,null,"",null,null,null,null,null,null,0,0]
[0,0,0,null,null,null,"",null,null,null,null,null,null,0,0]
[0,0,0,null,null,null,"",null,null,null,null,null,null,0,0]
[0,0,0,null,null,null,"",null,null,null,null,null,null,0,0]
[0,0,0,null,null,null,"",null,null,null,null,null,null,0,0]
[0,0,0,null,null,null,"",null,null,null,null,null,null,0,0]
[0,0,0,null,null,null,"",null,null,null,null,null,null,0,0]
[0,0,0,null,null,null,"",null,null,null,null,null,null,0,0]
[0,0,0,null,null,null,"",null,null,null,null,null,null,0,0]
[0,0,0,null,null,null,{"$f":"IF(D3664<>\"\",G3663+1,\"\")","v":""},null,null,null,null,null,null,0,0]
[0,0,0,null,null,null,"",null,null,null,null,null,null,0,0]
[0,0,0,null,null,null,"",null,null,null,null,null,null,0,0]
[0,0,0,null,null,null,"",null,null,null,null,null,null,0,0]
[0,0,0,null,null,null,"",null,null,null,null,null,null,0,0]
[0,0,0,null,null,null,"",null,null,null,null,null,null,0,0]
[0,0,0,null,null,null,"",null,null,null,null,null,null,0,0]
[0,0,0,null,null,null,"",null,null,null,null,null,null,0,0]
[0,0,0,null,null,null,"",null,null,null,null,null,null,0,0]
[0,0,0,null,null,null,"",null,null,null,null,null,null,0,0]
[0,0,0,null,null,null,"",null,null,null,null,null,null,0,0]
[0,0,0,null,null,null,"",null,null,null,null,null,null,0,0]
[0,0,0,null,null,null,"",null,null,null,null,null,null,0,0]
[0,0,0,null,null,null,"",null,null,null,null,null,null,0,0]
[0,0,0,null,null,null,"",null,null,null,null,null,null,0,0]
[0,0,0,null,null,null,"",null,null,null,null,null,null,0,0]
[0,0,0,null,null,null,"",null,null,null,null,null,null,0,0]
[0,0,0,null,null,null,"",null,null,null,null,null,null,0,0]
[0,0,0,null,null,null,"",null,null,null,null,null,null,0,0]
[0,0,0,null,null,null,"",null,null,null,null,null,null,0,0]
[0,0,0,null,null,null,"",null,null,null,null,null,null,0,0]
[0,0,0,null,null,null,"",null,null,null,null,null,null,0,0]
[0,0,0,null,null,null,"",null,null,null,null,null,null,0,0]
[0,0,0,null,null,null,"",null,null,null,null,null,null,0,0]
[0,0,0,null,null,null,"",null,null,null,null,null,null,0,0]
[0,0,0,null,null,null,"",null,null,null,null,null,null,0,0]
[0,0,0,null,null,null,"",null,null,null,null,null,null,0,0]
[0,0,0,null,null,null,"",null,null,null,null,null,null,0,0]
[0,0,0,null,null,null,"",null,null,null,null,null,null,0,0]
[0,0,0,null,null,null,"",null,null,null,null,null,null,0,0]
[0,0,0,null,null,null,"",null,null,null,null,null,null,0,0]
[0,0,0,null,null,null,"",null,null,null,null,null,null,0,0]
[0,0,0,null,null,null,"",null,null,null,null,null,null,0,0]
[0,0,0,null,null,null,"",null,null,null,null,null,null,0,0]
[0,0,0,null,null,null,"",null,null,null,null,null,null,0,0]
[0,0,0,null,null,null,"",null,null,null,null,null,null,0,0]
[0,0,0,null,null,null,"",null,null,null,null,null,null,0,0]
[0,0,0,null,null,null,"",null,null,null,null,null,null,0,0]
[0,0,0,null,null,null,"",null,null,null,null,null,null,0,0]
[0,0,0,null,null,null,"",null,null,null,null,null,null,0,0]
[0,0,0,null,null,null,"",null,null,null,null,null,null,0,0]
[0,0,0,null,null,null,"",null,null,null,null,null,null,0,0]
[0,0,0,null,null,null,"",null,null,null,null,null,null,0,0]
[0,0,0,null,null,null,"",null,null,null,null,null,null,0,0]
[0,0,0,null,null,null,"",null,null,null,null,null,null,0,0]
[0,0,0,null,null,null,"",null,null,null,null,null,null,0,0]
[0,0,0,null,null,null,"",null,null,null,null,null,null,0,0]
[0,0,0,null,null,null,"",null,null,null,null,null,null,0,0]
[0,0,0,null,null,null,"",null,null,null,null,null,null,0,0]
[0,0,0,null,null,null,"",null,null,null,null,null,null,0,0]
[0,0,0,null,null,null,"",null,null,null,null,null,null,{"$f":"IF(M3714<>0,1,0)","v":0},{"$f":"IF(D3714<>0,1,0)","v":0}]
[{"$f":"IF(M3715=\"Y\",1,0)","v":0},{"$f":"IF(M3715=\"N\",1,0)","v":0},{"$f":"IF(M3715=\"A\",1,0)","v":0},null,null,null,"",null,null,null,null,null,null,0,0]
[0,0,0,null,null,null,"",null,null,null,null,null,null,0,0]
[0,0,0,null,null,null,"",null,null,null,null,null,null,0,0]
[0,0,0,null,null,null,"",null,null,null,null,null,null,0,0]
[0,0,0,null,null,null,"",null,null,null,null,null,null,0,0]
[0,0,0,null,null,null,"",null,null,null,null,null,null,0,0]
[0,0,0,null,null,null,"",null,null,null,null,null,null,0,0]
[0,0,0,null,null,null,"",null,null,null,null,null,null,0,0]
[0,0,0,null,null,null,"",null,null,null,null,null,null,0,0]
[0,0,0,null,null,null,"",null,null,null,null,null,null,0,0]
[0,0,0,null,null,null,"",null,null,null,null,null,null,0,0]
[0,0,0,null,null,null,"",null,null,null,null,null,null,0,0]
[0,0,0,null,null,null,"",null,null,null,null,null,null,0,0]
[0,0,0,null,null,null,{"$f":"IF(D3728<>\"\",G3727+1,\"\")","v":""},null,null,null,null,null,null,0,0]
[0,0,0,null,null,null,"",null,null,null,null,null,null,0,0]
[0,0,0,null,null,null,"",null,null,null,null,null,null,0,0]
[0,0,0,null,null,null,"",null,null,null,null,null,null,0,0]
[0,0,0,null,null,null,"",null,null,null,null,null,null,0,0]
[0,0,0,null,null,null,"",null,null,null,null,null,null,0,0]
[0,0,0,null,null,null,"",null,null,null,null,null,null,0,0]
[0,0,0,null,null,null,"",null,null,null,null,null,null,0,0]
[0,0,0,null,null,null,"",null,null,null,null,null,null,0,0]
[0,0,0,null,null,null,"",null,null,null,null,null,null,0,0]
[0,0,0,null,null,null,"",null,null,null,null,null,null,0,0]
[0,0,0,null,null,null,"",null,null,null,null,null,null,0,0]
[0,0,0,null,null,null,"",null,null,null,null,null,null,0,0]
[0,0,0,null,null,null,"",null,null,null,null,null,null,0,0]
[0,0,0,null,null,null,"",null,null,null,null,null,null,0,0]
[0,0,0,null,null,null,"",null,null,null,null,null,null,0,0]
[0,0,0,null,null,null,"",null,null,null,null,null,null,0,0]
[0,0,0,null,null,null,"",null,null,null,null,null,null,0,0]
[0,0,0,null,null,null,"",null,null,null,null,null,null,0,0]
[0,0,0,null,null,null,"",null,null,null,null,null,null,0,0]
[0,0,0,null,null,null,"",null,null,null,null,null,null,0,0]
[0,0,0,null,null,null,"",null,null,null,null,null,null,0,0]
[0,0,0,null,null,null,"",null,null,null,null,null,null,0,0]
[0,0,0,null,null,null,"",null,null,null,null,null,null,0,0]
[0,0,0,null,null,null,"",null,null,null,null,null,null,0,0]
[0,0,0,null,null,null,"",null,null,null,null,null,null,0,0]
[0,0,0,null,null,null,"",null,null,null,null,null,null,0,0]
[0,0,0,null,null,null,"",null,null,null,null,null,null,0,0]
[0,0,0,null,null,null,"",null,null,null,null,null,null,0,0]
[0,0,0,null,null,null,"",null,null,null,null,null,null,0,0]
[0,0,0,null,null,null,"",null,null,null,null,null,null,0,0]
[0,0,0,null,null,null,"",null,null,null,null,null,null,0,0]
[0,0,0,null,null,null,"",null,null,null,null,null,null,0,0]
[0,0,0,null,null,null,"",null,null,null,null,null,null,0,0]
[0,0,0,null,null,null,"",null,null,null,null,null,null,0,0]
[0,0,0,null,null,null,"",null,null,null,null,null,null,0,0]
[0,0,0,null,null,null,"",null,null,null,null,null,null,0,0]
[0,0,0,null,null,null,"",null,null,null,null,null,null,0,0]
[0,0,0,null,null,null,"",null,null,null,null,null,null,0,0]
[0,0,0,null,null,null,"",null,null,null,null,null,null,0,0]
[0,0,0,null,null,null,"",null,null,null,null,null,null,0,0]
[0,0,0,null,null,null,"",null,null,null,null,null,null,0,0]
[0,0,0,null,null,null,"",null,null,null,null,null,null,0,0]
[0,0,0,null,null,null,"",null,null,null,null,null,null,0,0]
[0,0,0,null,null,null,"",null,null,null,null,null,null,0,0]
[0,0,0,null,null,null,"",null,null,null,null,null,null,0,0]
[0,0,0,null,null,null,"",null,null,null,null,null,null,0,0]
[0,0,0,null,null,null,"",null,null,null,null,null,null,0,0]
[0,0,0,null,null,null,"",null,null,null,null,null,null,0,0]
[0,0,0,null,null,null,"",null,null,null,null,null,null,0,0]
[0,0,0,null,null,null,"",null,null,null,null,null,null,{"$f":"IF(M3778<>0,1,0)","v":0},{"$f":"IF(D3778<>0,1,0)","v":0}]
[{"$f":"IF(M3779=\"Y\",1,0)","v":0},{"$f":"IF(M3779=\"N\",1,0)","v":0},{"$f":"IF(M3779=\"A\",1,0)","v":0},null,null,null,"",null,null,null,null,null,null,0,0]
[0,0,0,null,null,null,"",null,null,null,null,null,null,0,0]
[0,0,0,null,null,null,"",null,null,null,null,null,null,0,0]
[0,0,0,null,null,null,"",null,null,null,null,null,null,0,0]
[0,0,0,null,null,null,"",null,null,null,null,null,null,0,0]
[0,0,0,null,null,null,"",null,null,null,null,null,null,0,0]
[0,0,0,null,null,null,"",null,null,null,null,null,null,0,0]
[0,0,0,null,null,null,"",null,null,null,null,null,null,0,0]
[0,0,0,null,null,null,"",null,null,null,null,null,null,0,0]
[0,0,0,null,null,null,"",null,null,null,null,null,null,0,0]
[0,0,0,null,null,null,"",null,null,null,null,null,null,0,0]
[0,0,0,null,null,null,"",null,null,null,null,null,null,0,0]
[0,0,0,null,null,null,"",null,null,null,null,null,null,0,0]
[0,0,0,null,null,null,{"$f":"IF(D3792<>\"\",G3791+1,\"\")","v":""},null,null,null,null,null,null,0,0]
[0,0,0,null,null,null,"",null,null,null,null,null,null,0,0]
[0,0,0,null,null,null,"",null,null,null,null,null,null,0,0]
[0,0,0,null,null,null,"",null,null,null,null,null,null,0,0]
[0,0,0,null,null,null,"",null,null,null,null,null,null,0,0]
[0,0,0,null,null,null,"",null,null,null,null,null,null,0,0]
[0,0,0,null,null,null,"",null,null,null,null,null,null,0,0]
[0,0,0,null,null,null,"",null,null,null,null,null,null,0,0]
[0,0,0,null,null,null,"",null,null,null,null,null,null,0,0]
[0,0,0,null,null,null,"",null,null,null,null,null,null,0,0]
[0,0,0,null,null,null,"",null,null,null,null,null,null,0,0]
[0,0,0,null,null,null,"",null,null,null,null,null,null,0,0]
[0,0,0,null,null,null,"",null,null,null,null,null,null,0,0]
[0,0,0,null,null,null,"",null,null,null,null,null,null,0,0]
[0,0,0,null,null,null,"",null,null,null,null,null,null,0,0]
[0,0,0,null,null,null,"",null,null,null,null,null,null,0,0]
[0,0,0,null,null,null,"",null,null,null,null,null,null,0,0]
[0,0,0,null,null,null,"",null,null,null,null,null,null,0,0]
[0,0,0,null,null,null,"",null,null,null,null,null,null,0,0]
[0,0,0,null,null,null,"",null,null,null,null,null,null,0,0]
[0,0,0,null,null,null,"",null,null,null,null,null,null,0,0]
[0,0,0,null,null,null,"",null,null,null,null,null,null,0,0]
[0,0,0,null,null,null,"",null,null,null,null,null,null,0,0]
[0,0,0,null,null,null,"",null,null,null,null,null,null,0,0]
[0,0,0,null,null,null,"",null,null,null,null,null,null,0,0]
[0,0,0,null,null,null,"",null,null,null,null,null,null,0,0]
[0,0,0,null,null,null,"",null,null,null,null,null,null,0,0]
[0,0,0,null,null,null,"",null,null,null,null,null,null,0,0]
[0,0,0,null,null,null,"",null,null,null,null,null,null,0,0]
[0,0,0,null,null,null,"",null,null,null,null,null,null,0,0]
[0,0,0,null,null,null,"",null,null,null,null,null,null,0,0]
[0,0,0,null,null,null,"",null,null,null,null,null,null,0,0]
[0,0,0,null,null,null,"",null,null,null,null,null,null,0,0]
[0,0,0,null,null,null,"",null,null,null,null,null,null,0,0]
[0,0,0,null,null,null,"",null,null,null,null,null,null,0,0]
[0,0,0,null,null,null,"",null,null,null,null,null,null,0,0]
[0,0,0,null,null,null,"",null,null,null,null,null,null,0,0]
[0,0,0,null,null,null,"",null,null,null,null,null,null,0,0]
[0,0,0,null,null,null,"",null,null,null,null,null,null,0,0]
[0,0,0,null,null,null,"",null,null,null,null,null,null,0,0]
[0,0,0,null,null,null,"",null,null,null,null,null,null,0,0]
[0,0,0,null,null,null,"",null,null,null,null,null,null,0,0]
[0,0,0,null,null,null,"",null,null,null,null,null,null,0,0]
[0,0,0,null,null,null,"",null,null,null,null,null,null,0,0]
[0,0,0,null,null,null,"",null,null,null,null,null,null,0,0]
[0,0,0,null,null,null,"",null,null,null,null,null,null,0,0]
[0,0,0,null,null,null,"",null,null,null,null,null,null,0,0]
[0,0,0,null,null,null,"",null,null,null,null,null,null,0,0]
[0,0,0,null,null,null,"",null,null,null,null,null,null,0,0]
[0,0,0,null,null,null,"",null,null,null,null,null,null,0,0]
[0,0,0,null,null,null,"",null,null,null,null,null,null,{"$f":"IF(M3842<>0,1,0)","v":0},{"$f":"IF(D3842<>0,1,0)","v":0}]
[{"$f":"IF(M3843=\"Y\",1,0)","v":0},{"$f":"IF(M3843=\"N\",1,0)","v":0},{"$f":"IF(M3843=\"A\",1,0)","v":0},null,null,null,"",null,null,null,null,null,null,0,0]
[0,0,0,null,null,null,"",null,null,null,null,null,null,0,0]
[0,0,0,null,null,null,"",null,null,null,null,null,null,0,0]
[0,0,0,null,null,null,"",null,null,null,null,null,null,0,0]
[0,0,0,null,null,null,"",null,null,null,null,null,null,0,0]
[0,0,0,null,null,null,"",null,null,null,null,null,null,0,0]
[0,0,0,null,null,null,"",null,null,null,null,null,null,0,0]
[0,0,0,null,null,null,"",null,null,null,null,null,null,0,0]
[0,0,0,null,null,null,"",null,null,null,null,null,null,0,0]
[0,0,0,null,null,null,"",null,null,null,null,null,null,0,0]
[0,0,0,null,null,null,"",null,null,null,null,null,null,0,0]
[0,0,0,null,null,null,"",null,null,null,null,null,null,0,0]
[0,0,0,null,null,null,"",null,null,null,null,null,null,0,0]
[0,0,0,null,null,null,{"$f":"IF(D3856<>\"\",G3855+1,\"\")","v":""},null,null,null,null,null,null,0,0]
[0,0,0,null,null,null,"",null,null,null,null,null,null,0,0]
[0,0,0,null,null,null,"",null,null,null,null,null,null,0,0]
[0,0,0,null,null,null,"",null,null,null,null,null,null,0,0]
[0,0,0,null,null,null,"",null,null,null,null,null,null,0,0]
[0,0,0,null,null,null,"",null,null,null,null,null,null,0,0]
[0,0,0,null,null,null,"",null,null,null,null,null,null,0,0]
[0,0,0,null,null,null,"",null,null,null,null,null,null,0,0]
[0,0,0,null,null,null,"",null,null,null,null,null,null,0,0]
[0,0,0,null,null,null,"",null,null,null,null,null,null,0,0]
[0,0,0,null,null,null,"",null,null,null,null,null,null,0,0]
[0,0,0,null,null,null,"",null,null,null,null,null,null,0,0]
[0,0,0,null,null,null,"",null,null,null,null,null,null,0,0]
[0,0,0,null,null,null,"",null,null,null,null,null,null,0,0]
[0,0,0,null,null,null,"",null,null,null,null,null,null,0,0]
[0,0,0,null,null,null,"",null,null,null,null,null,null,0,0]
[0,0,0,null,null,null,"",null,null,null,null,null,null,0,0]
[0,0,0,null,null,null,"",null,null,null,null,null,null,0,0]
[0,0,0,null,null,null,"",null,null,null,null,null,null,0,0]
[0,0,0,null,null,null,"",null,null,null,null,null,null,0,0]
[0,0,0,null,null,null,"",null,null,null,null,null,null,0,0]
[0,0,0,null,null,null,"",null,null,null,null,null,null,0,0]
[0,0,0,null,null,null,"",null,null,null,null,null,null,0,0]
[0,0,0,null,null,null,"",null,null,null,null,null,null,0,0]
[0,0,0,null,null,null,"",null,null,null,null,null,null,0,0]
[0,0,0,null,null,null,"",null,null,null,null,null,null,0,0]
[0,0,0,null,null,null,"",null,null,null,null,null,null,0,0]
[0,0,0,null,null,null,"",null,null,null,null,null,null,0,0]
[0,0,0,null,null,null,"",null,null,null,null,null,null,0,0]
[0,0,0,null,null,null,"",null,null,null,null,null,null,0,0]
[0,0,0,null,null,null,"",null,null,null,null,null,null,0,0]
[0,0,0,null,null,null,"",null,null,null,null,null,null,0,0]
[0,0,0,null,null,null,"",null,null,null,null,null,null,0,0]
[0,0,0,null,null,null,"",null,null,null,null,null,null,0,0]
[0,0,0,null,null,null,"",null,null,null,null,null,null,0,0]
[0,0,0,null,null,null,"",null,null,null,null,null,null,0,0]
[0,0,0,null,null,null,"",null,null,null,null,null,null,0,0]
[0,0,0,null,null,null,"",null,null,null,null,null,null,0,0]
[0,0,0,null,null,null,"",null,null,null,null,null,null,0,0]
[0,0,0,null,null,null,"",null,null,null,null,null,null,0,0]
[0,0,0,null,null,null,"",null,null,null,null,null,null,0,0]
[0,0,0,null,null,null,"",null,null,null,null,null,null,0,0]
[0,0,0,null,null,null,"",null,null,null,null,null,null,0,0]
[0,0,0,null,null,null,"",null,null,null,null,null,null,0,0]
[0,0,0,null,null,null,"",null,null,null,null,null,null,0,0]
[0,0,0,null,null,null,"",null,null,null,null,null,null,0,0]
[0,0,0,null,null,null,"",null,null,null,null,null,null,0,0]
[0,0,0,null,null,null,"",null,null,null,null,null,null,0,0]
[0,0,0,null,null,null,"",null,null,null,null,null,null,0,0]
[0,0,0,null,null,null,"",null,null,null,null,null,null,0,0]
[0,0,0,null,null,null,"",null,null,null,null,null,null,{"$f":"IF(M3906<>0,1,0)","v":0},{"$f":"IF(D3906<>0,1,0)","v":0}]
[{"$f":"IF(M3907=\"Y\",1,0)","v":0},{"$f":"IF(M3907=\"N\",1,0)","v":0},{"$f":"IF(M3907=\"A\",1,0)","v":0},null,null,null,"",null,null,null,null,null,null,0,0]
[0,0,0,null,null,null,"",null,null,null,null,null,null,0,0]
[0,0,0,null,null,null,"",null,null,null,null,null,null,0,0]
[0,0,0,null,null,null,"",null,null,null,null,null,null,0,0]
[0,0,0,null,null,null,"",null,null,null,null,null,null,0,0]
[0,0,0,null,null,null,"",null,null,null,null,null,null,0,0]
[0,0,0,null,null,null,"",null,null,null,null,null,null,0,0]
[0,0,0,null,null,null,"",null,null,null,null,null,null,0,0]
[0,0,0,null,null,null,"",null,null,null,null,null,null,0,0]
[0,0,0,null,null,null,"",null,null,null,null,null,null,0,0]
[0,0,0,null,null,null,"",null,null,null,null,null,null,0,0]
[0,0,0,null,null,null,"",null,null,null,null,null,null,0,0]
[0,0,0,null,null,null,"",null,null,null,null,null,null,0,0]
[0,0,0,null,null,null,{"$f":"IF(D3920<>\"\",G3919+1,\"\")","v":""},null,null,null,null,null,null,0,0]
[0,0,0,null,null,null,"",null,null,null,null,null,null,0,0]
[0,0,0,null,null,null,"",null,null,null,null,null,null,0,0]
[0,0,0,null,null,null,"",null,null,null,null,null,null,0,0]
[0,0,0,null,null,null,"",null,null,null,null,null,null,0,0]
[0,0,0,null,null,null,"",null,null,null,null,null,null,0,0]
[0,0,0,null,null,null,"",null,null,null,null,null,null,0,0]
[0,0,0,null,null,null,"",null,null,null,null,null,null,0,0]
[0,0,0,null,null,null,"",null,null,null,null,null,null,0,0]
[0,0,0,null,null,null,"",null,null,null,null,null,null,0,0]
[0,0,0,null,null,null,"",null,null,null,null,null,null,0,0]
[0,0,0,null,null,null,"",null,null,null,null,null,null,0,0]
[0,0,0,null,null,null,"",null,null,null,null,null,null,0,0]
[0,0,0,null,null,null,"",null,null,null,null,null,null,0,0]
[0,0,0,null,null,null,"",null,null,null,null,null,null,0,0]
[0,0,0,null,null,null,"",null,null,null,null,null,null,0,0]
[0,0,0,null,null,null,"",null,null,null,null,null,null,0,0]
[0,0,0,null,null,null,"",null,null,null,null,null,null,0,0]
[0,0,0,null,null,null,"",null,null,null,null,null,null,0,0]
[0,0,0,null,null,null,"",null,null,null,null,null,null,0,0]
[0,0,0,null,null,null,"",null,null,null,null,null,null,0,0]
[0,0,0,null,null,null,"",null,null,null,null,null,null,0,0]
[0,0,0,null,null,null,"",null,null,null,null,null,null,0,0]
[0,0,0,null,null,null,"",null,null,null,null,null,null,0,0]
[0,0,0,null,null,null,"",null,null,null,null,null,null,0,0]
[0,0,0,null,null,null,"",null,null,null,null,null,null,0,0]
[0,0,0,null,null,null,"",null,null,null,null,null,null,0,0]
[0,0,0,null,null,null,"",null,null,null,null,null,null,0,0]
[0,0,0,null,null,null,"",null,null,null,null,null,null,0,0]
[0,0,0,null,null,null,"",null,null,null,null,null,null,0,0]
[0,0,0,null,null,null,"",null,null,null,null,null,null,0,0]
[0,0,0,null,null,null,"",null,null,null,null,null,null,0,0]
[0,0,0,null,null,null,"",null,null,null,null,null,null,0,0]
[0,0,0,null,null,null,"",null,null,null,null,null,null,0,0]
[0,0,0,null,null,null,"",null,null,null,null,null,null,0,0]
[0,0,0,null,null,null,"",null,null,null,null,null,null,0,0]
[0,0,0,null,null,null,"",null,null,null,null,null,null,0,0]
[0,0,0,null,null,null,"",null,null,null,null,null,null,0,0]
[0,0,0,null,null,null,"",null,null,null,null,null,null,0,0]
[0,0,0,null,null,null,"",null,null,null,null,null,null,0,0]
[0,0,0,null,null,null,"",null,null,null,null,null,null,0,0]
[0,0,0,null,null,null,"",null,null,null,null,null,null,0,0]
[0,0,0,null,null,null,"",null,null,null,null,null,null,0,0]
[0,0,0,null,null,null,"",null,null,null,null,null,null,0,0]
[0,0,0,null,null,null,"",null,null,null,null,null,null,0,0]
[0,0,0,null,null,null,"",null,null,null,null,null,null,0,0]
[0,0,0,null,null,null,"",null,null,null,null,null,null,0,0]
[0,0,0,null,null,null,"",null,null,null,null,null,null,0,0]
[0,0,0,null,null,null,"",null,null,null,null,null,null,0,0]
[0,0,0,null,null,null,"",null,null,null,null,null,null,0,0]
[0,0,0,null,null,null,"",null,null,null,null,null,null,{"$f":"IF(M3970<>0,1,0)","v":0},{"$f":"IF(D3970<>0,1,0)","v":0}]
[{"$f":"IF(M3971=\"Y\",1,0)","v":0},{"$f":"IF(M3971=\"N\",1,0)","v":0},{"$f":"IF(M3971=\"A\",1,0)","v":0},null,null,null,"",null,null,null,null,null,null,0,0]
[0,0,0,null,null,null,"",null,null,null,null,null,null,0,0]
[0,0,0,null,null,null,"",null,null,null,null,null,null,0,0]
[0,0,0,null,null,null,"",null,null,null,null,null,null,0,0]
[0,0,0,null,null,null,"",null,null,null,null,null,null,0,0]
[0,0,0,null,null,null,"",null,null,null,null,null,null,0,0]
[0,0,0,null,null,null,"",null,null,null,null,null,null,0,0]
[0,0,0,null,null,null,"",null,null,null,null,null,null,0,0]
[0,0,0,null,null,null,"",null,null,null,null,null,null,0,0]
[0,0,0,null,null,null,"",null,null,null,null,null,null,0,0]
[0,0,0,null,null,null,"",null,null,null,null,null,null,0,0]
[0,0,0,null,null,null,"",null,null,null,null,null,null,0,0]
[0,0,0,null,null,null,"",null,null,null,null,null,null,0,0]
[0,0,0,null,null,null,{"$f":"IF(D3984<>\"\",G3983+1,\"\")","v":""},null,null,null,null,null,null,0,0]
[0,0,0,null,null,null,"",null,null,null,null,null,null,0,0]
[0,0,0,null,null,null,"",null,null,null,null,null,null,0,0]
[0,0,0,null,null,null,"",null,null,null,null,null,null,0,0]
[0,0,0,null,null,null,"",null,null,null,null,null,null,0,0]
[0,0,0,null,null,null,"",null,null,null,null,null,null,0,0]
[0,0,0,null,null,null,"",null,null,null,null,null,null,0,0]
[0,0,0,null,null,null,"",null,null,null,null,null,null,0,0]
[0,0,0,null,null,null,"",null,null,null,null,null,null,0,0]
[0,0,0,null,null,null,"",null,null,null,null,null,null,0,0]
[0,0,0,null,null,null,"",null,null,null,null,null,null,0,0]
[0,0,0,null,null,null,"",null,null,null,null,null,null,0,0]
[0,0,0,null,null,null,"",null,null,null,null,null,null,0,0]
[0,0,0,null,null,null,"",null,null,null,null,null,null,0,0]
[0,0,0,null,null,null,"",null,null,null,null,null,null,0,0]
[0,0,0,null,null,null,"",null,null,null,null,null,null,0,0]
[0,0,0,null,null,null,"",null,null,null,null,null,null,0,0]
[0,0,0,null,null,null,"",null,null,null,null,null,null,0,0]
[0,0,0,null,null,null,"",null,null,null,null,null,null,0,0]
[0,0,0,null,null,null,"",null,null,null,null,null,null,0,0]
[0,0,0,null,null,null,"",null,null,null,null,null,null,0,0]
[0,0,0,null,null,null,"",null,null,null,null,null,null,0,0]
[0,0,0,null,null,null,"",null,null,null,null,null,null,0,0]
[0,0,0,null,null,null,"",null,null,null,null,null,null,0,0]
[0,0,0,null,null,null,"",null,null,null,null,null,null,0,0]
[0,0,0,null,null,null,"",null,null,null,null,null,null,0,0]
[0,0,0,null,null,null,"",null,null,null,null,null,null,0,0]
[0,0,0,null,null,null,"",null,null,null,null,null,null,0,0]
[0,0,0,null,null,null,"",null,null,null,null,null,null,0,0]
[0,0,0,null,null,null,"",null,null,null,null,null,null,0,0]
[0,0,0,null,null,null,"",null,null,null,null,null,null,0,0]
[0,0,0,null,null,null,"",null,null,null,null,null,null,0,0]
[0,0,0,null,null,null,"",null,null,null,null,null,null,0,0]
[0,0,0,null,null,null,"",null,null,null,null,null,null,0,0]
[0,0,0,null,null,null,"",null,null,null,null,null,null,0,0]
[0,0,0,null,null,null,"",null,null,null,null,null,null,0,0]
[0,0,0,null,null,null,"",null,null,null,null,null,null,0,0]
[0,0,0,null,null,null,"",null,null,null,null,null,null,0,0]
[0,0,0,null,null,null,"",null,null,null,null,null,null,0,0]
[0,0,0,null,null,null,"",null,null,null,null,null,null,0,0]
[0,0,0,null,null,null,"",null,null,null,null,null,null,0,0]
[0,0,0,null,null,null,"",null,null,null,null,null,null,0,0]
[0,0,0,null,null,null,"",null,null,null,null,null,null,0,0]
[0,0,0,null,null,null,"",null,null,null,null,null,null,0,0]
[0,0,0,null,null,null,"",null,null,null,null,null,null,0,0]
[0,0,0,null,null,null,"",null,null,null,null,null,null,0,0]
[0,0,0,null,null,null,"",null,null,null,null,null,null,0,0]
[0,0,0,null,null,null,"",null,null,null,null,null,null,0,0]
[0,0,0,null,null,null,"",null,null,null,null,null,null,0,0]
[0,0,0,null,null,null,"",null,null,null,null,null,null,0,0]
[0,0,0,null,null,null,"",null,null,null,null,null,null,{"$f":"IF(M4034<>0,1,0)","v":0},{"$f":"IF(D4034<>0,1,0)","v":0}]
[{"$f":"IF(M4035=\"Y\",1,0)","v":0},{"$f":"IF(M4035=\"N\",1,0)","v":0},{"$f":"IF(M4035=\"A\",1,0)","v":0},null,null,null,"",null,null,null,null,null,null,0,0]
[0,0,0,null,null,null,"",null,null,null,null,null,null,0,0]
[0,0,0,null,null,null,"",null,null,null,null,null,null,0,0]
[0,0,0,null,null,null,"",null,null,null,null,null,null,0,0]
[0,0,0,null,null,null,"",null,null,null,null,null,null,0,0]
[0,0,0,null,null,null,"",null,null,null,null,null,null,0,0]
[0,0,0,null,null,null,"",null,null,null,null,null,null,0,0]
[0,0,0,null,null,null,"",null,null,null,null,null,null,0,0]
[0,0,0,null,null,null,"",null,null,null,null,null,null,0,0]
[0,0,0,null,null,null,"",null,null,null,null,null,null,0,0]
[0,0,0,null,null,null,"",null,null,null,null,null,null,0,0]
[0,0,0,null,null,null,"",null,null,null,null,null,null,0,0]
[0,0,0,null,null,null,"",null,null,null,null,null,null,0,0]
[0,0,0,null,null,null,{"$f":"IF(D4048<>\"\",G4047+1,\"\")","v":""},null,null,null,null,null,null,0,0]
[0,0,0,null,null,null,"",null,null,null,null,null,null,0,0]
[0,0,0,null,null,null,"",null,null,null,null,null,null,0,0]
[0,0,0,null,null,null,"",null,null,null,null,null,null,0,0]
[0,0,0,null,null,null,"",null,null,null,null,null,null,0,0]
[0,0,0,null,null,null,"",null,null,null,null,null,null,0,0]
[0,0,0,null,null,null,"",null,null,null,null,null,null,0,0]
[0,0,0,null,null,null,"",null,null,null,null,null,null,0,0]
[0,0,0,null,null,null,"",null,null,null,null,null,null,0,0]
[0,0,0,null,null,null,"",null,null,null,null,null,null,0,0]
[0,0,0,null,null,null,"",null,null,null,null,null,null,0,0]
[0,0,0,null,null,null,"",null,null,null,null,null,null,0,0]
[0,0,0,null,null,null,"",null,null,null,null,null,null,0,0]
[0,0,0,null,null,null,"",null,null,null,null,null,null,0,0]
[0,0,0,null,null,null,"",null,null,null,null,null,null,0,0]
[0,0,0,null,null,null,"",null,null,null,null,null,null,0,0]
[0,0,0,null,null,null,"",null,null,null,null,null,null,0,0]
[0,0,0,null,null,null,"",null,null,null,null,null,null,0,0]
[0,0,0,null,null,null,"",null,null,null,null,null,null,0,0]
[0,0,0,null,null,null,"",null,null,null,null,null,null,0,0]
[0,0,0,null,null,null,"",null,null,null,null,null,null,0,0]
[0,0,0,null,null,null,"",null,null,null,null,null,null,0,0]
[0,0,0,null,null,null,"",null,null,null,null,null,null,0,0]
[0,0,0,null,null,null,"",null,null,null,null,null,null,0,0]
[0,0,0,null,null,null,"",null,null,null,null,null,null,0,0]
[0,0,0,null,null,null,"",null,null,null,null,null,null,0,0]
[0,0,0,null,null,null,"",null,null,null,null,null,null,0,0]
[0,0,0,null,null,null,"",null,null,null,null,null,null,0,0]
[0,0,0,null,null,null,"",null,null,null,null,null,null,0,0]
[0,0,0,null,null,null,"",null,null,null,null,null,null,0,0]
[0,0,0,null,null,null,"",null,null,null,null,null,null,0,0]
[0,0,0,null,null,null,"",null,null,null,null,null,null,0,0]
[0,0,0,null,null,null,"",null,null,null,null,null,null,0,0]
[0,0,0,null,null,null,"",null,null,null,null,null,null,0,0]
[0,0,0,null,null,null,"",null,null,null,null,null,null,0,0]
[0,0,0,null,null,null,"",null,null,null,null,null,null,0,0]
[0,0,0,null,null,null,"",null,null,null,null,null,null,0,0]
[0,0,0,null,null,null,"",null,null,null,null,null,null,0,0]
[0,0,0,null,null,null,"",null,null,null,null,null,null,0,0]
[0,0,0,null,null,null,"",null,null,null,null,null,null,0,0]
[0,0,0,null,null,null,"",null,null,null,null,null,null,0,0]
[0,0,0,null,null,null,"",null,null,null,null,null,null,0,0]
[0,0,0,null,null,null,"",null,null,null,null,null,null,0,0]
[0,0,0,null,null,null,"",null,null,null,null,null,null,0,0]
[0,0,0,null,null,null,"",null,null,null,null,null,null,0,0]
[0,0,0,null,null,null,"",null,null,null,null,null,null,0,0]
[0,0,0,null,null,null,"",null,null,null,null,null,null,0,0]
[0,0,0,null,null,null,"",null,null,null,null,null,null,0,0]
[0,0,0,null,null,null,"",null,null,null,null,null,null,0,0]
[0,0,0,null,null,null,"",null,null,null,null,null,null,0,0]
[0,0,0,null,null,null,"",null,null,null,null,null,null,{"$f":"IF(M4098<>0,1,0)","v":0},{"$f":"IF(D4098<>0,1,0)","v":0}]
[{"$f":"IF(M4099=\"Y\",1,0)","v":0},{"$f":"IF(M4099=\"N\",1,0)","v":0},{"$f":"IF(M4099=\"A\",1,0)","v":0},null,null,null,"",null,null,null,null,null,null,0,0]
[0,0,0,null,null,null,"",null,null,null,null,null,null,0,0]
[0,0,0,null,null,null,"",null,null,null,null,null,null,0,0]
[0,0,0,null,null,null,"",null,null,null,null,null,null,0,0]
[0,0,0,null,null,null,"",null,null,null,null,null,null,0,0]
[0,0,0,null,null,null,"",null,null,null,null,null,null,0,0]
[0,0,0,null,null,null,"",null,null,null,null,null,null,0,0]
[0,0,0,null,null,null,"",null,null,null,null,null,null,0,0]
[0,0,0,null,null,null,"",null,null,null,null,null,null,0,0]
[0,0,0,null,null,null,"",null,null,null,null,null,null,0,0]
[0,0,0,null,null,null,"",null,null,null,null,null,null,0,0]
[0,0,0,null,null,null,"",null,null,null,null,null,null,0,0]
[0,0,0,null,null,null,"",null,null,null,null,null,null,0,0]
[0,0,0,null,null,null,{"$f":"IF(D4112<>\"\",G4111+1,\"\")","v":""},null,null,null,null,null,null,0,0]
[0,0,0,null,null,null,"",null,null,null,null,null,null,0,0]
[0,0,0,null,null,null,"",null,null,null,null,null,null,0,0]
[0,0,0,null,null,null,"",null,null,null,null,null,null,0,0]
[0,0,0,null,null,null,"",null,null,null,null,null,null,0,0]
[0,0,0,null,null,null,"",null,null,null,null,null,null,0,0]
[0,0,0,null,null,null,"",null,null,null,null,null,null,0,0]
[0,0,0,null,null,null,"",null,null,null,null,null,null,0,0]
[0,0,0,null,null,null,"",null,null,null,null,null,null,0,0]
[0,0,0,null,null,null,"",null,null,null,null,null,null,0,0]
[0,0,0,null,null,null,"",null,null,null,null,null,null,0,0]
[0,0,0,null,null,null,"",null,null,null,null,null,null,0,0]
[0,0,0,null,null,null,"",null,null,null,null,null,null,0,0]
[0,0,0,null,null,null,"",null,null,null,null,null,null,0,0]
[0,0,0,null,null,null,"",null,null,null,null,null,null,0,0]
[0,0,0,null,null,null,"",null,null,null,null,null,null,0,0]
[0,0,0,null,null,null,"",null,null,null,null,null,null,0,0]
[0,0,0,null,null,null,"",null,null,null,null,null,null,0,0]
[0,0,0,null,null,null,"",null,null,null,null,null,null,0,0]
[0,0,0,null,null,null,"",null,null,null,null,null,null,0,0]
[0,0,0,null,null,null,"",null,null,null,null,null,null,0,0]
[0,0,0,null,null,null,"",null,null,null,null,null,null,0,0]
[0,0,0,null,null,null,"",null,null,null,null,null,null,0,0]
[0,0,0,null,null,null,"",null,null,null,null,null,null,0,0]
[0,0,0,null,null,null,"",null,null,null,null,null,null,0,0]
[0,0,0,null,null,null,"",null,null,null,null,null,null,0,0]
[0,0,0,null,null,null,"",null,null,null,null,null,null,0,0]
[0,0,0,null,null,null,"",null,null,null,null,null,null,0,0]
[0,0,0,null,null,null,"",null,null,null,null,null,null,0,0]
[0,0,0,null,null,null,"",null,null,null,null,null,null,0,0]
[0,0,0,null,null,null,"",null,null,null,null,null,null,0,0]
[0,0,0,null,null,null,"",null,null,null,null,null,null,0,0]
[0,0,0,null,null,null,"",null,null,null,null,null,null,0,0]
[0,0,0,null,null,null,"",null,null,null,null,null,null,0,0]
[0,0,0,null,null,null,"",null,null,null,null,null,null,0,0]
[0,0,0,null,null,null,"",null,null,null,null,null,null,0,0]
[0,0,0,null,null,null,"",null,null,null,null,null,null,0,0]
[0,0,0,null,null,null,"",null,null,null,null,null,null,0,0]
[0,0,0,null,null,null,"",null,null,null,null,null,null,0,0]
[0,0,0,null,null,null,"",null,null,null,null,null,null,0,0]
[0,0,0,null,null,null,"",null,null,null,null,null,null,0,0]
[0,0,0,null,null,null,"",null,null,null,null,null,null,0,0]
[0,0,0,null,null,null,"",null,null,null,null,null,null,0,0]
[0,0,0,null,null,null,"",null,null,null,null,null,null,0,0]
[0,0,0,null,null,null,"",null,null,null,null,null,null,0,0]
[0,0,0,null,null,null,"",null,null,null,null,null,null,0,0]
[0,0,0,null,null,null,"",null,null,null,null,null,null,0,0]
[0,0,0,null,null,null,"",null,null,null,null,null,null,0,0]
[0,0,0,null,null,null,"",null,null,null,null,null,null,0,0]
[0,0,0,null,null,null,"",null,null,null,null,null,null,0,0]
[0,0,0,null,null,null,"",null,null,null,null,null,null,{"$f":"IF(M4162<>0,1,0)","v":0},{"$f":"IF(D4162<>0,1,0)","v":0}]
[{"$f":"IF(M4163=\"Y\",1,0)","v":0},{"$f":"IF(M4163=\"N\",1,0)","v":0},{"$f":"IF(M4163=\"A\",1,0)","v":0},null,null,null,"",null,null,null,null,null,null,0,0]
[0,0,0,null,null,null,"",null,null,null,null,null,null,0,0]
[0,0,0,null,null,null,"",null,null,null,null,null,null,0,0]
[0,0,0,null,null,null,"",null,null,null,null,null,null,0,0]
[0,0,0,null,null,null,"",null,null,null,null,null,null,0,0]
[0,0,0,null,null,null,"",null,null,null,null,null,null,0,0]
[0,0,0,null,null,null,"",null,null,null,null,null,null,0,0]
[0,0,0,null,null,null,"",null,null,null,null,null,null,0,0]
[0,0,0,null,null,null,"",null,null,null,null,null,null,0,0]
[0,0,0,null,null,null,"",null,null,null,null,null,null,0,0]
[0,0,0,null,null,null,"",null,null,null,null,null,null,0,0]
[0,0,0,null,null,null,"",null,null,null,null,null,null,0,0]
[0,0,0,null,null,null,"",null,null,null,null,null,null,0,0]
[0,0,0,null,null,null,{"$f":"IF(D4176<>\"\",G4175+1,\"\")","v":""},null,null,null,null,null,null,0,0]
[0,0,0,null,null,null,"",null,null,null,null,null,null,0,0]
[0,0,0,null,null,null,"",null,null,null,null,null,null,0,0]
[0,0,0,null,null,null,"",null,null,null,null,null,null,0,0]
[0,0,0,null,null,null,"",null,null,null,null,null,null,0,0]
[0,0,0,null,null,null,"",null,null,null,null,null,null,0,0]
[0,0,0,null,null,null,"",null,null,null,null,null,null,0,0]
[0,0,0,null,null,null,"",null,null,null,null,null,null,0,0]
[0,0,0,null,null,null,"",null,null,null,null,null,null,0,0]
[0,0,0,null,null,null,"",null,null,null,null,null,null,0,0]
[0,0,0,null,null,null,"",null,null,null,null,null,null,0,0]
[0,0,0,null,null,null,"",null,null,null,null,null,null,0,0]
[0,0,0,null,null,null,"",null,null,null,null,null,null,0,0]
[0,0,0,null,null,null,"",null,null,null,null,null,null,0,0]
[0,0,0,null,null,null,"",null,null,null,null,null,null,0,0]
[0,0,0,null,null,null,"",null,null,null,null,null,null,0,0]
[0,0,0,null,null,null,"",null,null,null,null,null,null,0,0]
[0,0,0,null,null,null,"",null,null,null,null,null,null,0,0]
[0,0,0,null,null,null,"",null,null,null,null,null,null,0,0]
[0,0,0,null,null,null,"",null,null,null,null,null,null,0,0]
[0,0,0,null,null,null,"",null,null,null,null,null,null,0,0]
[0,0,0,null,null,null,"",null,null,null,null,null,null,0,0]
[0,0,0,null,null,null,"",null,null,null,null,null,null,0,0]
[0,0,0,null,null,null,"",null,null,null,null,null,null,0,0]
[0,0,0,null,null,null,"",null,null,null,null,null,null,0,0]
[0,0,0,null,null,null,"",null,null,null,null,null,null,0,0]
[0,0,0,null,null,null,"",null,null,null,null,null,null,0,0]
[0,0,0,null,null,null,"",null,null,null,null,null,null,0,0]
[0,0,0,null,null,null,"",null,null,null,null,null,null,0,0]
[0,0,0,null,null,null,"",null,null,null,null,null,null,0,0]
[0,0,0,null,null,null,"",null,null,null,null,null,null,0,0]
[0,0,0,null,null,null,"",null,null,null,null,null,null,0,0]
[0,0,0,null,null,null,"",null,null,null,null,null,null,0,0]
[0,0,0,null,null,null,"",null,null,null,null,null,null,0,0]
[0,0,0,null,null,null,"",null,null,null,null,null,null,0,0]
[0,0,0,null,null,null,"",null,null,null,null,null,null,0,0]
[0,0,0,null,null,null,"",null,null,null,null,null,null,0,0]
[0,0,0,null,null,null,"",null,null,null,null,null,null,0,0]
[0,0,0,null,null,null,"",null,null,null,null,null,null,0,0]
[0,0,0,null,null,null,"",null,null,null,null,null,null,0,0]
[0,0,0,null,null,null,"",null,null,null,null,null,null,0,0]
[0,0,0,null,null,null,"",null,null,null,null,null,null,0,0]
[0,0,0,null,null,null,"",null,null,null,null,null,null,0,0]
[0,0,0,null,null,null,"",null,null,null,null,null,null,0,0]
[0,0,0,null,null,null,"",null,null,null,null,null,null,0,0]
[0,0,0,null,null,null,"",null,null,null,null,null,null,0,0]
[0,0,0,null,null,null,"",null,null,null,null,null,null,0,0]
[0,0,0,null,null,null,"",null,null,null,null,null,null,0,0]
[0,0,0,null,null,null,"",null,null,null,null,null,null,0,0]
[0,0,0,null,null,null,"",null,null,null,null,null,null,0,0]
[0,0,0,null,null,null,"",null,null,null,null,null,null,{"$f":"IF(M4226<>0,1,0)","v":0},{"$f":"IF(D4226<>0,1,0)","v":0}]
[{"$f":"IF(M4227=\"Y\",1,0)","v":0},{"$f":"IF(M4227=\"N\",1,0)","v":0},{"$f":"IF(M4227=\"A\",1,0)","v":0},null,null,null,"",null,null,null,null,null,null,0,0]
[0,0,0,null,null,null,"",null,null,null,null,null,null,0,0]
[0,0,0,null,null,null,"",null,null,null,null,null,null,0,0]
[0,0,0,null,null,null,"",null,null,null,null,null,null,0,0]
[0,0,0,null,null,null,"",null,null,null,null,null,null,0,0]
[0,0,0,null,null,null,"",null,null,null,null,null,null,0,0]
[0,0,0,null,null,null,"",null,null,null,null,null,null,0,0]
[0,0,0,null,null,null,"",null,null,null,null,null,null,0,0]
[0,0,0,null,null,null,"",null,null,null,null,null,null,0,0]
[0,0,0,null,null,null,"",null,null,null,null,null,null,0,0]
[0,0,0,null,null,null,"",null,null,null,null,null,null,0,0]
[0,0,0,null,null,null,"",null,null,null,null,null,null,0,0]
[0,0,0,null,null,null,"",null,null,null,null,null,null,0,0]
[0,0,0,null,null,null,{"$f":"IF(D4240<>\"\",G4239+1,\"\")","v":""},null,null,null,null,null,null,0,0]
[0,0,0,null,null,null,"",null,null,null,null,null,null,0,0]
[0,0,0,null,null,null,"",null,null,null,null,null,null,0,0]
[0,0,0,null,null,null,"",null,null,null,null,null,null,0,0]
[0,0,0,null,null,null,"",null,null,null,null,null,null,0,0]
[0,0,0,null,null,null,"",null,null,null,null,null,null,0,0]
[0,0,0,null,null,null,"",null,null,null,null,null,null,0,0]
[0,0,0,null,null,null,"",null,null,null,null,null,null,0,0]
[0,0,0,null,null,null,"",null,null,null,null,null,null,0,0]
[0,0,0,null,null,null,"",null,null,null,null,null,null,0,0]
[0,0,0,null,null,null,"",null,null,null,null,null,null,0,0]
[0,0,0,null,null,null,"",null,null,null,null,null,null,0,0]
[0,0,0,null,null,null,"",null,null,null,null,null,null,0,0]
[0,0,0,null,null,null,"",null,null,null,null,null,null,0,0]
[0,0,0,null,null,null,"",null,null,null,null,null,null,0,0]
[0,0,0,null,null,null,"",null,null,null,null,null,null,0,0]
[0,0,0,null,null,null,"",null,null,null,null,null,null,0,0]
[0,0,0,null,null,null,"",null,null,null,null,null,null,0,0]
[0,0,0,null,null,null,"",null,null,null,null,null,null,0,0]
[0,0,0,null,null,null,"",null,null,null,null,null,null,0,0]
[0,0,0,null,null,null,"",null,null,null,null,null,null,0,0]
[0,0,0,null,null,null,"",null,null,null,null,null,null,0,0]
[0,0,0,null,null,null,"",null,null,null,null,null,null,0,0]
[0,0,0,null,null,null,"",null,null,null,null,null,null,0,0]
[0,0,0,null,null,null,"",null,null,null,null,null,null,0,0]
[0,0,0,null,null,null,"",null,null,null,null,null,null,0,0]
[0,0,0,null,null,null,"",null,null,null,null,null,null,0,0]
[0,0,0,null,null,null,"",null,null,null,null,null,null,0,0]
[0,0,0,null,null,null,"",null,null,null,null,null,null,0,0]
[0,0,0,null,null,null,"",null,null,null,null,null,null,0,0]
[0,0,0,null,null,null,"",null,null,null,null,null,null,0,0]
[0,0,0,null,null,null,"",null,null,null,null,null,null,0,0]
[0,0,0,null,null,null,"",null,null,null,null,null,null,0,0]
[0,0,0,null,null,null,"",null,null,null,null,null,null,0,0]
[0,0,0,null,null,null,"",null,null,null,null,null,null,0,0]
[0,0,0,null,null,null,"",null,null,null,null,null,null,0,0]
[0,0,0,null,null,null,"",null,null,null,null,null,null,0,0]
[0,0,0,null,null,null,"",null,null,null,null,null,null,0,0]
[0,0,0,null,null,null,"",null,null,null,null,null,null,0,0]
[0,0,0,null,null,null,"",null,null,null,null,null,null,0,0]
[0,0,0,null,null,null,"",null,null,null,null,null,null,0,0]
[0,0,0,null,null,null,"",null,null,null,null,null,null,0,0]
[0,0,0,null,null,null,"",null,null,null,null,null,null,0,0]
[0,0,0,null,null,null,"",null,null,null,null,null,null,0,0]
[0,0,0,null,null,null,"",null,null,null,null,null,null,0,0]
[0,0,0,null,null,null,"",null,null,null,null,null,null,0,0]
[0,0,0,null,null,null,"",null,null,null,null,null,null,0,0]
[0,0,0,null,null,null,"",null,null,null,null,null,null,0,0]
[0,0,0,null,null,null,"",null,null,null,null,null,null,0,0]
[0,0,0,null,null,null,"",null,null,null,null,null,null,0,0]
[0,0,0,null,null,null,"",null,null,null,null,null,null,{"$f":"IF(M4290<>0,1,0)","v":0},{"$f":"IF(D4290<>0,1,0)","v":0}]
[{"$f":"IF(M4291=\"Y\",1,0)","v":0},{"$f":"IF(M4291=\"N\",1,0)","v":0},{"$f":"IF(M4291=\"A\",1,0)","v":0},null,null,null,"",null,null,null,null,null,null,0,0]
[0,0,0,null,null,null,"",null,null,null,null,null,null,0,0]
[0,0,0,null,null,null,"",null,null,null,null,null,null,0,0]
[0,0,0,null,null,null,"",null,null,null,null,null,null,0,0]
[0,0,0,null,null,null,"",null,null,null,null,null,null,0,0]
[0,0,0,null,null,null,"",null,null,null,null,null,null,0,0]
[0,0,0,null,null,null,"",null,null,null,null,null,null,0,0]
[0,0,0,null,null,null,"",null,null,null,null,null,null,0,0]
[0,0,0,null,null,null,"",null,null,null,null,null,null,0,0]
[0,0,0,null,null,null,"",null,null,null,null,null,null,0,0]
[0,0,0,null,null,null,"",null,null,null,null,null,null,0,0]
[0,0,0,null,null,null,"",null,null,null,null,null,null,0,0]
[0,0,0,null,null,null,"",null,null,null,null,null,null,0,0]
[0,0,0,null,null,null,{"$f":"IF(D4304<>\"\",G4303+1,\"\")","v":""},null,null,null,null,null,null,0,0]
[0,0,0,null,null,null,"",null,null,null,null,null,null,0,0]
[0,0,0,null,null,null,"",null,null,null,null,null,null,0,0]
[0,0,0,null,null,null,"",null,null,null,null,null,null,0,0]
[0,0,0,null,null,null,"",null,null,null,null,null,null,0,0]
[0,0,0,null,null,null,"",null,null,null,null,null,null,0,0]
[0,0,0,null,null,null,"",null,null,null,null,null,null,0,0]
[0,0,0,null,null,null,"",null,null,null,null,null,null,0,0]
[0,0,0,null,null,null,"",null,null,null,null,null,null,0,0]
[0,0,0,null,null,null,"",null,null,null,null,null,null,0,0]
[0,0,0,null,null,null,"",null,null,null,null,null,null,0,0]
[0,0,0,null,null,null,"",null,null,null,null,null,null,0,0]
[0,0,0,null,null,null,"",null,null,null,null,null,null,0,0]
[0,0,0,null,null,null,"",null,null,null,null,null,null,0,0]
[0,0,0,null,null,null,"",null,null,null,null,null,null,0,0]
[0,0,0,null,null,null,"",null,null,null,null,null,null,0,0]
[0,0,0,null,null,null,"",null,null,null,null,null,null,0,0]
[0,0,0,null,null,null,"",null,null,null,null,null,null,0,0]
[0,0,0,null,null,null,"",null,null,null,null,null,null,0,0]
[0,0,0,null,null,null,"",null,null,null,null,null,null,0,0]
[0,0,0,null,null,null,"",null,null,null,null,null,null,0,0]
[0,0,0,null,null,null,"",null,null,null,null,null,null,0,0]
[0,0,0,null,null,null,"",null,null,null,null,null,null,0,0]
[0,0,0,null,null,null,"",null,null,null,null,null,null,0,0]
[0,0,0,null,null,null,"",null,null,null,null,null,null,0,0]
[0,0,0,null,null,null,"",null,null,null,null,null,null,0,0]
[0,0,0,null,null,null,"",null,null,null,null,null,null,0,0]
[0,0,0,null,null,null,"",null,null,null,null,null,null,0,0]
[0,0,0,null,null,null,"",null,null,null,null,null,null,0,0]
[0,0,0,null,null,null,"",null,null,null,null,null,null,0,0]
[0,0,0,null,null,null,"",null,null,null,null,null,null,0,0]
[0,0,0,null,null,null,"",null,null,null,null,null,null,0,0]
[0,0,0,null,null,null,"",null,null,null,null,null,null,0,0]
[0,0,0,null,null,null,"",null,null,null,null,null,null,0,0]
[0,0,0,null,null,null,"",null,null,null,null,null,null,0,0]
[0,0,0,null,null,null,"",null,null,null,null,null,null,0,0]
[0,0,0,null,null,null,"",null,null,null,null,null,null,0,0]
[0,0,0,null,null,null,"",null,null,null,null,null,null,0,0]
[0,0,0,null,null,null,"",null,null,null,null,null,null,0,0]
[0,0,0,null,null,null,"",null,null,null,null,null,null,0,0]
[0,0,0,null,null,null,"",null,null,null,null,null,null,0,0]
[0,0,0,null,null,null,"",null,null,null,null,null,null,0,0]
[0,0,0,null,null,null,"",null,null,null,null,null,null,0,0]
[0,0,0,null,null,null,"",null,null,null,null,null,null,0,0]
[0,0,0,null,null,null,"",null,null,null,null,null,null,0,0]
[0,0,0,null,null,null,"",null,null,null,null,null,null,0,0]
[0,0,0,null,null,null,"",null,null,null,null,null,null,0,0]
[0,0,0,null,null,null,"",null,null,null,null,null,null,0,0]
[0,0,0,null,null,null,"",null,null,null,null,null,null,0,0]
[0,0,0,null,null,null,"",null,null,null,null,null,null,0,0]
[0,0,0,null,null,null,"",null,null,null,null,null,null,{"$f":"IF(M4354<>0,1,0)","v":0},{"$f":"IF(D4354<>0,1,0)","v":0}]
[{"$f":"IF(M4355=\"Y\",1,0)","v":0},{"$f":"IF(M4355=\"N\",1,0)","v":0},{"$f":"IF(M4355=\"A\",1,0)","v":0},null,null,null,"",null,null,null,null,null,null,0,0]
[0,0,0,null,null,null,"",null,null,null,null,null,null,0,0]
[0,0,0,null,null,null,"",null,null,null,null,null,null,0,0]
[0,0,0,null,null,null,"",null,null,null,null,null,null,0,0]
[0,0,0,null,null,null,"",null,null,null,null,null,null,0,0]
[0,0,0,null,null,null,"",null,null,null,null,null,null,0,0]
[0,0,0,null,null,null,"",null,null,null,null,null,null,0,0]
[0,0,0,null,null,null,"",null,null,null,null,null,null,0,0]
[0,0,0,null,null,null,"",null,null,null,null,null,null,0,0]
[0,0,0,null,null,null,"",null,null,null,null,null,null,0,0]
[0,0,0,null,null,null,"",null,null,null,null,null,null,0,0]
[0,0,0,null,null,null,"",null,null,null,null,null,null,0,0]
[0,0,0,null,null,null,"",null,null,null,null,null,null,0,0]
[0,0,0,null,null,null,{"$f":"IF(D4368<>\"\",G4367+1,\"\")","v":""},null,null,null,null,null,null,0,0]
[0,0,0,null,null,null,"",null,null,null,null,null,null,0,0]
[0,0,0,null,null,null,"",null,null,null,null,null,null,0,0]
[0,0,0,null,null,null,"",null,null,null,null,null,null,0,0]
[0,0,0,null,null,null,"",null,null,null,null,null,null,0,0]
[0,0,0,null,null,null,"",null,null,null,null,null,null,0,0]
[0,0,0,null,null,null,"",null,null,null,null,null,null,0,0]
[0,0,0,null,null,null,"",null,null,null,null,null,null,0,0]
[0,0,0,null,null,null,"",null,null,null,null,null,null,0,0]
[0,0,0,null,null,null,"",null,null,null,null,null,null,0,0]
[0,0,0,null,null,null,"",null,null,null,null,null,null,0,0]
[0,0,0,null,null,null,"",null,null,null,null,null,null,0,0]
[0,0,0,null,null,null,"",null,null,null,null,null,null,0,0]
[0,0,0,null,null,null,"",null,null,null,null,null,null,0,0]
[0,0,0,null,null,null,"",null,null,null,null,null,null,0,0]
[0,0,0,null,null,null,"",null,null,null,null,null,null,0,0]
[0,0,0,null,null,null,"",null,null,null,null,null,null,0,0]
[0,0,0,null,null,null,"",null,null,null,null,null,null,0,0]
[0,0,0,null,null,null,"",null,null,null,null,null,null,0,0]
[0,0,0,null,null,null,"",null,null,null,null,null,null,0,0]
[0,0,0,null,null,null,"",null,null,null,null,null,null,0,0]
[0,0,0,null,null,null,"",null,null,null,null,null,null,0,0]
[0,0,0,null,null,null,"",null,null,null,null,null,null,0,0]
[0,0,0,null,null,null,"",null,null,null,null,null,null,0,0]
[0,0,0,null,null,null,"",null,null,null,null,null,null,0,0]
[0,0,0,null,null,null,"",null,null,null,null,null,null,0,0]
[0,0,0,null,null,null,"",null,null,null,null,null,null,0,0]
[0,0,0,null,null,null,"",null,null,null,null,null,null,0,0]
[0,0,0,null,null,null,"",null,null,null,null,null,null,0,0]
[0,0,0,null,null,null,"",null,null,null,null,null,null,0,0]
[0,0,0,null,null,null,"",null,null,null,null,null,null,0,0]
[0,0,0,null,null,null,"",null,null,null,null,null,null,0,0]
[0,0,0,null,null,null,"",null,null,null,null,null,null,0,0]
[0,0,0,null,null,null,"",null,null,null,null,null,null,0,0]
[0,0,0,null,null,null,"",null,null,null,null,null,null,0,0]
[0,0,0,null,null,null,"",null,null,null,null,null,null,0,0]
[0,0,0,null,null,null,"",null,null,null,null,null,null,0,0]
[0,0,0,null,null,null,"",null,null,null,null,null,null,0,0]
[0,0,0,null,null,null,"",null,null,null,null,null,null,0,0]
[0,0,0,null,null,null,"",null,null,null,null,null,null,0,0]
[0,0,0,null,null,null,"",null,null,null,null,null,null,0,0]
[0,0,0,null,null,null,"",null,null,null,null,null,null,0,0]
[0,0,0,null,null,null,"",null,null,null,null,null,null,0,0]
[0,0,0,null,null,null,"",null,null,null,null,null,null,0,0]
[0,0,0,null,null,null,"",null,null,null,null,null,null,0,0]
[0,0,0,null,null,null,"",null,null,null,null,null,null,0,0]
[0,0,0,null,null,null,"",null,null,null,null,null,null,0,0]
[0,0,0,null,null,null,"",null,null,null,null,null,null,0,0]
[0,0,0,null,null,null,"",null,null,null,null,null,null,0,0]
[0,0,0,null,null,null,"",null,null,null,null,null,null,0,0]
[0,0,0,null,null,null,"",null,null,null,null,null,null,{"$f":"IF(M4418<>0,1,0)","v":0},{"$f":"IF(D4418<>0,1,0)","v":0}]
[{"$f":"IF(M4419=\"Y\",1,0)","v":0},{"$f":"IF(M4419=\"N\",1,0)","v":0},{"$f":"IF(M4419=\"A\",1,0)","v":0},null,null,null,"",null,null,null,null,null,null,0,0]
[0,0,0,null,null,null,"",null,null,null,null,null,null,0,0]
[0,0,0,null,null,null,"",null,null,null,null,null,null,0,0]
[0,0,0,null,null,null,"",null,null,null,null,null,null,0,0]
[0,0,0,null,null,null,"",null,null,null,null,null,null,0,0]
[0,0,0,null,null,null,"",null,null,null,null,null,null,0,0]
[0,0,0,null,null,null,"",null,null,null,null,null,null,0,0]
[0,0,0,null,null,null,"",null,null,null,null,null,null,0,0]
[0,0,0,null,null,null,"",null,null,null,null,null,null,0,0]
[0,0,0,null,null,null,"",null,null,null,null,null,null,0,0]
[0,0,0,null,null,null,"",null,null,null,null,null,null,0,0]
[0,0,0,null,null,null,"",null,null,null,null,null,null,0,0]
[0,0,0,null,null,null,"",null,null,null,null,null,null,0,0]
[0,0,0,null,null,null,{"$f":"IF(D4432<>\"\",G4431+1,\"\")","v":""},null,null,null,null,null,null,0,0]
[0,0,0,null,null,null,"",null,null,null,null,null,null,0,0]
[0,0,0,null,null,null,"",null,null,null,null,null,null,0,0]
[0,0,0,null,null,null,"",null,null,null,null,null,null,0,0]
[0,0,0,null,null,null,"",null,null,null,null,null,null,0,0]
[0,0,0,null,null,null,"",null,null,null,null,null,null,0,0]
[0,0,0,null,null,null,"",null,null,null,null,null,null,0,0]
[0,0,0,null,null,null,"",null,null,null,null,null,null,0,0]
[0,0,0,null,null,null,"",null,null,null,null,null,null,0,0]
[0,0,0,null,null,null,"",null,null,null,null,null,null,0,0]
[0,0,0,null,null,null,"",null,null,null,null,null,null,0,0]
[0,0,0,null,null,null,"",null,null,null,null,null,null,0,0]
[0,0,0,null,null,null,"",null,null,null,null,null,null,0,0]
[0,0,0,null,null,null,"",null,null,null,null,null,null,0,0]
[0,0,0,null,null,null,"",null,null,null,null,null,null,0,0]
[0,0,0,null,null,null,"",null,null,null,null,null,null,0,0]
[0,0,0,null,null,null,"",null,null,null,null,null,null,0,0]
[0,0,0,null,null,null,"",null,null,null,null,null,null,0,0]
[0,0,0,null,null,null,"",null,null,null,null,null,null,0,0]
[0,0,0,null,null,null,"",null,null,null,null,null,null,0,0]
[0,0,0,null,null,null,"",null,null,null,null,null,null,0,0]
[0,0,0,null,null,null,"",null,null,null,null,null,null,0,0]
[0,0,0,null,null,null,"",null,null,null,null,null,null,0,0]
[0,0,0,null,null,null,"",null,null,null,null,null,null,0,0]
[0,0,0,null,null,null,"",null,null,null,null,null,null,0,0]
[0,0,0,null,null,null,"",null,null,null,null,null,null,0,0]
[0,0,0,null,null,null,"",null,null,null,null,null,null,0,0]
[0,0,0,null,null,null,"",null,null,null,null,null,null,0,0]
[0,0,0,null,null,null,"",null,null,null,null,null,null,0,0]
[0,0,0,null,null,null,"",null,null,null,null,null,null,0,0]
[0,0,0,null,null,null,"",null,null,null,null,null,null,0,0]
[0,0,0,null,null,null,"",null,null,null,null,null,null,0,0]
[0,0,0,null,null,null,"",null,null,null,null,null,null,0,0]
[0,0,0,null,null,null,"",null,null,null,null,null,null,0,0]
[0,0,0,null,null,null,"",null,null,null,null,null,null,0,0]
[0,0,0,null,null,null,"",null,null,null,null,null,null,0,0]
[0,0,0,null,null,null,"",null,null,null,null,null,null,0,0]
[0,0,0,null,null,null,"",null,null,null,null,null,null,0,0]
[0,0,0,null,null,null,"",null,null,null,null,null,null,0,0]
[0,0,0,null,null,null,"",null,null,null,null,null,null,0,0]
[0,0,0,null,null,null,"",null,null,null,null,null,null,0,0]
[0,0,0,null,null,null,"",null,null,null,null,null,null,0,0]
[0,0,0,null,null,null,"",null,null,null,null,null,null,0,0]
[0,0,0,null,null,null,"",null,null,null,null,null,null,0,0]
[0,0,0,null,null,null,"",null,null,null,null,null,null,0,0]
[0,0,0,null,null,null,"",null,null,null,null,null,null,0,0]
[0,0,0,null,null,null,"",null,null,null,null,null,null,0,0]
[0,0,0,null,null,null,"",null,null,null,null,null,null,0,0]
[0,0,0,null,null,null,"",null,null,null,null,null,null,0,0]
[0,0,0,null,null,null,"",null,null,null,null,null,null,0,0]
[0,0,0,null,null,null,"",null,null,null,null,null,null,{"$f":"IF(M4482<>0,1,0)","v":0},{"$f":"IF(D4482<>0,1,0)","v":0}]
[{"$f":"IF(M4483=\"Y\",1,0)","v":0},{"$f":"IF(M4483=\"N\",1,0)","v":0},{"$f":"IF(M4483=\"A\",1,0)","v":0},null,null,null,"",null,null,null,null,null,null,0,0]
[0,0,0,null,null,null,"",null,null,null,null,null,null,0,0]
[0,0,0,null,null,null,"",null,null,null,null,null,null,0,0]
[0,0,0,null,null,null,"",null,null,null,null,null,null,0,0]
[0,0,0,null,null,null,"",null,null,null,null,null,null,0,0]
[0,0,0,null,null,null,"",null,null,null,null,null,null,0,0]
[0,0,0,null,null,null,"",null,null,null,null,null,null,0,0]
[0,0,0,null,null,null,"",null,null,null,null,null,null,0,0]
[0,0,0,null,null,null,"",null,null,null,null,null,null,0,0]
[0,0,0,null,null,null,"",null,null,null,null,null,null,0,0]
[0,0,0,null,null,null,"",null,null,null,null,null,null,0,0]
[0,0,0,null,null,null,"",null,null,null,null,null,null,0,0]
[0,0,0,null,null,null,"",null,null,null,null,null,null,0,0]
[0,0,0,null,null,null,{"$f":"IF(D4496<>\"\",G4495+1,\"\")","v":""},null,null,null,null,null,null,0,0]
[0,0,0,null,null,null,"",null,null,null,null,null,null,0,0]
[0,0,0,null,null,null,"",null,null,null,null,null,null,0,0]
[0,0,0,null,null,null,"",null,null,null,null,null,null,0,0]
[0,0,0,null,null,null,"",null,null,null,null,null,null,0,0]
[0,0,0,null,null,null,"",null,null,null,null,null,null,0,0]
[0,0,0,null,null,null,"",null,null,null,null,null,null,0,0]
[0,0,0,null,null,null,"",null,null,null,null,null,null,0,0]
[0,0,0,null,null,null,"",null,null,null,null,null,null,0,0]
[0,0,0,null,null,null,"",null,null,null,null,null,null,0,0]
[0,0,0,null,null,null,"",null,null,null,null,null,null,0,0]
[0,0,0,null,null,null,"",null,null,null,null,null,null,0,0]
[0,0,0,null,null,null,"",null,null,null,null,null,null,0,0]
[0,0,0,null,null,null,"",null,null,null,null,null,null,0,0]
[0,0,0,null,null,null,"",null,null,null,null,null,null,0,0]
[0,0,0,null,null,null,"",null,null,null,null,null,null,0,0]
[0,0,0,null,null,null,"",null,null,null,null,null,null,0,0]
[0,0,0,null,null,null,"",null,null,null,null,null,null,0,0]
[0,0,0,null,null,null,"",null,null,null,null,null,null,0,0]
[0,0,0,null,null,null,"",null,null,null,null,null,null,0,0]
[0,0,0,null,null,null,"",null,null,null,null,null,null,0,0]
[0,0,0,null,null,null,"",null,null,null,null,null,null,0,0]
[0,0,0,null,null,null,"",null,null,null,null,null,null,0,0]
[0,0,0,null,null,null,"",null,null,null,null,null,null,0,0]
[0,0,0,null,null,null,"",null,null,null,null,null,null,0,0]
[0,0,0,null,null,null,"",null,null,null,null,null,null,0,0]
[0,0,0,null,null,null,"",null,null,null,null,null,null,0,0]
[0,0,0,null,null,null,"",null,null,null,null,null,null,0,0]
[0,0,0,null,null,null,"",null,null,null,null,null,null,0,0]
[0,0,0,null,null,null,"",null,null,null,null,null,null,0,0]
[0,0,0,null,null,null,"",null,null,null,null,null,null,0,0]
[0,0,0,null,null,null,"",null,null,null,null,null,null,0,0]
[0,0,0,null,null,null,"",null,null,null,null,null,null,0,0]
[0,0,0,null,null,null,"",null,null,null,null,null,null,0,0]
[0,0,0,null,null,null,"",null,null,null,null,null,null,0,0]
[0,0,0,null,null,null,"",null,null,null,null,null,null,0,0]
[0,0,0,null,null,null,"",null,null,null,null,null,null,0,0]
[0,0,0,null,null,null,"",null,null,null,null,null,null,0,0]
[0,0,0,null,null,null,"",null,null,null,null,null,null,0,0]
[0,0,0,null,null,null,"",null,null,null,null,null,null,0,0]
[0,0,0,null,null,null,"",null,null,null,null,null,null,0,0]
[0,0,0,null,null,null,"",null,null,null,null,null,null,0,0]
[0,0,0,null,null,null,"",null,null,null,null,null,null,0,0]
[0,0,0,null,null,null,"",null,null,null,null,null,null,0,0]
[0,0,0,null,null,null,"",null,null,null,null,null,null,0,0]
[0,0,0,null,null,null,"",null,null,null,null,null,null,0,0]
[0,0,0,null,null,null,"",null,null,null,null,null,null,0,0]
[0,0,0,null,null,null,"",null,null,null,null,null,null,0,0]
[0,0,0,null,null,null,"",null,null,null,null,null,null,0,0]
[0,0,0,null,null,null,"",null,null,null,null,null,null,0,0]
[0,0,0,null,null,null,"",null,null,null,null,null,null,{"$f":"IF(M4546<>0,1,0)","v":0},{"$f":"IF(D4546<>0,1,0)","v":0}]
[{"$f":"IF(M4547=\"Y\",1,0)","v":0},{"$f":"IF(M4547=\"N\",1,0)","v":0},{"$f":"IF(M4547=\"A\",1,0)","v":0},null,null,null,"",null,null,null,null,null,null,0,0]
[0,0,0,null,null,null,"",null,null,null,null,null,null,0,0]
[0,0,0,null,null,null,"",null,null,null,null,null,null,0,0]
[0,0,0,null,null,null,"",null,null,null,null,null,null,0,0]
[0,0,0,null,null,null,"",null,null,null,null,null,null,0,0]
[0,0,0,null,null,null,"",null,null,null,null,null,null,0,0]
[0,0,0,null,null,null,"",null,null,null,null,null,null,0,0]
[0,0,0,null,null,null,"",null,null,null,null,null,null,0,0]
[0,0,0,null,null,null,"",null,null,null,null,null,null,0,0]
[0,0,0,null,null,null,"",null,null,null,null,null,null,0,0]
[0,0,0,null,null,null,"",null,null,null,null,null,null,0,0]
[0,0,0,null,null,null,"",null,null,null,null,null,null,0,0]
[0,0,0,null,null,null,"",null,null,null,null,null,null,0,0]
[0,0,0,null,null,null,{"$f":"IF(D4560<>\"\",G4559+1,\"\")","v":""},null,null,null,null,null,null,0,0]
[0,0,0,null,null,null,"",null,null,null,null,null,null,0,0]
[0,0,0,null,null,null,"",null,null,null,null,null,null,0,0]
[0,0,0,null,null,null,"",null,null,null,null,null,null,0,0]
[0,0,0,null,null,null,"",null,null,null,null,null,null,0,0]
[0,0,0,null,null,null,"",null,null,null,null,null,null,0,0]
[0,0,0,null,null,null,"",null,null,null,null,null,null,0,0]
[0,0,0,null,null,null,"",null,null,null,null,null,null,0,0]
[0,0,0,null,null,null,"",null,null,null,null,null,null,0,0]
[0,0,0,null,null,null,"",null,null,null,null,null,null,0,0]
[0,0,0,null,null,null,"",null,null,null,null,null,null,0,0]
[0,0,0,null,null,null,"",null,null,null,null,null,null,0,0]
[0,0,0,null,null,null,"",null,null,null,null,null,null,0,0]
[0,0,0,null,null,null,"",null,null,null,null,null,null,0,0]
[0,0,0,null,null,null,"",null,null,null,null,null,null,0,0]
[0,0,0,null,null,null,"",null,null,null,null,null,null,0,0]
[0,0,0,null,null,null,"",null,null,null,null,null,null,0,0]
[0,0,0,null,null,null,"",null,null,null,null,null,null,0,0]
[0,0,0,null,null,null,"",null,null,null,null,null,null,0,0]
[0,0,0,null,null,null,"",null,null,null,null,null,null,0,0]
[0,0,0,null,null,null,"",null,null,null,null,null,null,0,0]
[0,0,0,null,null,null,"",null,null,null,null,null,null,0,0]
[0,0,0,null,null,null,"",null,null,null,null,null,null,0,0]
[0,0,0,null,null,null,"",null,null,null,null,null,null,0,0]
[0,0,0,null,null,null,"",null,null,null,null,null,null,0,0]
[0,0,0,null,null,null,"",null,null,null,null,null,null,0,0]
[0,0,0,null,null,null,"",null,null,null,null,null,null,0,0]
[0,0,0,null,null,null,"",null,null,null,null,null,null,0,0]
[0,0,0,null,null,null,"",null,null,null,null,null,null,0,0]
[0,0,0,null,null,null,"",null,null,null,null,null,null,0,0]
[0,0,0,null,null,null,"",null,null,null,null,null,null,0,0]
[0,0,0,null,null,null,"",null,null,null,null,null,null,0,0]
[0,0,0,null,null,null,"",null,null,null,null,null,null,0,0]
[0,0,0,null,null,null,"",null,null,null,null,null,null,0,0]
[0,0,0,null,null,null,"",null,null,null,null,null,null,0,0]
[0,0,0,null,null,null,"",null,null,null,null,null,null,0,0]
[0,0,0,null,null,null,"",null,null,null,null,null,null,0,0]
[0,0,0,null,null,null,"",null,null,null,null,null,null,0,0]
[0,0,0,null,null,null,"",null,null,null,null,null,null,0,0]
[0,0,0,null,null,null,"",null,null,null,null,null,null,0,0]
[0,0,0,null,null,null,"",null,null,null,null,null,null,0,0]
[0,0,0,null,null,null,"",null,null,null,null,null,null,0,0]
[0,0,0,null,null,null,"",null,null,null,null,null,null,0,0]
[0,0,0,null,null,null,"",null,null,null,null,null,null,0,0]
[0,0,0,null,null,null,"",null,null,null,null,null,null,0,0]
[0,0,0,null,null,null,"",null,null,null,null,null,null,0,0]
[0,0,0,null,null,null,"",null,null,null,null,null,null,0,0]
[0,0,0,null,null,null,"",null,null,null,null,null,null,0,0]
[0,0,0,null,null,null,"",null,null,null,null,null,null,0,0]
[0,0,0,null,null,null,"",null,null,null,null,null,null,0,0]
[0,0,0,null,null,null,"",null,null,null,null,null,null,{"$f":"IF(M4610<>0,1,0)","v":0},{"$f":"IF(D4610<>0,1,0)","v":0}]
[{"$f":"IF(M4611=\"Y\",1,0)","v":0},{"$f":"IF(M4611=\"N\",1,0)","v":0},{"$f":"IF(M4611=\"A\",1,0)","v":0},null,null,null,"",null,null,null,null,null,null,0,0]
[0,0,0,null,null,null,"",null,null,null,null,null,null,0,0]
[0,0,0,null,null,null,"",null,null,null,null,null,null,0,0]
[0,0,0,null,null,null,"",null,null,null,null,null,null,0,0]
[0,0,0,null,null,null,"",null,null,null,null,null,null,0,0]
[0,0,0,null,null,null,"",null,null,null,null,null,null,0,0]
[0,0,0,null,null,null,"",null,null,null,null,null,null,0,0]
[0,0,0,null,null,null,"",null,null,null,null,null,null,0,0]
[0,0,0,null,null,null,"",null,null,null,null,null,null,0,0]
[0,0,0,null,null,null,"",null,null,null,null,null,null,0,0]
[0,0,0,null,null,null,"",null,null,null,null,null,null,0,0]
[0,0,0,null,null,null,"",null,null,null,null,null,null,0,0]
[0,0,0,null,null,null,"",null,null,null,null,null,null,0,0]
[0,0,0,null,null,null,{"$f":"IF(D4624<>\"\",G4623+1,\"\")","v":""},null,null,null,null,null,null,0,0]
[0,0,0,null,null,null,"",null,null,null,null,null,null,0,0]
[0,0,0,null,null,null,"",null,null,null,null,null,null,0,0]
[0,0,0,null,null,null,"",null,null,null,null,null,null,0,0]
[0,0,0,null,null,null,"",null,null,null,null,null,null,0,0]
[0,0,0,null,null,null,"",null,null,null,null,null,null,0,0]
[0,0,0,null,null,null,"",null,null,null,null,null,null,0,0]
[0,0,0,null,null,null,"",null,null,null,null,null,null,0,0]
[0,0,0,null,null,null,"",null,null,null,null,null,null,0,0]
[0,0,0,null,null,null,"",null,null,null,null,null,null,0,0]
[0,0,0,null,null,null,"",null,null,null,null,null,null,0,0]
[0,0,0,null,null,null,"",null,null,null,null,null,null,0,0]
[0,0,0,null,null,null,"",null,null,null,null,null,null,0,0]
[0,0,0,null,null,null,"",null,null,null,null,null,null,0,0]
[0,0,0,null,null,null,"",null,null,null,null,null,null,0,0]
[0,0,0,null,null,null,"",null,null,null,null,null,null,0,0]
[0,0,0,null,null,null,"",null,null,null,null,null,null,0,0]
[0,0,0,null,null,null,"",null,null,null,null,null,null,0,0]
[0,0,0,null,null,null,"",null,null,null,null,null,null,0,0]
[0,0,0,null,null,null,"",null,null,null,null,null,null,0,0]
[0,0,0,null,null,null,"",null,null,null,null,null,null,0,0]
[0,0,0,null,null,null,"",null,null,null,null,null,null,0,0]
[0,0,0,null,null,null,"",null,null,null,null,null,null,0,0]
[0,0,0,null,null,null,"",null,null,null,null,null,null,0,0]
[0,0,0,null,null,null,"",null,null,null,null,null,null,0,0]
[0,0,0,null,null,null,"",null,null,null,null,null,null,0,0]
[0,0,0,null,null,null,"",null,null,null,null,null,null,0,0]
[0,0,0,null,null,null,"",null,null,null,null,null,null,0,0]
[0,0,0,null,null,null,"",null,null,null,null,null,null,0,0]
[0,0,0,null,null,null,"",null,null,null,null,null,null,0,0]
[0,0,0,null,null,null,"",null,null,null,null,null,null,0,0]
[0,0,0,null,null,null,"",null,null,null,null,null,null,0,0]
[0,0,0,null,null,null,"",null,null,null,null,null,null,0,0]
[0,0,0,null,null,null,"",null,null,null,null,null,null,0,0]
[0,0,0,null,null,null,"",null,null,null,null,null,null,0,0]
[0,0,0,null,null,null,"",null,null,null,null,null,null,0,0]
[0,0,0,null,null,null,"",null,null,null,null,null,null,0,0]
[0,0,0,null,null,null,"",null,null,null,null,null,null,0,0]
[0,0,0,null,null,null,"",null,null,null,null,null,null,0,0]
[0,0,0,null,null,null,"",null,null,null,null,null,null,0,0]
[0,0,0,null,null,null,"",null,null,null,null,null,null,0,0]
[0,0,0,null,null,null,"",null,null,null,null,null,null,0,0]
[0,0,0,null,null,null,"",null,null,null,null,null,null,0,0]
[0,0,0,null,null,null,"",null,null,null,null,null,null,0,0]
[0,0,0,null,null,null,"",null,null,null,null,null,null,0,0]
[0,0,0,null,null,null,"",null,null,null,null,null,null,0,0]
[0,0,0,null,null,null,"",null,null,null,null,null,null,0,0]
[0,0,0,null,null,null,"",null,null,null,null,null,null,0,0]
[0,0,0,null,null,null,"",null,null,null,null,null,null,0,0]
[0,0,0,null,null,null,"",null,null,null,null,null,null,0,0]
[0,0,0,null,null,null,"",null,null,null,null,null,null,{"$f":"IF(M4674<>0,1,0)","v":0},{"$f":"IF(D4674<>0,1,0)","v":0}]
[{"$f":"IF(M4675=\"Y\",1,0)","v":0},{"$f":"IF(M4675=\"N\",1,0)","v":0},{"$f":"IF(M4675=\"A\",1,0)","v":0},null,null,null,"",null,null,null,null,null,null,0,0]
[0,0,0,null,null,null,"",null,null,null,null,null,null,0,0]
[0,0,0,null,null,null,"",null,null,null,null,null,null,0,0]
[0,0,0,null,null,null,"",null,null,null,null,null,null,0,0]
[0,0,0,null,null,null,"",null,null,null,null,null,null,0,0]
[0,0,0,null,null,null,"",null,null,null,null,null,null,0,0]
[0,0,0,null,null,null,"",null,null,null,null,null,null,0,0]
[0,0,0,null,null,null,"",null,null,null,null,null,null,0,0]
[0,0,0,null,null,null,"",null,null,null,null,null,null,0,0]
[0,0,0,null,null,null,"",null,null,null,null,null,null,0,0]
[0,0,0,null,null,null,"",null,null,null,null,null,null,0,0]
[0,0,0,null,null,null,"",null,null,null,null,null,null,0,0]
[0,0,0,null,null,null,"",null,null,null,null,null,null,0,0]
[0,0,0,null,null,null,{"$f":"IF(D4688<>\"\",G4687+1,\"\")","v":""},null,null,null,null,null,null,0,0]
[0,0,0,null,null,null,"",null,null,null,null,null,null,0,0]
[0,0,0,null,null,null,"",null,null,null,null,null,null,0,0]
[0,0,0,null,null,null,"",null,null,null,null,null,null,0,0]
[0,0,0,null,null,null,"",null,null,null,null,null,null,0,0]
[0,0,0,null,null,null,"",null,null,null,null,null,null,0,0]
[0,0,0,null,null,null,"",null,null,null,null,null,null,0,0]
[0,0,0,null,null,null,"",null,null,null,null,null,null,0,0]
[0,0,0,null,null,null,"",null,null,null,null,null,null,0,0]
[0,0,0,null,null,null,"",null,null,null,null,null,null,0,0]
[0,0,0,null,null,null,"",null,null,null,null,null,null,0,0]
[0,0,0,null,null,null,"",null,null,null,null,null,null,0,0]
[0,0,0,null,null,null,"",null,null,null,null,null,null,0,0]
[0,0,0,null,null,null,"",null,null,null,null,null,null,0,0]
[0,0,0,null,null,null,"",null,null,null,null,null,null,0,0]
[0,0,0,null,null,null,"",null,null,null,null,null,null,0,0]
[0,0,0,null,null,null,"",null,null,null,null,null,null,0,0]
[0,0,0,null,null,null,"",null,null,null,null,null,null,0,0]
[0,0,0,null,null,null,"",null,null,null,null,null,null,0,0]
[0,0,0,null,null,null,"",null,null,null,null,null,null,0,0]
[0,0,0,null,null,null,"",null,null,null,null,null,null,0,0]
[0,0,0,null,null,null,"",null,null,null,null,null,null,0,0]
[0,0,0,null,null,null,"",null,null,null,null,null,null,0,0]
[0,0,0,null,null,null,"",null,null,null,null,null,null,0,0]
[0,0,0,null,null,null,"",null,null,null,null,null,null,0,0]
[0,0,0,null,null,null,"",null,null,null,null,null,null,0,0]
[0,0,0,null,null,null,"",null,null,null,null,null,null,0,0]
[0,0,0,null,null,null,"",null,null,null,null,null,null,0,0]
[0,0,0,null,null,null,"",null,null,null,null,null,null,0,0]
[0,0,0,null,null,null,"",null,null,null,null,null,null,0,0]
[0,0,0,null,null,null,"",null,null,null,null,null,null,0,0]
[0,0,0,null,null,null,"",null,null,null,null,null,null,0,0]
[0,0,0,null,null,null,"",null,null,null,null,null,null,0,0]
[0,0,0,null,null,null,"",null,null,null,null,null,null,0,0]
[0,0,0,null,null,null,"",null,null,null,null,null,null,0,0]
[0,0,0,null,null,null,"",null,null,null,null,null,null,0,0]
[0,0,0,null,null,null,"",null,null,null,null,null,null,0,0]
[0,0,0,null,null,null,"",null,null,null,null,null,null,0,0]
[0,0,0,null,null,null,"",null,null,null,null,null,null,0,0]
[0,0,0,null,null,null,"",null,null,null,null,null,null,0,0]
[0,0,0,null,null,null,"",null,null,null,null,null,null,0,0]
[0,0,0,null,null,null,"",null,null,null,null,null,null,0,0]
[0,0,0,null,null,null,"",null,null,null,null,null,null,0,0]
[0,0,0,null,null,null,"",null,null,null,null,null,null,0,0]
[0,0,0,null,null,null,"",null,null,null,null,null,null,0,0]
[0,0,0,null,null,null,"",null,null,null,null,null,null,0,0]
[0,0,0,null,null,null,"",null,null,null,null,null,null,0,0]
[0,0,0,null,null,null,"",null,null,null,null,null,null,0,0]
[0,0,0,null,null,null,"",null,null,null,null,null,null,0,0]
[0,0,0,null,null,null,"",null,null,null,null,null,null,0,0]
[0,0,0,null,null,null,"",null,null,null,null,null,null,{"$f":"IF(M4738<>0,1,0)","v":0},{"$f":"IF(D4738<>0,1,0)","v":0}]
[{"$f":"IF(M4739=\"Y\",1,0)","v":0},{"$f":"IF(M4739=\"N\",1,0)","v":0},{"$f":"IF(M4739=\"A\",1,0)","v":0},null,null,null,"",null,null,null,null,null,null,0,0]
[0,0,0,null,null,null,"",null,null,null,null,null,null,0,0]
[0,0,0,null,null,null,"",null,null,null,null,null,null,0,0]
[0,0,0,null,null,null,"",null,null,null,null,null,null,0,0]
[0,0,0,null,null,null,"",null,null,null,null,null,null,0,0]
[0,0,0,null,null,null,"",null,null,null,null,null,null,0,0]
[0,0,0,null,null,null,"",null,null,null,null,null,null,0,0]
[0,0,0,null,null,null,"",null,null,null,null,null,null,0,0]
[0,0,0,null,null,null,"",null,null,null,null,null,null,0,0]
[0,0,0,null,null,null,"",null,null,null,null,null,null,0,0]
[0,0,0,null,null,null,"",null,null,null,null,null,null,0,0]
[0,0,0,null,null,null,"",null,null,null,null,null,null,0,0]
[0,0,0,null,null,null,"",null,null,null,null,null,null,0,0]
[0,0,0,null,null,null,{"$f":"IF(D4752<>\"\",G4751+1,\"\")","v":""},null,null,null,null,null,null,0,0]
[0,0,0,null,null,null,"",null,null,null,null,null,null,0,0]
[0,0,0,null,null,null,"",null,null,null,null,null,null,0,0]
[0,0,0,null,null,null,"",null,null,null,null,null,null,0,0]
[0,0,0,null,null,null,"",null,null,null,null,null,null,0,0]
[0,0,0,null,null,null,"",null,null,null,null,null,null,0,0]
[0,0,0,null,null,null,"",null,null,null,null,null,null,0,0]
[0,0,0,null,null,null,"",null,null,null,null,null,null,0,0]
[0,0,0,null,null,null,"",null,null,null,null,null,null,0,0]
[0,0,0,null,null,null,"",null,null,null,null,null,null,0,0]
[0,0,0,null,null,null,"",null,null,null,null,null,null,0,0]
[0,0,0,null,null,null,"",null,null,null,null,null,null,0,0]
[0,0,0,null,null,null,"",null,null,null,null,null,null,0,0]
[0,0,0,null,null,null,"",null,null,null,null,null,null,0,0]
[0,0,0,null,null,null,"",null,null,null,null,null,null,0,0]
[0,0,0,null,null,null,"",null,null,null,null,null,null,0,0]
[0,0,0,null,null,null,"",null,null,null,null,null,null,0,0]
[0,0,0,null,null,null,"",null,null,null,null,null,null,0,0]
[0,0,0,null,null,null,"",null,null,null,null,null,null,0,0]
[0,0,0,null,null,null,"",null,null,null,null,null,null,0,0]
[0,0,0,null,null,null,"",null,null,null,null,null,null,0,0]
[0,0,0,null,null,null,"",null,null,null,null,null,null,0,0]
[0,0,0,null,null,null,"",null,null,null,null,null,null,0,0]
[0,0,0,null,null,null,"",null,null,null,null,null,null,0,0]
[0,0,0,null,null,null,"",null,null,null,null,null,null,0,0]
[0,0,0,null,null,null,"",null,null,null,null,null,null,0,0]
[0,0,0,null,null,null,"",null,null,null,null,null,null,0,0]
[0,0,0,null,null,null,"",null,null,null,null,null,null,0,0]
[0,0,0,null,null,null,"",null,null,null,null,null,null,0,0]
[0,0,0,null,null,null,"",null,null,null,null,null,null,0,0]
[0,0,0,null,null,null,"",null,null,null,null,null,null,0,0]
[0,0,0,null,null,null,"",null,null,null,null,null,null,0,0]
[0,0,0,null,null,null,"",null,null,null,null,null,null,0,0]
[0,0,0,null,null,null,"",null,null,null,null,null,null,0,0]
[0,0,0,null,null,null,"",null,null,null,null,null,null,0,0]
[0,0,0,null,null,null,"",null,null,null,null,null,null,0,0]
[0,0,0,null,null,null,"",null,null,null,null,null,null,0,0]
[0,0,0,null,null,null,"",null,null,null,null,null,null,0,0]
[0,0,0,null,null,null,"",null,null,null,null,null,null,0,0]
[0,0,0,null,null,null,"",null,null,null,null,null,null,0,0]
[0,0,0,null,null,null,"",null,null,null,null,null,null,0,0]
[0,0,0,null,null,null,"",null,null,null,null,null,null,0,0]
[0,0,0,null,null,null,"",null,null,null,null,null,null,0,0]
[0,0,0,null,null,null,"",null,null,null,null,null,null,0,0]
[0,0,0,null,null,null,"",null,null,null,null,null,null,0,0]
[0,0,0,null,null,null,"",null,null,null,null,null,null,0,0]
[0,0,0,null,null,null,"",null,null,null,null,null,null,0,0]
[0,0,0,null,null,null,"",null,null,null,null,null,null,0,0]
[0,0,0,null,null,null,"",null,null,null,null,null,null,0,0]
[0,0,0,null,null,null,"",null,null,null,null,null,null,0,0]
[0,0,0,null,null,null,"",null,null,null,null,null,null,{"$f":"IF(M4802<>0,1,0)","v":0},{"$f":"IF(D4802<>0,1,0)","v":0}]
[{"$f":"IF(M4803=\"Y\",1,0)","v":0},{"$f":"IF(M4803=\"N\",1,0)","v":0},{"$f":"IF(M4803=\"A\",1,0)","v":0},null,null,null,"",null,null,null,null,null,null,0,0]
[0,0,0,null,null,null,"",null,null,null,null,null,null,0,0]
[0,0,0,null,null,null,"",null,null,null,null,null,null,0,0]
[0,0,0,null,null,null,"",null,null,null,null,null,null,0,0]
[0,0,0,null,null,null,"",null,null,null,null,null,null,0,0]
[0,0,0,null,null,null,"",null,null,null,null,null,null,0,0]
[0,0,0,null,null,null,"",null,null,null,null,null,null,0,0]
[0,0,0,null,null,null,"",null,null,null,null,null,null,0,0]
[0,0,0,null,null,null,"",null,null,null,null,null,null,0,0]
[0,0,0,null,null,null,"",null,null,null,null,null,null,0,0]
[0,0,0,null,null,null,"",null,null,null,null,null,null,0,0]
[0,0,0,null,null,null,"",null,null,null,null,null,null,0,0]
[0,0,0,null,null,null,"",null,null,null,null,null,null,0,0]
[0,0,0,null,null,null,{"$f":"IF(D4816<>\"\",G4815+1,\"\")","v":""},null,null,null,null,null,null,0,0]
[0,0,0,null,null,null,"",null,null,null,null,null,null,0,0]
[0,0,0,null,null,null,"",null,null,null,null,null,null,0,0]
[0,0,0,null,null,null,"",null,null,null,null,null,null,0,0]
[0,0,0,null,null,null,"",null,null,null,null,null,null,0,0]
[0,0,0,null,null,null,"",null,null,null,null,null,null,0,0]
[0,0,0,null,null,null,"",null,null,null,null,null,null,0,0]
[0,0,0,null,null,null,"",null,null,null,null,null,null,0,0]
[0,0,0,null,null,null,"",null,null,null,null,null,null,0,0]
[0,0,0,null,null,null,"",null,null,null,null,null,null,0,0]
[0,0,0,null,null,null,"",null,null,null,null,null,null,0,0]
[0,0,0,null,null,null,"",null,null,null,null,null,null,0,0]
[0,0,0,null,null,null,"",null,null,null,null,null,null,0,0]
[0,0,0,null,null,null,"",null,null,null,null,null,null,0,0]
[0,0,0,null,null,null,"",null,null,null,null,null,null,0,0]
[0,0,0,null,null,null,"",null,null,null,null,null,null,0,0]
[0,0,0,null,null,null,"",null,null,null,null,null,null,0,0]
[0,0,0,null,null,null,"",null,null,null,null,null,null,0,0]
[0,0,0,null,null,null,"",null,null,null,null,null,null,0,0]
[0,0,0,null,null,null,"",null,null,null,null,null,null,0,0]
[0,0,0,null,null,null,"",null,null,null,null,null,null,0,0]
[0,0,0,null,null,null,"",null,null,null,null,null,null,0,0]
[0,0,0,null,null,null,"",null,null,null,null,null,null,0,0]
[0,0,0,null,null,null,"",null,null,null,null,null,null,0,0]
[0,0,0,null,null,null,"",null,null,null,null,null,null,0,0]
[0,0,0,null,null,null,"",null,null,null,null,null,null,0,0]
[0,0,0,null,null,null,"",null,null,null,null,null,null,0,0]
[0,0,0,null,null,null,"",null,null,null,null,null,null,0,0]
[0,0,0,null,null,null,"",null,null,null,null,null,null,0,0]
[0,0,0,null,null,null,"",null,null,null,null,null,null,0,0]
[0,0,0,null,null,null,"",null,null,null,null,null,null,0,0]
[0,0,0,null,null,null,"",null,null,null,null,null,null,0,0]
[0,0,0,null,null,null,"",null,null,null,null,null,null,0,0]
[0,0,0,null,null,null,"",null,null,null,null,null,null,0,0]
[0,0,0,null,null,null,"",null,null,null,null,null,null,0,0]
[0,0,0,null,null,null,"",null,null,null,null,null,null,0,0]
[0,0,0,null,null,null,"",null,null,null,null,null,null,0,0]
[0,0,0,null,null,null,"",null,null,null,null,null,null,0,0]
[0,0,0,null,null,null,"",null,null,null,null,null,null,0,0]
[0,0,0,null,null,null,"",null,null,null,null,null,null,0,0]
[0,0,0,null,null,null,"",null,null,null,null,null,null,0,0]
[0,0,0,null,null,null,"",null,null,null,null,null,null,0,0]
[0,0,0,null,null,null,"",null,null,null,null,null,null,0,0]
[0,0,0,null,null,null,"",null,null,null,null,null,null,0,0]
[0,0,0,null,null,null,"",null,null,null,null,null,null,0,0]
[0,0,0,null,null,null,"",null,null,null,null,null,null,0,0]
[0,0,0,null,null,null,"",null,null,null,null,null,null,0,0]
[0,0,0,null,null,null,"",null,null,null,null,null,null,0,0]
[0,0,0,null,null,null,"",null,null,null,null,null,null,0,0]
[0,0,0,null,null,null,"",null,null,null,null,null,null,0,0]
[0,0,0,null,null,null,"",null,null,null,null,null,null,{"$f":"IF(M4866<>0,1,0)","v":0},{"$f":"IF(D4866<>0,1,0)","v":0}]
[{"$f":"IF(M4867=\"Y\",1,0)","v":0},{"$f":"IF(M4867=\"N\",1,0)","v":0},{"$f":"IF(M4867=\"A\",1,0)","v":0},null,null,null,"",null,null,null,null,null,null,0,0]
[0,0,0,null,null,null,"",null,null,null,null,null,null,0,0]
[0,0,0,null,null,null,"",null,null,null,null,null,null,0,0]
[0,0,0,null,null,null,"",null,null,null,null,null,null,0,0]
[0,0,0,null,null,null,"",null,null,null,null,null,null,0,0]
[0,0,0,null,null,null,"",null,null,null,null,null,null,0,0]
[0,0,0,null,null,null,"",null,null,null,null,null,null,0,0]
[0,0,0,null,null,null,"",null,null,null,null,null,null,0,0]
[0,0,0,null,null,null,"",null,null,null,null,null,null,0,0]
[0,0,0,null,null,null,"",null,null,null,null,null,null,0,0]
[0,0,0,null,null,null,"",null,null,null,null,null,null,0,0]
[0,0,0,null,null,null,"",null,null,null,null,null,null,0,0]
[0,0,0,null,null,null,"",null,null,null,null,null,null,0,0]
[0,0,0,null,null,null,{"$f":"IF(D4880<>\"\",G4879+1,\"\")","v":""},null,null,null,null,null,null,0,0]
[0,0,0,null,null,null,"",null,null,null,null,null,null,0,0]
[0,0,0,null,null,null,"",null,null,null,null,null,null,0,0]
[0,0,0,null,null,null,"",null,null,null,null,null,null,0,0]
[0,0,0,null,null,null,"",null,null,null,null,null,null,0,0]
[0,0,0,null,null,null,"",null,null,null,null,null,null,0,0]
[0,0,0,null,null,null,"",null,null,null,null,null,null,0,0]
[0,0,0,null,null,null,"",null,null,null,null,null,null,0,0]
[0,0,0,null,null,null,"",null,null,null,null,null,null,0,0]
[0,0,0,null,null,null,"",null,null,null,null,null,null,0,0]
[0,0,0,null,null,null,"",null,null,null,null,null,null,0,0]
[0,0,0,null,null,null,"",null,null,null,null,null,null,0,0]
[0,0,0,null,null,null,"",null,null,null,null,null,null,0,0]
[0,0,0,null,null,null,"",null,null,null,null,null,null,0,0]
[0,0,0,null,null,null,"",null,null,null,null,null,null,0,0]
[0,0,0,null,null,null,"",null,null,null,null,null,null,0,0]
[0,0,0,null,null,null,"",null,null,null,null,null,null,0,0]
[0,0,0,null,null,null,"",null,null,null,null,null,null,0,0]
[0,0,0,null,null,null,"",null,null,null,null,null,null,0,0]
[0,0,0,null,null,null,"",null,null,null,null,null,null,0,0]
[0,0,0,null,null,null,"",null,null,null,null,null,null,0,0]
[0,0,0,null,null,null,"",null,null,null,null,null,null,0,0]
[0,0,0,null,null,null,"",null,null,null,null,null,null,0,0]
[0,0,0,null,null,null,"",null,null,null,null,null,null,0,0]
[0,0,0,null,null,null,"",null,null,null,null,null,null,0,0]
[0,0,0,null,null,null,"",null,null,null,null,null,null,0,0]
[0,0,0,null,null,null,"",null,null,null,null,null,null,0,0]
[0,0,0,null,null,null,"",null,null,null,null,null,null,0,0]
[0,0,0,null,null,null,"",null,null,null,null,null,null,0,0]
[0,0,0,null,null,null,"",null,null,null,null,null,null,0,0]
[0,0,0,null,null,null,"",null,null,null,null,null,null,0,0]
[0,0,0,null,null,null,"",null,null,null,null,null,null,0,0]
[0,0,0,null,null,null,"",null,null,null,null,null,null,0,0]
[0,0,0,null,null,null,"",null,null,null,null,null,null,0,0]
[0,0,0,null,null,null,"",null,null,null,null,null,null,0,0]
[0,0,0,null,null,null,"",null,null,null,null,null,null,0,0]
[0,0,0,null,null,null,"",null,null,null,null,null,null,0,0]
[0,0,0,null,null,null,"",null,null,null,null,null,null,0,0]
[0,0,0,null,null,null,"",null,null,null,null,null,null,0,0]
[0,0,0,null,null,null,"",null,null,null,null,null,null,0,0]
[0,0,0,null,null,null,"",null,null,null,null,null,null,0,0]
[0,0,0,null,null,null,"",null,null,null,null,null,null,0,0]
[0,0,0,null,null,null,"",null,null,null,null,null,null,0,0]
[0,0,0,null,null,null,"",null,null,null,null,null,null,0,0]
[0,0,0,null,null,null,"",null,null,null,null,null,null,0,0]
[0,0,0,null,null,null,"",null,null,null,null,null,null,0,0]
[0,0,0,null,null,null,"",null,null,null,null,null,null,0,0]
[0,0,0,null,null,null,"",null,null,null,null,null,null,0,0]
[0,0,0,null,null,null,"",null,null,null,null,null,null,0,0]
[0,0,0,null,null,null,"",null,null,null,null,null,null,0,0]
[0,0,0,null,null,null,"",null,null,null,null,null,null,{"$f":"IF(M4930<>0,1,0)","v":0},{"$f":"IF(D4930<>0,1,0)","v":0}]
[{"$f":"IF(M4931=\"Y\",1,0)","v":0},{"$f":"IF(M4931=\"N\",1,0)","v":0},{"$f":"IF(M4931=\"A\",1,0)","v":0},null,null,null,"",null,null,null,null,null,null,0,0]
[0,0,0,null,null,null,"",null,null,null,null,null,null,0,0]
[0,0,0,null,null,null,"",null,null,null,null,null,null,0,0]
[0,0,0,null,null,null,"",null,null,null,null,null,null,0,0]
[0,0,0,null,null,null,"",null,null,null,null,null,null,0,0]
[0,0,0,null,null,null,"",null,null,null,null,null,null,0,0]
[0,0,0,null,null,null,"",null,null,null,null,null,null,0,0]
[0,0,0,null,null,null,"",null,null,null,null,null,null,0,0]
[0,0,0,null,null,null,"",null,null,null,null,null,null,0,0]
[0,0,0,null,null,null,"",null,null,null,null,null,null,0,0]
[0,0,0,null,null,null,"",null,null,null,null,null,null,0,0]
[0,0,0,null,null,null,"",null,null,null,null,null,null,0,0]
[0,0,0,null,null,null,"",null,null,null,null,null,null,0,0]
[0,0,0,null,null,null,{"$f":"IF(D4944<>\"\",G4943+1,\"\")","v":""},null,null,null,null,null,null,0,0]
[0,0,0,null,null,null,"",null,null,null,null,null,null,0,0]
[0,0,0,null,null,null,"",null,null,null,null,null,null,0,0]
[0,0,0,null,null,null,"",null,null,null,null,null,null,0,0]
[0,0,0,null,null,null,"",null,null,null,null,null,null,0,0]
[0,0,0,null,null,null,"",null,null,null,null,null,null,0,0]
[0,0,0,null,null,null,"",null,null,null,null,null,null,0,0]
[0,0,0,null,null,null,"",null,null,null,null,null,null,0,0]
[0,0,0,null,null,null,"",null,null,null,null,null,null,0,0]
[0,0,0,null,null,null,"",null,null,null,null,null,null,0,0]
[0,0,0,null,null,null,"",null,null,null,null,null,null,0,0]
[0,0,0,null,null,null,"",null,null,null,null,null,null,0,0]
[0,0,0,null,null,null,"",null,null,null,null,null,null,0,0]
[0,0,0,null,null,null,"",null,null,null,null,null,null,0,0]
[0,0,0,null,null,null,"",null,null,null,null,null,null,0,0]
[0,0,0,null,null,null,"",null,null,null,null,null,null,0,0]
[0,0,0,null,null,null,"",null,null,null,null,null,null,0,0]
[0,0,0,null,null,null,"",null,null,null,null,null,null,0,0]
[0,0,0,null,null,null,"",null,null,null,null,null,null,0,0]
[0,0,0,null,null,null,"",null,null,null,null,null,null,0,0]
[0,0,0,null,null,null,"",null,null,null,null,null,null,0,0]
[0,0,0,null,null,null,"",null,null,null,null,null,null,0,0]
[0,0,0,null,null,null,"",null,null,null,null,null,null,0,0]
[0,0,0,null,null,null,"",null,null,null,null,null,null,0,0]
[0,0,0,null,null,null,"",null,null,null,null,null,null,0,0]
[0,0,0,null,null,null,"",null,null,null,null,null,null,0,0]
[0,0,0,null,null,null,"",null,null,null,null,null,null,0,0]
[0,0,0,null,null,null,"",null,null,null,null,null,null,0,0]
[0,0,0,null,null,null,"",null,null,null,null,null,null,0,0]
[0,0,0,null,null,null,"",null,null,null,null,null,null,0,0]
[0,0,0,null,null,null,"",null,null,null,null,null,null,0,0]
[0,0,0,null,null,null,"",null,null,null,null,null,null,0,0]
[0,0,0,null,null,null,"",null,null,null,null,null,null,0,0]
[0,0,0,null,null,null,"",null,null,null,null,null,null,0,0]
[0,0,0,null,null,null,"",null,null,null,null,null,null,0,0]
[0,0,0,null,null,null,"",null,null,null,null,null,null,0,0]
[0,0,0,null,null,null,"",null,null,null,null,null,null,0,0]
[0,0,0,null,null,null,"",null,null,null,null,null,null,0,0]
[0,0,0,null,null,null,"",null,null,null,null,null,null,0,0]
[0,0,0,null,null,null,"",null,null,null,null,null,null,0,0]
[0,0,0,null,null,null,"",null,null,null,null,null,null,0,0]
[0,0,0,null,null,null,"",null,null,null,null,null,null,0,0]
[0,0,0,null,null,null,"",null,null,null,null,null,null,0,0]
[0,0,0,null,null,null,"",null,null,null,null,null,null,0,0]
[0,0,0,null,null,null,"",null,null,null,null,null,null,0,0]
[0,0,0,null,null,null,"",null,null,null,null,null,null,0,0]
[0,0,0,null,null,null,"",null,null,null,null,null,null,0,0]
[0,0,0,null,null,null,"",null,null,null,null,null,null,0,0]
[0,0,0,null,null,null,"",null,null,null,null,null,null,0,0]
[0,0,0,null,null,null,"",null,null,null,null,null,null,0,0]
[0,0,0,null,null,null,"",null,null,null,null,null,null,{"$f":"IF(M4994<>0,1,0)","v":0},{"$f":"IF(D4994<>0,1,0)","v":0}]
[{"$f":"IF(M4995=\"Y\",1,0)","v":0},{"$f":"IF(M4995=\"N\",1,0)","v":0},{"$f":"IF(M4995=\"A\",1,0)","v":0},null,null,null,"",null,null,null,null,null,null,0,0]
[0,0,0,null,null,null,"",null,null,null,null,null,null,0,0]
[0,0,0,null,null,null,"",null,null,null,null,null,null,0,0]
[0,0,0,null,null,null,"",null,null,null,null,null,null,0,0]
[0,0,0,null,null,null,"",null,null,null,null,null,null,0,0]
[0,0,0,null,null,null,"",null,null,null,null,null,null,0,0]
[0,0,0,null,null,null,"",null,null,null,null,null,null,0,0]

{"sheet":"How to","index":1,"n_rows":35,"n_cols":1,"rows_kept":35,"cut":false,"hidden":false,"merged":[]}
["This app can be used in different ways."]
[]
["1. As a simple checklist."]
[]
["2. As a simple voting list."]
[]
["1. Checklist"]
[]
["Just fill in the information you want in the text spaces and if applicable check the appropriate cell"]
["(column M) with an X. The cell adjacent to the X will turn green."]
["Simultaneously the values of the cells in column P will change. When filling a cell in column M"]
["the value in cell P2 will increase with 1 and the cell in P3 will decrease with 1."]
["The value in cell P5 is determined by the number of cells you fill with characters (column D)."]
[]
["Don't worry about the macro in this sheet, it's just a quicker way to sort your list alphabetically."]
["The macro will sort data in column D to column N meaning that you will not loose your checked"]
["cells after sorting. In other words: each row should stay as it was before the sorting operation."]
["After entering data in a row you can simply hit [ctrl+s] to sort your list. The advantage here is"]
["that you can do this anywhere in your list without having to select the appropriate cells. "]
[]
["2. Voting list"]
[]
["This list will only work as a single topic voting list, not as a multiple topic list. So if you want"]
["to decide who is going to be your next CEO this isn't the right tool (unless there's only one"]
["candidate)."]
["It's quite simple: just fill in the names of your voters (column D) and if you like, any additional"]
["information in columns H to L. Then check the M cell in the same row with Y for yes, N for no"]
["and A for abstention. Excel will give you the number of voters for each category as well as the"]
["corresponding percentage. T stands for the total of all people who have voted."]
["Don't forget: to sort just hit [ctrl+s]."]
[]
["Remark:"]
[]
["You can freely delete an item from your list or add one and when you're ready just perform the  "]
["sort operation. So you won't have to start from scratch each time items change."]